Workbook

Sheet setting
A1: A1 | D1: DỮ LIỆU | I1: CHỌN TRANG TÍNH | Q1: IN ẤN- PDF | AR1: Cột P (16): Bảng viết tắt
A2: HoSoKCS_18.08.2020 | C2: 1 | D2: =+COLUMN()-COLUMN($B$4) -> 2 | E2: 3 | F2: 4 | G2: 5 | H2: 6 | I2: 7 | J2: 8 | K2: 9 | L2: 10 | M2: 11 | N2: 12 | O2: 13 | P2: 14 | Q2: 15 | R2: 16 | S2: 17 | T2: 18 | U2: 19 | V2: 20 | W2: 21 | X2: 22 | Y2: 23 | Z2: 24 | AA2: 25 | AB2: 26 | AC2: 27 | AD2: 28 | AE2: 29 | AF2: 30 | AG2: 31
A3: SheetName | B3: SheetCode | C3: Sheet | D3: DuLieuNguon | E3: ChenAnh | F3: BatDauBang | G3: XoaDuLieu | H3: XoaDL_TaoMoi | I3: SheetDLieu | J3: SheetThoiTiet | K3: SheetDLieuCT | L3: SheetList | M3: SheetBBan | N3: SheetBBKhac | O3: SheetNKy | P3: SheetTachList | Q3: Xuat_In | R3: SheetListBB | S3: SoTT_Bban | T3: BBKT_IN | U3: BBKTbdf | V3: BBNT_IN | W3: BBNTbdf | X3: CanBienBan | Y3: CapNhat | Z3: HangMucTruoc_Sau | AM3: khai báo biến | AR3: Đầy đủ | AS3: Viết tắt
A4: 0 | B4: 0 | C4: 1 | D4: 2 | E4: 3 | F4: 4 | G4: 5 | H4: 6 | I4: 7 | J4: 8 | K4: 9 | L4: 10 | M4: 11 | N4: 12 | O4: 13 | P4: 14 | Q4: 15 | R4: 16 | S4: 17 | T4: 18 | U4: 19 | V4: 20 | W4: 21 | X4: 22 | Y4: 23 | Z4: 24 | AA4: 25 | AB4: 26 | AC4: 27 | AD4: 28 | AE4: 29 | AF4: 30 | AG4: 31
A5: =[16]!fSheetCode(MaCV!$A$1) -> Sheet3 | B5: =[16]!fSheetName(MaCV!$A$1) -> MaCV | C5: MaCV | F5: =+fCells(MaCV!A2) -> A2 | I5: x | AM5: =SUBSTITUTE("Global Const Sh_XXX = ""XXX""","XXX",B5) -> Global Const Sh_MaCV = "MaCV" | AR5: Trách nhiệm hữu hạn | AS5: TNHH
A6: =[16]!fSheetCode(TCNT!$A$1) -> Sheet4 | B6: =[16]!fSheetName(TCNT!$A$1) -> TCNT | C6: TCNT | F6: =+fCells(TCNT!A2) -> A2 | I6: x | AM6: Global Const Sh_TCNT = "TCNT" | AR6: Xây dựng | AS6: XD
A7: =[16]!fSheetCode(MaBBKT!$A$1) -> Sheet43 | B7: =[16]!fSheetName(MaBBKT!$A$1) -> MaBBKT | C7: MaBBKT | F7: =+fCells(MaBBKT!A2) -> A2 | I7: x | AM7: Global Const Sh_MaBBKT = "MaBBKT" | AR7: Hợp tác xã | AS7: HTX
A8: =[16]!fSheetCode(MaTN!$A$1) -> Sheet20 | B8: =[16]!fSheetName(MaTN!$A$1) -> MaTN | C8: MaTN | F8: =+fCells(MaTN!A2) -> A2 | I8: x | AM8: Global Const Sh_MaTN = "MaTN" | AR8: Cổ phần | AS8: CP
A9: =[16]!fSheetCode(KQTN!$A$1) -> Sheet24 | B9: =[16]!fSheetName(KQTN!$A$1) -> KQTN | C9: KQTN | F9: =+fCells(KQTN!A2) -> A2 | I9: x | AM9: Global Const Sh_KQTN = "KQTN" | AR9: Đầu tư | AS9: ĐT
A10: =[16]!fSheetCode(tbDinhmuc!$A$1) -> Sheet12 | B10: =[16]!fSheetName(tbDinhmuc!$A$1) -> tbDinhmuc | C10: tbDinhmuc | F10: =+fCells(tbDinhmuc!A1) -> A1 | I10: x | AM10: Global Const Sh_tbDinhmuc = "tbDinhmuc" | AR10: Liên danh | AS10: LD
A11: =[16]!fSheetCode(tbGiaCamay!$A$1) -> Sheet26 | B11: =[16]!fSheetName(tbGiaCamay!$A$1) -> tbGiaCamay | C11: tbGiaCamay | F11: =+fCells(tbGiaCamay!A1) -> A1 | I11: x | AM11: Global Const Sh_tbGiaCamay = "tbGiaCamay" | AR11: Công ty | AS11: Cty
A12: =[16]!fSheetCode(tbTHmay!$A$1) -> Sheet27 | B12: =[16]!fSheetName(tbTHmay!$A$1) -> tbTHmay | C12: tbTHmay | F12: =+fCells(tbTHmay!A1) -> A1 | I12: x | Y12: x | AM12: Global Const Sh_tbTHmay = "tbTHmay" | AR12: Quản lý | AS12: QL
A13: =[16]!fSheetCode(Config!$A$1) -> Sheet50 | B13: =[16]!fSheetName(Config!$A$1) -> Config | C13: Config | F13: =+fCells(Config!A2) -> A2 | I13: x | AM13: Global Const Sh_Config = "Config" | AR13: Dự án | AS13: DA
A14: =[16]!fSheetCode(Tam!$A$1) -> Sheet44 | B14: =[16]!fSheetName(Tam!$A$1) -> Tam | C14: Tam | AM14: Global Const Sh_Tam = "Tam" | AR14: Phát triển | AS14: PT
A15: =[16]!fSheetCode(setting!$A$1) -> Sheet80 | B15: =[16]!fSheetName(setting!$A$1) -> setting | C15: setting | AM15: Global Const Sh_setting = "setting" | AR15: Quỹ đất | AS15: QĐ
A16: =[16]!fSheetCode(Thongtin!$A$1) -> Sheet1 | B16: =[16]!fSheetName(Thongtin!$A$1) -> Thongtin | C16: Thongtin | Y16: x | AM16: Global Const Sh_Thongtin = "Thongtin"
A17: =[16]!fSheetCode(tb_Thoitiet!$A$1) -> Sheet2 | B17: =[16]!fSheetName(tb_Thoitiet!$A$1) -> tb_Thoitiet | C17: tb_Thoitiet | F17: =+fCells(tb_Thoitiet!A4) -> A4 | H17: =fCells(tb_Thoitiet!A4) -> A4 | J17: x | AM17: Global Const Sh_tb_Thoitiet = "tb_Thoitiet"
A18: =[16]!fSheetCode(DataWeather!$A$1) -> Sheet21 | B18: =[16]!fSheetName(DataWeather!$A$1) -> DataWeather | C18: DataWeather | J18: x | AM18: Global Const Sh_DataWeather = "DataWeather"
A19: =[16]!fSheetCode(TPCPBT!$A$1) -> Sheet52 | B19: =[16]!fSheetName(TPCPBT!$A$1) -> TPCPBT | C19: TPCPBT | F19: =+fCells(TPCPBT!B2) -> B2 | K19: x | AM19: Global Const Sh_TPCPBT = "TPCPBT"
A20: =[16]!fSheetCode(Vatlieu!$A$1) -> Sheet56 | B20: =[16]!fSheetName(Vatlieu!$A$1) -> Vatlieu | C20: Vatlieu | F20: =+fCells(Vatlieu!A4) -> A4 | K20: x | AM20: Global Const Sh_Vatlieu = "Vatlieu"
A21: =[16]!fSheetCode(TbVatlieu!$A$1) -> Sheet14 | B21: =[16]!fSheetName(TbVatlieu!$A$1) -> TbVatlieu | C21: TbVatlieu | F21: =fCells(TbVatlieu!A10) -> A10 | H21: =fCells(TbVatlieu!A10) -> A10 | K21: x | AM21: Global Const Sh_TbVatlieu = "TbVatlieu"
A22: =[16]!fSheetCode(TbKTHH_HM!$A$1) -> Sheet18 | B22: =[16]!fSheetName(TbKTHH_HM!$A$1) -> TbKTHH_HM | C22: TbKTHH_HM | F22: =fCells(TbKTHH_HM!A10) -> A10 | H22: =fCells(TbKTHH_HM!A10) -> A10 | K22: x | AM22: Global Const Sh_TbKTHH_HM = "TbKTHH_HM"
A23: =[16]!fSheetCode(TbKTHH_Dap!$A$1) -> Sheet19 | B23: =[16]!fSheetName(TbKTHH_Dap!$A$1) -> TbKTHH_Dap | C23: TbKTHH_Dap | F23: =fCells(TbKTHH_Dap!A10) -> A10 | H23: =fCells(TbKTHH_Dap!A10) -> A10 | K23: x | AM23: Global Const Sh_TbKTHH_Dap = "TbKTHH_Dap"
A24: =[16]!fSheetCode(Data_DAO_DAP!$A$1) -> Sheet74 | B24: =[16]!fSheetName(Data_DAO_DAP!$A$1) -> Data_DAO_DAP | C24: Data_DAO_DAP | H24: =fCells(Data_DAO_DAP!A10) -> A10 | K24: x | AM24: Global Const Sh_Data_DAO_DAP = "Data_DAO_DAP"
A25: =[16]!fSheetCode(TbKTHH_Cp!$A$1) -> Sheet23 | B25: =[16]!fSheetName(TbKTHH_Cp!$A$1) -> TbKTHH_Cp | C25: TbKTHH_Cp | F25: =fCells(TbKTHH_Cp!A10) -> A10 | H25: =fCells(TbKTHH_Cp!A10) -> A10 | K25: x | AM25: Global Const Sh_TbKTHH_Cp = "TbKTHH_Cp"
A26: =[16]!fSheetCode(TbKTHH_Ct!$A$1) -> Sheet30 | B26: =[16]!fSheetName(TbKTHH_Ct!$A$1) -> TbKTHH_Ct | C26: TbKTHH_Ct | F26: =fCells(TbKTHH_Ct!A10) -> A10 | H26: =fCells(TbKTHH_Ct!A10) -> A10 | K26: x | AM26: Global Const Sh_TbKTHH_Ct = "TbKTHH_Ct"
A27: =[16]!fSheetCode(TbKTHH_BT!$A$1) -> Sheet53 | B27: =[16]!fSheetName(TbKTHH_BT!$A$1) -> TbKTHH_BT | C27: TbKTHH_BT | F27: =fCells(TbKTHH_BT!A10) -> A10 | H27: =fCells(TbKTHH_BT!A10) -> A10 | K27: x | AM27: Global Const Sh_TbKTHH_BT = "TbKTHH_BT"
A28: =[16]!fSheetCode(TbKTHH_SDD!$A$1) -> Sheet76 | B28: =[16]!fSheetName(TbKTHH_SDD!$A$1) -> TbKTHH_SDD | C28: TbKTHH_SDD | F28: =fCells(TbKTHH_SDD!A10) -> A10 | H28: =fCells(TbKTHH_SDD!A10) -> A10 | K28: x | AM28: Global Const Sh_TbKTHH_SDD = "TbKTHH_SDD"
A29: =[16]!fSheetCode(TbKTHH_Nhap!$A$1) -> Sheet84 | B29: =[16]!fSheetName(TbKTHH_Nhap!$A$1) -> TbKTHH_Nhap | C29: =+B29 -> TbKTHH_Nhap | F29: =fCells(TbKTHH_Nhap!A10) -> A10 | H29: =fCells(TbKTHH_Nhap!A10) -> A10 | K29: x
A30: =[16]!fSheetCode(DienGiai!$A$1) -> Sheet81 | B30: =[16]!fSheetName(DienGiai!$A$1) -> DienGiai | C30: DienGiai | AM30: Global Const Sh_DienGiai = "DienGiai"
A31: =[16]!fSheetCode(Nhattrinh!$A$1) -> Sheet7 | B31: =[16]!fSheetName(Nhattrinh!$A$1) -> Nhattrinh | C31: Nhattrinh | F31: =fCells(Nhattrinh!A6) -> A6 | H31: =fCells(Nhattrinh!A17) -> A17 | Y31: x | AM31: Global Const Sh_Nhattrinh = "Nhattrinh"
A32: =[16]!fSheetCode(DuLieuKiemTra!$A$1) -> Sheet75 | B32: =[16]!fSheetName(DuLieuKiemTra!$A$1) -> DuLieuKiemTra | C32: DuLieuKiemTra | AM32: Global Const Sh_DuLieuKiemTra = "DuLieuKiemTra"
A33: =[16]!fSheetCode(ListBBCV!$A$1) -> Sheet8 | B33: =[16]!fSheetName(ListBBCV!$A$1) -> ListBBCV | C33: ListBBCV | F33: =fCells(ListBBCV!A5) -> A5 | G33: =fCells(ListBBCV!A5) -> A5 | H33: =fCells(ListBBCV!A5) -> A5 | L33: x | AM33: Global Const Sh_ListBBCV = "ListBBCV"
A34: =[16]!fSheetCode(ListBBHT!$A$1) -> Sheet9 | B34: =[16]!fSheetName(ListBBHT!$A$1) -> ListBBHT | C34: ListBBHT | F34: =fCells(ListBBHT!A5) -> A5 | G34: =fCells(ListBBHT!A5) -> A5 | H34: =fCells(ListBBHT!A5) -> A5 | L34: x | AM34: Global Const Sh_ListBBHT = "ListBBHT"
A35: =[16]!fSheetCode(ListVlieu!$A$1) -> Sheet54 | B35: =[16]!fSheetName(ListVlieu!$A$1) -> ListVlieu | C35: ListVlieu | F35: =fCells(ListVlieu!A5) -> A5 | G35: =fCells(ListVlieu!A5) -> A5 | H35: =fCells(ListVlieu!A5) -> A5 | L35: x | AM35: Global Const Sh_ListVlieu = "ListVlieu"
A36: =[16]!fSheetCode(ListTN!$A$1) -> Sheet10 | B36: =[16]!fSheetName(ListTN!$A$1) -> ListTN | C36: ListTN | F36: =fCells(ListTN!A5) -> A5 | G36: =fCells(ListTN!A5) -> A5 | H36: =fCells(ListTN!A5) -> A5 | L36: x | AM36: Global Const Sh_ListTN = "ListTN"
A37: =[16]!fSheetCode(ListTNVL!$A$1) -> Sheet42 | B37: =[16]!fSheetName(ListTNVL!$A$1) -> ListTNVL | C37: ListTNVL | F37: =fCells(ListTNVL!A5) -> A5 | G37: =fCells(ListTNVL!A5) -> A5 | H37: =fCells(ListTNVL!A5) -> A5 | L37: x | AM37: Global Const Sh_ListTNVL = "ListTNVL"
A38: =[16]!fSheetCode(ListTNBT!$A$1) -> Sheet45 | B38: =[16]!fSheetName(ListTNBT!$A$1) -> ListTNBT | C38: ListTNBT | F38: =fCells(ListTNBT!A5) -> A5 | G38: =fCells(ListTNBT!A5) -> A5 | H38: =fCells(ListTNBT!A5) -> A5 | L38: x | AM38: Global Const Sh_ListTNBT = "ListTNBT"
A39: =[16]!fSheetCode(ListTNkhac!$A$1) -> Sheet49 | B39: =[16]!fSheetName(ListTNkhac!$A$1) -> ListTNkhac | C39: ListTNkhac | F39: =fCells(ListTNkhac!A5) -> A5 | G39: =fCells(ListTNkhac!A5) -> A5 | H39: =fCells(ListTNkhac!A5) -> A5 | L39: x | AM39: Global Const Sh_ListTNkhac = "ListTNkhac"
A40: =[16]!fSheetCode(LIST_BBKT_HM!$A$1) -> Sheet22 | B40: =[16]!fSheetName(LIST_BBKT_HM!$A$1) -> LIST_BBKT_HM | C40: LIST_BBKT_HM | F40: =fCells(LIST_BBKT_HM!A5) -> A5 | G40: =fCells(LIST_BBKT_HM!A5) -> A5 | H40: =fCells(LIST_BBKT_HM!A5) -> A5 | L40: x | AM40: Global Const Sh_LIST_BBKT_HM = "LIST_BBKT_HM"
A41: =[16]!fSheetCode(LIST_BBKT_DAP!$A$1) -> Sheet25 | B41: =[16]!fSheetName(LIST_BBKT_DAP!$A$1) -> LIST_BBKT_DAP | C41: LIST_BBKT_DAP | F41: =fCells(LIST_BBKT_DAP!A5) -> A5 | G41: =fCells(LIST_BBKT_DAP!A5) -> A5 | H41: =fCells(LIST_BBKT_DAP!A5) -> A5 | L41: x | AM41: Global Const Sh_LIST_BBKT_DAP = "LIST_BBKT_DAP"
A42: =[16]!fSheetCode(LIST_BBKT_BT!$A$1) -> Sheet29 | B42: =[16]!fSheetName(LIST_BBKT_BT!$A$1) -> LIST_BBKT_BT | C42: LIST_BBKT_BT | F42: =fCells(LIST_BBKT_BT!A5) -> A5 | G42: =fCells(LIST_BBKT_BT!A5) -> A5 | H42: =fCells(LIST_BBKT_BT!A5) -> A5 | L42: x | AM42: Global Const Sh_LIST_BBKT_BT = "LIST_BBKT_BT"
A43: =[16]!fSheetCode(LIST_BBKT_VK!$A$1) -> Sheet55 | B43: =[16]!fSheetName(LIST_BBKT_VK!$A$1) -> LIST_BBKT_VK | C43: LIST_BBKT_VK | F43: =fCells(LIST_BBKT_VK!A5) -> A5 | G43: =fCells(LIST_BBKT_VK!A5) -> A5 | H43: =fCells(LIST_BBKT_VK!A5) -> A5 | L43: x | AM43: Global Const Sh_LIST_BBKT_VK = "LIST_BBKT_VK"
A44: =[16]!fSheetCode(LIST_BBKT_CT!$A$1) -> Sheet67 | B44: =[16]!fSheetName(LIST_BBKT_CT!$A$1) -> LIST_BBKT_CT | C44: LIST_BBKT_CT | F44: =fCells(LIST_BBKT_CT!A5) -> A5 | G44: =fCells(LIST_BBKT_CT!A5) -> A5 | H44: =fCells(LIST_BBKT_CT!A5) -> A5 | L44: x | AM44: Global Const Sh_LIST_BBKT_CT = "LIST_BBKT_CT"
A45: =[16]!fSheetCode(LIST_DKDBT!$A$1) -> Sheet69 | B45: =[16]!fSheetName(LIST_DKDBT!$A$1) -> LIST_DKDBT | C45: LIST_DKDBT | F45: =fCells(LIST_DKDBT!A5) -> A5 | G45: =fCells(LIST_DKDBT!A5) -> A5 | H45: =fCells(LIST_DKDBT!A5) -> A5 | L45: x | AM45: Global Const Sh_LIST_DKDBT = "LIST_DKDBT"
A46: =[16]!fSheetCode(LIST_PHIEU_BT!$A$1) -> Sheet70 | B46: =[16]!fSheetName(LIST_PHIEU_BT!$A$1) -> LIST_PHIEU_BT | C46: LIST_PHIEU_BT | F46: =fCells(LIST_PHIEU_BT!A5) -> A5 | G46: =fCells(LIST_PHIEU_BT!A5) -> A5 | H46: =fCells(LIST_PHIEU_BT!A5) -> A5 | L46: x | AM46: Global Const Sh_LIST_PHIEU_BT = "LIST_PHIEU_BT"
A47: =[16]!fSheetCode(LIST_THAO_VK!$A$1) -> Sheet71 | B47: =[16]!fSheetName(LIST_THAO_VK!$A$1) -> LIST_THAO_VK | C47: LIST_THAO_VK | F47: =+fCells(LIST_THAO_VK!A5) -> A5 | G47: =fCells(LIST_THAO_VK!A5) -> A5 | H47: =fCells(LIST_THAO_VK!A5) -> A5 | L47: x | AM47: Global Const Sh_LIST_THAO_VK = "LIST_THAO_VK"
A48: =[16]!fSheetCode(LIST_BBKT_SDD!$A$1) -> Sheet77 | B48: =[16]!fSheetName(LIST_BBKT_SDD!$A$1) -> LIST_BBKT_SDD | C48: LIST_BBKT_SDD | F48: =++fCells(LIST_BBKT_SDD!A5) -> A5 | G48: =fCells(LIST_BBKT_SDD!A5) -> A5 | H48: =fCells(LIST_BBKT_SDD!A5) -> A5 | L48: x | AM48: Global Const Sh_LIST_BBKT_SDD = "LIST_BBKT_SDD"
A49: =[16]!fSheetCode(LIST_BBKT_Nhap!$A$1) -> Sheet85 | B49: =[16]!fSheetName(LIST_BBKT_Nhap!$A$1) -> LIST_BBKT_Nhap | C49: =+B49 -> LIST_BBKT_Nhap | F49: =+fCells(LIST_BBKT_Nhap!A5) -> A5 | G49: =fCells(LIST_BBKT_Nhap!A5) -> A5 | H49: =fCells(LIST_BBKT_Nhap!A5) -> A5 | L49: x
A50: =[16]!fSheetCode(DMnhatky!$A$1) -> Sheet16 | B50: =[16]!fSheetName(DMnhatky!$A$1) -> DMnhatky | C50: DMnhatky | F50: =+fCells(DMnhatky!A3) -> A3 | G50: =fCells(DMnhatky!A3) -> A3 | H50: =fCells(DMnhatky!A3) -> A3 | O50: x | AM50: Global Const Sh_DMnhatky = "DMnhatky"
A51: =[16]!fSheetCode(NKchitiet!$A$1) -> Sheet17 | B51: =[16]!fSheetName(NKchitiet!$A$1) -> NKchitiet | C51: NKchitiet | F51: =++fCells(NKchitiet!A3) -> A3 | G51: =fCells(NKchitiet!A3) -> A3 | H51: =fCells(NKchitiet!A3) -> A3 | O51: x | AM51: Global Const Sh_NKchitiet = "NKchitiet"
A52: =[16]!fSheetCode(DanhmucBBCV!$A$1) -> Sheet72 | B52: =[16]!fSheetName(DanhmucBBCV!$A$1) -> DanhmucBBCV | C52: DanhmucBBCV | F52: =+fCells(DanhmucBBCV!E8) -> E8 | G52: =+fCells(DanhmucBBCV!E8) -> E8 | H52: =fCells(DanhmucBBCV!E8) -> E8 | M52: x | Q52: x | X52: x | Y52: x | AM52: Global Const Sh_DanhmucBBCV = "DanhmucBBCV"
A53: =[16]!fSheetCode(BienbanCVXD!$E$4) -> Sheet13 | B53: =[16]!fSheetName(BienbanCVXD!$E$4) -> BienbanCVXD | C53: BienbanCVXD | M53: x | R53: =+C33 -> ListBBCV | S53: 1 | V53: =+V$3 -> BBNT_IN | W53: =+W$3 -> BBNTbdf | X53: x | Y53: x | Z53: x | AM53: Global Const Sh_BienbanCVXD = "BienbanCVXD"
A54: =[16]!fSheetCode(BienbanHT!$E$4) -> Sheet15 | B54: =[16]!fSheetName(BienbanHT!$E$4) -> BienbanHT | C54: BienbanHT | M54: x | R54: =+C34 -> ListBBHT | S54: 1 | V54: =+V$3 -> BBNT_IN | W54: BBNTbdf | X54: x | Y54: x | Z54: x | AM54: Global Const Sh_BienbanHT = "BienbanHT"
A55: =[16]!fSheetCode(BienbanVatlieu!A1) -> Sheet57 | B55: =[16]!fSheetName(BienbanVatlieu!A1) -> BienbanVatlieu | C55: BienbanVatlieu | D55: =[16]!fSheetName(TbVatlieu!$A$1) -> TbVatlieu | M55: x | R55: =+C35 -> ListVlieu | S55: 1 | V55: =+V$3 -> BBNT_IN | W55: =+W$3 -> BBNTbdf | X55: x | Y55: x | Z55: x | AM55: Global Const Sh_BienbanVatlieu = "BienbanVatlieu"
A56: =[16]!fSheetCode(BBKT_Homong!$C$1) -> Sheet58 | B56: =[16]!fSheetName(BBKT_Homong!$C$1) -> BBKT_Homong | C56: BBKT_Homong | D56: =[16]!fSheetName(TbKTHH_HM!$A$1) -> TbKTHH_HM | E56: x | M56: x | R56: =+C40 -> LIST_BBKT_HM | S56: 2 | T56: =+T$3 -> BBKT_IN | U56: =+U$3 -> BBKTbdf | X56: x | Y56: x | Z56: x | AM56: Global Const Sh_BBKT_Homong = "BBKT_Homong"
A57: =[16]!fSheetCode(BBKT_Dap!$C$1) -> Sheet59 | B57: =[16]!fSheetName(BBKT_Dap!$C$1) -> BBKT_Dap | C57: BBKT_Dap | D57: =[16]!fSheetName(TbKTHH_Dap!$A$1) -> TbKTHH_Dap | E57: x | M57: x | R57: =+C41 -> LIST_BBKT_DAP | S57: 3 | T57: =+T$3 -> BBKT_IN | U57: BBKTbdf | X57: x | Y57: x | Z57: x | AM57: Global Const Sh_BBKT_Dap = "BBKT_Dap"
A58: =[16]!fSheetCode(BBKT_VK!$C$1) -> Sheet46 | B58: =[16]!fSheetName(BBKT_VK!$C$1) -> BBKT_VK | C58: BBKT_VK | D58: =[16]!fSheetName(TbKTHH_Cp!$A$1) -> TbKTHH_Cp | E58: x | M58: x | R58: =+C43 -> LIST_BBKT_VK | S58: 4 | T58: BBKT_IN | U58: BBKTbdf | X58: x | Y58: x | Z58: x | AM58: Global Const Sh_BBKT_VK = "BBKT_VK"
A59: =[16]!fSheetCode(BBKT_CT!$A$13) -> Sheet47 | B59: =[16]!fSheetName(BBKT_CT!$A$13) -> BBKT_CT | C59: BBKT_CT | D59: =[16]!fSheetName(TbKTHH_Ct!$A$1) -> TbKTHH_Ct | E59: x | M59: x | R59: LIST_BBKT_CT | S59: 5 | T59: BBKT_IN | U59: BBKTbdf | X59: x | Y59: x | Z59: x | AM59: Global Const Sh_BBKT_CT = "BBKT_CT"
A60: =[16]!fSheetCode(BBKT_DKDBT!A1) -> Sheet60 | B60: =[16]!fSheetName(BBKT_DKDBT!A1) -> BBKT_DKDBT | C60: BBKT_DKDBT | M60: x | R60: LIST_DKDBT | S60: 6 | T60: BBKT_IN | U60: BBKTbdf | X60: x | Y60: x | Z60: x | AM60: Global Const Sh_BBKT_DKDBT = "BBKT_DKDBT"
A61: =[16]!fSheetCode(PHIEU_BT!$E$4) -> Sheet48 | B61: =[16]!fSheetName(PHIEU_BT!$E$4) -> PHIEU_BT | C61: PHIEU_BT | M61: x | R61: LIST_PHIEU_BT | S61: 7 | T61: BBKT_IN | U61: BBKTbdf | X61: x | Y61: x | Z61: x | AM61: Global Const Sh_PHIEU_BT = "PHIEU_BT"
A62: =[16]!fSheetCode(THAO_VK!A1) -> Sheet51 | B62: =[16]!fSheetName(THAO_VK!A1) -> THAO_VK | C62: THAO_VK | M62: x | R62: LIST_THAO_VK | S62: 8 | T62: BBKT_IN | U62: BBKTbdf | X62: x | Y62: x | Z62: x | AM62: Global Const Sh_THAO_VK = "THAO_VK"
A63: =[16]!fSheetCode(BBKT_SDD!$C$1) -> Sheet78 | B63: =[16]!fSheetName(BBKT_SDD!$C$1) -> BBKT_SDD | C63: BBKT_SDD | D63: =[16]!fSheetName(TbKTHH_SDD!$A$1) -> TbKTHH_SDD | E63: x | M63: x | R63: LIST_BBKT_SDD | S63: 9 | T63: BBKT_IN | U63: BBKTbdf | X63: x | Y63: x | Z63: x | AM63: Global Const Sh_BBKT_SDD = "BBKT_SDD"
A64: =[16]!fSheetCode(BBKT_Nhap!$C$1) -> Sheet86 | B64: =[16]!fSheetName(BBKT_Nhap!$C$1) -> BBKT_Nhap | C64: =+B64 -> BBKT_Nhap | D64: =[16]!fSheetName(TbKTHH_Nhap!$A$1) -> TbKTHH_Nhap | E64: x | M64: x | R64: LIST_BBKT_Nhap | S64: 9 | T64: BBKT_IN | U64: BBKTbdf | X64: x | Y64: x | Z64: x
A65: =[16]!fSheetCode(BBKT_KTHHBT!$C$1) -> Sheet68 | B65: =[16]!fSheetName(BBKT_KTHHBT!$C$1) -> BBKT_KTHHBT | C65: BBKT_KTHHBT | D65: =[16]!fSheetName(TbKTHH_BT!$A$1) -> TbKTHH_BT | E65: x | M65: x | R65: =+C42 -> LIST_BBKT_BT | S65: 10 | T65: BBKT_IN | U65: BBKTbdf | X65: x | Y65: x | Z65: x | AM65: Global Const Sh_BBKT_KTHHBT = "BBKT_KTHHBT"
A66: =[16]!fSheetCode(BBLMVL!$B$3) -> Sheet31 | B66: =[16]!fSheetName(BBLMVL!$B$3) -> BBLMVL | C66: BBLMVL | M66: x | R66: =+C37 -> ListTNVL | S66: 11 | T66: BBKT_IN | U66: BBKTbdf | X66: x | Y66: x | Z66: x | AM66: Global Const Sh_BBLMVL = "BBLMVL"
A67: =[16]!fSheetCode(BBLMBT!$A$9) -> Sheet33 | B67: =[16]!fSheetName(BBLMBT!$A$9) -> BBLMBT | C67: BBLMBT | M67: x | R67: =+C38 -> ListTNBT | S67: 11 | T67: BBKT_IN | U67: BBKTbdf | X67: x | Y67: x | Z67: x | AM67: Global Const Sh_BBLMBT = "BBLMBT"
A68: =[16]!fSheetCode(BBLMkhac!A1) -> Sheet35 | B68: =[16]!fSheetName(BBLMkhac!A1) -> BBLMkhac | C68: BBLMkhac | M68: x | R68: =+C39 -> ListTNkhac | S68: 11 | T68: BBKT_IN | U68: BBKTbdf | X68: x | Y68: x | Z68: x | AM68: Global Const Sh_BBLMkhac = "BBLMkhac"
A69: =[16]!fSheetCode(Bia_Hoso!$A$8) -> Sheet38 | B69: =[16]!fSheetName(Bia_Hoso!$A$8) -> Bia_Hoso | C69: Bia_Hoso | N69: x | Q69: x | X69: x | AM69: Global Const Sh_Bia_Hoso = "Bia_Hoso"
A70: =[16]!fSheetCode(Bia_nhatky!$A$8) -> Sheet62 | B70: =[16]!fSheetName(Bia_nhatky!$A$8) -> Bia_nhatky | C70: Bia_nhatky | N70: x | Q70: x | X70: x | AM70: Global Const Sh_Bia_nhatky = "Bia_nhatky"
A71: =[16]!fSheetCode(Matbang!$A$8) -> Sheet32 | B71: =[16]!fSheetName(Matbang!$A$8) -> Matbang | C71: Matbang | N71: x | Q71: x | X71: x | Y71: x | AM71: Global Const Sh_Matbang = "Matbang"
A72: =[16]!fSheetCode(PhieuCTVL!$A$8) -> Sheet40 | B72: =[16]!fSheetName(PhieuCTVL!$A$8) -> PhieuCTVL | C72: PhieuCTVL | N72: x | Q72: x | X72: x | Y72: x | AM72: Global Const Sh_PhieuCTVL = "PhieuCTVL"
A73: =[16]!fSheetCode(PhongThinghiem!$A$8) -> Sheet34 | B73: =[16]!fSheetName(PhongThinghiem!$A$8) -> PhongThinghiem | C73: PhongThinghiem | N73: x | Q73: x | X73: x | Y73: x | AM73: Global Const Sh_PhongThinghiem = "PhongThinghiem"
A74: =[16]!fSheetCode(Nhanluc!$A$8) -> Sheet41 | B74: =[16]!fSheetName(Nhanluc!$A$8) -> Nhanluc | C74: Nhanluc | N74: x | Q74: x | X74: x | Y74: x | AM74: Global Const Sh_Nhanluc = "Nhanluc"
A75: =[16]!fSheetCode(NthuMoc!$A$8) -> Sheet36 | B75: =[16]!fSheetName(NthuMoc!$A$8) -> NthuMoc | C75: NthuMoc | N75: x | Q75: x | X75: x | Y75: x | AM75: Global Const Sh_NthuMoc = "NthuMoc"
A76: =[16]!fSheetCode(Dieukientruocthicong!$A$8) -> Sheet37 | B76: =[16]!fSheetName(Dieukientruocthicong!$A$8) -> Dieukientruocthicong | C76: Dieukientruocthicong | N76: x | Q76: x | X76: x | Y76: x | AM76: Global Const Sh_Dieukientruocthicong = "Dieukientruocthicong"
A77: =[16]!fSheetCode(BBXLKT!$A$1) -> Sheet63 | B77: =[16]!fSheetName(BBXLKT!$A$1) -> BBXLKT | C77: BBXLKT | N77: x | Q77: x | X77: x | Y77: x | AM77: Global Const Sh_BBXLKT = "BBXLKT"
A78: =[16]!fSheetCode(Baocaosuco!$A$1) -> Sheet64 | B78: =[16]!fSheetName(Baocaosuco!$A$1) -> Baocaosuco | C78: Baocaosuco | N78: x | Q78: x | X78: x | Y78: x | AM78: Global Const Sh_Baocaosuco = "Baocaosuco"
A79: =[16]!fSheetCode(Baocaohoanthanh!$A$1) -> Sheet65 | B79: =[16]!fSheetName(Baocaohoanthanh!$A$1) -> Baocaohoanthanh | C79: Baocaohoanthanh | N79: x | Q79: x | X79: x | Y79: x | AM79: Global Const Sh_Baocaohoanthanh = "Baocaohoanthanh"
A80: =[16]!fSheetCode(BB_BanGiao!$A$1) -> Sheet66 | B80: =[16]!fSheetName(BB_BanGiao!$A$1) -> BB_BanGiao | C80: BB_BanGiao | N80: x | Q80: x | X80: x | Y80: x | AM80: Global Const Sh_BB_BanGiao = "BB_BanGiao"
A81: =[16]!fSheetCode(LenhKcong!$A$1) -> Sheet39 | B81: =[16]!fSheetName(LenhKcong!$A$1) -> LenhKcong | C81: LenhKcong | N81: x | X81: x | Y81: x | AM81: Global Const Sh_LenhKcong = "LenhKcong"
A82: =[16]!fSheetCode(GhiNhatky!$E$1) -> Sheet73 | B82: =[16]!fSheetName(GhiNhatky!$E$1) -> GhiNhatky | C82: GhiNhatky | E82: =+fCells(GhiNhatky!E5) -> E5 | F82: =+fCells(GhiNhatky!E5) -> E5 | G82: =fCells(GhiNhatky!E5) -> E5 | H82: =fCells(GhiNhatky!E5) -> E5 | O82: x | X82: x | AM82: Global Const Sh_GhiNhatky = "GhiNhatky"
A83: =[16]!fSheetCode(InNKTC!$E$1) -> Sheet61 | B83: =[16]!fSheetName(InNKTC!$E$1) -> InNKTC | C83: InNKTC | O83: x | X83: x | AM83: Global Const Sh_InNKTC = "InNKTC"
A84: =[16]!fSheetCode(InNKGS!$E$1) -> Sheet28 | B84: =[16]!fSheetName(InNKGS!$E$1) -> InNKGS | C84: InNKGS | O84: x | X84: x | AM84: Global Const Sh_InNKGS = "InNKGS"
A85: =[16]!fSheetCode(LIST_BBKT_Nhap!$A$1) -> Sheet85 | B85: =[16]!fSheetName(Export_ListNhatkyTC!$A$1) -> Export_ListNhatkyTC | C85: =+B85 -> Export_ListNhatkyTC | E85: =+fCells(Export_ListNhatkyTC!$A$1) -> A1 | F85: =+fCells(Export_ListNhatkyTC!$A$1) -> A1 | G85: =fCells(Export_ListNhatkyTC!A1) -> A1 | H85: =fCells(Export_ListNhatkyTC!A1) -> A1 | O85: x | P85: x
A86: =[16]!fSheetCode(Export_ListCVXD!$A$1) -> Sheet5 | B86: =[16]!fSheetName(Export_ListCVXD!$A$1) -> Export_ListCVXD | C86: Export_ListCVXD | E86: =+fCells(Export_ListCVXD!$A$1) -> A1 | F86: =+fCells(Export_ListCVXD!$A$1) -> A1 | G86: =fCells(Export_ListCVXD!A1) -> A1 | H86: =fCells(Export_ListCVXD!A1) -> A1 | P86: x | AM86: Global Const Sh_Export_ListCVXD = "Export_ListCVXD"
A87: =[16]!fSheetCode(Export_ListHTHM!$A$1) -> Sheet6 | B87: =[16]!fSheetName(Export_ListHTHM!$A$1) -> Export_ListHTHM | C87: Export_ListHTHM | E87: =+fCells(Export_ListHTHM!$A$1) -> A1 | F87: =+fCells(Export_ListHTHM!$A$1) -> A1 | G87: =fCells(Export_ListHTHM!A1) -> A1 | H87: =fCells(Export_ListHTHM!A1) -> A1 | P87: x | AM87: Global Const Sh_Export_ListHTHM = "Export_ListHTHM"
A88: =[16]!fSheetCode(Export_Thinghiem!$A$1) -> Sheet11 | B88: =[16]!fSheetName(Export_Thinghiem!$A$1) -> Export_Thinghiem | C88: Export_Thinghiem | E88: =+fCells(Export_Thinghiem!$A$15) -> A15 | F88: =+fCells(Export_Thinghiem!$A$15) -> A15 | G88: =fCells(Export_Thinghiem!A15) -> A15 | H88: =fCells(Export_Thinghiem!A15) -> A15 | P88: x | AM88: Global Const Sh_Export_Thinghiem = "Export_Thinghiem"
A89: =[16]!fSheetCode(Export_Thinghiem!$A$1) -> Sheet11 | B89: =[16]!fSheetName(Export_ListNTVL!$A$1) -> Export_ListNTVL | C89: Export_ListNTVL | E89: =+fCells(Export_ListNTVL!$A$1) -> A1 | F89: =+fCells(Export_ListNTVL!$A$1) -> A1 | G89: =fCells(Export_Thinghiem!A1) -> A1 | H89: =fCells(Export_Thinghiem!A1) -> A1 | P89: x | AM89: Global Const Sh_Export_Thinghiem = "Export_Thinghiem"
A90: =[16]!fSheetCode(Infor_Rb!$A$1) -> Sheet79 | B90: =[16]!fSheetName(Infor_Rb!$A$1) -> Infor_Rb | C90: Infor_Rb | AM90: Global Const Sh_Infor_Rb = "Infor_Rb"
G91: =RIGHT(CELL("address",INDIRECT(SUBSTITUTE("XXX!$A$5","XXX",$C91),TRUE)),4) -> 

Sheet MaCV
A1: MÃ CÔNG VIỆC
A2: Mã hiệu | B2: Nội dung công việc | C2: Tiêu chuẩn áp dụng | D2: Kết quả thí nghiệm kèm theo | E2: Công việc kèm theo
A3: NMB.0001 | B3: Nhận mặt bằng công trình
A4: TBTC.0001 | B4: Tập kết thiết bị thi công
A5: PO.02101 | B5: Mốc cao độ
A6: TT.00001 | B6: Bảo dưỡng bê tông
A7: AA.11111 | B7: Phát rừng loại I bằng thủ công, mật độ cây tiêu chuẩn trên 100m2: 0 cây | C7: TCVN4055:2012; TCVN 5637:1991 | E7: KT.00013
A8: AA.12111 | B8: Chặt cây ở mặt đất bằng phẳng, đường kính gốc cây ≤20cm | C8: TCVN4055:2012; TCVN 5637:1991 | E8: KT.00013
A9: AA.13111 | B9: Đào gốc cây, đường kính gốc cây ≤20cm | C9: TCVN4055:2012; TCVN 5637:1991 | E9: KT.00013
A10: AA.21111 | B10: Phá dỡ kết cấu gạch đá, phá dỡ tường gạch, bằng thủ công | C10: TCVN4055:2012; TCVN 5637:1991 | E10: KT.00013
A11: AA.22111 | B11: Phá dỡ kết cấu bê tông có cốt thép bằng búa căn | C11: TCVN4055:2012; TCVN 5637:1991 | E11: KT.00013
A12: AA.23111 | B12: Vận chuyển phế thải tiếp 1000m bằng ôtô 7 tấn, chiều dày lớp cắt ≤3cm | C12: TCVN4055:2012; TCVN 5637:1991 | E12: KT.00013
A13: AA.31111 | B13: Tháo dỡ kết cấu gỗ bằng thủ công, chiều cao ≤4m | C13: TCVN 4055:2012; TCVN 5637:1991 | E13: KT.00013
A14: AA.32111 | B14: Tháo dỡ sàn cầu tạm (Eiffel, Bailey, dàn T66, N64) bằng máy hàn | C14: TCVN 4055:2012; TCVN 5637:1991 | E14: KT.00013
A15: AB.11111 | B15: Đào bùn đặc trong mọi điều kiện, bằng thủ công | C15: TCVN4055:2012; TCVN 5637:1991; TCVN 4447:2012 | E15: KT.00004
A16: AB.12111 | B16: Phá đá bằng thủ công, chiều dày lớp đá ≤0,5m, đá cấp I | C16: TCVN4055:2012; TCVN 5637:1991; TCVN 4447:2012 | E16: KT.00013
A17: AB.13111 | B17: Đắp đất nền móng công trình, bằng thủ công, độ chặt yêu cầu K=0,85 | C17: TCVN4055:2012; TCVN 5637:1991; TCVN 4447:2012 | E17: KT.00005; CP.010022
A18: AB.21111 | B18: Đào san đất tạo mặt bằng, bằng máy đào ≤0,4m3 + máy ủi ≤110CV, đất cấp I | C18: TCVN4055:2012; TCVN 5637:1991; TCVN 4447:2012 | E18: KT.00004
A19: AB.22111 | B19: Đào san đất tạo mặt bằng, bằng máy ủi ≤75CV, phạm vi ≤50m, đất cấp I | C19: TCVN4055:2012; TCVN 5637:1991; TCVN 4447:2012 | E19: KT.00004
A20: AB.23111 | B20: Đào san đất tạo mặt bằng, bằng máy cạp 9m3, phạm vi ≤300m, đất cấp I | C20: TCVN4055:2012; TCVN 5637:1991; TCVN 4447:2012 | E20: KT.00004
A21: AB.24111 | B21: Đào xúc đất để đắp hoặc đổ ra bãi thải, bãi tập kết, bằng máy đào ≤0,4m3 + máy ủi ≤110CV, phạm vi 30m, đất cấp I | C21: TCVN4055:2012; TCVN 5637:1991; TCVN 4447:2012 | E21: KT.00004
A22: AB.25111 | B22: Đào móng công trình, chiều rộng móng ≤6m, bằng máy đào ≤0,8m3, đất cấp I | C22: TCVN4055:2012; TCVN 5637:1991; TCVN 4447:2012 | E22: KT.00004
A23: AB.26111 | B23: Đào móng công trình trên nền đất mềm, yếu, bằng phương pháp đào chuyển tổ hợp 2 máy đào 0,8m3 | C23: TCVN4055:2012; TCVN 5637:1991; TCVN 4447:2012 | E23: KT.00004
A24: AB.27111 | B24: Đào kênh mương, chiều rộng ≤6m, bằng máy đào ≤0,8m3, đất cấp I | C24: TCVN4055:2012; TCVN 5637:1991; TCVN 4447:2012 | E24: KT.00004
A25: AB.28111 | B25: Đào kênh mương trên nền đất mềm, yếu, bằng phương pháp đào chuyển, tổ hợp 2 máy đào 0,8m3 | C25: TCVN4055:2012; TCVN 5637:1991; TCVN 4447:2012; TCVN8305:2009 | E25: KT.00004
A26: AB.31111 | B26: Đào nền đường bằng máy đào ≤0,4m3 + máy ủi ≤110CV, đổ lên phương tiện vận chuyển, đất cấp I | C26: TCVN4055:2012; TCVN 5637:1991; TCVN 4447:2012 | E26: KT.00004
A27: AB.32111 | B27: Đào nền đường bằng máy ủi ≤75CV, vận chuyển trong phạm vi ≤50m, đất cấp I | C27: TCVN4055:2012; TCVN 5637:1991; TCVN 4447:2012 | E27: KT.00004
A28: AB.33111 | B28: Đào nền đường bằng máy cạp 9m3, vận chuyển trong phạm vi ≤300m, đất cấp I | C28: TCVN4055:2012; TCVN 5637:1991; TCVN 4447:2012 | E28: KT.00004
A29: AB.34110 | B29: San đất bãi thải, bãi trữ, bãi gia tải bằng máy ủi 110CV | C29: TCVN4055:2012; TCVN 5637:1991; TCVN 4447:2012 | E29: KT.00013
A30: AB.35110 | B30: Đào đất trong khung vây phòng nước các trụ trên cạn | C30: TCVN4055:2012; TCVN 5637:1991; TCVN 4447:2012 | E30: KT.00004
A31: AB.36110 | B31: Xói hút bùn trong khung vây phòng nước, các trụ trên cạn | C31: TCVN4055:2012; TCVN 5637:1991; TCVN 4447:2012 | E31: KT.00013
A32: AB.41111 | B32: Vận chuyển đất bằng ôtô tự đổ 5 tấn trong phạm vi ≤300m, đất cấp I | C32: TCVN4055:2012; TCVN 5637:1991; TCVN 4447:2012 | E32: KT.00013
A33: AB.42111 | B33: Vận chuyển đất 1000m tiếp theo, cự ly vận chuyển ≤2km bằng ôtô tự đổ 5 tấn, đất cấp I | C33: TCVN4055:2012; TCVN 5637:1991; TCVN 4447:2012 | E33: KT.00013
A34: AB.51611 | B34: Đào phá đá, chiều dày ≤0,5m bằng búa căn, đá cấp I | C34: TCVN4055:2012; TCVN 5637:1991; TCVN 4447:2012 | E34: KT.00004
A35: AB.55311 | B35: Xúc đá hỗn hợp tại bãi trữ lên phương tiện vận chuyển bằng máy đào dung tích gầu ≤1,25m3 | C35: TCVN4055:2012; TCVN 5637:1991; TCVN 4447:2012 | E35: KT.00004
A36: AB.56111 | B36: Vận chuyển đá hỗn hợp lấp sông bằng ô tô tự đổ 12 tấn trong phạm vi ≤300m | C36: TCVN4055:2012; TCVN 5637:1991; TCVN 4447:2012 | E36: KT.00013
A37: AB.57111 | B37: Vận chuyển tiếp 1000m đá hỗn hợp lấp sông bằng ô tô tự đổ 12 tấn, cự ly ≤2km | C37: TCVN4055:2012; TCVN 5637:1991; TCVN 4447:2012 | E37: KT.00013
A38: AB.61110 | B38: Đắp đất, cát mặt bằng công trình bằng tàu hút 600CV, cự ly ≤500m | C38: TCVN4055:2012; TCVN 5637:1991; TCVN 4447:2012 | E38: KT.00005; CP.010022
A39: AB.62111 | B39: San đầm đất mặt bằng, bằng máy đầm 9 tấn, độ chặt yêu cầu K=0,85 | C39: TCVN4055:2012; TCVN 5637:1991; TCVN 4447:2012 | E39: KT.00013
A40: AB.63111 | B40: Đắp đê, đập, kênh mương bằng máy đầm 9 tấn, dung trọng ≤1,65T/m3 | C40: TCVN4055:2012; TCVN 5637:1991; TCVN 4447:2012 | E40: KT.00005; CP.010022
A41: AB.64111 | B41: Đắp nền đường máy đầm 9 tấn, độ chặt yêu cầu K=0,85 | C41: TCVN4055:2012; TCVN 5637:1991; TCVN 4447:2012 | E41: KT.00005; CP.010022
A42: AB.65110 | B42: Đắp đất công trình bằng máy đầm cóc, độ chặt yêu cầu K=0,85 | C42: TCVN4055:2012; TCVN 5637:1991; TCVN 4447:2012 | E42: KT.00005; CP.010022
A43: AB.66111 | B43: Đắp cát công trình bằng máy đầm 9 tấn, độ chặt yêu cầu K=0,85 | C43: TCVN4055:2012; TCVN 5637:1991; TCVN 4447:2012 | E43: KT.00005; CP.010022
A44: AB.68110 | B44: Đắp đá lớp đệm dưới lớp bê tông bản mặt bằng đá có Dmax ≤80mm | C44: TCVN4055:2012; TCVN 5637:1991; TCVN 4447:2012 | E44: KT.00005; CP.010022
A45: AB.71110 | B45: Nạo vét bằng tàu hút công suất ≤1000CV, chiều sâu nạo vét ≤6m, chiều cao ống xả ≤3m, chiều dài ống xả ≤300m, đất phù sa bùn lỏng | C45: TCVN4055:2012; TCVN 5637:1991; TCVN 4447:2012 | E45: KT.00013
A46: AB.72210 | B46: Nạo vét bằng tàu cuốc sông TC 82 495CV (hoặc tương tự), đất phù sa bùn lỏng | C46: TCVN4055:2012; TCVN 5637:1991; TCVN 4447:2012 | E46: KT.00013
A47: AB.73110 | B47: Nạo vét bằng tàu hút bụng tự hành công suất ≤2500CV, độ sâu hạ gầu từ 4 đến 6m, cự ly vận chuyển đất ≤6km, đất phù sa bùn lỏng | C47: TCVN4055:2012; TCVN 5637:1991; TCVN 4447:2012 | E47: KT.00013
A48: AB.81111 | B48: Nạo vét kênh mương bằng máy đào gầu dây ≤0,4m3, chiều cao đổ đất ≤3m, bùn đặc, đất sỏi lắng đọng dưới 3 năm | C48: TCVN4055:2012; TCVN 5637:1991; TCVN 4447:2012 | E48: KT.00004
A49: AB.91111 | B49: Vận chuyển đất, cát đổ đi bằng tàu kéo 360CV + xà lan 400 tấn, vận chuyển 1km đầu | C49: TCVN4055:2012; TCVN 5637:1991; TCVN 4447:2012 | E49: KT.00013
A50: AB.92110 | B50: Vận chuyển đất, cát đổ đi 1km tiếp theo ngoài 6km đầu, trong phạm vi 6 đến 20km bằng tàu hút bụng tự hành, công suất <2500CV | C50: TCVN4055:2012; TCVN 5637:1991; TCVN 4447:2012 | E50: KT.00013
A51: AC.11110 | B51: Đóng cọc tre, bằng thủ công, chiều dài cọc ngập đất ≤2,5m, đất bùn | C51: TCVN4055:2012; TCVN 5637:1991 | E51: KT.00013
A52: AC.12111 | B52: Đóng cọc gỗ bằng máy trên mặt đất, cọc dài ≤10m, đất cấp I | C52: TCVN4055:2012; TCVN 5637:1991 | E52: KT.00013
A53: AC.13111 | B53: Đóng cọc BTCT trên mặt đất, chiều dài cọc ≤24m, bằng búa máy có trọng lượng đầu búa ≤1,2 tấn, đất cấp I, kích thước cọc 20x20cm | C53: TCVN4055:2012; TCVN 5637:1991; TCVN9394:2012 | E53: KT.00013
A54: AC.14111 | B54: Đóng cọc BTCT trên mặt đất, chiều dài cọc ≤24m, bằng búa máy có trọng lượng đầu búa ≤1,8 tấn, đất cấp I, kích thước cọc 20x20cm | C54: TCVN4055:2012; TCVN 5637:1991; TCVN9394:2012 | E54: KT.00013
A55: AC.15111 | B55: Đóng cọc BTCT trên mặt đất, chiều dài cọc ≤24m, bằng búa máy có trọng lượng đầu búa ≤2,5 tấn, đất cấp I, kích thước cọc 25x25cm | C55: TCVN4055:2012; TCVN 5637:1991; TCVN9394:2012 | E55: KT.00013
A56: AC.16111 | B56: Đóng cọc BTCT trên mặt đất, chiều dài cọc ≤24m, bằng búa máy có trọng lượng đầu búa ≤3,5 tấn, đất cấp I, kích thước cọc 30x30cm | C56: TCVN4055:2012; TCVN 5637:1991; TCVN9394:2012 | E56: KT.00013
A57: AC.17111 | B57: Đóng cọc BTCT trên mặt nước, chiều dài cọc ≤24m, bằng tàu đóng cọc trọng lượng đầu búa ≤1,8 tấn, kích thước cọc 30x30cm | C57: TCVN4055:2012; TCVN 5637:1991; TCVN9394:2012 | E57: KT.00013
A58: AC.18111 | B58: Đóng cọc BTCT trên mặt nước, chiều dài cọc ≤24m, bằng tàu đóng cọc trọng lượng đầu búa ≤2,5 tấn, kích thước cọc 30x30cm | C58: TCVN4055:2012; TCVN 5637:1991; TCVN9394:2012 | E58: KT.00013
A59: AC.19111 | B59: Đóng cọc BTCT trên mặt nước, chiều dài cọc ≤24m, bằng tàu đóng cọc trọng lượng đầu búa ≤3,5 tấn, kích thước cọc 30x30cm | C59: TCVN4055:2012; TCVN 5637:1991; TCVN9394:2012 | E59: KT.00013
A60: AC.21111 | B60: Đóng cọc ống BTCT trên cạn, bằng máy đóng cọc hoặc búa rung, đường kính cọc ≤550mm | C60: TCVN4055:2012; TCVN 5637:1991; TCVN9394:2012 | E60: KT.00013
A61: AC.22111 | B61: Đóng cọc ván thép (cọc Larsen) trên mặt đất, chiều dài cọc ≤12m, đất cấp I | C61: TCVN4055:2012; TCVN 5637:1991; TCVN9245:2012 | E61: KT.00013
A62: AC.23110 | B62: Nhổ cọc thép hình, thép ống làm tường chắn đất, sàn thao tác trên cạn | C62: TCVN4055:2012; TCVN 5637:1991; TCVN9245:2012 | E62: KT.00013
A63: AC.25111 | B63: Ép trước cọc BTCT, kích thước cọc 15x15cm, chiều dài đoạn cọc ≤4m, đất cấp I | C63: TCVN4055:2012; TCVN 5637:1991; TCVN9394:2012 | E63: KT.00013
A64: AC.26111 | B64: Ép trước cọc BTCT, kích thước cọc 30x30cm, chiều dài đoạn cọc ≤4m, đất cấp I | C64: TCVN4055:2012; TCVN 5637:1991; TCVN9394:2012 | E64: KT.00013
A65: AC.27110 | B65: Nhổ cọc cừ Larsen bằng máy ép thủy lực | C65: TCVN4055:2012; TCVN 5637:1991; TCVN9394:2012 | E65: KT.00013
A66: AC.28111 | B66: Ép sau cọc BTCT, kích thước cọc 10x10cm, chiều dài đoạn cọc ≤4m, đất cấp I | C66: TCVN4055:2012; TCVN 5637:1991; TCVN9394:2012 | E66: KT.00013
A67: AC.29111 | B67: Nối cọc ván thép Larsen trên cạn | C67: TCVN4055:2012; TCVN 5637:1991; TCVN9394:2012 | E67: KT.00013
A68: AC.31110 | B68: Khoan tạo lỗ bằng phương pháp khoan lắc có ống vách, khoan vào đất trên cạn, bằng máy khoan VRM HĐ, Lepper (hoặc tương tự), đường kính lỗ khoan 800mm | C68: TCVN4055:2012; TCVN 5637:1991 | E68: KT.00013
A69: AC.32111 | B69: Khoan tạo lỗ bằng phương pháp khoan xoay phản tuần hoàn (có sử dụng dung dịch khoan), khoan vào đất trên cạn, bằng máy khoan TRC-15 (hoặc tương tự), đường kính lỗ khoan 800mm | C69: TCVN4055:2012; TCVN 5637:1991; TCVN9395:2012 | D69: CP.010029; CP.010030 | E69: KT.00013
A70: AC.34111 | B70: Khoan tạo lỗ bằng phương pháp khoan xoay, khoan vào đất trên cạn, bằng máy khoan T2W 300CV (hoặc tương tự), đường kính lỗ khoan 600mm | C70: TCVN4055:2012; TCVN 5637:1991; TCVN9395:2012 | D70: CP.010029; CP.010030 | E70: KT.00013
A71: AC.35110 | B71: Đào tạo lỗ cọc, tường barette, kích thước đào 0,5x1,2m | C71: TCVN4055:2012; TCVN 5637:1991 | E71: KT.00004
A72: AD.11110 | B72: Làm móng đường đá ba, đá hộc, chiều dày lớp móng đã lèn ép ≤20cm | C72: TCVN4055:2012; TCVN 5637:1991; TCVN9504:2012 | E72: KT.00013
A73: AD.12111 | B73: Làm lớp móng cát vàng gia cố xi măng, trạm trộn 20-25m3/h, tỷ lệ xi măng 6% | C73: TCVN4055:2012; TCVN 5637:1991; 22TCN 246-98 | E73: KT.00013
A74: AD.21111 | B74: Làm mặt đường đá dăm nước lớp trên, chiều dày mặt đường đã lèn ép 8cm | C74: TCVN4055:2012; TCVN 5637:1991; TCVN9504:2012 | E74: KT.00013
A75: AD.22111 | B75: Làm mặt đường đá 4x6 chèn đá dăm, chiều dày mặt đường đã lèn ép 10cm | C75: TCVN4055:2012; TCVN 5637:1991; TCVN9504:2012 | E75: KT.00005; KT.00013
A76: AD.23111 | B76: Rải thảm mặt đường đá dăm đen, chiều dày mặt đường đã lèn ép 3cm | C76: TCVN4055:2012; TCVN 5637:1991; TCVN9504:2012 | E76: KT.00013
A77: AD.24111 | B77: Láng nhựa mặt đường 1 lớp nhựa dày 1,5cm, tiêu chuẩn nhựa 1,8kg/m2 | C77: TCVN4055:2012; TCVN 5637:1991; TCVN8809:2011 | E77: KT.00013
A78: AD.25111 | B78: Cày xới mặt đường cũ, mặt đường đá dăm hoặc láng nhựa | C78: TCVN4055:2012; TCVN 5637:1991 | E78: KT.00013
A79: AD.26111 | B79: Sản xuất đá dăm đen bằng trạm trộn ≤25T/h | C79: TCVN4055:2012; TCVN 5637:1991 | E79: KT.00013
A80: AD.27111 | B80: Vận chuyển hỗn hợp cát mịn, cát vàng gia cố xi măng từ trạm trộn đến vị trí đổ bằng ôtô 5 tấn, cự ly 0,5km | C80: TCVN4055:2012; TCVN 5637:1991 | E80: AK.23110; CP.010033
A81: AD.31111 | B81: Làm cọc tiêu bê tông cốt thép 0,12x0,12x1,025m | C81: TCVN4055:2012; TCVN 5637:1991 | E81: KT.00013
A82: AD.32111 | B82: Sản xuất, lắp đặt trụ đỡ bảng tên đường, bảng lưu thông bằng sắt L50x50x5 | C82: TCVN4055:2012; TCVN 5637:1991 | E82: KT.00013
A83: AD.33110 | B83: Gắn viên phản quang trên mặt bê tông | C83: TCVN4055:2012; TCVN 5637:1991 | E83: KT.00013
A84: AD.34110 | B84: Lắp đặt dải phân cách cứng | C84: TCVN4055:2012; TCVN 5637:1991 | E84: KT.00013
A85: AD.81111 | B85: Sản xuất phao tiêu báo hiệu đường sông, đường kính 0,8m | C85: TCVN4055:2012; TCVN 5637:1991 | E85: KT.00013
A86: AD.82111 | B86: Lắp đặt phao tiêu đường sông, đường kính 0,8m | C86: TCVN4055:2012; TCVN 5637:1991 | E86: KT.00013
A87: AE.11110 | B87: Xây móng bằng đá hộc, chiều dày ≤60cm, vữa XM mác 50 | C87: TCVN4055:2012; TCVN 5637:1991; TCVN4085:2011 | E87: KT.00013
A88: AE.12110 | B88: Xếp đá khan không chít mạch, mặt bằng | C88: TCVN4055:2012; TCVN 5637:1991; TCVN4085:2011 | E88: KT.00013
A89: AE.21110 | B89: Xây móng bằng gạch chỉ đặc 6,5x10,5x22, chiều dày ≤33cm, vữa XM mác 25 | C89: TCVN4055:2012; TCVN 5637:1991; TCVN4085:2011 | E89: KT.00013
A90: AE.22110 | B90: Xây tường thẳng bằng gạch chỉ đặc 6,5x10,5x22, chiều dày ≤11cm, chiều cao ≤4m, vữa XM mác 25 | C90: TCVN4055:2012; TCVN 5637:1991; TCVN4085:2011 | E90: KT.00013
A91: AE.23110 | B91: Xây cột, trụ bằng gạch chỉ đặc 6,5x10,5x22, chiều cao ≤4m, vữa XM mác 25 | C91: TCVN4055:2012; TCVN 5637:1991; TCVN4085:2011 | E91: AF.61110; KT.00008
A92: AE.24110 | B92: Xây tường cong nghiêng vặn vỏ đỗ bằng gạch chỉ đặc 6,5x10,5x22, chiều dày ≤33cm, chiều cao ≤4m, vữa XM mác 25 | C92: TCVN4055:2012; TCVN 5637:1991; TCVN4085:2011 | E92: KT.00013
A93: AE.25110 | B93: Xây cống cuốn cong bằng gạch chỉ đặc 6,5x10,5x22, vữa XM mác 50 | C93: TCVN4055:2012; TCVN 5637:1991; TCVN4085:2011 | E93: KT.00013
A94: AE.26110 | B94: Xây bể chứa bằng gạch chỉ đặc 6,5x10,5x22, vữa XM mác 25 | C94: TCVN4055:2012; TCVN 5637:1991; TCVN4085:2011 | E94: KT.00013
A95: AE.27110 | B95: Xây bể chứa hóa chất, bể chống ăn mòn bằng gạch chỉ đặc 6,5x10,5x22 | C95: TCVN4055:2012; TCVN 5637:1991; TCVN4085:2011 | E95: KT.00013
A96: AE.28140a | B96: Xây các bộ phận, kết cấu phức tạp khác bằng gạch 2 lỗ 6x10,5x22, chiều cao >50m, vữa XM mác 50 | C96: TCVN4055:2012; TCVN 5637:1991; TCVN4085:2011 | D96: CP.010033 | E96: KT.00013
A97: AE.71110 | B97: Xây tường bằng gạch rỗng 6 lỗ 10x15x22, chiều dày ≤10cm, chiều cao ≤4m, vữa XM mác 25 | C97: TCVN4055:2012; TCVN 5637:1991; TCVN4085:2011 | D97: CP.010033 | E97: KT.00013
A98: AE.81110 | B98: Xây tường gạch bê tông rỗng 20x20x40cm, tường dày ≤30cm, vữa XM mác 25 | C98: TCVN4055:2012; TCVN 5637:1991; TCVN4085:2011 | E98: KT.00013
A99: AE.83110 | B99: Xây tường bằng gạch thông gió 20x20cm, vữa XM mác 25 | C99: TCVN4055:2012; TCVN 5637:1991; TCVN4085:2011 | E99: KT.00013
A100: AE.91110 | B100: Xây ống khói bằng gạch chịu lửa | C100: TCVN4055:2012; TCVN 5637:1991; TCVN4085:2011 | E100: KT.00013
A101: AE.93110 | B101: Xây tường lò nung bằng gạch chịu lửa | C101: TCVN4055:2012; TCVN 5637:1991; TCVN4085:2011 | E101: KT.00013
A102: AF.11110 | B102: Bê tông đá dăm sản xuất bằng máy trộn, đổ bằng thủ công, bê tông lót móng rộng ≤250cm, vữa bê tông đá 4x6 mác 100 | C102: TCVN4055:2012; TCVN 5637:1991; TCVN4453:1995 | E102: KT.00013
A103: AF.12110 | B103: Bê tông đá dăm sản xuất bằng máy trộn, đổ bằng thủ công, bê tông tường dày ≤45cm, chiều cao ≤4m, vữa bê tông đá 1x2 mác 150 | C103: TCVN4055:2012; TCVN 5637:1991; TCVN4453:1995 | E103: KT.00013
A104: AF.13110 | B104: Bê tông đá dăm sản xuất bằng máy trộn, đổ bằng thủ công, bê tông giếng nước, giếng cáp, vữa bê tông đá 1x2 mác 150 | C104: TCVN4055:2012; TCVN 5637:1991; TCVN4453:1995 | E104: KT.00013
A105: AF.14110 | B105: Bê tông đá dăm sản xuất bằng máy trộn, đổ bằng thủ công, bê tông móng, mố, trụ cầu trên cạn, vữa bê tông đá 2x4 mác 200 | C105: TCVN4055:2012; TCVN 5637:1991; TCVN4453:1995 | D105: CP.010032 | E105: KT.00010; KT.00011; CP.010032; TT.00001; KT.00013; KT.00006
A106: AF.15110 | B106: Bê tông đá dăm sản xuất bằng máy trộn, đổ bằng thủ công, bê tông buồng xoắn, vữa bê tông đá 1x2 mác 150 | C106: TCVN4055:2012; TCVN 5637:1991; TCVN4453:1995 | D106: CP.010032 | E106: KT.00010; KT.00011; CP.010032; TT.00001; KT.00013; KT.00006
A107: AF.16120 | B107: Bê tông đá dăm sản xuất bằng máy trộn, đổ bằng thủ công, bê tông bể chứa dạng thành thẳng, vữa bê tông đá 1x2 mác 150 | C107: TCVN4055:2012; TCVN 5637:1991; TCVN4453:1995 | E107: KT.00013
A108: AF.17110 | B108: Bê tông đá dăm sản xuất bằng máy trộn, đổ bằng thủ công, bê tông máng thu nước và phân phối trên khu xử lý (dạng chữ V, hình bán nguyệt và đa giác), vữa bê tông đá 1x2 mác 150 | C108: TCVN4055:2012; TCVN 5637:1991; TCVN4453:1995 | E108: KT.00013
A109: AF.21220 | B109: Bê tông sản xuất qua dây chuyền trạm trộn tại hiện trường hoặc vữa bê tông thương phẩm từ các cơ sở sản xuất tập trung và đổ bằng cần cẩu, bê tông móng, chiều rộng móng >250cm, vữa bê tông đá 1x2 mác 200 | C109: TCVN4055:2012; TCVN 5637:1991; TCVN4453:1995 | E109: KT.00013
A110: AF.22110 | B110: Bê tông sản xuất qua dây chuyền trạm trộn tại hiện trường hoặc vữa bê tông thương phẩm từ các cơ sở sản xuất tập trung và đổ bằng cần cẩu, bê tông tường dày ≤45cm, chiều cao ≤4m, vữa bê tông đá 1x2 mác 150 | C110: TCVN4055:2012; TCVN 5637:1991; TCVN4453:1995 | E110: KT.00013
A111: AF.23110 | B111: Bê tông sản xuất qua dây chuyền trạm trộn tại hiện trường hoặc vữa bê tông thương phẩm từ các cơ sở sản xuất tập trung và đổ bằng cần cẩu, bê tông móng, mố trụ cầu trên cạn, vữa bê tông đá 1x2 mác 150 | C111: TCVN4055:2012; TCVN 5637:1991; TCVN4453:1995 | E111: KT.00013
A112: AF.24110 | B112: Bê tông sản xuất qua dây chuyền trạm trộn tại hiện trường hoặc vữa bê tông thương phẩm từ các cơ sở sản xuất tập trung và đổ bằng cần cẩu, bê tông mối nối bản dầm dọc cầu cảng, vữa bê tông đá 1x2 mác 200 | C112: TCVN4055:2012; TCVN 5637:1991; TCVN4453:1995 | E112: KT.00013
A113: AF.25110 | B113: Bê tông sản xuất qua dây chuyền trạm trộn tại hiện trường hoặc vữa bê tông thương phẩm từ các cơ sở sản xuất tập trung và đổ bằng cần cẩu, bê tông cọc nhồi trên cạn, đường kính ≤1000mm, vữa bê tông đá 1x2 mác 200 | C113: TCVN4055:2012; TCVN 5637:1991; TCVN4453:1995 | E113: KT.00013
A114: AF.26110 | B114: Bê tông sản xuất qua dây chuyền trạm trộn tại hiện trường hoặc vữa bê tông thương phẩm từ các cơ sở sản xuất tập trung và đổ bằng cần cẩu, bê tông bể chứa dạng thành thẳng, vữa bê tông đá 1x2 mác 200 | C114: TCVN4055:2012; TCVN 5637:1991; TCVN4453:1995 | E114: KT.00013
A115: AF.27110 | B115: Bê tông sản xuất qua dây chuyền trạm trộn tại hiện trường hoặc vữa bê tông thương phẩm từ các cơ sở sản xuất tập trung và đổ bằng cần cẩu, bê tông trượt lồng thang máy, vữa bê tông đá 1x2 mác 200 | C115: TCVN4055:2012; TCVN 5637:1991; TCVN4453:1995 | E115: KT.00013
A116: AF.28110 | B116: Làm lớp vữa XM mác 100 bảo vệ mái đập | C116: TCVN4055:2012; TCVN 5637:1991 | E116: KT.00013
A117: AF.31110 | B117: Bê tông sản xuất qua dây chuyền trạm trộn tại hiện trường hoặc vữa bê tông thương phẩm từ các cơ sở sản xuất tập trung và đổ bằng máy bơm bê tông tự hành, bê tông móng, rộng ≤250cm, vữa bê tông đá 1x2 mác 150 | C117: TCVN4055:2012; TCVN 5637:1991; TCVN4453:1995 | E117: KT.00013
A118: AF.32110 | B118: Bê tông sản xuất qua dây chuyền trạm trộn tại hiện trường hoặc vữa bê tông thương phẩm từ các cơ sở sản xuất tập trung và đổ bằng máy bơm bê tông tự hành, bê tông tường, dày ≤45cm, chiều cao ≤4m, vữa bê tông đá 1x2 mác 150 | C118: TCVN4055:2012; TCVN 5637:1991; TCVN4453:1995 | E118: KT.00013
A119: AF.33110 | B119: Bê tông sản xuất qua dây chuyền trạm trộn tại hiện trường hoặc vữa bê tông thương phẩm từ các cơ sở sản xuất tập trung và đổ bằng máy bơm bê tông tự hành, bê tông móng, mố, trụ cầu trên cạn, vữa bê tông đá 1x2 mác 150 | C119: TCVN4055:2012; TCVN 5637:1991; TCVN4453:1995 | E119: KT.00013
A120: AF.34110 | B120: Bê tông sản xuất qua dây chuyền trạm trộn tại hiện trường hoặc vữa bê tông thương phẩm từ các cơ sở sản xuất tập trung và đổ bằng máy bơm bê tông tự hành, bê tông mối nối bản dầm dọc cầu cảng, vữa bê tông đá 1x2 mác 200 | C120: TCVN4055:2012; TCVN 5637:1991; TCVN4453:1995 | E120: KT.00013
A121: AF.35110 | B121: Bê tông sản xuất qua dây chuyền trạm trộn tại hiện trường hoặc vữa bê tông thương phẩm từ các cơ sở sản xuất tập trung và đổ bằng máy bơm bê tông tự hành, bê tông cọc nhồi trên cạn, đường kính ≤1000mm, vữa bê tông đá 1x2 mác 200 | C121: TCVN4055:2012; TCVN 5637:1991; TCVN4453:1995 | E121: KT.00013
A122: AF.36110 | B122: Bê tông sản xuất qua dây chuyền trạm trộn tại hiện trường và đổ bằng máy bơm bê tông, bê tông toàn tiết diện hầm ngang, vữa bê tông đá 1x2 mác 200 | C122: TCVN4055:2012; TCVN 5637:1991; TCVN4453:1995 | E122: KT.00013
A123: AF.37110 | B123: Bê tông sản xuất qua dây chuyền trạm trộn tại hiện trường hoặc vữa bê tông thương phẩm từ các cơ sở sản xuất tập trung và đổ bằng máy bơm bê tông tự hành, bê tông bịt đáy trong khung vây trên cạn, vữa bê tông đá 1x2 mác 200 | C123: TCVN4055:2012; TCVN 5637:1991; TCVN4453:1995 | E123: KT.00013
A124: AF.41110 | B124: Bê tông thủy công lót móng, lấp đầy, đổ bằng cần cẩu 16 tấn, vữa bê tông đá 2x4 mác 100 | C124: TCVN4055:2012; TCVN 5637:1991; TCVN4453:1995 | E124: KT.00013
A125: AF.51110 | B125: Sản xuất vữa bê tông qua dây chuyền trạm trộn ≤16m3/h tại hiện trường | C125: TCVN4055:2012; TCVN 5637:1991; TCVN4453:1995 | E125: KT.00013
A126: AF.52111 | B126: Vận chuyển vữa bê tông bằng ô tô chuyển trộn 6m3, trong phạm vi ≤0,5km | C126: TCVN4055:2012; TCVN 5637:1991; TCVN4453:1995 | E126: KT.00013
A127: AF.61110 | B127: Sản xuất, lắp dựng cốt thép móng, đường kính ≤10mm | C127: TCVN4055:2012; TCVN 5637:1991; TCVN4453:1995 | E127: KT.00008
A128: AF.62110 | B128: Sản xuất, lắp dựng cốt thép lồng thang máy, đường kính ≤10mm | C128: TCVN4055:2012; TCVN 5637:1991; TCVN4453:1995 | E128: KT.00013
A129: AF.63110 | B129: Sản xuất, lắp dựng cốt thép giếng nước, giếng cáp, đường kính ≤10mm | C129: TCVN4055:2012; TCVN 5637:1991; TCVN4453:1995 | E129: KT.00013
A130: AF.64110 | B130: Sản xuất, lắp dựng cốt thép cầu máng thường, đường kính ≤10mm | C130: TCVN4055:2012; TCVN 5637:1991; TCVN4453:1995 | E130: KT.00013
A131: AF.65110 | B131: Sản xuất, lắp dựng cốt thép móng, mố, trụ, mũ mố, mũ trụ cầu trên cạn, đường kính ≤10mm | C131: TCVN4055:2012; TCVN 5637:1991; TCVN4453:1995 | E131: KT.00013
A132: AF.66110 | B132: Sản xuất, lắp dựng cáp thép dự ứng lực dầm cầu đúc hẫng (kéo sau) trên cạn | C132: TCVN4055:2012; TCVN 5637:1991; TCVN4453:1995 | E132: KT.00013
A133: AF.67110 | B133: Sản xuất, lắp dựng cốt thép cọc khoan nhồi, cọc, tường barette trên cạn, đường kính ≤18mm | C133: TCVN4055:2012; TCVN 5637:1991; TCVN4453:1995 | E133: KT.00013
A134: AF.68110 | B134: Sản xuất cốt thép bê tông hầm, đường kính ≤18mm | C134: TCVN4055:2012; TCVN 5637:1991; TCVN4453:1995 | E134: KT.00013
A135: AF.71110 | B135: Sản xuất, lắp dựng cốt thép móng, nền, bản đáy công trình thủy công, đường kính ≤10mm, bằng cần cẩu 16 tấn | C135: TCVN4055:2012; TCVN 5637:1991; TCVN4453:1995 | E135: KT.00013
A136: AF.81111 | B136: Sản xuất, lắp dựng tháo dỡ ván khuôn cho bê tông đổ tại chỗ, ván khuôn gỗ móng dài, bệ máy | C136: TCVN 4055:2012; TCVN 5637:1991; TCVN 4453:1995 | E136: KT.00013
A137: AF.82131 | B137: Sản xuất, lắp dựng tháo dỡ ván khuôn thép cho bê tông đổ tại chỗ, cây chống gỗ, ván khuôn tường, cột vuông (chữ nhật), xà dầm, giằng, chiều cao >50m | C137: TCVN 4055:2012; TCVN 5637:1991; TCVN 4453:1995 | E137: KT.00007
A138: AF.84111 | B138: Sản xuất, lắp dựng tháo dỡ ván khuôn sàn mái bằng ván ép công nghiệp không có khung xương, xà gồ gỗ + cột chống bằng hệ giáo ống, chiều cao ≤16m | C138: TCVN 4055:2012; TCVN 5637:1991; TCVN 4453:1995 | E138: KT.00013
A139: AF.86111 | B139: Sản xuất, lắp dựng tháo dỡ ván khuôn thép, khung xương thép + cột chống bằng giáo ống, ván khuôn sàn mái, chiều cao ≤16m | C139: TCVN 4055:2012; TCVN 5637:1991; TCVN 4453:1995 | E139: KT.00013
A140: AF.87111 | B140: Lắp dựng, tháo dỡ kết cấu thép, hệ ván khuôn ngoài dầm cầu đúc đẩy | C140: TCVN 4055:2012; TCVN 5637:1991; TCVN 4453:1995 | E140: KT.00013
A141: AF.88110 | B141: Sản xuất hệ ván khuôn, hệ khung đỡ ván khuôn hầm bằng kim loại | C141: TCVN4055:2012; TCVN 5637:1991; TCVN4453:1995 | E141: KT.00013
A142: AG.11110 | B142: Sản xuất cấu kiện bê tông đúc sẵn, bê tông cọc, cột, vữa bê tông đá 1x2 mác 150 | C142: TCVN4055:2012; TCVN 5637:1991; TCVN4453:1995 | E142: KT.00013
A143: AG.12120 | B143: Sản xuất cấu kiện bê tông đúc sẵn bằng vữa bê tông sản xuất qua dây chuyền trạm trộn tại hiện trường hoặc vữa bê tông thương phẩm, bê tông dầm hộp T (bản rỗng), đổ bằng cần cẩu, vữa bê tông đá 1x2 mác 300 | C143: TCVN4055:2012; TCVN 5637:1991; TCVN4453:1995; TCVN9115:2012 | E143: KT.00013
A144: AG.13111 | B144: Sản xuất, lắp đặt cốt thép bê tông đúc sẵn cột, cọc, cừ, xà dầm, giằng, đường kính ≤10mm | C144: TCVN4055:2012; TCVN 5637:1991; TCVN4453:1995 | E144: KT.00013
A145: AG.21111 | B145: Lắp dựng tấm tường 3D-SG, chiều dày lõi mốp xốp 5cm | C145: TCVN4055:2012; TCVN 5637:1991 | E145: KT.00013
A146: AG.31111 | B146: Sản xuất, lắp dựng tháo dỡ ván khuôn gỗ, ván khuôn panen | C146: TCVN 4055:2012; TCVN 5637:1991; TCVN 4453:1995 | E146: KT.00013
A147: AG.32111 | B147: Sản xuất, lắp dựng tháo dỡ ván khuôn kim loại, ván khuôn dầm cầu bản | C147: TCVN 4055:2012; TCVN 5637:1991; TCVN 4453:1995 | E147: KT.00013
A148: AG.41111 | B148: Lắp dựng các loại cấu kiện bê tông đúc sẵn bằng máy, lắp cột, trọng lượng cấu kiện ≤2,5 tấn | C148: TCVN4055:2012; TCVN 5637:1991; TCVN9115:2012 | E148: KT.00013
A149: AG.42111 | B149: Lắp các loại cấu kiện bê tông đúc sẵn bằng thủ công, trọng lượng cấu kiện ≤50kg | C149: TCVN4055:2012; TCVN 5637:1991; TCVN9115:2012 | E149: KT.00013
A150: AG.51111 | B150: Lắp, tổ hợp dầm dàn cầu thép tại bãi | C150: TCVN4055:2012; TCVN 5637:1991 | E150: KT.00013
A151: AG.52111 | B151: Lao lắp dầm bê tông bằng cẩu lao dầm hoặc cẩu long môn, chiều dài dầm ≤30m | C151: TCVN4055:2012; TCVN 5637:1991 | E151: KT.00013
A152: AG.53111 | B152: Di chuyển dầm cầu, chiều dài dầm ≤30m | C152: TCVN4055:2012; TCVN 5637:1991 | E152: KT.00013
A153: AH.11111 | B153: Sản xuất, lắp dựng vì kèo gỗ mái ngói khẩu độ ≤6,9m | C153: TCVN4055:2012; TCVN 5637:1991 | E153: KT.00013
A154: AH.12111 | B154: Sản xuất, lắp dựng giằng vì kèo theo thanh đứng gian giữa khẩu độ ≤6,9m | C154: TCVN4055:2012; TCVN 5637:1991 | E154: KT.00013
A155: AH.13111 | B155: Sản xuất, lắp dựng xà gồ gỗ mái thẳng | C155: TCVN4055:2012; TCVN 5637:1991 | E155: KT.00013
A156: AH.21111 | B156: Sản xuất, lắp dựng dầm cầu gỗ chiều dài cầu ≤6m | C156: TCVN4055:2012; TCVN 5637:1991 | E156: KT.00013
A157: AH.31111 | B157: Lắp dựng khuôn cửa đơn | C157: TCVN4055:2012; TCVN 5637:1991 | E157: KT.00013
A158: AH.32111 | B158: Lắp dựng cửa vào khuôn | C158: TCVN4055:2012; TCVN 5637:1991 | E158: KT.00013
A159: AI.11111 | B159: Sản xuất vì kèo thép hình khẩu độ lớn (18-24)m | C159: TCVN4055:2012; TCVN 5637:1991 | E159: KT.00013
A160: AI.13111 | B160: Sản xuất cấu kiện thép đặt sẵn trong bê tông, khối lượng ≤10kg/cấu kiện | C160: TCVN4055:2012; TCVN 5637:1991 | E160: KT.00013
A161: AI.21111 | B161: Sản xuất cấu kiện dầm thép dàn kín, thanh má hạ, má thượng, thanh đầu dàn cầu thép | C161: TCVN4055:2012; TCVN 5637:1991 | E161: KT.00013
A162: AI.22111 | B162: Sản xuất cấu kiện dầm thép, dầm chủ | C162: TCVN4055:2012; TCVN 5637:1991 | E162: KT.00013
A163: AI.41110 | B163: Sản xuất cửa van phẳng | C163: TCVN4055:2012; TCVN 5637:1991 | E163: KT.00013
A164: AI.52111 | B164: Sản xuất kết cấu thép thành bình, bể thùng tháp dạng hình vuông, chữ nhật | C164: TCVN4055:2012; TCVN 5637:1991 | E164: KT.00013
A165: AI.53111 | B165: Sản xuất mặt bích đặc, khối lượng ≤10kg | C165: TCVN4055:2012; TCVN 5637:1991 | E165: KT.00013
A166: AI.61111 | B166: Lắp dựng cột thép các loại | C166: TCVN4055:2012; TCVN 5637:1991 | E166: KT.00013
A167: AI.62111 | B167: Lắp dựng dầm cầu thép các loại trên cạn | C167: TCVN4055:2012; TCVN 5637:1991 | E167: KT.00013
A168: AI.63111 | B168: Lắp dựng các loại cửa sắt xếp, cửa cuốn | C168: TCVN4055:2012; TCVN 5637:1991 | E168: KT.00013
A169: AI.64111 | B169: Lắp đặt ống thép luồn cáp dự ứng lực, đường kính ống ≤80mm | C169: TCVN4055:2012; TCVN 5637:1991 | E169: KT.00013
A170: AI.65111 | B170: Lắp đặt kết cấu thép thành bình, bể dạng hình vuông, chữ nhật | C170: TCVN4055:2012; TCVN 5637:1991 | E170: KT.00013
A171: AI.66111 | B171: Lắp đặt cửa van phẳng, độ cao đóng mở ≤5m | C171: TCVN4055:2012; TCVN 5637:1991 | E171: KT.00013
A172: AK.11110 | B172: Lợp mái ngói 22v/m2, chiều cao ≤4m | C172: TCVN4055:2012; TCVN 5637:1991 | E172: KT.00013
A173: AK.12111 | B173: Lợp mái, che tường bằng fibrô xi măng | C173: TCVN4055:2012; TCVN 5637:1991 | E173: KT.00013
A174: AK.13110 | B174: Dán ngói mũi hài 75v/m2 trên mái nghiêng bê tông | C174: TCVN4055:2012; TCVN 5637:1991 | E174: KT.00013
A175: AK.21110 | B175: Trát tường ngoài, chiều dày trát 1cm, vữa XM mác 25 | C175: TCVN4055:2012; TCVN 5637:1991 | E175: KT.00013
A176: AK.22110 | B176: Trát trụ cột, lam đứng, cầu thang, chiều dày trát 1cm, vữa XM mác 25 | C176: TCVN4055:2012; TCVN 5637:1991 | E176: KT.00013
A177: AK.23110 | B177: Trát xà dầm, vữa XM mác 25 | C177: TCVN4055:2012; TCVN 5637:1991 | E177: CP.010033; TT.00001
A178: AK.24110 | B178: Đắp phào đơn, vữa XM mác 50 | C178: TCVN4055:2012; TCVN 5637:1991 | E178: CP.010033; TT.00001
A179: AK.25110 | B179: Trát sênô, mái hắt, lam ngang, vữa XM mác 50 | C179: TCVN4055:2012; TCVN 5637:1991 | E179: KT.00013
A180: AK.26110 | B180: Trát granitô gờ chỉ, gờ lồi, đố tường, vữa XM mác 50 | C180: TCVN4055:2012; TCVN 5637:1991 | E180: KT.00013
A181: AK.27110 | B181: Trát đá rửa tường, vữa XM mác 50 | C181: TCVN4055:2012; TCVN 5637:1991 | E181: KT.00013
A182: AK.31110 | B182: Ốp tường, trụ, cột, kích thước gạch 200x250mm | C182: TCVN4055:2012; TCVN 5637:1991 | E182: KT.00013
A183: AK.32110 | B183: Ốp đá granít tự nhiên vào tường, có chốt bằng inox | C183: TCVN4055:2012; TCVN 5637:1991 | E183: KT.00013
A184: AK.41110 | B184: Láng nền sàn không đánh mầu, chiều dày 2cm, vữa XM mác 50 | C184: TCVN4055:2012; TCVN 5637:1991 | E184: KT.00013
A185: AK.42110 | B185: Láng sênô, mái hắt, máng nước dày 1cm, vữa XM mác 50 | C185: TCVN4055:2012; TCVN 5637:1991 | E185: KT.00013
A186: AK.43110 | B186: Láng granitô nền sàn | C186: TCVN4055:2012; TCVN 5637:1991 | E186: KT.00013
A187: AK.44110 | B187: Láng gắn sỏi nền, sân, hè đường, chiều dày 1,5cm | C187: TCVN4055:2012; TCVN 5637:1991 | E187: KT.00013
A188: AK.51110 | B188: Lát gạch chỉ 6,5x10,5x21cm | C188: TCVN4055:2012; TCVN 5637:1991 | E188: KT.00013
A189: AK.53110 | B189: Lát gạch granít nhân tạo bậc tam cấp | C189: TCVN4055:2012; TCVN 5637:1991 | E189: KT.00013
A190: AK.54210 | B190: Lát gạch chống nóng 6 lỗ 22x15x10,5cm | C190: TCVN4055:2012; TCVN 5637:1991 | E190: KT.00013
A191: AK.55110 | B191: Lát gạch sân, nền đường, vỉa hè bằng gạch xi măng | C191: TCVN4055:2012; TCVN 5637:1991 | E191: KT.00013
A192: AK.56110 | B192: Lát nền, sàn đá cẩm thạch tiết diện đá ≤0,16m2 | C192: TCVN4055:2012; TCVN 5637:1991 | E192: KT.00013
A193: AK.57110 | B193: Bó vỉa thẳng hè, đường bằng tấm bê tông đúc sẵn 18x22x100cm | C193: TCVN4055:2012; TCVN 5637:1991 | E193: KT.00013
A194: AK.61110 | B194: Làm trần cót ép | C194: TCVN4055:2012; TCVN 5637:1991 | E194: KT.00013
A195: AK.62110 | B195: Làm trần gỗ dán (ván ép) có tấm cách âm bằng tấm acostic | C195: TCVN4055:2012; TCVN 5637:1991 | E195: KT.00013
A196: AK.63110 | B196: Làm trần ván ép bọc simili, mút dầy 3÷5cm nẹp phân ô bằng gỗ | C196: TCVN4055:2012; TCVN 5637:1991 | E196: KT.00013
A197: AK.64110 | B197: Làm trần bằng tấm thạch cao hoa văn 50x50cm | C197: TCVN4055:2012; TCVN 5637:1991 | E197: KT.00013
A198: AK.65110 | B198: Làm trần lambris gỗ dày 1cm | C198: TCVN4055:2012; TCVN 5637:1991 | E198: KT.00013
A199: AK.66110 | B199: Làm trần phẳng bằng tấm thạch cao Elephant Brand, khung xương Rondo | C199: TCVN4055:2012; TCVN 5637:1991 | E199: KT.00013
A200: AK.71110 | B200: Làm vách ngăn bằng ván ép | C200: TCVN4055:2012; TCVN 5637:1991 | E200: KT.00013
... 169 more rows

Sheet TCNT
A1: DANH MỤC TIÊU CHUẨN NGHIỆM THU
A2: Mã hiệu | B2: Nội dung tiêu chuẩn | C2: Chi chú
A3: 11 TCN -18-21:2006 | B3: Quy phạm trang bị điện | C3: TC Điện
A4: 22 TCN 159:1986 | B4: Cống tròn bê tông cốt thép lắp ghép yêu cầu kỹ thuật do Bộ Giao thông vận tải ban hành | C4: TC Cống
A5: 22 TCN 246-98 | B5: Quy trình thi công và nghiệm thu lớp cát gia có xi măng trong kết cấu áo đường ôtô. | C5: TC Đá dăm
A6: 22 TCN 247-98 | B6: Quy trình thi công và nghiệm thu dầm cầu bê tông dự ứng lực. | C6: TC Dầm
A7: 22 TCN 332:2006 | B7: Quy trình thí nghiệm xác định chỉ số CBR của đất, đá dăm trong phòng thí nghiệm do Bộ Giao thông vận tải ban hành
A8: 22 TCN 333:2006 | B8: Quy trình đầm nén đất, đá dăm trong phòng thí nghiệm do Bộ Giao thông vận tải ban hành
A9: 22 TCN 346:2006 | B9: Quy trình thí nghiệm xác định độ chặt nền, móng đường bằng phễu rót cát do Bộ Giao thông vận tải ban hành
A10: 22 TCN 171-87 | B10: Quy trình khảo sát địa chất công trình và thiết kế biện pháp ổn định nền đường và vùng hoạt động sụt trượt lở | C10: TC và quy chuẩn về khảo sát
A11: 22 TCN 211-06 | B11: Áo đường mềm Các yêu cầu và chỉ dẫn thiết kế | C11: TC và qui phạm về thiết kế
A12: 22 TCN 233-95 | B12: Áo đường cứng ô tô Yêu cầu thiết kế | C12: TC và qui phạm về thiết kế
A13: 22 TCN 242-98 | B13: Quy trình đánh giá tác động môi trường khi lập dự án khả thi và thiết kế xây dựng các công trình xây dựng | C13: TC và quy chuẩn về khảo sát
A14: 22 TCN 263:2000 | B14: Quy trình khảo sát đường ô tô | C14: TC công tác Khảo sát
A15: 22 TCN 273-01 | B15: Tiêu chuẩn thiết kế đường ô tô (phần nút giao) | C15: TC và qui phạm về thiết kế
A16: 22 TCN 277:2001 | B16: Tiêu chuẩn kiểm tra và đánh giá độ bằng phẳng mặt đường theo chỉ số độ gồ ghề quốc tế IRI
A17: 22 TCN 318 -04 | B17: Cấp phối đá dăm - Phương pháp thí nghiệm xác định độ hao mòn Los-Angeles của cốt liệu (LA) | C17: TC Thí nghiệm
A18: 22 TCN 332:2006 | B18: Xác định chỉ số CBR của đất, đá dăm trong phòng thí nghiệm | C18: TC Nền đường
A19: 22 TCN 333:2006 | B19: Quy trình nén đất, đá dăm trong phòng thí nghiệm | C19: TC Nền đường
A20: 22 TCN 346:2006 | B20: Xác định độ chặt nền móng bằng phễu rót cát | C20: TC Nền đường
A21: 22 TCN 355-06 | B21: Quy trình thí nghiệm cắt cánh hiện trường | C21: TC và quy chuẩn về khảo sát
A22: 96 TCN 43:1990 | B22: Đo vẽ bản đồ địa hình tỷ lệ 1:500 1:1000 1:2000 1:5000 (phần ngoài trời) do Cục Đo đạc và Bản đồ Nhà nước ban hành | C22: TC công tác Khảo sát
A23: ASTM A416 | B23: Thép cường độ cao | C23: TC thí nghiệm thép
A24: ASTM A709M | B24: Thép kết cấu dùng cho cầu | C24: TC thí nghiệm thép
A25: ASTM D2166 | B25: Thí nghiệm nén một trục nở hông | C25: TC Cọc xi măng đất
A26: QCVN 04:2009/BTNMT | B26: Quy chuẩn kỹ thuật quốc gia về xây dựng lưới tọa độ | C26: TC và quy chuẩn về khảo sát
A27: QCVN 06:2012/BXD | B27: Quy chuẩn kỹ thuật quốc gia về an toán cháy cho nhà và công trình xây dựng | C27: ATLĐ, Phòng chống chảy nổ
A28: QCVN 11:2008/BTNMT | B28: Quy chuẩn kỹ thuật quốc gia về xây dựng lưới cao độ | C28: TC và quy chuẩn về khảo sát
A29: QCVN 16:2017/BXD | B29: Sản phẩm, hàng hóa vật liệu xây dựng, mã số | C29: TC VL Thạch cao
A30: QCVN 18:2014/BXD | B30: An toàn trong xây dựng | C30: ATLĐ
A31: QCVN 41:2016/BGTVT | B31: Quy chuẩn kỹ thuật Quốc Gia về báo hiệu đường bộ | C31: TC Sơn kẻ đường, Biên báo
A32: QCVN 06:2020/BXD | B32: Quy chuẩn kỹ thuật Quốc gia về an toàn cháy cho nhà và công trình | C32: TC thiết kế công trình phụ trợ
A33: TCCS 02:2010/TCĐBVN | B33: Tiêu chuẩn thi công cầu | C33: TC Thi công cầu
A34: TCVN 10335:2014 | B34: Rọ đá, thảm đá và các sản phẩm mắt lưới lục giác xoắn phục vụ xây dựng công trình giao thông đường thủy Yêu cầu kỹ thuật | C34: TC Rọ đá địa
A35: TCVN 10799:2015 | B35: Gối cống bê tông đúc sẵn. | C35: Vật liệu
A36: TCVN 11782:2017 | B36: Bê tông nhựa Chuẩn bị thí nghiệm bằng phương pháp đầm lăn bánh thép | C36: TC Bê tông nhựa nóng
A37: TCVN 139:1991 | B37: Cát tiêu chuẩn để thử xi măng | C37: TC thí nghiệm xi măng
A38: TCVN 141:2008 | B38: Xi măng pooc lăng. Phương pháp phân tích hoá học | C38: TC Công tác Nghiệm thu
A39: TCVN 1452:2004 | B39: Ngói đất sét nung Yêu cầu kỹ thuật (Soát xét lần 3 Thay thế TCVN 1452:1995) | C39: TC Chống thấm, láng vữa, dán ngói
A40: TCVN 165:1998 | B40: Kiểm tra không phá hủy Kiểm tra chất lượng mối hàn ống bằng phương pháp siêu âm. | C40: TC hàn
A41: TCVN 1651:2008 | B41: Thép cốt bê tông cán nóng | C41: TC Cốt thép
A42: TCVN 1651-1:2008 | B42: Thép cột Bê tông. Phần 1:Thép thanh tròn trơn | C42: TC VL Thép
A43: TCVN 1651-2:2008 | B43: Thép cột Bê tông. Phần 2:Thép thanh vằn | C43: TC VL Thép
A44: TCVN 1770:1986 | B44: Cát xây dựng- Yêu cầu kỹ thuật. | C44: Vật liệu
A45: TCVN 1771:1978 | B45: Đá dăm, sỏi, sỏi dăm dùng trong xây dựng. | C45: Vật liệu
A46: TCVN 197:2002 | B46: Vật liệu kim loại thử kéo ở nhiệt độ thường | C46: TC thí nghiệm thép
A47: TCVN 198:2002 | B47: Kim loại Phương pháp thử uốn | C47: TC thí nghiệm thép
A48: TCVN 2090:2007 (ISO 15528:2000) | B48: Sơn, vecni và nguyên liệu cho sơn và vecni - Lấy mẫu | C48: TC VL Sơn
A49: TCVN 2292:1978 | B49: Công việc sơn. Yêu cầu chung về an toàn. | C49: TC Sơn sắt
A50: TCVN 2682:2009 | B50: Xi măng Pooclăng. Yêu cầu kỹ thuật | C50: TC Công tác Nghiệm thu
A51: TCVN 2683:2012 | B51: Đất xây dựng. Phương pháp lấy, bao gói, vận chuyển và bảo quản mẫu. | C51: TC công tác Khảo sát
A52: TCVN 3105:1993 | B52: Hỗn hợp bê tông và bê tông nặng. Lấy mẫu, chế tạo và bảo dưỡng mẫu thử | C52: TC thí nghiệm Bê tông nặng
A53: TCVN 3120:1993 | B53: Bê tông nặng. PP xác định cường độ kéo khi bửa | C53: TC thí nghiệm Bê tông nặng
A54: TCVN 3121:2003 | B54: Vữa xây dựng phương pháp thử phần 1:Xác định kích thước hạt cốt liệu lớn nhất | C54: TC Công tác Nghiệm thu
A55: TCVN 3254:1989 | B55: An toàn cháy. Yêu cầu chung | C55: ATLĐ, Phòng chống chảy nổ
A56: TCVN 3255:1986 | B56: An toàn nổ. Yêu cầu chung. | C56: ATLĐ, Phòng chống chảy nổ
A57: TCVN 3909:2000 | B57: Que hàn điện dùng cho thép các bon và hợp kim thấp. Phương pháp thử | C57: TC hàn
A58: TCVN 4029:1985 | B58: Xi măng. Yêu cầu chung về phương pháp thử cơ lý | C58: TC Công tác Nghiệm thu
A59: TCVN 4030:2003 | B59: Xi măng. PP xác định độ mịn | C59: TC Công tác Nghiệm thu
A60: TCVN 4032:1985 | B60: Xi măng. PP xác định giới hạn bền uốn và nén | C60: TC Công tác Nghiệm thu
A61: TCVN 4036:1985 | B61: Hệ thống tài liệu thiết kế xây dựng Ký hiệu đường ống trên hệ thống kỹ thuật vệ sinh | C61: ATLĐ, Phòng chống chảy nổ
A62: TCVN 4054:2005 | B62: Đường ôtô yêu cầu thiết kế | C62: TC và qui phạm về thiết kế
A63: TCVN 4055:2012 | B63: Tổ chức thi công. | C63: TC Tháo, phá dỡ
A64: TCVN 4085:2011 | B64: Kết cấu gạch đá. Quy phạm thi công và nghiệm thu. | C64: TC Xây
A65: TCVN 4195:2012 | B65: Đất xây dựng Phương pháp xác định Khối lượng riêng trong phòng thí nghiệm | C65: TC công tác Khảo sát
A66: TCVN 4196:2012 | B66: Đất xây dựng Phương pháp xác định độ ẩm và độ hút ẩm trong phòng thí nghiệm | C66: TC công tác Khảo sát
A67: TCVN 4197:2012 | B67: Đất xây dựng Phương pháp xác định giới hạn dẻo và giới hạn chảy trong phòng thí nghiệm | C67: TC công tác Khảo sát
A68: TCVN 4200:2012 | B68: Đất xây dựng Phương pháp xác định tính nén lún trong phòng thí nghiệm | C68: TC công tác Khảo sát
A69: TCVN 4201:2012 | B69: Đất xây dựng Phương pháp xác định độ chặt tiêu chuẩn trong phòng thí nghiệm | C69: TC công tác Khảo sát
A70: TCVN 4202:2012 | B70: Đất xây dựng. Phương pháp xác định khối lượng thể tích trong phòng thí nghiệm. | C70: TC công tác Khảo sát
A71: TCVN 4252:2012 | B71: Quy trình lập thiết kế tổ chức xây dựng và thiết kế tổ chức thi công | C71: TC Công tác Nghiệm thu
A72: TCVN 4314:2003 | B72: Vữa xây dựng. Yêu cầu kỹ thuật | C72: TC Công tác Nghiệm thu
A73: TCVN 4316:2007 | B73: Xi măng pooclăng xỉ hạt lò cao | C73: TC Cọc xi măng đất
A74: TCVN 4447:2012 | B74: Công tác đất - Thi công và nghiệm thu. | C74: TC Đào, đắp đất
A75: TCVN 4451:2012 | B75: Nhà ở Nguyên tắc cơ bản để thiết kế
A76: TCVN 4453:1995 | B76: Kết cấu bê tông và bê tông cốt thép toàn khối. Quy phạm thi công và nghiệm thu. | C76: TC Ván khuôn
A77: TCVN 4506:2012 | B77: Nước cho bê tông và vữa – Yêu cầu kỹ thuật. | C77: TC Công tác Nghiệm thu
A78: TCVN 4516:1988 | B78: Hoàn thiện mặt bằng xây dựng - Quy phạm thi công và nghiệm thu | C78: TC Tháo, phá dỡ
A79: TCVN 4519:1998 | B79: Hệ thống cấp thoát nước bên trong nhà và công trình. Quy phạm thi công và nghiệm thu. | C79: Nước
A80: TCVN 4601:2012 | B80: Công sở cơ quan hành chính nhà nước Yêu cầu thiết kế | C80: TC thiết kế công trình phụ trợ
A81: TCVN 4732:2007 | B81: Đá ốp lát tự nhiên | C81: TC VL Đá ốp lát
A82: TCVN 4787:2009 | B82: Xi măng. Phương pháp lấy mẫu và chuẩn bị mẫu thử | C82: TC VL Xi măng
A83: TCVN 4787:2009 | B83: Xi măng. PP lấy mẫu và chuẩn bị mẫu thử | C83: TC VL Xi măng
A84: TCVN 4787:2009 | B84: Xi măng. PP lấy mẫu và chuẩn bị mẫu thử | C84: TC VL Xi măng
A85: TCVN 5017-1:2010 | B85: Hàn và các quá trình liên quan - Từ vựng. Phần 1:Các quá trình hàn kim loại | C85: TC Ép cọc
A86: TCVN 5017-1:2010 | B86: Hàn và các quá trình liên quan - Từ vựng. Phần 1:Các quá trình hàn kim loại | C86: TC Ép cọc
A87: TCVN 5017-1:2010 | B87: Hàn và các quá trình liên quan - Từ vựng. Phần 1:Các quá trình hàn kim loại | C87: TC Ép cọc
A88: TCVN 5308:1991 | B88: Quy phạm kỹ thuật an toàn trong xây dựng | C88: TC Tháo, phá dỡ
A89: TCVN 5401:2010 | B89: Thử phá hủy mối hàn vật liệu kim loại Thử uốn | C89: TC hàn
A90: TCVN 5402:2010 | B90: Thử phá hủy mối hàn trên vật liệu kim loại Thử va đập Vị trí mẫu thử, hướng rãnh khía và kiểm tra | C90: TC hàn
A91: TCVN 5408:2007 (ISO 01461:1999) | B91: Lớp phủ kẽm nhúng nóng trên bề mặt sản phẩm gang và thép - Yêu cầu kỹ thuật và phương pháp thử | C91: TC Thép mạ kẽm
A92: TCVN 5573:2011 | B92: Kết cấu gạch đá và gạch đá cốt thép - Tiêu chuẩn thiết kế
A93: TCVN 5575:2012 | B93: Kết cấu thép. Tiêu chuẩn thiết kế | C93: TC thiết kế công trình phụ trợ
A94: TCVN 5576:1991 | B94: Hệ thống cấp thoát nước. Quy phạm quản lý kỹ thuật. | C94: Nước
A95: TCVN 5637:1991 | B95: Quản lý chất lượng xây lắp công trình xây dựng - Nguyên tắc cơ bản. | C95: TC Tháo, phá dỡ
A96: TCVN 5674:1992 | B96: Công tác hoàn thiện trong xây dựng - Thi công và nghiệm thu | C96: TC trần thạch cao
A97: TCVN 5709:2009 | B97: Thép cácbon cán nóng dùng làm kết cấu trong xây dựng Yêu cầu kỹ thuật | C97: TC thí nghiệm thép
A98: TCVN 5718:1993 | B98: Mái và sàn bê tông cốt thép trong công trình xây dựng. Yêu cầu kỹ thuật chống thấm nước. | C98: TC Chống thấm
A99: TCVN 5724:1993 | B99: Kết cấu bê tông và bê tông cốt thép. Điều kiện kỹ thuật tối thiểu để thi công và nghiệm thu | C99: TC Công tác Nghiệm thu
A100: TCVN 5726:1993 | B100: Bê tông nặng. Phương pháp xác định cường độ lăng trụ và mođun đàn hồi khi nén tĩnh | C100: TC thí nghiệm Bê tông nặng
A101: TCVN 5747:1993 | B101: Đất xây dựng. Phân loại. | C101: TC công tác Khảo sát
A102: TCVN 5979:2007 | B102: Chất lượng đất - Xác định pH
A103: TCVN 6016:2011 | B103: Xi măng Phương pháp thử Xác định cường độ | C103: TC Công tác Nghiệm thu
A104: TCVN 6017:2015 | B104: Xi măng. PP thử. Xác định thời gian đông kết và độ ổn định thể tích | C104: TC Công tác Nghiệm thu
A105: TCVN 6025:1995 | B105: Bê tông. Phân mác theo cường độ nén | C105: TC Công tác Nghiệm thu
A106: TCVN 6070:2005 | B106: Xi măng. PP xác định nhiệt thủy hóa | C106: TC Công tác Nghiệm thu
A107: TCVN 6151:2008 | B107: Yêu cầu kỹ thuật cho thép làm cốt trong các kết cấu bê tông. | C107: Vật liệu
A108: TCVN 6227:1996 | B108: Cát tiêu chuẩn ISO để xác định cường độ của xi măng | C108: TC thí nghiệm xi măng
A109: TCVN 6260:2009 | B109: Xi măng Pooc lăng hỗn hợp. | C109: TC Công tác Nghiệm thu
A110: TCVN 6284:1997 | B110: Thép cốt bê tông dự ứng lực | C110: TC thí nghiệm thép
A111: TCVN 6287:1997 | B111: Thép cốt bê tông. Thử uốn và uốn lại không hoàn toàn | C111: TC thí nghiệm thép
A112: TCVN 6415:2005 | B112: Gạch gốm ốp lát - Phương pháp thử | C112: TC VL Gạch ốp lát
A113: TCVN 6477:2016 | B113: Gạch Bê tông | C113: TC VL Gạch bê tông
A114: TCVN 6522:2008 | B114: Thép tấm kết cấu cán nóng | C114: TC thí nghiệm thép
A115: TCVN 6523:2006 | B115: Thép tấm kết cấu cán nóng có giới hạn chảy cao | C115: TC thí nghiệm thép
A116: TCVN 6557:2000 | B116: Vật liệu chống thấm. Sơn bitum cao su | C116: TC VL Chống thấm
A117: TCVN 7239:2014 | B117: Bột bả tường gốc xi măng poóc lăng | C117: TC Bả matit
A118: TCVN 7368:2012 | B118: Kính xây dựng - Kính dán an toàn nhiều lớp - Phương pháp thử độ bền va đập | C118: TC VL Cửa, kính
A119: TCVN 7452-4:2004 | B119: Cửa sổ và cửa đi. Phương pháp thử. Phần 4:Xác định độ bền góc hàn thanh profile U- PVC | C119: TC VL Cửa, kính
A120: TCVN 7455:2013 | B120: Kính xây dựng - Kính phẳng tôi nhiệt | C120: TC VL Cửa, kính
A121: TCVN 7493:2005 | B121: Bitum - Yêu cầu kỹ thuật | C121: TC Ép cọc
A122: TCVN 7504:2005 | B122: Bi tum Phương pháp xác định độ bám dính với đá | C122: TC thí nghiệm đất
A123: TCVN 7570:2006 | B123: Cốt liệu cho bê tông và vữa - yêu cầu kỹ thuật | C123: TC Cốt liệu cho BT và vữa
A124: TCVN 7572:2006 | B124: Cốt liệu cho bê tông và vữa - Các phương pháp thử | C124: TC Công tác Nghiệm thu
A125: TCVN 7887:2018 | B125: Màng phản quang dùng cho biển báo hiệu đường bộ | C125: TC thiết kế công trình phụ trợ
A126: TCVN 7957:2008 | B126: Thoát nước mạng lưới đường ống và công trình Tiêu chuẩn thiết kế | C126: TC thiết kế công trình phụ trợ
A127: TCVN 7958:2008 | B127: Bảo vệ công trình xây dựng. Phòng chống mối cho công trình xây dựng mới | C127: TC Chống mối công trình
A128: TCVN 8217:2009 | B128: Đất xây dựng công trình thủy lợi. Phân loại | C128: TC đắp đập đất
A129: TCVN 8228:2009 | B129: Hỗn hợp bê tông thủy công – Yêu cầu kỹ thuật. | C129: TC Bê tông
A130: TCVN 8257-1:2009 | B130: Tấm thạch cao. Phương pháp thử. Phần 1:Xác định kích thước, độ sâu của gờ vuốt thon và độ vuông góc của cạnh | C130: TC VL Thạch cao
A131: TCVN 8257-2:2009 | B131: Tấm thạch cao. Phương pháp thử. Phần 2:Xác định độ cứng của cạnh, gờ và lõi | C131: TC VL Thạch cao
A132: TCVN 8257-3:2009 | B132: Tấm thạch cao. Phương pháp thử. Phần 3:Xác định cường độ chịu uốn | C132: TC VL Thạch cao
A133: TCVN 8257-4:2009 | B133: Tấm thạch cao. Phương pháp thử. Phần 4:Xác định kháng nhổ đinh | C133: TC VL Thạch cao
A134: TCVN 8257-5:2009 | B134: Tấm thạch cao. Phương pháp thử. Phần 5:Xác định độ biến dạng ẩm | C134: TC VL Thạch cao
A135: TCVN 8257-6:2009 | B135: Tấm thạch cao. Phương pháp thử. Phần 6:Xác định độ hút nước | C135: TC VL Thạch cao
A136: TCVN 8257-7:2009 | B136: Tấm thạch cao. Phương pháp thử. Phần 7:Xác định độ hấp thụ nước bề mặt | C136: TC VL Thạch cao
A137: TCVN 8297:2018 | B137: Công trình thủy lợi Đập đất đầm nén Thi công và nghiệm thu | C137: TC đắp đập đất
A138: TCVN 8298:2009 | B138: Công trình thủy lợi - Yêu cầu kỹ thuật trong chế tạo và lắp ráp thiết bị cơ khí, kết cấu thép. | C138: Van đóng mở
A139: TCVN 8301:2009 | B139: Công trình thủy lợi – Máy đóng mở kiểu vít – Yêu cầu thiết kế, kỹ thuật trong chế tạo, lắp đặt, nghiệm thu. | C139: Van đóng mở
A140: TCVN 8305:2009 | B140: Công trình thủy lợi - kênh đất - yêu cầu kỹ thuật trong thi công và nghiệm thu. | C140: TC Đất
A141: TCVN 8310:2010 | B141: Thử phá hủy mối hàn trên vật liệu kim loại Thử kéo ngang | C141: TC hàn
A142: TCVN 8311:2010 | B142: Thứ phá huy mối hàn trên vật liệu kim loại Thử kéo dọc | C142: TC Thí nghiệm kiểm tra mối hàn
A143: TCVN 8406:2012 | B143: Sơn Phương pháp không phá hủy xác định chiều dày máng sơn khô | C143: TC thí nghiệm sơn
A144: TCVN 8636:2011 | B144: Công trình thủy lợi - Đường ống áp lực bằng thép - Yêu cầu kỹ thuật trong thiết kế, chế tạo và lắp đặt. | C144: Vật liệu
A145: TCVN 8652:2012 | B145: Sơn tường dạng nhũ tương - Yêu cầu kỹ thuật | C145: TC VL Sơn
A146: TCVN 8653-3:2012 | B146: Sơn tường dạng nhũ tương Phương pháp thử Phần 3: Xác định độ bền kiềm của màng sơn | C146: TC thí nghiệm sơn
A147: TCVN 8731:2012 | B147: Đất xây dựng công trình thủy lợi Phương pháp xác định độ thấm nước của đất bằng thí nghiệm đổ nước trong hố đào và trong hố khoan tại hiện trường | C147: TC đắp đập đất
A148: TCVN 8774:2012 | B148: An toàn thi công cầu | C148: ATLĐ, Phòng chống chảy nổ
A149: TCVN 8790:2011 | B149: Sơn bảo vệ kết cấu thép - Quy trình thi công và nghiệm thu | C149: TC Sơn sắt
A150: TCVN 8791:2011 | B150: Sơn tín hiệu giao thông - Vật liệu kẻ đường phản quang nhiệt dẻo - Yêu cầu kỹ thuật, phương pháp thử, thi công. | C150: TC Sơn kẻ đường, Biên báo
A151: TCVN 8809:2011 | B151: Mặt đường đá dăm thấm nhập nhựa nóng - Thi công và nghiệm thu. | C151: TC thi công nền mặt đường
A152: TCVN 8816:2011 | B152: Nhũ tương nhựa đường polime gốc axit | C152: TC thí nghiệm đất
A153: TCVN 8817:2011 (từ phần 1 đến 5) | B153: Nhũ tương nhựa đường axit | C153: TC thí nghiệm đất
A154: TCVN 8818:2011 (từ phần 1 đến 5) | B154: Bê tông nhựa Phương pháp thử | C154: TC thí nghiệm đất
A155: TCVN 8819:2011 | B155: Quy trình đầm nén đất, đá dăm trong phòng thí nghiệm. | C155: TC Bê tông nhựa nóng
A156: TCVN 8819:2011 | B156: Mặt đường bê tông nhựa nóng - Yêu cầu thi công và nghiệm thu. | C156: TC Bê tông nhựa nóng
A157: TCVN 8820:2011 | B157: Hỗn hợp Bê tông nhựa Thiết kế theo phương pháp Marshall | C157: TC Bê tông nhựa nóng
A158: TCVN 8821:2011 | B158: Phương pháp xác định chỉ số CBR của nền đất và các móng đường bằng vật liệu rời ngoài hiện trường | C158: TC Nền đường
A159: TCVN 8826:2011 | B159: Phụ gia hóa học cho bê tông | C159: TC Công tác Nghiệm thu
A160: TCVN 8828:2011 | B160: Bê tông - Yêu cầu bảo dưỡng ẩm tự nhiên | C160: TC Bê tông
A161: TCVN 8828:2011 | B161: Bê tông Yêu cầu bảo dưỡng ẩm tự nhiên | C161: TC Bê tông
A162: TCVN 8857:2011 | B162: Lớp kết cấu áo đường ô tô bằng cấp phối thiên nhiên - Vật liệu, thi công và nghiệm thu. | C162: TC Nền đường
A163: TCVN 8858:2011 | B163: Móng cấp phối đá dăm trong kết cấu áo đường ô tô. Quy phạm thi công và nghiệm thu | C163: TC Nền đường
A164: TCVN 8859:2011 | B164: Lớp móng cấp phối đá dăm trong kết cấu áo đường ô tô - Vật liệu, thi công và nghiệm thu. | C164: cấp phối đá dăm đường bê tông nhựa
A165: TCVN 8860:2011 | B165: Bê tông nhựa. | C165: TC Bê tông nhựa nóng
A166: TCVN 8861:2011 | B166: Áo đường mềm Xác định mô đun đàn hồi của áo đường mềm bằng tấm ép cứng | C166: TC Nền đường
A167: TCVN 8862:2011 | B167: Quy trình thí nghiệm xác định cường độ kéo ép chẻ của vật liệu hạt liên kết bằng các chất kết dính | C167: TC Thí nghiệm
A168: TCVN 8863:2011 | B168: Mặt đường láng nhựa nóng - Thi công và nghiệm thu. | C168: TC Bê tông nhựa nóng
A169: TCVN 8865:2011 | B169: Mặt đường ô tô xác định độ bằng phẳng bằng thước dài 3.0m | C169: TC Bê tông nhựa nóng
A170: TCVN 8865:2011 | B170: Mặt đường ô tô Phương pháp đo và đánh giá xác định độ bằng phẳng theo chỉ số độ gồ ghề quốc tế IRI | C170: TC Bê tông nhựa nóng
A171: TCVN 8866:2011 | B171: Mặt đường ô tô - xác định độ nhám của mặt đường đo bằng phương pháp rắc cát
A172: TCVN 8867:2011 | B172: Áo đường mềm Xác định mô đun đàn hồi của áo đường mềm bằng cần đo độ võng Benkelman | C172: TC và quy chuẩn về khảo sát
A173: TCVN 8869:2011 | B173: Quy trình đo áp lực nước lỗ rỗng trong đất | C173: TC Thí nghiệm
A174: TCVN 8870:2011 | B174: Thi công và nghiệm thu neo trong đất dùng trong công trình giao thông vận tải | C174: TC Thí nghiệm
A175: TCVN 8871:2011 | B175: Vải địa kỹ thuật - Phương pháp thử gồm 06 phần | C175: TC Vải địa kỹ thuật
A176: TCVN 8871:2011 | B176: Vải địa kỹ thuật phần. Phương pháp thử | C176: TC Vải địa kỹ thuật
A177: TCVN 8898:2011 | B177: Thí nghiệm xác định sức kháng cắt không cố kết Không thoát nước và cố kết Thoát nước của đất dính trên thiết bị nén ba trục | C177: TC Thí nghiệm
A178: TCVN 9113:2012 | B178: Ống bê tông cốt thép thoát nước. | C178: TC Công tác Nghiệm thu
A179: TCVN 9115:2012 | B179: Kết cấu bê tông và bê tông lắp ghép - Thi công và nghiệm thu. | C179: TC Công tác Nghiệm thu
A180: TCVN 9115:2012 | B180: Kết cấu bê tông và bê tông cốt thép lắp ghép - Thi công và nghiệm thu. | C180: TC Công tác Nghiệm thu
A181: TCVN 9116:2012 | B181: Cống hộp bê tông cốt thép | C181: TC Công tác Nghiệm thu
A182: TCVN 9116:2012 | B182: Cống hộp bê tông cốt thép | C182: TC Công tác Nghiệm thu
A183: TCVN 9153:2012 | B183: CT thủy lợi PP chỉnh lý kết quả thí nghiệm mẫu đất | C183: TC công tác Khảo sát
A184: TCVN 9191:2012 | B184: Đá vôi Phương pháp phân tích hoá học | C184: TC thí nghiệm Đá vôi
A185: TCVN 9205:2012 | B185: Cát nghiền cho bê tông và vữa | C185: TC lựa chọn cát
A186: TCVN 9245:2012 | B186: Cọc ống thép. | C186: TC Cọc
A187: TCVN 9257:2012 | B187: Quy hoạch cây xanh sử dụng công cộng trong các dô thị Tiêu chuẩn thiết kế | C187: TC thiết kế công trình phụ trợ
A188: TCVN 9334:2012 | B188: Bê tông nặng Phương pháp. Xác định cường độ nén bằng súng bật nẩy | C188: TC thí nghiệm Bê tông nặng
A189: TCVN 9335:2012 | B189: Bê tông nặngPhương pháp thử không phá hủyXác định cường độ nén sử dụng kết hợp máy đo siêu âm và súng bật nảy | C189: TC Công tác Nghiệm thu
A190: TCVN 9338:2012 | B190: Hỗn hợp Bê tông nặng Phương pháp. Xác định thời gian đông kết | C190: TC thí nghiệm Bê tông nặng
A191: TCVN 9339:2012 | B191: Bê tông và vữa xây dựng Phương pháp xác định pH bằng máy đo pH | C191: TC Công tác Nghiệm thu
A192: TCVN 9343:2012 | B192: Kết cấu bê tông và bê tông cốt thép Hướng dẫn công tác bảo trì | C192: TC Công tác Nghiệm thu
A193: TCVN 9343:2012 | B193: Kết cấu bê tông và bê tông cốt thép Hướng dẫn công tác bảo trì | C193: TC Công tác Nghiệm thu
A194: TCVN 9345:2012 | B194: Kết cấu BT và BTCT. Hướng dẫn kỹ thuật phòng chống nứt dưới tác động của khí hậu nóng ẩm | C194: TC Công tác Nghiệm thu
A195: TCVN 9347:2012 | B195: Cấu kiện bê tông và bê tông cốt thép đúc sẵn - Phương pháp thí nghiệm gia tải để đánh giá độ bền, độ cứng và khà năng chống nứt.
A196: TCVN 9348:2012 | B196: Bê tông cốt thépPhương pháp điện kế kiểm tra khả năng cốt thép bị ăn mòn | C196: TC thí nghiệm Bê tông nặng
A197: TCVN 9350:2012 | B197: Đất xây dựng Phương pháp phóng xạ xác định độ ẩm và độ chặt của đất tại hiện trường | C197: TC công tác Khảo sát
A198: TCVN 9351:2012 | B198: Đất xây dựngPhương pháp thí nghiệm hiện trườngThí nghiệm xuyên tiêu chuẩn. | C198: TC công tác Khảo sát
A199: TCVN 9352:2012 | B199: Đất xây dựng - Phương pháp thí nghiệm xuyên tĩnh | C199: TC công tác Khảo sát
A200: TCVN 9354:2012 | B200: Đất Xây dựng Phương pháp xác định mô đun biến dạng tại hiện trường bằng tấm nén phẳng | C200: TC công tác Khảo sát
... 42 more rows

Sheet MaBBKT
A1: DANH MỤC BIÊN BẢN KIỂM TRA
A2: Mã hiệu | B2: Nội dung | C2: Danh sách | D2: Biên bản | E2: Dữ liệu
A3: KT.00001 | B3: Kiểm tra phòng thí nghiệm tại hiện trường
A4: KT.00002 | B4: Kiểm tra nhân lực, thiết bị thi công
A5: KT.00003 | B5: Kiểm tra điều kiện trước khi thi công
A6: KT.00004 | B6: Kiểm tra cao độ, kích thước hình học hố móng (Click vào cột L để bổ sung thêm thông tin) | C6: =+[16]!fSheetName(LIST_BBKT_HM!$A$1) -> LIST_BBKT_HM | D6: BBKT_Homong | E6: =+[16]!fSheetName(TbKTHH_HM!$A$1) -> TbKTHH_HM
A7: KT.00005 | B7: Kiểm tra cao độ, kích thước hình học đất đắp (Click vào cột L để bổ sung thêm thông tin) | C7: =+[16]!fSheetName(LIST_BBKT_DAP!$A$1) -> LIST_BBKT_DAP | D7: BBKT_Dap | E7: =+[16]!fSheetName(TbKTHH_Dap!$A$1) -> TbKTHH_Dap
A8: KT.00006 | B8: Kiểm tra cao độ, kích thước hình học bê tông, khối xây (Click vào cột L để bổ sung thêm thông tin) | C8: =+[16]!fSheetName(LIST_BBKT_BT!$A$1) -> LIST_BBKT_BT | D8: BBKT_KTHHBT | E8: =+[16]!fSheetName(TbKTHH_BT!$A$1) -> TbKTHH_BT
A9: KT.00007 | B9: Kiểm tra ván khuôn (Click vào cột L để bổ sung thêm thông tin) | C9: =+[16]!fSheetName(LIST_BBKT_VK!$A$1) -> LIST_BBKT_VK | D9: BBKT_VK | E9: =+[16]!fSheetName(TbKTHH_Cp!$A$1) -> TbKTHH_Cp
A10: KT.00008 | B10: Kiểm tra cốt thép (Click vào cột L để bổ sung thêm thông tin) | C10: =+[16]!fSheetName(LIST_BBKT_CT!$A$1) -> LIST_BBKT_CT | D10: BBKT_CT | E10: =+[16]!fSheetName(TbKTHH_Ct!$A$1) -> TbKTHH_Ct
A11: KT.00009 | B11: Kiểm tra cốt thép và cốt thép
A12: KT.00010 | B12: Kiểm tra điều kiện đổ bê tông | C12: =+[16]!fSheetName(LIST_DKDBT!$A$1) -> LIST_DKDBT | D12: BBKT_DKDBT
A13: KT.00011 | B13: Theo dõi quá trình đổ bê tông ( Click vào cột L để bổ sung thêm thông tin bê tông) | C13: =+[16]!fSheetName(LIST_PHIEU_BT!$A$1) -> LIST_PHIEU_BT | D13: PHIEU_BT
A14: KT.00012 | B14: Kiểm tra bề mặt bê tông sau khi tháo ván khuôn | C14: =+[16]!fSheetName(LIST_THAO_VK!$A$1) -> LIST_THAO_VK | D14: THAO_VK
A15: KT.00013 | B15: Sổ đo đạc nghiệm thu ( Click vào cột L để bổ sung thêm thông tin bảng dữ liệu) | C15: =+[16]!fSheetName(LIST_BBKT_SDD!$A$1) -> LIST_BBKT_SDD | D15: BBKT_SDD | E15: =+[16]!fSheetName(TbKTHH_SDD!$A$1) -> TbKTHH_SDD
A16: KT.00014 | B16: Biên bản nháp | C16: =+[16]!fSheetName(LIST_BBKT_Nhap!$A$1) -> LIST_BBKT_Nhap | D16: BBKT_Nhap | E16: =+[16]!fSheetName(TbKTHH_Nhap!$A$1) -> TbKTHH_Nhap

Sheet MaTN
A1: DANH MỤC MÃ THÍ NGHIỆM KÈM THEO
A2: Mã hiệu | B2: Nội dung | C2: Ghi chú
A3: CP.010001 | B3: Lấy mẫu thí nghiệm xác định chỉ tiêu thông thường cơ lý của mẫu đất | C3: VL
A4: CP.010002 | B4: Lấy mẫu thí nghiệm xác định chỉ tiêu thông thường cơ lý của mẫu cấp phối đá dăm | C4: VL
A5: CP.010003 | B5: Lấy mẫu thí nghiệm thành phần hạt | C5: VL
A6: CP.010004 | B6: Lấy mẫu thí nghiệm xác định chỉ tiêu đầm nén tiêu chuẩn bằng cối cải tiến (modify) | C6: VL
A7: CP.010005 | B7: Lấy mẫu thí nghiệm xác định các chỉ tiêu cơ lý của mẫu đá | C7: VL
A8: CP.010006 | B8: Lấy mẫu thí nghiệm vật liệu | C8: VL
A9: CP.010007 | B9: Lấy mẫu thí nghiệm cát | C9: VL
A10: CP.010008 | B10: Lấy mẫu thí nghiệm đá dăm | C10: VL
A11: CP.010009 | B11: Lấy mẫu thí nghiệm xi măng | C11: VL
A12: CP.010010 | B12: Lấy mẫu thí nghiệm thép | C12: VL
A13: CP.010011 | B13: Lấy mẫu thí nghiệm đá gốc | C13: VL
A14: CP.010012 | B14: Lấy mẫu thí nghiệm gạch | C14: VL
A15: CP.010013 | B15: Lấy mẫu thí nghiệm thấm | C15: VL
A16: CP.010014 | B16: Lấy mẫu nén 3 trục | C16: VL
A17: CP.010015 | B17: Lấy mẫu thí nghiệm áp lực ống | C17: VL
A18: CP.010016 | B18: Lấy mẫu Thiết kế thành phần cấp phối bê tông xi măng | C18: VL
A19: CP.010017 | B19: Lấy mẫu Thiết kế thành phần cấp phối vữa xi măng | C19: VL
A20: CP.010018 | B20: Lấy mẫu thí nghiệm nhựa | C20: VL
A21: CP.010019 | B21: Thiết kế thành phần cấp phối bê tông nhựa | C21: VL
A22: CP.010020 | B22: Lấy mẫu thí nghiệm CBR hiện trường | C22: VL
A23: CP.010021 | B23: Lấy mẫu thí nghiệm xác định độ chặt bằng phương pháp rót cát | C23: HT
A24: CP.010022 | B24: Lấy mẫu thí nghiệm xác định độ chặt bằng phương pháp dao vòng | C24: HT
A25: CP.010023 | B25: Lấy mẫu thí nghiệm đo môđun đàn hồi bằng cần Belkenman | C25: HT
A26: CP.010024 | B26: Lấy mẫu thí nghiệm đo môdun đàn hồi bằng tấm ép cứng, đường kính bàn nén D=34cm | C26: HT
A27: CP.010025 | B27: Lấy mẫu thí nghiệm đo độ bằng phẳng bằng thước dài 3,0 mét | C27: HT
A28: CP.010026 | B28: Nén tĩnh thử tải cọc bê tông sử dụng hệ thống cọc neo, cấp tải trọng nén đến 50 tấn | C28: HT
A29: CP.010027 | B29: Thử PDA cọc khoan nhồi đường kính D1000mm | C29: HT
A30: CP.010028 | B30: Lấy mẫu thí nghiệm kiểm tra chất lượng cọc bê tông bằng phương pháp siêu âm | C30: HT
A31: CP.010029 | B31: Lấy mẫu siêu âm cọc khoan nhồi | C31: HT
A32: CP.010030 | B32: Lấy mẫu khoan mùn mũi cọc | C32: HT
A33: CP.010031 | B33: Lấy mẫu thí nghiệm xuyên tiêu chuẩn (SPT), cấp đá I-III | C33: HT
A34: CP.010032 | B34: Lấy mẫu thí nghiệm cường độ nén bê tông ( Click vào cột L để bổ sung thêm thông tin bê tông) | C34: BT
A35: CP.010033 | B35: Lấy mẫu thí nghiệm cường độ nén vữa ( Click vào cột L để bổ sung thêm thông tin bê tông) | C35: BT
A36: CP.010034 | B36: Lấy mẫu thí nghiệm hàm lượng nhựa | C36: HT
A37: CP.010035 | B37: Lấy mẫu thí nghiệm độ chặt | C37: HT
E50: + Lấy mẫu thí nghiệm xác định chỉ tiêu thông thường cơ lý của mẫu đất
E51: + Lấy mẫu thí nghiệm thành phần hạt
E52: + Lấy mẫu thí nghiệm xác định độ chặt bằng phương pháp rót cát
E153: + Lấy mẫu thí nghiệm xác định chỉ tiêu thông thường cơ lý của mẫu đất
E154: + Lấy mẫu thí nghiệm thành phần hạt
E155: + Lấy mẫu thí nghiệm xác định độ chặt bằng phương pháp rót cát

Sheet KQTN
A1: DANH MỤC MÃ THÍ NGHIỆM KÈM THEO
A2: Mã hiệu | B2: Nội dung | C2: Ghi chú
A3: CP.010001 | B3: Kết quả thí nghiệm xác định chỉ tiêu thông thường cơ lý của mẫu đất | C3: Đất
A4: CP.010002 | B4: Kết quả thí nghiệm xác định chỉ tiêu thông thường cơ lý của mẫu cấp phối đá dăm | C4: Đá
A5: CP.010003 | B5: Kết quả thí nghiệm thành phần hạt | C5: Đất, đá
A6: CP.010004 | B6: Kết quả thí nghiệm xác định chỉ tiêu đầm nén tiêu chuẩn bằng cối cải tiến (modify) | C6: Đất, đá
A7: CP.010005 | B7: Kết quả thí nghiệm xác định các chỉ tiêu cơ lý của mẫu đá | C7: Đá
A8: CP.010006 | B8: Kết quả thí nghiệm vật liệu | C8: Vật liệu
A9: CP.010007 | B9: Kết quả thí nghiệm cát | C9: Vật liệu
A10: CP.010008 | B10: Kết quả thí nghiệm đá dăm | C10: Vật liệu
A11: CP.010009 | B11: Kết quả thí nghiệm xi măng | C11: Vật liệu
A12: CP.010010 | B12: Kết quả thí nghiệm thép | C12: Vật liệu
A13: CP.010011 | B13: Kết quả thí nghiệm đá gốc | C13: Vật liệu
A14: CP.010012 | B14: Kết quả thí nghiệm gạch | C14: Vật liệu
A15: CP.010013 | B15: Kết quả thí nghiệm thấm | C15: Vật liệu
A16: CP.010014 | B16: Kết quả nén 3 trục | C16: Vật liệu
A17: CP.010015 | B17: Kết quả thí nghiệm áp lực ống | C17: Vật liệu
A18: CP.010016 | B18: Kết quả Thiết kế thành phần cấp phối bê tông xi măng | C18: Bê tông
A19: CP.010017 | B19: Kết quả Thiết kế thành phần cấp phối vữa xi măng | C19: Vữa
A20: CP.010018 | B20: Kết quả thí nghiệm nhựa | C20: Vật liệu
A21: CP.010019 | B21: Thiết kế thành phần cấp phối bê tông nhựa | C21: Nhựa
A22: CP.010020 | B22: Kết quả thí nghiệm CBR hiện trường | C22: Đất, đá, Nhựa
A23: CP.010021 | B23: Kết quả thí nghiệm xác định độ chặt bằng phương pháp rót cát | C23: Đất, đá
A24: CP.010022 | B24: Kết quả thí nghiệm xác định độ chặt bằng phương pháp dao vòng | C24: Đất, đá
A25: CP.010023 | B25: Kết quả thí nghiệm đo môđun đàn hồi bằng cần Belkenman | C25: Đất, đá
A26: CP.010024 | B26: Kết quả thí nghiệm đo môdun đàn hồi bằng tấm ép cứng, đường kính bàn nén D=34cm | C26: Đất, đá
A27: CP.010025 | B27: Kết quả thí nghiệm đo độ bằng phẳng bằng thước dài 3,0 mét | C27: Đất, đá
A28: CP.010026 | B28: Nén tĩnh thử tải cọc bê tông sử dụng hệ thống cọc neo, cấp tải trọng nén đến 50 tấn | C28: Cọc
A29: CP.010027 | B29: Thử PDA cọc khoan nhồi đường kính D1000mm | C29: Cọc
A30: CP.010028 | B30: Kết quả thí nghiệm kiểm tra chất lượng cọc bê tông bằng phương pháp siêu âm | C30: Cọc
A31: CP.010029 | B31: Kết quả siêu âm cọc khoan nhồi | C31: Cọc
A32: CP.010030 | B32: Kết quả khoan mùn mũi cọc | C32: Cọc
A33: CP.010031 | B33: Kết quả thí nghiệm xuyên tiêu chuẩn (SPT), cấp đá I-III | C33: Cọc
A34: CP.010032 | B34: Kết quả thí nghiệm cường độ nén bê tông | C34: Bê tông
A35: CP.010033 | B35: Kết quả thí nghiệm cường độ nén vữa | C35: Vữa
A36: CP.010034 | B36: Kết quả thí nghiệm hàm lượng nhựa | C36: Nhựa
A37: CP.010035 | B37: Kết quả thí nghiệm độ chặt | C37: Nhựa
A38: CP.010036 | B38: Kết quả thí nghiệm cáp thép dự ứng lực
E50: + Kết quả thí nghiệm xác định chỉ tiêu thông thường cơ lý của mẫu đất
E51: + Kết quả thí nghiệm thành phần hạt
E52: + Kết quả thí nghiệm xác định độ chặt bằng phương pháp rót cát
E153: + Kết quả thí nghiệm xác định chỉ tiêu thông thường cơ lý của mẫu đất
E154: + Kết quả thí nghiệm thành phần hạt
E155: + Kết quả thí nghiệm xác định độ chặt bằng phương pháp rót cát

Sheet tbDinhmuc
A1: MHDM | B1: MSVT | C1: HPVT | D1: LVT | E1: GC
A2: AA.11112 | B2: N1307 | C2: 1,42 | E2: N2307x
A3: AA.12111 | B3: N1307 | C3: 0,12 | E3: N2307x
A4: AA.13111 | B4: N1307 | C4: 0,2 | E4: N2307x
A5: AA.21111 | B5: N1357 | C5: 1,35 | E5: N2357x
A6: AA.22111 | B6: V10613 | C6: 1,5
A7: AA.23111 | B7: M0121 | C7: 0,017
A8: AA.31111 | B8: N1357 | C8: 1,89 | E8: N2357x
A9: AA.32111 | B9: V10613 | C9: 1,2
A10: AB.11111 | B10: N1307 | C10: 0,94
A11: AB.12111 | B11: N1357 | C11: 5,8
A12: AB.13111 | B12: N1307 | C12: 0,56
A13: AB.21111 | B13: N1307 | C13: 0,5
A14: AB.22111 | B14: M0053 | C14: 0,357
A15: AB.23111 | B15: M0070 | C15: 0,302
A16: AB.24111 | B16: N1307 | C16: 0,5
A17: AB.25111 | B17: N1307 | C17: 4,75
A18: AB.26111 | B18: N1307 | C18: 10,5
A19: AB.27111 | B19: N1307 | C19: 5,59
A20: AB.28111 | B20: N1307 | C20: 6,8
A21: AB.31111 | B21: N1307 | C21: 3,89
A22: AB.32111 | B22: N1307 | C22: 3,3
A23: AB.33111 | B23: N1307 | C23: 5,17
A24: AB.34110 | B24: M0055 | C24: 0,092
A25: AB.35110 | B25: N1357 | C25: 51
A26: AB.36110 | B26: V10593 | C26: 0,005
A27: AB.41111 | B27: M0119 | C27: 0,666
A28: AB.42111 | B28: M0119 | C28: 0,66
A29: AB.51111 | B29: V10854 | C29: 64,89
A30: AB.52111 | B30: N1357 | C30: 1,8
A31: AB.53111 | B31: M0119 | C31: 1561
A32: AB.54111 | B32: M0119 | C32: 0,895
A33: AB.55111 | B33: M0057 | C33: 0,77
A34: AB.56111 | B34: M0124 | C34: 0,609
A35: AB.57111 | B35: M0124 | C35: 0,431
A36: AB.58121 | B36: V10316 | C36: 0,266
A37: AB.59110 | B37: M0048 | C37: 0,746
A38: AB.61110 | B38: N1407 | C38: 1,5
A39: AB.62111 | B39: N1307 | C39: 0,74
A40: AB.63111 | B40: N1307 | C40: 1,48
A41: AB.65110 | B41: M0080 | C41: 3,85
A42: AB.66111 | B42: V10126 | C42: 122
A43: AB.71150 | B43: M9999 | C43: 1,5
A44: AB.64111 | B44: N1307 | C44: 1,74
A45: AB.67110 | B45: N1357 | C45: 5
A46: AB.68110 | B46: N1307 | C46: 12,77
A47: AB.72110 | B47: Nvs274 | C47: 3,25
A48: AB.73110 | B48: Nvb274 | C48: 1,89
A49: AB.81112 | B49: N1407 | C49: 1,5
A50: AB.82110 | B50: N1457 | C50: 8,1
A51: AC.11220 | B51: V10447 | C51: 0,012
A52: AC.12411 | B52: V10809 | C52: 46,61
A53: AC.13111 | B53: V10160 | C53: 101
A54: AC.14114 | B54: V19999 | C54: 1,5
A55: AC.15111 | B55: V10161 | C55: 101
A56: AC.16112 | B56: V19999 | C56: 1,5
A57: AC.17111 | B57: V10162 | C57: 101
A58: AC.19111 | B58: V19999 | C58: 2
A59: AC.21111 | B59: V10188 | C59: 101
A60: AB.74110 | B60: Nvs274 | C60: 1,32
A61: AB.75110 | B61: V10582 | C61: 0,05
A62: AB.91111 | B62: M0606 | C62: 0,125
A63: AB.92110 | B63: M0661 | C63: 0,011
A64: AC.18111 | B64: V10162 | C64: 101
A65: AC.22111 | B65: V10201 | C65: 100
A66: AC.23110 | B66: N1407 | C66: 2,66 | E66: N2407x
A67: AC.24111 | B67: V10134 | C67: 10,72
A68: AC.25221 | B68: V10172 | C68: 101
A69: AC.26111 | B69: V10169 | C69: 101
A70: AC.29121 | B70: V10804 | C70: 12,5
A71: AC.31110 | B71: V10428 | C71: 0,0024
A72: AC.27110 | B72: N1407 | C72: 7,15 | E72: N2407x
A73: AC.28111 | B73: V10165 | C73: 101
A74: AC.32111 | B74: V10638 | C74: 1,4
A75: AC.33111 | B75: V10426 | C75: 0,0014
A76: AC.34111 | B76: V10234 | C76: 0,096
A77: AC.36211 | B77: V10061 | C77: 1,6
A78: AC.37111 | B78: V10519 | C78: 0,0075
A79: AD.11110 | B79: V10275 | C79: 1,2
A80: AD.12131 | B80: M0055 | C80: 0,95
A81: AD.21213 | B81: V10312 | C81: 14,28
A82: AD.22112 | B82: M0099 | C82: 0,44
A83: AD.23111 | B83: V10299 | C83: 6,97
A84: AD.24111 | B84: V10553 | C84: 193
A85: AC.35110 | B85: N1407 | C85: 0,92 | E85: N2407x
A86: AD.25111 | B86: N1357 | C86: 0,15 | E86: N2357x
A87: AD.26111 | B87: V10280 | C87: 65,2
A88: AD.27213 | B88: M0124 | C88: 1,31
A89: AD.31111 | B89: V10896 | C89: 4,03
A90: AD.32212 | B90: V10832 | C90: 1312
A91: AD.41212 | B91: V10333 | C91: 9135
A92: AD.42221 | B92: V10333 | C92: 9744
A93: AD.43111 | B93: V10632 | C93: 160
A94: AD.44112 | B94: V10116 | C94: 974
A95: AD.45212 | B95: V19999 | C95: 0,5
A96: AD.46111 | B96: V10634 | C96: 240
A97: AD.62110 | B97: V10613 | C97: 7,02
A98: AD.63110 | B98: V10620 | C98: 50,4
A99: AD.71110 | B99: V10219 | C99: 1,01
A100: AD.33110 | B100: V10871 | C100: 1
A101: AD.34110 | B101: V10860 | C101: 1
A102: AD.51110 | B102: V10787 | C102: 400
A103: AD.52110 | B103: V10430 | C103: 1
A104: AD.61111 | B104: V10286 | C104: 1,15
A105: AD.72111 | B105: V10220 | C105: 2
A106: AD.73111 | B106: V10429 | C106: 1
A107: AD.74111 | B107: V10252 | C107: 56
A108: AD.81131 | B108: V10674 | C108: 1,7
A109: AE.11120 | B109: N1357 | C109: 1,84
A110: AE.12230 | B110: V19999 | C110: 2,5
A111: AE.13110 | B111: V10310 | C111: 0,89
A112: AE.14110 | B112: V10295 | C112: 430
A113: AE.21210 | B113: V10381 | C113: 539
A114: AE.22110 | B114: V10381 | C114: 643
A115: AE.24220 | B115: M0266 | C115: 0,04
A116: AE.25110 | B116: V10381 | C116: 550
A117: AE.26110 | B117: V10381 | C117: 550
A118: AE.27110 | B118: V10381 | C118: 550
A119: AE.28110 | B119: V10381 | C119: 573
A120: AE.23110a | B120: V10362 | C120: 539
A121: AD.82111 | B121: V10433 | C121: 1
A122: AE.15110 | B122: V10297 | C122: 72
A123: AE.16110 | B123: V10296 | C123: 108
A124: AE.31110 | B124: V10417 | C124: 810
A125: AE.32110 | B125: V10417 | C125: 830
A126: AE.33110 | B126: V10417 | C126: 782
A127: AE.42130 | B127: V19999 | C127: 6,5
A128: AE.43110 | B128: V10415 | C128: 921
A129: AE.52140 | B129: V10416 | C129: 1315
A130: AE.53110 | B130: V10416 | C130: 1048
A131: AE.61220 | B131: M0266 | C131: 0,04
A132: AE.62110 | B132: V10405 | C132: 350
A133: AE.63330 | B133: M9999 | C133: 0,5
A134: AE.65210 | B134: V10875 | C134: 0,19
A135: AE.71110 | B135: V10411 | C135: 275
A136: AE.72230 | B136: V10875 | C136: 0,17
A137: AE.73110 | B137: V10412 | C137: 394
A138: AE.81110 | B138: V10380 | C138: 60
A139: AE.34110 | B139: V10417 | C139: 810
A140: AE.35110 | B140: V10417 | C140: 820
A141: AE.41110 | B141: V10415 | C141: 937
A142: AE.44110 | B142: V10415 | C142: 937
A143: AE.51110 | B143: V10416 | C143: 1164
A144: AE.54110 | B144: V10416 | C144: 1087
A145: AE.64110 | B145: V10406 | C145: 542
A146: AE.82110 | B146: V10413 | C146: 424
A147: AE.83110 | B147: V10418 | C147: 25,5
A148: AE.91110 | B148: V10382 | C148: 1020
A149: AE.92110 | B149: V10382 | C149: 1050
A150: AE.93110 | B150: V10382 | C150: 1050
A151: AF.11110 | B151: V10875 | C151: 1,03
A152: AF.12310 | B152: M0355 | C152: 0,18
A153: AF.13110 | B153: V10875 | C153: 1025
A154: AF.14110 | B154: V10875 | C154: 1025
A155: AF.15220 | B155: V19999 | C155: 1
A156: AF.16120 | B156: V10875 | C156: 1025
A157: AF.17110 | B157: V10875 | C157: 1025
A158: AF.18110 | B158: V10875 | C158: 1,3
A159: AF.21110 | B159: V10875 | C159: 1,03
A160: AF.22150 | B160: V10449 | C160: 0,02
A161: AF.23110 | B161: V10875 | C161: 1025
A162: AF.26210 | B162: M0224 | C162: 0,08
A163: AF.27110 | B163: V10875 | C163: 1025
A164: AF.28110 | B164: V10875 | C164: 8,05
A165: AF.31110 | B165: V10875 | C165: 1015
A166: AF.32110 | B166: V10875 | C166: 1015
A167: AF.33120 | B167: M0640 | C167: 0,026
A168: AF.34110 | B168: V10875 | C168: 1015
A169: AF.35110 | B169: V10875 | C169: 1,15
A170: AF.36140 | B170: M0057 | C170: 0,02
A171: AF.37110 | B171: V10875 | C171: 1,03
A172: AF.24110 | B172: V10875 | C172: 1025
A173: AF.25110 | B173: V10875 | C173: 1,15
A174: AF.41110 | B174: V10875 | C174: 1025
A175: AF.42110 | B175: V10875 | C175: 1025
A176: AF.43110 | B176: V10875 | C176: 1025
A177: AF.44120 | B177: V10875 | C177: 1015
A178: AF.52331 | B178: M0123 | C178: 3,29
A179: AF.61110 | B179: V10833 | C179: 1005
A180: AF.51110 | B180: N1307 | C180: 0,11
A181: AF.62110 | B181: V10833 | C181: 1007
A182: AF.64220 | B182: M0485 | C182: 2,29
A183: AF.65110 | B183: V10833 | C183: 1005
A184: AF.66110 | B184: V10797 | C184: 1025
A185: AF.68210 | B185: M9999 | C185: 2
A186: AF.71110 | B186: V10833 | C186: 1005
A187: AF.72110 | B187: V10833 | C187: 1005
A188: AF.73320 | B188: V10613 | C188: 4,82
A189: AF.63110 | B189: V10833 | C189: 1005
A190: AF.67110 | B190: V10834 | C190: 1020
A191: AF.81111 | B191: V10447 | C191: 0,792
A192: AF.82111 | B192: V10821 | C192: 51,81
A193: AF.83121 | B193: N1457 | C193: 21,5
A194: AF.85121 | B194: V10864 | C194: 12,5
A195: AF.86111 | B195: V10821 | C195: 51,81
A196: AF.87111 | B196: V10514 | C196: 0,1
A197: AF.88110 | B197: V10824 | C197: 722
A198: AG.11110 | B198: V10875 | C198: 1015
A199: AG.12220 | B199: N1407 | C199: 3,81
A200: AG.13111 | B200: V10833 | C200: 1005
... 259 more rows

Sheet tbGiaCamay
A1: MH | B1: LM_TB
A2: M0001 | B2: Máy đào
A3: M0002 | B3: Máy đào
A4: M0003 | B4: Máy đào
A5: M0004 | B5: Máy đào
A6: M0005 | B6: Máy đào
A7: M0006 | B7: Máy đào
A8: M0007 | B8: Máy đào
A9: M0008 | B9: Máy đào
A10: M0009 | B10: Máy đào
A11: M0010 | B11: Máy đào
A12: M0011 | B12: Máy đào
A13: M0012 | B13: Máy đào
A14: M0013 | B14: Máy đào
A15: M0014 | B15: Máy đào
A16: M0015 | B16: Máy đào
A17: M0016 | B17: Máy đào
A18: M0017 | B18: Máy đào
A19: M0018 | B19: Máy đào
A20: M0019 | B20: Máy đào
A21: M0020 | B21: Máy đào
A22: M0021 | B22: Máy đào
A23: M0022 | B23: Máy đào
A24: M0023 | B24: Máy đào
A25: M0024 | B25: Máy đào
A26: M0025 | B26: Máy đào
A27: M0026 | B27: Máy đào
A28: M0027 | B28: Máy đào
A29: M0028 | B29: Máy đào
A30: M0029 | B30: Máy đào
A31: M0030 | B31: Máy đào
A32: M0031 | B32: Máy đào
A33: M0032 | B33: Máy đào
A34: M0033 | B34: Máy đào
A35: M0034 | B35: Máy đào
A36: M0035 | B36: Máy xúc lật
A37: M0036 | B37: Máy xúc lật
A38: M0037 | B38: Máy xúc lật
A39: M0038 | B39: Máy xúc lật
A40: M0039 | B40: Máy xúc lật
A41: M0040 | B41: Máy xúc lật
A42: M0041 | B42: Máy xúc lật
A43: M0042 | B43: Máy xúc lật
A44: M0043 | B44: Máy xúc lật
A45: M0044 | B45: (Gầu đào thi công móng cọc, tường barrette)
A46: M0045 | B46: Máy xúc chuyên dùng trong hầm 0,90 m3
A47: M0046 | B47: Máy xúc chuyên dùng trong hầm 1,65 m3
A48: M0047 | B48: Máy xúc chuyên dùng trong hầm 4,20 m3
A49: M0048 | B49: Máy cào đá, động cơ địên, năng suất 2 m3/ph
A50: M0049 | B50: Máy cào đá, động cơ địên, năng suất 3 m3/ph
A51: M0050 | B51: Máy cào đá, động cơ địên, năng suất 8 m3/ph
A52: M0051 | B52: Máy ủi
A53: M0052 | B53: Máy ủi
A54: M0053 | B54: Máy ủi
A55: M0054 | B55: Máy ủi
A56: M0055 | B56: Máy ủi
A57: M0056 | B57: Máy ủi
A58: M0057 | B58: Máy ủi
A59: M0058 | B59: Máy ủi
A60: M0059 | B60: Máy ủi
A61: M0060 | B61: Máy ủi
A62: M0061 | B62: Máy ủi
A63: M0062 | B63: Máy ủi
A64: M0063 | B64: Thùng cạp + đầu kéo bánh xích, dung tích thùng 2,50 m3
A65: M0064 | B65: Thùng cạp + đầu kéo bánh xích, dung tích thùng 2,75 m3
A66: M0065 | B66: Thùng cạp + đầu kéo bánh xích, dung tích thùng 3,00 m3
A67: M0066 | B67: Thùng cạp + đầu kéo bánh xích, dung tích thùng 4,50 m3
A68: M0067 | B68: Thùng cạp + đầu kéo bánh xích, dung tích thùng 5,00 m3
A69: M0068 | B69: Thùng cạp + đầu kéo bánh xích, dung tích thùng 8,0 m3
A70: M0069 | B70: Thùng cạp + đầu kéo bánh xích, dung tích thùng 9,0 m3
A71: M0070 | B71: Máy cạp tự hành, dung tích thùng 9,0m3
A72: M0071 | B72: Máy cạp tự hành, dung tích thùng 10,0m3
A73: M0072 | B73: Máy cạp tự hành, dung tích thùng 16,0m3
A74: M0073 | B74: Máy cạp tự hành, dung tích thùng 25,0m3
A75: M0074 | B75: Máy san tự hành
A76: M0075 | B76: Máy san tự hành
A77: M0076 | B77: Máy san tự hành
A78: M0077 | B78: Máy san tự hành
A79: M0078 | B79: Máy san tự hành
A80: M0079 | B80: Máy đầm cóc, trọng lượng 50 kg
A81: M0080 | B81: Máy đầm cóc
A82: M0081 | B82: Máy đầm cóc
A83: M0082 | B83: Máy đầm cóc
A84: M0083 | B84: Đầm bánh hơi
A85: M0084 | B85: Đầm bánh hơi
A86: M0085 | B86: Đầm bánh hơi
A87: M0086 | B87: Đầm bánh hơi
A88: M0087 | B88: Đầm bánh hơi
A89: M0088 | B89: Đầm bánh hơi
A90: M0089 | B90: Đầm bánh hơi
A91: M0090 | B91: Đầm bánh hơi
A92: M0091 | B92: Đầm bánh hơi
A93: M0092 | B93: Đầm bánh hơi
A94: M0093 | B94: Đầm bánh hơi
A95: M0094 | B95: Đầm bánh hơi
A96: M0095 | B96: Đầm bánh hơi
A97: M0096 | B97: Đầm chân cừu
A98: M0097 | B98: Đầm chân cừu
A99: M0098 | B99: Đầm bánh thép
A100: M0099 | B100: Đầm bánh thép
A101: M0100 | B101: Đầm bánh thép
A102: M0101 | B102: Đầm bánh thép
A103: M0102 | B103: Đầm bánh thép
A104: M0103 | B104: Đầm bánh thép
A105: M0104 | B105: Máy lu rung
A106: M0105 | B106: Ô tô
A107: M0106 | B107: Ô tô
A108: M0107 | B108: Ô tô
A109: M0108 | B109: Ô tô
A110: M0109 | B110: Ô tô
A111: M0110 | B111: Ô tô
A112: M0111 | B112: Ô tô
A113: M0112 | B113: Ô tô
A114: M0113 | B114: Ô tô
A115: M0114 | B115: Ô tô
A116: M0115 | B116: Ô tô
A117: M0116 | B117: Ô tô
A118: M0117 | B118: Ô tô
A119: M0118 | B119: Ô tô
A120: M0119 | B120: Ô tô
A121: M0120 | B121: Ô tô
A122: M0121 | B122: Ô tô
A123: M0122 | B123: Ô tô
A124: M0123 | B124: Ô tô
A125: M0124 | B125: Ô tô
A126: M0125 | B126: Ô tô
A127: M0126 | B127: Ô tô
A128: M0127 | B128: Ô tô
A129: M0128 | B129: Ô tô
A130: M0129 | B130: Ô tô
A131: M0130 | B131: Ô tô
A132: M0131 | B132: Ô tô
A133: M0132 | B133: Ô tô
A134: M0133 | B134: Ô tô
A135: M0134 | B135: Ô tô
A136: M0135 | B136: Ô tô
A137: M0136 | B137: Ô tô
A138: M0137 | B138: Ô tô
A139: M0138 | B139: Ô tô
A140: M0139 | B140: Ô tô
A141: M0140 | B141: Ô tô chuyển trộn bê tông, dung tích thùng trộn 5,0 m3
A142: M0141 | B142: Ô tô chuyển trộn bê tông, dung tích thùng trộn 6,0 m3
A143: M0142 | B143: Ô tô chuyển trộn bê tông, dung tích thùng trộn 8,0 m3
A144: M0143 | B144: Ô tô chuyển trộn bê tông, dung tích thùng trộn 8,7 m3
A145: M0144 | B145: Ô tô chuyển trộn bê tông, dung tích thùng trộn 10,7 m3
A146: M0145 | B146: Ô tô chuyển trộn bê tông, dung tích thùng trộn 14,5 m3
A147: M0146 | B147: Ô tô tưới nước
A148: M0147 | B148: Ô tô tưới nước
A149: M0148 | B149: Ô tô tưới nước
A150: M0149 | B150: Ô tô tưới nước
A151: M0150 | B151: Ô tô tưới nước
A152: M0151 | B152: Ô tô tưới nước
A153: M0152 | B153: Xe bồn hút bùn, hút mùn khoan, dung tích 2m3 (3T)
A154: M0153 | B154: Xe bồn hút bùn, hút mùn khoan, dung tích 3m3 (4.5T)
A155: M0154 | B155: Xe ép rác, trọng tải 1,2 T
A156: M0155 | B156: Xe ép rác, trọng tải 1,5 T
A157: M0156 | B157: Xe ép rác, trọng tải 2,0 T
A158: M0157 | B158: Xe ép rác, trọng tải 4,0 T
A159: M0158 | B159: Xe ép rác, trọng tải 7,0 T
A160: M0159 | B160: Xe ép rác, trọng tải 10 T
A161: M0160 | B161: Xe ép kín (xe hôklip)
A162: M0161 | B162: Xe tải thùng kín, tải trọng 1,5 T
A163: M0162 | B163: Xe nhặt rác
A164: M0163 | B164: Ô tô tải có gắn cần trục, trọng tải xe 5,0 T
A165: M0164 | B165: Ô tô tải có gắn cần trục, trọng tải xe 6,0 T
A166: M0165 | B166: Ô tô tải có gắn cần trục, trọng tải xe 7,0 T
A167: M0166 | B167: Ô tô tải có gắn cần trục, trọng tải xe 10,0 T
A168: M0167 | B168: Ô tô bán tải, trọng tải 1,5 T
A169: M0168 | B169: Rơ mooc, trọng tải 2 T
A170: M0169 | B170: Rơ mooc, trọng tải 4 T
A171: M0170 | B171: Rơ mooc, trọng tải 7,5 T
A172: M0171 | B172: Rơ mooc, trọng tải 14 T
A173: M0172 | B173: Rơ mooc, trọng tải 15 T
A174: M0173 | B174: Rơ mooc, trọng tải 21 T
A175: M0174 | B175: Rơ mooc, trọng tải 40 T
A176: M0175 | B176: Rơ mooc, trọng tải 100 T
A177: M0176 | B177: Rơ mooc, trọng tải 125 T
A178: M0177 | B178: Máy kéo bánh xích, công suất 45,0 CV
A179: M0178 | B179: Máy kéo bánh xích, công suất 54,0 CV
A180: M0179 | B180: Máy kéo bánh xích, công suất 75,0 CV
A181: M0180 | B181: Máy kéo bánh xích, công suất 110,0 CV
A182: M0181 | B182: Máy kéo bánh xích, công suất 130,0 CV
A183: M0182 | B183: Máy kéo bánh hơi, công suất 28,0 CV
A184: M0183 | B184: Máy kéo bánh hơi, công suất 40,0 CV
A185: M0184 | B185: Máy kéo bánh hơi, công suất 50,0 CV
A186: M0185 | B186: Máy kéo bánh hơi, công suất 60,0 CV
A187: M0186 | B187: Máy kéo bánh hơi, công suất 80,0 CV
A188: M0187 | B188: Máy kéo bánh hơi, công suất 165,0 CV
A189: M0188 | B189: Máy kéo bánh hơi, công suất 215,0 CV
A190: M0189 | B190: Tời ma tơ -13 kW
A191: M0190 | B191: Xe goòng 3T
A192: M0191 | B192: Xe goòng 5,8 m3
A193: M0192 | B193: Đầu kéo 30T
A194: M0193 | B194: Quang lật 360 T/h
A195: M0194 | B195: Cần trục máy kéo, sức nâng 5 T
A196: M0195 | B196: Cần trục máy kéo, sức nâng 6 T
A197: M0196 | B197: Cần trục máy kéo, sức nâng 7 T
A198: M0197 | B198: Cần trục máy kéo, sức nâng 8 T
A199: M05198 | B199: Máy đặt đường ống, cần trục to -12-24- sức nâng 15T
A200: M05199 | B200: Máy đặt đường ống, tời kéo ống trên xe xích- sức kéo 7,5T
... 651 more rows

Sheet tbTHmay
A1: MHDM | B1: TCV | C1: DVT | D1: NC | E1: MTC | F1: MAYTC
A2: AA.11112 | B2: Phát rừng loại I bằng thủ công, mật độ cây tiêu chuẩn trên 100m2: ≤2 cây | C2: 100m² | D2: N1307
A3: AA.12111 | B3: Chặt cây ở mặt đất bằng phẳng, đường kính gốc cây ≤20cm | C3: cây | D3: N1307
A4: AA.13111 | B4: Đào gốc cây, đường kính gốc cây ≤20cm | C4: gốc | D4: N1307
A5: AA.21111 | B5: Phá dỡ kết cấu gạch đá, phá dỡ tường gạch, bằng thủ công | C5: m³ | D5: N1357
A6: AA.22111 | B6: Phá dỡ kết cấu bê tông có cốt thép bằng búa căn | C6: m³ | D6: N1357 | E6: M0514; M0462; M0485 | F6: Búa căn khí nén (chưa tính khí nén), tiêu hao khí nén 3,0 m3/ph; Máy nén khí; Máy hàn
A7: AA.23111 | B7: Vận chuyển phế thải tiếp 1000m bằng ôtô 7 tấn, chiều dày lớp cắt ≤3cm | C7: 100m² | E7: M0121 | F7: Ô tô
A8: AA.31111 | B8: Tháo dỡ kết cấu gỗ bằng thủ công, chiều cao ≤4m | C8: m³ | D8: N1357
A9: AA.32111 | B9: Tháo dỡ sàn cầu tạm (Eiffel, Bailey, dàn T66, N64) bằng máy hàn | C9: tấn | D9: N1357 | E9: M0485 | F9: Máy hàn
A10: AB.11111 | B10: Đào bùn đặc trong mọi điều kiện, bằng thủ công | C10: m³ | D10: N1307
A11: AB.12111 | B11: Phá đá bằng thủ công, chiều dày lớp đá ≤0,5m, đá cấp I | C11: m³ | D11: N1357
A12: AB.13111 | B12: Đắp đất nền móng công trình, bằng thủ công, độ chặt yêu cầu K=0,85 | C12: m³ | D12: N1307
A13: AB.21111 | B13: Đào san đất tạo mặt bằng, bằng máy đào ≤0,4m3 + máy ủi ≤110CV, đất cấp I | C13: 100m³ | D13: N1307 | E13: M0003; M0055 | F13: Máy đào; Máy ủi
A14: AB.22111 | B14: Đào san đất tạo mặt bằng, bằng máy ủi ≤75CV, phạm vi ≤50m, đất cấp I | C14: 100m³ | E14: M0053 | F14: Máy ủi
A15: AB.23111 | B15: Đào san đất tạo mặt bằng, bằng máy cạp 9m3, phạm vi ≤300m, đất cấp I | C15: 100m³ | E15: M0070; M0055 | F15: Máy cạp tự hành, dung tích thùng 9,0m3; Máy ủi
A16: AB.24111 | B16: Đào xúc đất để đắp hoặc đổ ra bãi thải, bãi tập kết, bằng máy đào ≤0,4m3 + máy ủi ≤110CV, phạm vi 30m, đất cấp I | C16: 100m³ | D16: N1307 | E16: M0003; M0055 | F16: Máy đào; Máy ủi
A17: AB.25111 | B17: Đào móng công trình, chiều rộng móng ≤6m, bằng máy đào ≤0,8m3, đất cấp I | C17: 100m³ | D17: N1307 | E17: M0006 | F17: Máy đào
A18: AB.26111 | B18: Đào móng công trình trên nền đất mềm, yếu, bằng phương pháp đào chuyển tổ hợp 2 máy đào 0,8m3 | C18: 100m³ | D18: N1307 | E18: M0006 | F18: Máy đào
A19: AB.27111 | B19: Đào kênh mương, chiều rộng ≤6m, bằng máy đào ≤0,8m3, đất cấp I | C19: 100m³ | D19: N1307 | E19: M0006 | F19: Máy đào
A20: AB.28111 | B20: Đào kênh mương trên nền đất mềm, yếu, bằng phương pháp đào chuyển, tổ hợp 2 máy đào 0,8m3 | C20: 100m³ | D20: N1307 | E20: M0006 | F20: Máy đào
A21: AB.31111 | B21: Đào nền đường bằng máy đào ≤0,4m3 + máy ủi ≤110CV, đổ lên phương tiện vận chuyển, đất cấp I | C21: 100m³ | D21: N1307 | E21: M0003; M0055 | F21: Máy đào; Máy ủi
A22: AB.32111 | B22: Đào nền đường bằng máy ủi ≤75CV, vận chuyển trong phạm vi ≤50m, đất cấp I | C22: 100m³ | D22: N1307 | E22: M0053 | F22: Máy ủi
A23: AE.28140a | B23: Xây các bộ phận, kết cấu phức tạp khác bằng gạch 2 lỗ 6x10,5x22, chiều cao >50m, vữa XM mác 50 | C23: m³ | D23: N1357 | E23: M0319; M0269; M0244; M9999 | F23: Máy trộn vữa; Máy vận thăng; Cần cẩu
A24: AE.71110 | B24: Xây tường bằng gạch rỗng 6 lỗ 10x15x22, chiều dày ≤10cm, chiều cao ≤4m, vữa XM mác 25 | C24: m³ | D24: N1357 | E24: M0319 | F24: Máy trộn vữa
A25: AF.14110 | B25: Bê tông đá dăm sản xuất bằng máy trộn, đổ bằng thủ công, bê tông móng, mố, trụ cầu trên cạn, vữa bê tông đá 2x4 mác 200 | C25: m³ | D25: N1407 | E25: M0313; M0355; M0214; M9999 | F25: Máy trộn bê tông; Máy đầm bê tông; Cần cẩu
A26: AF.15110 | B26: Bê tông đá dăm sản xuất bằng máy trộn, đổ bằng thủ công, bê tông buồng xoắn, vữa bê tông đá 1x2 mác 150 | C26: m³ | D26: N1407 | E26: M0313; M0355 | F26: Máy trộn bê tông; Máy đầm bê tông
A27: AF.82131 | B27: Sản xuất, lắp dựng tháo dỡ ván khuôn thép cho bê tông đổ tại chỗ, cây chống gỗ, ván khuôn tường, cột vuông (chữ nhật), xà dầm, giằng, chiều cao >50m | C27: 100m² | D27: N1407 | E27: M0485; M0269; M0244; M9999 | F27: Máy hàn; Máy vận thăng; Cần cẩu
A28: AF.84111 | B28: Sản xuất, lắp dựng tháo dỡ ván khuôn sàn mái bằng ván ép công nghiệp không có khung xương, xà gồ gỗ + cột chống bằng hệ giáo ống, chiều cao ≤16m | C28: 100m² | D28: N1457 | E28: M0266; M9999 | F28: Máy vận thăng
A29: AF.86111 | B29: Sản xuất, lắp dựng tháo dỡ ván khuôn thép, khung xương thép + cột chống bằng giáo ống, ván khuôn sàn mái, chiều cao ≤16m | C29: 100m² | D29: N1457 | E29: M0266; M0269; M0242; M9999 | F29: Máy vận thăng; Cần cẩu
A30: AF.87111 | B30: Lắp dựng, tháo dỡ kết cấu thép, hệ ván khuôn ngoài dầm cầu đúc đẩy | C30: tấn | D30: N1457 | E30: M0226; M0279; M0485; M0290; M0288; M9999 | F30: Cần cẩu; Tời điện; Máy hàn; Kích nâng 500 T; Kích nâng 200 T
A31: BB.11508 | B31: Lắp đặt ống bê tông ly tâm, nối bằng gioăng cao su đoạn ống dài 6m, đường kính ống 1100mm | C31: 100m | D31: N1407 | E31: M0204; M9999 | F31: Cần cẩu
A32: BB.13202 | B32: Lắp đặt ống gang miệng bát, bằng gioăng cao su đoạn ống dài 6m, đường kính ống 75mm | C32: 100m | D32: N1357
A33: BB.24221 | B33: Lắp đặt cút thép, nối bằng phương pháp hàn, đường kính 800mm | C33: cái | D33: N1407 | E33: M0485; M0204; M9999 | F33: Máy hàn; Cần cẩu
A34: BB.25101 | B34: Lắp đặt côn thép không rỉ, nối bằng phương pháp hàn, đường kính 15mm | C34: cái | D34: N1357 | E34: M0485; M9999 | F34: Máy hàn
A35: BD.22202 | B35: Nối ống kết cấu giếng, bằng phương pháp nối ren, máy khoan đập cáp 40kw, đường kính 108mm | C35: m | D35: N1407 | E35: M0557a; M9999
A36: BD.23101 | B36: Thổi rửa giếng khoan độ sâu giếng <100m, máy khoan đập cáp 40kw, đường kính ống lọc <219mm | C36: m | D36: N1407 | E36: M0557a; M0466; M0485 | F36: Máy nén khí; Máy hàn
A37: BD.24101 | B37: Chèn sỏi bằng máy khoan đập cáp 40kW | C37: m³ | D37: N1407 | E37: M0557a; M9999
A38: BD.25101 | B38: Vận chuyển mùn khoan, cự ly vận chuyển ≤0,5km | C38: 10m³ | D38: N1407 | E38: M0153 | F38: Xe bồn hút bùn, hút mùn khoan, dung tích 3m3 (4.5T)
A39: AB.33111 | B39: Đào nền đường bằng máy cạp 9m3, vận chuyển trong phạm vi ≤300m, đất cấp I | C39: 100m³ | D39: N1307 | E39: M0070; M0055 | F39: Máy cạp tự hành, dung tích thùng 9,0m3; Máy ủi
A40: AB.34110 | B40: San đất bãi thải, bãi trữ, bãi gia tải bằng máy ủi 110CV | C40: 100m³ | E40: M0055 | F40: Máy ủi
A41: AB.35110 | B41: Đào đất trong khung vây phòng nước các trụ trên cạn | C41: 100m³ | D41: N1357 | E41: M0032 | F41: Máy đào
A42: AB.36110 | B42: Xói hút bùn trong khung vây phòng nước, các trụ trên cạn | C42: m³ | D42: N1457 | E42: M0467; M0225; M0402; M0394; M9999 | F42: Máy nén khí; Cần cẩu; Máy bơm nước, động cơ điện. công suất 75 kW; Máy bơm nước, động cơ điện. công suất 14 kW
A43: AB.41111 | B43: Vận chuyển đất bằng ôtô tự đổ 5 tấn trong phạm vi ≤300m, đất cấp I | C43: 100m³ | E43: M0119 | F43: Ô tô
A44: AB.42111 | B44: Vận chuyển đất 1000m tiếp theo, cự ly vận chuyển ≤2km bằng ôtô tự đổ 5 tấn, đất cấp I | C44: 100m³ | E44: M0119 | F44: Ô tô
A45: AB.51611 | B45: Đào phá đá, chiều dày ≤0,5m bằng búa căn, đá cấp I | C45: m³ | D45: N1357 | E45: M0514; M0465 | F45: Búa căn khí nén (chưa tính khí nén), tiêu hao khí nén 3,0 m3/ph; Máy nén khí
A46: AB.55311 | B46: Xúc đá hỗn hợp tại bãi trữ lên phương tiện vận chuyển bằng máy đào dung tích gầu ≤1,25m3 | C46: 100m³ | D46: N1307 | E46: M0009; M0055 | F46: Máy đào; Máy ủi
A47: AB.56111 | B47: Vận chuyển đá hỗn hợp lấp sông bằng ô tô tự đổ 12 tấn trong phạm vi ≤300m | C47: 100m³ | E47: M0124 | F47: Ô tô
A48: AB.57111 | B48: Vận chuyển tiếp 1000m đá hỗn hợp lấp sông bằng ô tô tự đổ 12 tấn, cự ly ≤2km | C48: 100m³ | E48: M0124 | F48: Ô tô
A49: AB.61110 | B49: Đắp đất, cát mặt bằng công trình bằng tàu hút 600CV, cự ly ≤500m | C49: 100m³ | D49: N1407 | E49: M0657a; M0055; M0640; M0618 | F49: Máy ủi; Tàu kéo và phục vụ thi công thuỷ (làm neo, cấp dầu ), công suất 150 CV; Ca nô, công suất 30 CV
A50: AB.62111 | B50: San đầm đất mặt bằng, bằng máy đầm 9 tấn, độ chặt yêu cầu K=0,85 | C50: 100m³ | D50: N1307 | E50: M0088; M0055 | F50: Đầm bánh hơi; Máy ủi
A51: AB.63111 | B51: Đắp đê, đập, kênh mương bằng máy đầm 9 tấn, dung trọng ≤1,65T/m3 | C51: 100m³ | D51: N1307 | E51: M0088; M0055 | F51: Đầm bánh hơi; Máy ủi
A52: AB.64111 | B52: Đắp nền đường máy đầm 9 tấn, độ chặt yêu cầu K=0,85 | C52: 100m³ | D52: N1307 | E52: M0088; M0055; M9999 | F52: Đầm bánh hơi; Máy ủi
A53: AB.65110 | B53: Đắp đất công trình bằng máy đầm cóc, độ chặt yêu cầu K=0,85 | C53: 100m³ | D53: N1407 | E53: M0080 | F53: Máy đầm cóc
A54: AB.66111 | B54: Đắp cát công trình bằng máy đầm 9 tấn, độ chặt yêu cầu K=0,85 | C54: 100m³ | D54: N1307 | E54: M0088; M0055; M9999 | F54: Đầm bánh hơi; Máy ủi
A55: AB.68110 | B55: Đắp đá lớp đệm dưới lớp bê tông bản mặt bằng đá có Dmax ≤80mm | C55: 100m³ | D55: N1307 | E55: M0059; M0150; M0095; M0104; M0215; M0009 | F55: Máy ủi; Ô tô tưới nước; Đầm bánh hơi; Máy lu rung; Cần cẩu; Máy đào
A56: AB.71110 | B56: Nạo vét bằng tàu hút công suất ≤1000CV, chiều sâu nạo vét ≤6m, chiều cao ống xả ≤3m, chiều dài ống xả ≤300m, đất phù sa bùn lỏng | C56: 100m³ | D56: Nvb274 | E56: M0657; M0641; M0248; M0617; M0641; M0442; M0276; M9999 | F56: Tàu hút bùn, công suất 585 CV; Tàu kéo và phục vụ thi công thuỷ (làm neo, cấp dầu ), công suất 360CV; Cần cẩu nổi, kéo theo, sức nâng 30 T; Ca nô, công suất 23CV; Máy phát điện; Tời điện
A57: AB.72210 | B57: Nạo vét bằng tàu cuốc sông TC 82 495CV (hoặc tương tự), đất phù sa bùn lỏng | C57: 100m³ | D57: Nvs274 | E57: M0653; M0641; M0604; M0617; M0279; M0442; M9999 | F57: Tàu cuốc sông, công suất 495 CV; Tàu kéo và phục vụ thi công thuỷ (làm neo, cấp dầu ), công suất 360CV; Xà lan công trình, trọng tải 250 T; Ca nô, công suất 23CV; Tời điện; Máy phát điện
A58: AB.73110 | B58: Nạo vét bằng tàu hút bụng tự hành công suất ≤2500CV, độ sâu hạ gầu từ 4 đến 6m, cự ly vận chuyển đất ≤6km, đất phù sa bùn lỏng | C58: 100m³ | D58: Nvb274 | E58: M0661; M0641; M0641; M0641; M0617; M9999 | F58: Tàu hút bụng tự hành công suất 1390CV; Tàu kéo và phục vụ thi công thuỷ (làm neo, cấp dầu ), công suất 360CV; Ca nô, công suất 23CV
A59: AB.81111 | B59: Nạo vét kênh mương bằng máy đào gầu dây ≤0,4m3, chiều cao đổ đất ≤3m, bùn đặc, đất sỏi lắng đọng dưới 3 năm | C59: 100m³ | D59: N1407 | E59: M0029; M0603 | F59: Máy đào; Xà lan công trình, trọng tải 200 T
A60: AB.91111 | B60: Vận chuyển đất, cát đổ đi bằng tàu kéo 360CV + xà lan 400 tấn, vận chuyển 1km đầu | C60: 100m³ | E60: M0606; M0641 | F60: Xà lan công trình, trọng tải 400 T; Tàu kéo và phục vụ thi công thuỷ (làm neo, cấp dầu ), công suất 360CV
A61: AB.92110 | B61: Vận chuyển đất, cát đổ đi 1km tiếp theo ngoài 6km đầu, trong phạm vi 6 đến 20km bằng tàu hút bụng tự hành, công suất <2500CV | C61: 100m³ | E61: M0661 | F61: Tàu hút bụng tự hành công suất 1390CV
A62: AC.11110 | B62: Đóng cọc tre, bằng thủ công, chiều dài cọc ngập đất ≤2,5m, đất bùn | C62: 100m | D62: N1357
A63: AC.12111 | B63: Đóng cọc gỗ bằng máy trên mặt đất, cọc dài ≤10m, đất cấp I | C63: 100m | D63: N1357 | E63: M0570; M9999 | F63: Búa diezel chạy trên ray -trọng lượng đầu búa 1,2 T
A64: AC.13111 | B64: Đóng cọc BTCT trên mặt đất, chiều dài cọc ≤24m, bằng búa máy có trọng lượng đầu búa ≤1,2 tấn, đất cấp I, kích thước cọc 20x20cm | C64: 100m | D64: N1357 | E64: M0570; M9999 | F64: Búa diezel chạy trên ray -trọng lượng đầu búa 1,2 T
A65: AC.14111 | B65: Đóng cọc BTCT trên mặt đất, chiều dài cọc ≤24m, bằng búa máy có trọng lượng đầu búa ≤1,8 tấn, đất cấp I, kích thước cọc 20x20cm | C65: 100m | D65: N1357 | E65: M0571; M9999 | F65: Búa diezel chạy trên ray -trọng lượng đầu búa 1,8 T
A66: AC.15111 | B66: Đóng cọc BTCT trên mặt đất, chiều dài cọc ≤24m, bằng búa máy có trọng lượng đầu búa ≤2,5 tấn, đất cấp I, kích thước cọc 25x25cm | C66: 100m | D66: N1357 | E66: M0573; M9999 | F66: Búa diezel chạy trên ray -trọng lượng đầu búa 2,5 T
A67: AC.16111 | B67: Đóng cọc BTCT trên mặt đất, chiều dài cọc ≤24m, bằng búa máy có trọng lượng đầu búa ≤3,5 tấn, đất cấp I, kích thước cọc 30x30cm | C67: 100m | D67: N1357 | E67: M0574; M9999 | F67: Búa diezel chạy trên ray -trọng lượng đầu búa 3,5 T
A68: AC.17111 | B68: Đóng cọc BTCT trên mặt nước, chiều dài cọc ≤24m, bằng tàu đóng cọc trọng lượng đầu búa ≤1,8 tấn, kích thước cọc 30x30cm | C68: 100m | D68: N1357 | E68: M0581; M0226; M0640; M0604; M9999 | F68: Búa đóng cọc nổi (cả xà lan và máy phụ trợ)- trọng lượng búa <=1,8 T; Cần cẩu; Tàu kéo và phục vụ thi công thuỷ (làm neo, cấp dầu ), công suất 150 CV; Xà lan công trình, trọng tải 250 T
A69: AC.18111 | B69: Đóng cọc BTCT trên mặt nước, chiều dài cọc ≤24m, bằng tàu đóng cọc trọng lượng đầu búa ≤2,5 tấn, kích thước cọc 30x30cm | C69: 100m | D69: N1357 | E69: M0582; M0226; M0640; M0604; M9999 | F69: Búa đóng cọc nổi (cả xà lan và máy phụ trợ)- trọng lượng búa <=2,5 T; Cần cẩu; Tàu kéo và phục vụ thi công thuỷ (làm neo, cấp dầu ), công suất 150 CV; Xà lan công trình, trọng tải 250 T
A70: AC.19111 | B70: Đóng cọc BTCT trên mặt nước, chiều dài cọc ≤24m, bằng tàu đóng cọc trọng lượng đầu búa ≤3,5 tấn, kích thước cọc 30x30cm | C70: 100m | D70: N1357 | E70: M0583; M0226; M0640; M0604; M9999 | F70: Búa đóng cọc nổi (cả xà lan và máy phụ trợ)- trọng lượng búa <=3,5 T; Cần cẩu; Tàu kéo và phục vụ thi công thuỷ (làm neo, cấp dầu ), công suất 150 CV; Xà lan công trình, trọng tải 250 T
A71: AC.21111 | B71: Đóng cọc ống BTCT trên cạn, bằng máy đóng cọc hoặc búa rung, đường kính cọc ≤550mm | C71: 100m | D71: N1357 | E71: M0574; M0226; M9999 | F71: Búa diezel chạy trên ray -trọng lượng đầu búa 3,5 T; Cần cẩu
A72: AC.22111 | B72: Đóng cọc ván thép (cọc Larsen) trên mặt đất, chiều dài cọc ≤12m, đất cấp I | C72: 100m | D72: N1407 | E72: M0571; M9999 | F72: Búa diezel chạy trên ray -trọng lượng đầu búa 1,8 T
A73: AC.23110 | B73: Nhổ cọc thép hình, thép ống làm tường chắn đất, sàn thao tác trên cạn | C73: 100m | D73: N1407 | E73: M0226; M9999 | F73: Cần cẩu
A74: AC.25111 | B74: Ép trước cọc BTCT, kích thước cọc 15x15cm, chiều dài đoạn cọc ≤4m, đất cấp I | C74: 100m | D74: N1377 | E74: M0587; M0224; M9999 | F74: Máy ép cọc trước, lực ép 150 T; Cần cẩu
A75: AC.26111 | B75: Ép trước cọc BTCT, kích thước cọc 30x30cm, chiều dài đoạn cọc ≤4m, đất cấp I | C75: 100m | D75: N1377 | E75: M0588; M0224; M9999 | F75: Máy ép cọc trước, lực ép 200 T; Cần cẩu
A76: AC.27110 | B76: Nhổ cọc cừ Larsen bằng máy ép thủy lực | C76: 100m | D76: N1407 | E76: M0590; M0226; M9999 | F76: Máy ép thuỷ lực (kgk, 130 c4), lực ép 130 t; Cần cẩu
A77: AC.28111 | B77: Ép sau cọc BTCT, kích thước cọc 10x10cm, chiều dài đoạn cọc ≤4m, đất cấp I | C77: 100m | D77: N1377 | E77: M0589; M9999 | F77: Máy ép cọc sau
A78: AC.29111 | B78: Nối cọc ván thép Larsen trên cạn | C78: mối nối | D78: N1407 | E78: M0485; M0226 | F78: Máy hàn; Cần cẩu
A79: AC.31110 | B79: Khoan tạo lỗ bằng phương pháp khoan lắc có ống vách, khoan vào đất trên cạn, bằng máy khoan VRM HĐ, Lepper (hoặc tương tự), đường kính lỗ khoan 800mm | C79: m | D79: N1407 | E79: M0592; M0230; M9999 | F79: Búa khoan vrm 1500/800 HD; Cần cẩu
A80: AC.32111 | B80: Khoan tạo lỗ bằng phương pháp khoan xoay phản tuần hoàn (có sử dụng dung dịch khoan), khoan vào đất trên cạn, bằng máy khoan TRC-15 (hoặc tương tự), đường kính lỗ khoan 800mm | C80: m | D80: N1407 | E80: M0593; M0227; M9999 | F80: Bộ thiết bị khoan nhồi TRC-15; Cần cẩu
A81: AC.34111 | B81: Khoan tạo lỗ bằng phương pháp khoan xoay, khoan vào đất trên cạn, bằng máy khoan T2W 300CV (hoặc tương tự), đường kính lỗ khoan 600mm | C81: m | D81: N1457 | E81: M0559a; M9999
A82: AC.35110 | B82: Đào tạo lỗ cọc, tường barette, kích thước đào 0,5x1,2m | C82: m sâu | D82: N1407 | E82: M0229; M0040; M9999 | F82: Cần cẩu; Máy xúc lật
A83: AD.11110 | B83: Làm móng đường đá ba, đá hộc, chiều dày lớp móng đã lèn ép ≤20cm | C83: m³ | D83: N1307 | E83: M0098 | F83: Đầm bánh thép
A84: AD.12111 | B84: Làm lớp móng cát vàng gia cố xi măng, trạm trộn 20-25m3/h, tỷ lệ xi măng 6% | C84: 100m³ | D84: N1407 | E84: M0328; M0055; M0098; M0091; M0076; M9999 | F84: Trạm trộn bê tông, năng suất 25m3/h; Máy ủi; Đầm bánh thép; Đầm bánh hơi; Máy san tự hành
A85: AD.21111 | B85: Làm mặt đường đá dăm nước lớp trên, chiều dày mặt đường đã lèn ép 8cm | C85: 100m² | D85: N1277 | E85: M0098; M0147 | F85: Đầm bánh thép; Ô tô tưới nước
A86: AD.22111 | B86: Làm mặt đường đá 4x6 chèn đá dăm, chiều dày mặt đường đã lèn ép 10cm | C86: 100m² | D86: N1307 | E86: M0099; M0147; M9999 | F86: Đầm bánh thép; Ô tô tưới nước
A87: AD.23111 | B87: Rải thảm mặt đường đá dăm đen, chiều dày mặt đường đã lèn ép 3cm | C87: 100m² | D87: N1407 | E87: M0376; M0099; M0089; M9999 | F87: Máy rải hỗn hợp bê tông nhựa , năng suất 130 cv đến 140 cv; Đầm bánh thép; Đầm bánh hơi
A88: AD.24111 | B88: Láng nhựa mặt đường 1 lớp nhựa dày 1,5cm, tiêu chuẩn nhựa 1,8kg/m2 | C88: 100m² | D88: N1357 | E88: M0098; M0373; M0381 | F88: Đầm bánh thép; Máy rải hỗn hợp bê tông nhựa , năng suất 20 t/h; Nồi nấu nhựa
A89: AD.25111 | B89: Cày xới mặt đường cũ, mặt đường đá dăm hoặc láng nhựa | C89: 100m² | D89: N1357 | E89: M0076; M0057; M9999 | F89: Máy san tự hành; Máy ủi
A90: AD.26111 | B90: Sản xuất đá dăm đen bằng trạm trộn ≤25T/h | C90: 100tấn | D90: N1457 | E90: M0367; M0035; M0055; M9999 | F90: Trạm trộn bê tông át phan, năng suất (chưa tính chi phí nhiên liệu) 25 t/h (140t/ca); Máy xúc lật; Máy ủi
A91: AD.27111 | B91: Vận chuyển hỗn hợp cát mịn, cát vàng gia cố xi măng từ trạm trộn đến vị trí đổ bằng ôtô 5 tấn, cự ly 0,5km | C91: 100 tấn | E91: M0119 | F91: Ô tô
A92: AD.31111 | B92: Làm cọc tiêu bê tông cốt thép 0,12x0,12x1,025m | C92: cái | D92: N1377
A93: AD.32111 | B93: Sản xuất, lắp đặt trụ đỡ bảng tên đường, bảng lưu thông bằng sắt L50x50x5 | C93: cái | D93: N1337 | E93: M0502; M0530; M0110 | F93: Máy cắt sắt cầm tay; Máy mài, công suất 1,0kW; Ô tô
A94: AD.33110 | B94: Gắn viên phản quang trên mặt bê tông | C94: viên | D94: N1357 | E94: M0106; M0380a | F94: Ô tô
A95: AD.34110 | B95: Lắp đặt dải phân cách cứng | C95: cái | D95: N1407
A96: AD.81111 | B96: Sản xuất phao tiêu báo hiệu đường sông, đường kính 0,8m | C96: cái | D96: N1457 | E96: M0485; M0500; M0515; M0224; M9999 | F96: Máy hàn; Máy khoan đứng; Máy uốn ống, công suất 2,8 kW; Cần cẩu
A97: AD.82111 | B97: Lắp đặt phao tiêu đường sông, đường kính 0,8m | C97: cái | D97: N1507 | E97: M0617 | F97: Ca nô, công suất 23CV
A98: AE.11110 | B98: Xây móng bằng đá hộc, chiều dày ≤60cm, vữa XM mác 50 | C98: m³ | D98: N1357
A99: AE.12110 | B99: Xếp đá khan không chít mạch, mặt bằng | C99: m³ | D99: N1357
A100: AE.21110 | B100: Xây móng bằng gạch chỉ đặc 6,5x10,5x22, chiều dày ≤33cm, vữa XM mác 25 | C100: m³ | D100: N1357
A101: AE.22110 | B101: Xây tường thẳng bằng gạch chỉ đặc 6,5x10,5x22, chiều dày ≤11cm, chiều cao ≤4m, vữa XM mác 25 | C101: m³ | D101: N1357 | E101: M0319 | F101: Máy trộn vữa
A102: AE.23110 | B102: Xây cột, trụ bằng gạch chỉ đặc 6,5x10,5x22, chiều cao ≤4m, vữa XM mác 25 | C102: m³ | D102: N1357 | E102: M0319 | F102: Máy trộn vữa
A103: AE.24110 | B103: Xây tường cong nghiêng vặn vỏ đỗ bằng gạch chỉ đặc 6,5x10,5x22, chiều dày ≤33cm, chiều cao ≤4m, vữa XM mác 25 | C103: m³ | D103: N1357 | E103: M0319 | F103: Máy trộn vữa
A104: AE.25110 | B104: Xây cống cuốn cong bằng gạch chỉ đặc 6,5x10,5x22, vữa XM mác 50 | C104: m³ | D104: N1357 | E104: M0319 | F104: Máy trộn vữa
A105: AE.26110 | B105: Xây bể chứa bằng gạch chỉ đặc 6,5x10,5x22, vữa XM mác 25 | C105: m³ | D105: N1357 | E105: M0319 | F105: Máy trộn vữa
A106: AE.27110 | B106: Xây bể chứa hóa chất, bể chống ăn mòn bằng gạch chỉ đặc 6,5x10,5x22 | C106: m³ | D106: N1457 | E106: M0319 | F106: Máy trộn vữa
A107: AE.81110 | B107: Xây tường gạch bê tông rỗng 20x20x40cm, tường dày ≤30cm, vữa XM mác 25 | C107: m3 | D107: N1377
A108: AF.21220 | B108: Bê tông sản xuất qua dây chuyền trạm trộn tại hiện trường hoặc vữa bê tông thương phẩm từ các cơ sở sản xuất tập trung và đổ bằng cần cẩu, bê tông móng, chiều rộng móng >250cm, vữa bê tông đá 1x2 mác 200 | C108: m³ | D108: N1307 | E108: M0224; M0355 | F108: Cần cẩu; Máy đầm bê tông
A109: AF.22110 | B109: Bê tông sản xuất qua dây chuyền trạm trộn tại hiện trường hoặc vữa bê tông thương phẩm từ các cơ sở sản xuất tập trung và đổ bằng cần cẩu, bê tông tường dày ≤45cm, chiều cao ≤4m, vữa bê tông đá 1x2 mác 150 | C109: m³ | D109: N1357 | E109: M0224; M0355; M9999 | F109: Cần cẩu; Máy đầm bê tông
A110: AE.83110 | B110: Xây tường bằng gạch thông gió 20x20cm, vữa XM mác 25 | C110: m² | D110: N1357
A111: AE.91110 | B111: Xây ống khói bằng gạch chịu lửa | C111: tấn | D111: N1457 | E111: M0509; M0319; M0279; M9999 | F111: Máy cắt gạch đá, công suất 1,7 kW; Máy trộn vữa; Tời điện
A112: AE.93110 | B112: Xây tường lò nung bằng gạch chịu lửa | C112: tấn | D112: N1457 | E112: M0509; M0319; M9999 | F112: Máy cắt gạch đá, công suất 1,7 kW; Máy trộn vữa
A113: AF.11110 | B113: Bê tông đá dăm sản xuất bằng máy trộn, đổ bằng thủ công, bê tông lót móng rộng ≤250cm, vữa bê tông đá 4x6 mác 100 | C113: m³ | D113: N1307 | E113: M0313; M0350 | F113: Máy trộn bê tông; Máy đầm bê tông
A114: AF.12110 | B114: Bê tông đá dăm sản xuất bằng máy trộn, đổ bằng thủ công, bê tông tường dày ≤45cm, chiều cao ≤4m, vữa bê tông đá 1x2 mác 150 | C114: m³ | D114: N1357 | E114: M0313; M0355 | F114: Máy trộn bê tông; Máy đầm bê tông
A115: AF.13110 | B115: Bê tông đá dăm sản xuất bằng máy trộn, đổ bằng thủ công, bê tông giếng nước, giếng cáp, vữa bê tông đá 1x2 mác 150 | C115: m³ | D115: N1357 | E115: M0313 | F115: Máy trộn bê tông
A116: AF.16120 | B116: Bê tông đá dăm sản xuất bằng máy trộn, đổ bằng thủ công, bê tông bể chứa dạng thành thẳng, vữa bê tông đá 1x2 mác 150 | C116: m³ | D116: N1357 | E116: M0313; M0355; M9999 | F116: Máy trộn bê tông; Máy đầm bê tông
A117: AF.17110 | B117: Bê tông đá dăm sản xuất bằng máy trộn, đổ bằng thủ công, bê tông máng thu nước và phân phối trên khu xử lý (dạng chữ V, hình bán nguyệt và đa giác), vữa bê tông đá 1x2 mác 150 | C117: m³ | D117: N1357 | E117: M0313; M0355 | F117: Máy trộn bê tông; Máy đầm bê tông
A118: AF.23110 | B118: Bê tông sản xuất qua dây chuyền trạm trộn tại hiện trường hoặc vữa bê tông thương phẩm từ các cơ sở sản xuất tập trung và đổ bằng cần cẩu, bê tông móng, mố trụ cầu trên cạn, vữa bê tông đá 1x2 mác 150 | C118: m³ | D118: N1357 | E118: M0225; M0355; M9999 | F118: Cần cẩu; Máy đầm bê tông
A119: AF.24110 | B119: Bê tông sản xuất qua dây chuyền trạm trộn tại hiện trường hoặc vữa bê tông thương phẩm từ các cơ sở sản xuất tập trung và đổ bằng cần cẩu, bê tông mối nối bản dầm dọc cầu cảng, vữa bê tông đá 1x2 mác 200 | C119: m³ | D119: N1407 | E119: M0224; M0355; M0603; M0640; M9999 | F119: Cần cẩu; Máy đầm bê tông; Xà lan công trình, trọng tải 200 T; Tàu kéo và phục vụ thi công thuỷ (làm neo, cấp dầu ), công suất 150 CV
A120: AF.25110 | B120: Bê tông sản xuất qua dây chuyền trạm trộn tại hiện trường hoặc vữa bê tông thương phẩm từ các cơ sở sản xuất tập trung và đổ bằng cần cẩu, bê tông cọc nhồi trên cạn, đường kính ≤1000mm, vữa bê tông đá 1x2 mác 200 | C120: m³ | D120: N1457 | E120: M0229; M9999 | F120: Cần cẩu
A121: AF.26110 | B121: Bê tông sản xuất qua dây chuyền trạm trộn tại hiện trường hoặc vữa bê tông thương phẩm từ các cơ sở sản xuất tập trung và đổ bằng cần cẩu, bê tông bể chứa dạng thành thẳng, vữa bê tông đá 1x2 mác 200 | C121: m³ | D121: N1357 | E121: M0355; M0224; M9999 | F121: Máy đầm bê tông; Cần cẩu
A122: AF.27110 | B122: Bê tông sản xuất qua dây chuyền trạm trộn tại hiện trường hoặc vữa bê tông thương phẩm từ các cơ sở sản xuất tập trung và đổ bằng cần cẩu, bê tông trượt lồng thang máy, vữa bê tông đá 1x2 mác 200 | C122: m³ | D122: N1407 | E122: M0245; M0355; M0395; M0268; M9999 | F122: Cần cẩu; Máy đầm bê tông; Máy bơm nước, động cơ điện. công suất 20 kW; Máy vận thăng
A123: AF.28110 | B123: Làm lớp vữa XM mác 100 bảo vệ mái đập | C123: 100m² | D123: N1407 | E123: M0319; M0104; M0226; M9999 | F123: Máy trộn vữa; Máy lu rung; Cần cẩu
A124: AF.31110 | B124: Bê tông sản xuất qua dây chuyền trạm trộn tại hiện trường hoặc vữa bê tông thương phẩm từ các cơ sở sản xuất tập trung và đổ bằng máy bơm bê tông tự hành, bê tông móng, rộng ≤250cm, vữa bê tông đá 1x2 mác 150 | C124: m³ | D124: N1307 | E124: M0340; M0355; M9999 | F124: Xe bơm bê tông tự hành, năng suất 50m3/h; Máy đầm bê tông
A125: AF.32110 | B125: Bê tông sản xuất qua dây chuyền trạm trộn tại hiện trường hoặc vữa bê tông thương phẩm từ các cơ sở sản xuất tập trung và đổ bằng máy bơm bê tông tự hành, bê tông tường, dày ≤45cm, chiều cao ≤4m, vữa bê tông đá 1x2 mác 150 | C125: m³ | D125: N1357 | E125: M0340; M0355; M9999 | F125: Xe bơm bê tông tự hành, năng suất 50m3/h; Máy đầm bê tông
A126: AF.33110 | B126: Bê tông sản xuất qua dây chuyền trạm trộn tại hiện trường hoặc vữa bê tông thương phẩm từ các cơ sở sản xuất tập trung và đổ bằng máy bơm bê tông tự hành, bê tông móng, mố, trụ cầu trên cạn, vữa bê tông đá 1x2 mác 150 | C126: m³ | D126: N1357 | E126: M0226; M0340; M0355; M9999 | F126: Cần cẩu; Xe bơm bê tông tự hành, năng suất 50m3/h; Máy đầm bê tông
A127: AF.34110 | B127: Bê tông sản xuất qua dây chuyền trạm trộn tại hiện trường hoặc vữa bê tông thương phẩm từ các cơ sở sản xuất tập trung và đổ bằng máy bơm bê tông tự hành, bê tông mối nối bản dầm dọc cầu cảng, vữa bê tông đá 1x2 mác 200 | C127: m³ | D127: N1407 | E127: M0340; M0355; M0603; M0640; M9999 | F127: Xe bơm bê tông tự hành, năng suất 50m3/h; Máy đầm bê tông; Xà lan công trình, trọng tải 200 T; Tàu kéo và phục vụ thi công thuỷ (làm neo, cấp dầu ), công suất 150 CV
A128: AF.35110 | B128: Bê tông sản xuất qua dây chuyền trạm trộn tại hiện trường hoặc vữa bê tông thương phẩm từ các cơ sở sản xuất tập trung và đổ bằng máy bơm bê tông tự hành, bê tông cọc nhồi trên cạn, đường kính ≤1000mm, vữa bê tông đá 1x2 mác 200 | C128: m³ | D128: N1357 | E128: M0226; M0340; M9999 | F128: Cần cẩu; Xe bơm bê tông tự hành, năng suất 50m3/h
A129: AF.36110 | B129: Bê tông sản xuất qua dây chuyền trạm trộn tại hiện trường và đổ bằng máy bơm bê tông, bê tông toàn tiết diện hầm ngang, vữa bê tông đá 1x2 mác 200 | C129: m³ | D129: N1407 | E129: M0342; M0355; M0309; M0057; M0485; M9999 | F129: Máy bơm bê tông, năng suất 40-60 m3/h; Máy đầm bê tông; Máy nâng phục vụ thi công hầm, công suất 135 CV; Máy ủi; Máy hàn
A130: AF.37110 | B130: Bê tông sản xuất qua dây chuyền trạm trộn tại hiện trường hoặc vữa bê tông thương phẩm từ các cơ sở sản xuất tập trung và đổ bằng máy bơm bê tông tự hành, bê tông bịt đáy trong khung vây trên cạn, vữa bê tông đá 1x2 mác 200 | C130: m³ | D130: N1357 | E130: M0342; M0603; M9999 | F130: Máy bơm bê tông, năng suất 40-60 m3/h; Xà lan công trình, trọng tải 200 T
A131: AF.41110 | B131: Bê tông thủy công lót móng, lấp đầy, đổ bằng cần cẩu 16 tấn, vữa bê tông đá 2x4 mác 100 | C131: m³ | D131: N1307 | E131: M0225; M0355 | F131: Cần cẩu; Máy đầm bê tông
A132: AG.12120 | B132: Sản xuất cấu kiện bê tông đúc sẵn bằng vữa bê tông sản xuất qua dây chuyền trạm trộn tại hiện trường hoặc vữa bê tông thương phẩm, bê tông dầm hộp T (bản rỗng), đổ bằng cần cẩu, vữa bê tông đá 1x2 mác 300 | C132: m³ | D132: N1407 | E132: M0355; M0225 | F132: Máy đầm bê tông; Cần cẩu
A133: AG.13111 | B133: Sản xuất, lắp đặt cốt thép bê tông đúc sẵn cột, cọc, cừ, xà dầm, giằng, đường kính ≤10mm | C133: tấn | D133: N1357 | E133: M0522 | F133: Máy cắt uốn cốt thép
A134: AF.51110 | B134: Sản xuất vữa bê tông qua dây chuyền trạm trộn ≤16m3/h tại hiện trường | C134: m³ | D134: N1307 | E134: M0325; M0036; M0055; M9999 | F134: Trạm trộn bê tông, năng suất 16m3/h; Máy xúc lật; Máy ủi
A135: AF.52111 | B135: Vận chuyển vữa bê tông bằng ô tô chuyển trộn 6m3, trong phạm vi ≤0,5km | C135: 100m³ | E135: M0141 | F135: Ô tô chuyển trộn bê tông, dung tích thùng trộn 6,0 m3
A136: AF.61110 | B136: Sản xuất, lắp dựng cốt thép móng, đường kính ≤10mm | C136: tấn | D136: N1357 | E136: M0522 | F136: Máy cắt uốn cốt thép
A137: AF.62110 | B137: Sản xuất, lắp dựng cốt thép lồng thang máy, đường kính ≤10mm | C137: tấn | D137: N1407 | E137: M0522; M0245; M0268; M9999 | F137: Máy cắt uốn cốt thép; Cần cẩu; Máy vận thăng
A138: AF.63110 | B138: Sản xuất, lắp dựng cốt thép giếng nước, giếng cáp, đường kính ≤10mm | C138: tấn | D138: N1357 | E138: M0522 | F138: Máy cắt uốn cốt thép
A139: AF.64110 | B139: Sản xuất, lắp dựng cốt thép cầu máng thường, đường kính ≤10mm | C139: tấn | D139: N1357 | E139: M0522 | F139: Máy cắt uốn cốt thép
A140: AF.65110 | B140: Sản xuất, lắp dựng cốt thép móng, mố, trụ, mũ mố, mũ trụ cầu trên cạn, đường kính ≤10mm | C140: tấn | D140: N1407 | E140: M0522; M0225 | F140: Máy cắt uốn cốt thép; Cần cẩu
A141: AF.66110 | B141: Sản xuất, lắp dựng cáp thép dự ứng lực dầm cầu đúc hẫng (kéo sau) trên cạn | C141: tấn | D141: N1457 | E141: M0226; M0279; M0300; M0298; M0395; M0465; M0289; M0290; M0280; M9999 | F141: Cần cẩu; Tời điện; Máy cắt cáp, công suất 10,0 kW; Máy luồn cáp, công suất 15kW; Máy bơm nước, động cơ điện. công suất 20 kW; Máy nén khí; Kích nâng 250 T; Kích nâng 500 T; Pa lăng xích
A142: AF.67110 | B142: Sản xuất, lắp dựng cốt thép cọc khoan nhồi, cọc, tường barette trên cạn, đường kính ≤18mm | C142: tấn | D142: N1407 | E142: M0485; M0522; M0226 | F142: Máy hàn; Máy cắt uốn cốt thép; Cần cẩu
A143: AF.68110 | B143: Sản xuất cốt thép bê tông hầm, đường kính ≤18mm | C143: tấn | D143: N1407 | E143: M0485; M0502; M9999 | F143: Máy hàn; Máy cắt sắt cầm tay
A144: AF.71110 | B144: Sản xuất, lắp dựng cốt thép móng, nền, bản đáy công trình thủy công, đường kính ≤10mm, bằng cần cẩu 16 tấn | C144: tấn | D144: N1357 | E144: M0522; M0225 | F144: Máy cắt uốn cốt thép; Cần cẩu
A145: AF.81111 | B145: Sản xuất, lắp dựng tháo dỡ ván khuôn cho bê tông đổ tại chỗ, ván khuôn gỗ móng dài, bệ máy | C145: 100m² | D145: N1357
A146: AF.88110 | B146: Sản xuất hệ ván khuôn, hệ khung đỡ ván khuôn hầm bằng kim loại | C146: tấn | D146: N1407 | E146: M0225; M0485; M0503; M0500; M9999 | F146: Cần cẩu; Máy hàn; Máy cắt sắt cầm tay; Máy khoan đứng
A147: AG.11110 | B147: Sản xuất cấu kiện bê tông đúc sẵn, bê tông cọc, cột, vữa bê tông đá 1x2 mác 150 | C147: m³ | D147: N1307 | E147: M0313; M0355; M9999 | F147: Máy trộn bê tông; Máy đầm bê tông
A148: AG.21111 | B148: Lắp dựng tấm tường 3D-SG, chiều dày lõi mốp xốp 5cm | C148: m² | D148: N1377 | E148: M0313; M0337; M9999 | F148: Máy trộn bê tông; Máy bơm vữa, năng suất 6,0m3/h
A149: AG.31111 | B149: Sản xuất, lắp dựng tháo dỡ ván khuôn gỗ, ván khuôn panen | C149: 100m² | D149: N1307
A150: AG.32111 | B150: Sản xuất, lắp dựng tháo dỡ ván khuôn kim loại, ván khuôn dầm cầu bản | C150: m² | D150: N1457 | E150: M0485; M0522; M9999 | F150: Máy hàn; Máy cắt uốn cốt thép
A151: AG.41111 | B151: Lắp dựng các loại cấu kiện bê tông đúc sẵn bằng máy, lắp cột, trọng lượng cấu kiện ≤2,5 tấn | C151: cái | D151: N1407 | E151: M0205; M0485 | F151: Cần cẩu; Máy hàn
A152: AG.42111 | B152: Lắp các loại cấu kiện bê tông đúc sẵn bằng thủ công, trọng lượng cấu kiện ≤50kg | C152: cái | D152: N1407
A153: AG.51111 | B153: Lắp, tổ hợp dầm dàn cầu thép tại bãi | C153: tấn | D153: N1457 | E153: M0253; M0465; M0279; M0225; M9999 | F153: Cổng trục, sức nâng 30 T; Máy nén khí; Tời điện; Cần cẩu
A154: AG.52111 | B154: Lao lắp dầm bê tông bằng cẩu lao dầm hoặc cẩu long môn, chiều dài dầm ≤30m | C154: m | D154: N1457 | E154: M0250; M0279; M9999 | F154: Cẩu lao dầm, cẩu K33 -60; Tời điện
A155: AG.53111 | B155: Di chuyển dầm cầu, chiều dài dầm ≤30m | C155: dầm | D155: N1457
A156: AH.11111 | B156: Sản xuất, lắp dựng vì kèo gỗ mái ngói khẩu độ ≤6,9m | C156: m³ | D156: N1357
A157: AH.12111 | B157: Sản xuất, lắp dựng giằng vì kèo theo thanh đứng gian giữa khẩu độ ≤6,9m | C157: m³ | D157: N1357
A158: AH.13111 | B158: Sản xuất, lắp dựng xà gồ gỗ mái thẳng | C158: m³ | D158: N1357
A159: AH.21111 | B159: Sản xuất, lắp dựng dầm cầu gỗ chiều dài cầu ≤6m | C159: m³ | D159: N1357 | E159: M0204 | F159: Cần cẩu
A160: AH.31111 | B160: Lắp dựng khuôn cửa đơn | C160: m | D160: N1357
A161: AH.32111 | B161: Lắp dựng cửa vào khuôn | C161: m² | D161: N1357
A162: AI.11111 | B162: Sản xuất vì kèo thép hình khẩu độ lớn (18-24)m | C162: tấn | D162: N1407 | E162: M0485; M0500; M0205; M9999 | F162: Máy hàn; Máy khoan đứng; Cần cẩu
A163: AI.13111 | B163: Sản xuất cấu kiện thép đặt sẵn trong bê tông, khối lượng ≤10kg/cấu kiện | C163: tấn | D163: N1457 | E163: M0485; M0531; M0499; M9999 | F163: Máy hàn; Máy mài, công suất 2,7 kW; Máy khoan đứng
A164: AI.21111 | B164: Sản xuất cấu kiện dầm thép dàn kín, thanh má hạ, má thượng, thanh đầu dàn cầu thép | C164: tấn | D164: N1437 | E164: M0500; M0460; M0205; M9999 | F164: Máy khoan đứng; Máy nén khí; Cần cẩu
A165: AI.22111 | B165: Sản xuất cấu kiện dầm thép, dầm chủ | C165: tấn | D165: N1437 | E165: M0500; M0460; M0485; M0205; M9999 | F165: Máy khoan đứng; Máy nén khí; Máy hàn; Cần cẩu
A166: AI.41110 | B166: Sản xuất cửa van phẳng | C166: tấn | D166: N1407 | E166: M0524; M0526; M0528; M0485; M0531; M0519; M0500; M0214; M9999 | F166: Máy cưa kim loại, công suất 2,7 kW; Máy tiện, công suất 10,0 kW; Máy phay, công suất 7,0 kW; Máy hàn; Máy mài, công suất 2,7 kW; Máy cắt thép Plaxma; Máy khoan đứng; Cần cẩu
A167: AI.52111 | B167: Sản xuất kết cấu thép thành bình, bể thùng tháp dạng hình vuông, chữ nhật | C167: tấn | D167: N1457 | E167: M0518; M0520; M0531; M0485; M9999 | F167: Máy cắt tôn, công suất 15,0 kW; Máy lốc tôn, công suất 5,0 kW; Máy mài, công suất 2,7 kW; Máy hàn
A168: AI.53111 | B168: Sản xuất mặt bích đặc, khối lượng ≤10kg | C168: tấn | D168: N1457 | E168: M0531; M0500; M9999 | F168: Máy mài, công suất 2,7 kW; Máy khoan đứng
A169: AI.61111 | B169: Lắp dựng cột thép các loại | C169: tấn | D169: N1357 | E169: M0214; M0485; M0500; M0462; M9999 | F169: Cần cẩu; Máy hàn; Máy khoan đứng; Máy nén khí
A170: AI.62111 | B170: Lắp dựng dầm cầu thép các loại trên cạn | C170: tấn | D170: N1457 | E170: M0225; M0226; M0279; M0253b; M9999 | F170: Cần cẩu; Tời điện
A171: AI.63111 | B171: Lắp dựng các loại cửa sắt xếp, cửa cuốn | C171: m² | D171: N1407 | E171: M0485 | F171: Máy hàn
A172: AI.64111 | B172: Lắp đặt ống thép luồn cáp dự ứng lực, đường kính ống ≤80mm | C172: m | D172: N1457 | E172: M0516; M9999 | F172: Máy cắt ống
A173: AI.65111 | B173: Lắp đặt kết cấu thép thành bình, bể dạng hình vuông, chữ nhật | C173: tấn | D173: N1457 | E173: M0485; M0281; M0279; M0531; M0243; M9999 | F173: Máy hàn; Pa lăng xích; Tời điện; Máy mài, công suất 2,7 kW; Cần cẩu
A174: AI.66111 | B174: Lắp đặt cửa van phẳng, độ cao đóng mở ≤5m | C174: tấn | D174: N1457 | E174: M0485; M0245; M9999 | F174: Máy hàn; Cần cẩu
A175: AK.11110 | B175: Lợp mái ngói 22v/m2, chiều cao ≤4m | C175: 100m² | D175: N1307 | E175: M0319 | F175: Máy trộn vữa
A176: AK.12111 | B176: Lợp mái, che tường bằng fibrô xi măng | C176: 100m² | D176: N1357
A177: AK.13110 | B177: Dán ngói mũi hài 75v/m2 trên mái nghiêng bê tông | C177: m² | D177: N1407
A178: AK.21110 | B178: Trát tường ngoài, chiều dày trát 1cm, vữa XM mác 25 | C178: m² | D178: N1407 | E178: M0319; M9999 | F178: Máy trộn vữa
A179: AK.22110 | B179: Trát trụ cột, lam đứng, cầu thang, chiều dày trát 1cm, vữa XM mác 25 | C179: m² | D179: N1407 | E179: M0319; M9999 | F179: Máy trộn vữa
A180: AK.23110 | B180: Trát xà dầm, vữa XM mác 25 | C180: m² | D180: N1407 | E180: M0319; M9999 | F180: Máy trộn vữa
A181: AK.24110 | B181: Đắp phào đơn, vữa XM mác 50 | C181: m | D181: N1457
A182: AK.25110 | B182: Trát sênô, mái hắt, lam ngang, vữa XM mác 50 | C182: m² | D182: N1457
A183: AK.26110 | B183: Trát granitô gờ chỉ, gờ lồi, đố tường, vữa XM mác 50 | C183: m | D183: N1457
A184: AK.27110 | B184: Trát đá rửa tường, vữa XM mác 50 | C184: m² | D184: N1407 | E184: M0319 | F184: Máy trộn vữa
A185: AK.31110 | B185: Ốp tường, trụ, cột, kích thước gạch 200x250mm | C185: m² | D185: N1407 | E185: M0509 | F185: Máy cắt gạch đá, công suất 1,7 kW
A186: AK.32110 | B186: Ốp đá granít tự nhiên vào tường, có chốt bằng inox | C186: m² | D186: N1457 | E186: M0509; M9999 | F186: Máy cắt gạch đá, công suất 1,7 kW
A187: AK.41110 | B187: Láng nền sàn không đánh mầu, chiều dày 2cm, vữa XM mác 50 | C187: m² | D187: N1407 | E187: M0319 | F187: Máy trộn vữa
A188: AK.42110 | B188: Láng sênô, mái hắt, máng nước dày 1cm, vữa XM mác 50 | C188: m² | D188: N1407 | E188: M0319 | F188: Máy trộn vữa
A189: AK.43110 | B189: Láng granitô nền sàn | C189: m² | D189: N1407
A190: AK.44110 | B190: Láng gắn sỏi nền, sân, hè đường, chiều dày 1,5cm | C190: m² | D190: N1407 | E190: M0319 | F190: Máy trộn vữa
A191: AK.51110 | B191: Lát gạch chỉ 6,5x10,5x21cm | C191: m² | D191: N1357
A192: AK.53110 | B192: Lát gạch granít nhân tạo bậc tam cấp | C192: m² | D192: N1407 | E192: M0509 | F192: Máy cắt gạch đá, công suất 1,7 kW
A193: AK.54210 | B193: Lát gạch chống nóng 6 lỗ 22x15x10,5cm | C193: m² | D193: N1357
A194: AK.55110 | B194: Lát gạch sân, nền đường, vỉa hè bằng gạch xi măng | C194: m2 | D194: N1407
A195: AK.56110 | B195: Lát nền, sàn đá cẩm thạch tiết diện đá ≤0,16m2 | C195: m² | D195: N1407 | E195: M0509 | F195: Máy cắt gạch đá, công suất 1,7 kW
A196: AK.57110 | B196: Bó vỉa thẳng hè, đường bằng tấm bê tông đúc sẵn 18x22x100cm | C196: m | D196: N1407
A197: AK.61110 | B197: Làm trần cót ép | C197: m2 | D197: N1407
A198: AK.62110 | B198: Làm trần gỗ dán (ván ép) có tấm cách âm bằng tấm acostic | C198: m² | D198: N1457
A199: AK.63110 | B199: Làm trần ván ép bọc simili, mút dầy 3÷5cm nẹp phân ô bằng gỗ | C199: m² | D199: N1407
A200: AK.64110 | B200: Làm trần bằng tấm thạch cao hoa văn 50x50cm | C200: m2 | D200: N1407
... 250 more rows

Sheet Config (2) (hidden)
A1: Khung Giờ nghiệm thu | D1: Nội bộ | G1: Công việc xây dựng
A2: STT | B2: Bắt đầu | C2: Kết thúc | D2: Bắt đầu | E2: Kết thúc | F2: Tổng hợp | G2: Bắt đầu | H2: Kết thúc | I2: Tổng hợp
A3: 1 | B3: 07:00:00 | C3: =B3+15/(60*24) -> 07:15:00 | D3: =B11+RANDBETWEEN(0,1)*10/(60*24) -> 13:30:00 | E3: =D3+RANDBETWEEN(15,25)/(60*24) -> 13:48:00 | F3: =TEXT(HOUR(D3),"00")&"h"&TEXT(MINUTE(D3),"00")&"-"&TEXT(HOUR(E3),"00")&"h"&TEXT(MINUTE(E3),"00") -> 13h30-13h48 | G3: =B3+RANDBETWEEN(0,1)*10/(60*24) -> 07:00:00 | H3: =G3+RANDBETWEEN(15,25)/(60*24) -> 07:23:00 | I3: =TEXT(HOUR(G3),"00")&"h"&TEXT(MINUTE(G3),"00")&"-"&TEXT(HOUR(H3),"00")&"h"&TEXT(MINUTE(H3),"00") -> 07h00-07h23
A4: 2 | B4: =C3+15/(60*24) -> 07:30:00 | C4: 07:45:00 | D4: =B12+(RANDBETWEEN(0,1)*10+10)/(60*24) -> 14:05:00 | E4: 14:29:00 | F4: =TEXT(HOUR(D4),"00")&"h"&TEXT(MINUTE(D4),"00")&"-"&TEXT(HOUR(E4),"00")&"h"&TEXT(MINUTE(E4),"00") -> 14h05-14h29 | G4: =B4+RANDBETWEEN(0,1)*10/(60*24) -> 07:30:00 | H4: 07:53:00 | I4: 07h30-07h53
A5: 3 | B5: 08:00:00 | C5: 08:15:00 | D5: =B13+(RANDBETWEEN(0,1)*10+10)/(60*24) -> 14:30:00 | E5: 14:53:00 | F5: =TEXT(HOUR(D5),"00")&"h"&TEXT(MINUTE(D5),"00")&"-"&TEXT(HOUR(E5),"00")&"h"&TEXT(MINUTE(E5),"00") -> 14h30-14h53 | G5: 08:00:00 | H5: 08:15:00 | I5: 08h00-08h15
A6: 4 | B6: 08:30:00 | C6: 08:45:00 | D6: =B14+(RANDBETWEEN(0,1)*10+10)/(60*24) -> 14:55:00 | E6: 15:10:00 | F6: 14h55-15h10 | G6: 08:30:00 | H6: 08:52:00 | I6: 08h30-08h52
A7: 5 | B7: 09:00:00 | C7: 09:15:00 | D7: =B15+(RANDBETWEEN(0,1)*10+10)/(60*24) -> 15:20:00 | E7: 15:40:00 | F7: =TEXT(HOUR(D7),"00")&"h"&TEXT(MINUTE(D7),"00")&"-"&TEXT(HOUR(E7),"00")&"h"&TEXT(MINUTE(E7),"00") -> 15h20-15h40 | G7: =B7+RANDBETWEEN(0,1)*10/(60*24) -> 09:10:00 | H7: 09:34:00 | I7: =TEXT(HOUR(G7),"00")&"h"&TEXT(MINUTE(G7),"00")&"-"&TEXT(HOUR(H7),"00")&"h"&TEXT(MINUTE(H7),"00") -> 09h10-09h34
A8: 6 | B8: 09:30:00 | C8: 09:45:00 | D8: 15:55:00 | E8: 16:13:00 | F8: 15h55-16h13 | G8: 09:30:00 | H8: 09:46:00 | I8: 09h30-09h46
A9: 7 | B9: 10:00:00 | C9: 10:15:00 | D9: 16:20:00 | E9: 16:40:00 | F9: 16h20-16h40 | G9: 10:10:00 | H9: 10:29:00 | I9: 10h10-10h29
A10: 8 | B10: 10:30:00 | C10: 10:45:00 | D10: 16:35:00 | E10: 16:53:00 | F10: 16h35-16h53 | G10: 10:30:00 | H10: 10:45:00 | I10: 10h30-10h45
A11: 9 | B11: 13:30:00 | C11: 13:45:00 | D11: =B3+(RANDBETWEEN(0,1)*10+10)/(60*24) -> 07:20:00 | E11: 07:36:00 | F11: 07h20-07h36 | G11: 13:30:00 | H11: 13:48:00 | I11: 13h30-13h48
A12: 10 | B12: =C11+10/(60*24) -> 13:55:00 | C12: 14:10:00 | D12: =B4+(RANDBETWEEN(0,1)*10+10)/(60*24) -> 07:50:00 | E12: 08:12:00 | F12: 07h50-08h12 | G12: 14:05:00 | H12: 14:28:00 | I12: 14h05-14h28
A13: 11 | B13: 14:20:00 | C13: 14:35:00 | D13: =B6+(RANDBETWEEN(0,1)*10+10)/(60*24) -> 08:40:00 | E13: 08:56:00 | F13: 08h40-08h56 | G13: 14:30:00 | H13: 14:51:00 | I13: 14h30-14h51
A14: 12 | B14: 14:45:00 | C14: 15:00:00 | D14: =B6+(RANDBETWEEN(0,1)*10+10)/(60*24) -> 08:50:00 | E14: 09:06:00 | F14: 08h50-09h06 | G14: 14:55:00 | H14: 15:12:00 | I14: 14h55-15h12
A15: 13 | B15: 15:10:00 | C15: 15:25:00 | D15: =B7+(RANDBETWEEN(0,1)*10+10)/(60*24) -> 09:20:00 | E15: 09:45:00 | F15: =TEXT(HOUR(D15),"00")&"h"&TEXT(MINUTE(D15),"00")&"-"&TEXT(HOUR(E15),"00")&"h"&TEXT(MINUTE(E15),"00") -> 09h20-09h45 | G15: =B15+RANDBETWEEN(0,1)*10/(60*24) -> 15:10:00 | H15: 15:26:00 | I15: =TEXT(HOUR(G15),"00")&"h"&TEXT(MINUTE(G15),"00")&"-"&TEXT(HOUR(H15),"00")&"h"&TEXT(MINUTE(H15),"00") -> 15h10-15h26
A16: 14 | B16: 15:35:00 | C16: 15:50:00 | D16: 09:40:00 | E16: 10:02:00 | F16: 09h40-10h02 | G16: 15:45:00 | H16: 16:00:00 | I16: 15h45-16h00
A17: 15 | B17: 16:00:00 | C17: 16:15:00 | D17: 10:20:00 | E17: 10:43:00 | F17: 10h20-10h43 | G17: 16:00:00 | H17: 16:17:00 | I17: 16h00-16h17
A18: 16 | B18: 16:25:00 | C18: 16:40:00 | D18: 10:50:00 | E18: 11:14:00 | F18: 10h50-11h14 | G18: 16:25:00 | H18: 16:48:00 | I18: 16h25-16h48
A22: 1 | B22: 07:35:00 | C22: =B22+40/(60*24) -> 08:15:00 | D22: =B26+RANDBETWEEN(0,1)*10/(60*24) -> 13:30:00 | E22: =D22+40/(60*24) -> 14:10:00 | F22: =TEXT(HOUR(D22),"00")&"h"&TEXT(MINUTE(D22),"00")&"-"&TEXT(HOUR(E22),"00")&"h"&TEXT(MINUTE(E22),"00") -> 13h30-14h10 | G22: =B22+RANDBETWEEN(0,1)*10/(60*24) -> 07:35:00 | H22: =G22+40/(60*24) -> 08:15:00 | I22: =TEXT(HOUR(G22),"00")&"h"&TEXT(MINUTE(G22),"00")&"-"&TEXT(HOUR(H22),"00")&"h"&TEXT(MINUTE(H22),"00") -> 07h35-08h15
A23: 2 | B23: =C22+15/(60*24) -> 08:30:00 | C23: 09:10:00 | D23: =B27+(RANDBETWEEN(0,1)*10+10)/(60*24) -> 14:30:00 | E23: 15:10:00 | F23: 14h30-15h10 | G23: 08:30:00 | H23: 09:10:00 | I23: 08h30-09h10
A24: 3 | B24: =C23+15/(60*24) -> 09:25:00 | C24: 10:05:00 | D24: =B28+(RANDBETWEEN(0,1)*10+10)/(60*24) -> 15:20:00 | E24: 16:00:00 | F24: 15h20-16h00 | G24: 09:35:00 | H24: 10:15:00 | I24: 09h35-10h15
A25: 4 | B25: =C24+15/(60*24) -> 10:20:00 | C25: 11:00:00 | D25: =B29+(RANDBETWEEN(0,1)*10+10)/(60*24) -> 16:20:00 | E25: 17:00:00 | F25: 16h20-17h00 | G25: 10:30:00 | H25: 11:10:00 | I25: 10h30-11h10
A26: 5 | B26: 13:30:00 | C26: 14:10:00 | D26: =B22+(RANDBETWEEN(0,1)*10+10)/(60*24) -> 07:55:00 | E26: 08:35:00 | F26: 07h55-08h35 | G26: 13:30:00 | H26: 14:10:00 | I26: 13h30-14h10
A27: 6 | B27: =C26+10/(60*24) -> 14:20:00 | C27: 15:00:00 | D27: =B23+(RANDBETWEEN(0,1)*10+10)/(60*24) -> 08:40:00 | E27: 09:20:00 | F27: 08h40-09h20 | G27: 14:20:00 | H27: 15:00:00 | I27: 14h20-15h00
A28: 7 | B28: =C27+10/(60*24) -> 15:10:00 | C28: 15:50:00 | D28: =B25+(RANDBETWEEN(0,1)*10+10)/(60*24) -> 10:40:00 | E28: 11:20:00 | F28: 10h40-11h20 | G28: 15:20:00 | H28: 16:00:00 | I28: 15h20-16h00
A29: 8 | B29: =C28+10/(60*24) -> 16:00:00 | C29: =B29+30/(60*24) -> 16:30:00 | D29: =B25+(RANDBETWEEN(0,1)*10+10)/(60*24) -> 10:40:00 | E29: 11:20:00 | F29: 10h40-11h20 | G29: 16:10:00 | H29: 16:50:00 | I29: 16h10-16h50

Sheet Config
A1: Khung Giờ nghiệm thu | D1: Nội bộ | G1: Công việc xây dựng
A2: STT | B2: Bắt đầu | C2: Kết thúc | D2: Bắt đầu | E2: Kết thúc | F2: Tổng hợp | G2: Bắt đầu | H2: Kết thúc | I2: Tổng hợp
A3: 1 | B3: 07:00:00 | C3: =B3+15/(60*24) -> 07:15:00 | D3: =B11+RANDBETWEEN(0,1)*10/(60*24) -> 13:40:00 | E3: =D3+RANDBETWEEN(15,25)/(60*24) -> 14:01:00 | F3: =TEXT(HOUR(D3),"00")&"h"&TEXT(MINUTE(D3),"00")&"-"&TEXT(HOUR(E3),"00")&"h"&TEXT(MINUTE(E3),"00") -> 13h40-14h01 | G3: =B3+RANDBETWEEN(0,1)*10/(60*24) -> 07:00:00 | H3: =G3+RANDBETWEEN(15,25)/(60*24) -> 07:15:00 | I3: =TEXT(HOUR(G3),"00")&"h"&TEXT(MINUTE(G3),"00")&"-"&TEXT(HOUR(H3),"00")&"h"&TEXT(MINUTE(H3),"00") -> 07h00-07h15
A4: 2 | B4: =C3+15/(60*24) -> 07:30:00 | C4: 07:45:00 | D4: =B12+(RANDBETWEEN(0,1)*10+10)/(60*24) -> 14:15:00 | E4: 14:35:00 | F4: 14h15-14h35 | G4: 07:40:00 | H4: 08:01:00 | I4: 07h40-08h01
A5: 3 | B5: 08:00:00 | C5: 08:15:00 | D5: 14:30:00 | E5: 14:55:00 | F5: 14h30-14h55 | G5: 08:10:00 | H5: 08:32:00 | I5: 08h10-08h32
A6: 4 | B6: 08:30:00 | C6: 08:45:00 | D6: 15:05:00 | E6: 15:22:00 | F6: 15h05-15h22 | G6: 08:30:00 | H6: 08:53:00 | I6: 08h30-08h53
A7: 5 | B7: 09:00:00 | C7: 09:15:00 | D7: 15:30:00 | E7: 15:52:00 | F7: 15h30-15h52 | G7: 09:00:00 | H7: 09:15:00 | I7: 09h00-09h15
A8: 6 | B8: 09:30:00 | C8: 09:45:00 | D8: 15:45:00 | E8: 16:03:00 | F8: 15h45-16h03 | G8: 09:40:00 | H8: 10:03:00 | I8: 09h40-10h03
A9: 7 | B9: 10:00:00 | C9: 10:15:00 | D9: 16:10:00 | E9: 16:26:00 | F9: 16h10-16h26 | G9: 10:10:00 | H9: 10:34:00 | I9: 10h10-10h34
A10: 8 | B10: 10:30:00 | C10: 10:45:00 | D10: 16:35:00 | E10: 16:55:00 | F10: 16h35-16h55 | G10: 10:30:00 | H10: 10:47:00 | I10: 10h30-10h47
A11: 9 | B11: 13:30:00 | C11: 13:45:00 | D11: =B3+(RANDBETWEEN(0,1)*10+10)/(60*24) -> 07:10:00 | E11: 07:32:00 | F11: 07h10-07h32 | G11: 13:30:00 | H11: 13:47:00 | I11: 13h30-13h47
A12: 10 | B12: =C11+10/(60*24) -> 13:55:00 | C12: 14:10:00 | D12: =B4+(RANDBETWEEN(0,1)*10+10)/(60*24) -> 07:50:00 | E12: 08:13:00 | F12: 07h50-08h13 | G12: 14:05:00 | H12: 14:20:00 | I12: 14h05-14h20
A13: 11 | B13: 14:20:00 | C13: 14:35:00 | D13: =B6+(RANDBETWEEN(0,1)*10+10)/(60*24) -> 08:40:00 | E13: 09:05:00 | F13: 08h40-09h05 | G13: 14:20:00 | H13: 14:39:00 | I13: 14h20-14h39
A14: 12 | B14: 14:45:00 | C14: 15:00:00 | D14: =B6+(RANDBETWEEN(0,1)*10+10)/(60*24) -> 08:40:00 | E14: 09:02:00 | F14: 08h40-09h02 | G14: 14:45:00 | H14: 15:10:00 | I14: 14h45-15h10
A15: 13 | B15: 15:10:00 | C15: 15:25:00 | D15: =B7+(RANDBETWEEN(0,1)*10+10)/(60*24) -> 09:20:00 | E15: 09:44:00 | F15: 09h20-09h44 | G15: 15:20:00 | H15: 15:36:00 | I15: 15h20-15h36
A16: 14 | B16: 15:35:00 | C16: 15:50:00 | D16: =B8+(RANDBETWEEN(0,1)*10+10)/(60*24) -> 09:40:00 | E16: 10:00:00 | F16: 09h40-10h00 | G16: 15:45:00 | H16: 16:09:00 | I16: 15h45-16h09
A17: 15 | B17: 16:00:00 | C17: 16:15:00 | D17: =B9+(RANDBETWEEN(0,1)*10+10)/(60*24) -> 10:10:00 | E17: 10:33:00 | F17: 10h10-10h33 | G17: 16:10:00 | H17: 16:27:00 | I17: 16h10-16h27
A18: 16 | B18: 16:25:00 | C18: 16:40:00 | D18: =B10+(RANDBETWEEN(0,1)*10+10)/(60*24) -> 10:40:00 | E18: 10:57:00 | F18: 10h40-10h57 | G18: 16:35:00 | H18: 16:52:00 | I18: 16h35-16h52

Sheet Tam
Q1: Căn BB | AA1: 1 | AB1: 1. 1. 0. Bia HSHC
Q2: Mã hiệu | R2: Tên Sheet | AA2: =AA1+1 -> 2 | AB2: 2. 1. 0. Bia VL | AC2: TẬP: BIÊN BẢN NGHIỆM THU VẬT LIỆU
Q3: Sheet72 | R3: DanhmucBBCV | S3: x | AA3: =AA2+1 -> 3 | AB3: 3. 1. 0. Bia NTCV | AC3: TẬP: BIÊN BẢN NGHIỆM THU CÔNG VIỆC XÂY DỰNG
Q4: Sheet13 | R4: BienbanCVXD | S4: x | AA4: =AA3+1 -> 4 | AB4: 4. 1. 0. Bia NTHT | AC4: TẬP: BIÊN BẢN NGHIỆM THU HOÀN THÀNH HẠNG MỤC
Q5: Sheet15 | R5: BienbanHT | S5: x | AA5: =AA4+1 -> 5 | AB5: 5. 1. 0. Bia TNVL | AC5: TẬP: KẾT QUẢ THÍ NGHIỆM VẬT LIỆU
Q6: Sheet57 | R6: BienbanVatlieu | S6: x | AA6: 6 | AB6: 6. 1. 0. Bia NKTC
Q7: Sheet58 | R7: BBKT_Homong | S7: x | AA7: 7 | AB7: 7. 1. 0. Bia NKGS
Q8: Sheet59 | R8: BBKT_Dap | S8: x
Q9: Sheet46 | R9: BBKT_VK | S9: x
Q10: Sheet78 | R10: BBKT_SDD | S10: x
Q11: Sheet47 | R11: BBKT_CT | S11: x
Q12: Sheet60 | R12: BBKT_DKDBT | S12: x
Q13: Sheet48 | R13: PHIEU_BT | S13: x
Q14: Sheet51 | R14: THAO_VK | S14: x | V14: "N" & ChrW(250) & "t l" & ChrW(7879) & "nh kh" & ChrW(244) & "ng " & ChrW(273) & ChrW(432) & ChrW(7907) & "c s" & ChrW(7917) & " d" & ChrW(7909) & "ng tr" & ChrW(234) & "n trang n" & ChrW(224) & "y"
B15: 165 | Q15: Sheet68 | R15: BBKT_KTHHBT | S15: x
Q16: Sheet31 | R16: BBLMVL | S16: x
Q17: Sheet33 | R17: BBLMBT | S17: x
Q18: Sheet35 | R18: BBLMKhac | S18: x
Q19: Sheet38 | R19: Bia_Hoso | S19: x
Q20: Sheet62 | R20: Bia_nhatky | S20: x
Q21: Sheet32 | R21: Matbang | S21: x
Q22: Sheet40 | R22: PhieuCTVL | S22: x
Q23: Sheet34 | R23: PhongThinghiem | S23: x
Q24: Sheet41 | R24: Nhanluc | S24: x
Q25: Sheet36 | R25: N.thuMoc | S25: x
Q26: Sheet37 | R26: Dieukientruocthicong | S26: x
Q27: Sheet63 | R27: BBXLKT | S27: x
Q28: Sheet64 | R28: Baocaosuco | S28: x
Q29: Sheet65 | R29: Baocaohoanthanh | S29: x
Q30: Sheet66 | R30: BB_bangiao | S30: x
Q31: Sheet73 | R31: GhiNhatky | S31: x
Q32: Sheet61 | R32: InNKTC | S32: x
Q33: Sheet28 | R33: InNKGS | S33: x

Sheet Thongtin
A1: THÔNG TIN CÔNG TRÌNH
A3: Chú ý: Khi nhập xong thông tin công trình Click nút "Cập nhật" để căn chỉnh chiều cao dòng trong biên bản
A4: Công trình | B4: Duan | C4: Nâng cấp đường GTNN vàm Rạch Sung- Ngã ba Bào (Bên phải)
A5: Gói thầu số 06 | B5: Congtrinh | C5: Xây lắp hạng mục đường GTNN và cống ngang đường
A6: Hạng mục | B6: Goithau | C6: Đường GTNT và cống ngang đường
A7: Địa điểm xây dựng | B7: DDXD | C7: Xã Nhơn Nghĩa, huyện Phong Điền, Thành phố Cần Thơ
A8: Hợp đồng XD | B8: Hopdong | C8: 32/2019/HĐXD ngày 24 tháng 12 năm 2019
A9: Hợp đồng thí nghiệm | C9: …...............................................
A10: Địa danh | B10: Diadanh | C10: Phong Điền
A11: Chủ đầu tư | B11: CDT | C11: Ban QLDA và PTQĐ huyện Phong Điền
A12: Ngày bàn giao mặt bằng (*) | C12: 2019-12-25 | D12: Ngày khởi công (*) | E12: =+Ngaynhanmatbang+1 -> 2019-12-26 | F12: Ngày hoàn thành (*) | H12: 2020-08-27
A13: Chủ đầu tư | B13: DD_CDT | C13: =+CDT -> Ban QLDA và PTQĐ huyện Phong Điền
B14: DD_CDT1 | C14: Ông: | D14: Nguyễn Ngọc Tuấn | F14: Chức vụ: | G14: CV_CBGS1 | H14: Giám đốc
B15: DD_CDT2 | C15: Ông: | D15: Nguyễn Anh Khoa | F15: Chức vụ: | G15: CV_CBGS2 | H15: Cán bộ kỹ thuật
B16: DD_CDT3 | C16: Ông: | D16: ……………………….. | F16: Chức vụ: | G16: CV_CBGS3 | H16: …………………
A17: Đơn vị tư vấn giám sát | B17: DVGS | C17: Công ty TNHH Xây dựng HATECCO
B18: CBGS1 | C18: Ông: | D18: ……………………….. | F18: Chức vụ: | G18: CV_CBGS1 | H18: Giám sát trưởng
B19: CBGS2 | C19: Ông: | D19: Phan Văn Chiến | F19: Chức vụ: | G19: CV_CBGS2 | H19: Giám sát viên
B20: CBGS3 | C20: Ông: | D20: ……………………….. | F20: Chức vụ: | G20: CV_CBGS3 | H20: …………………
A21: Liên danh | B21: Liendanh
A22: Đơn vị thi công | B22: DVTC | C22: Liên danh Cty TNHH Trường Phát và Hợp tác xã Xây dựng Thanh Bình
C23: *) Phòng quản lý chất lượng
B24: KCS1 | C24: Ông: | D24: Lê Văn Tân | F24: Chức vụ: | G24: CV_KCS1 | H24: Cán bộ KCS
B25: KCS2 | C25: Ông: | D25: ……………………….. | F25: Chức vụ: | G25: CV_KCS2 | H25: …………………
C26: *)Ban chỉ huy công trình
B27: CBKT1 | C27: Ông: | D27: Võ Đăng Khoa | F27: Chức vụ: | G27: CV_CBKT1 | H27: Đội trưởng đội thi công
B28: CBKT2 | C28: Ông: | D28: Nguyễn Văn Tươi | F28: Chức vụ: | G28: CV_CBKT2 | H28: Kỹ thuật thi công trực tiếp
B29: CBKT3 | C29: Ông: | D29: ……………………….. | F29: Chức vụ: | G29: CV_CBKT3 | H29: ………………………..
C30: *) Người mời nghiệm thu:
B31: NguoiphatphieuYCNT | C31: Ông: | D31: Lê Văn Vụ | F31: Chức vụ: | G31: CV_NguoiphatphieuYCNT | H31: Chỉ huy trưởng công trình
A32: Đơn vị thí nghiệm | B32: DVTN | C32: Công ty TNHH TV ĐT và XD Hòa Bình
C33: Địa chỉ | D33: …..........................
C34: Giấy chứng nhận | D34: …..........................
B35: Nguoi_TN1 | C35: Ông: | D35: Ngũ Thế Nghĩa | F35: Chức vụ: | G35: CV_Thinghiem1 | H35: Trưởng phòng thí nghiệm
B36: Nguoi_TN2 | C36: Bà: | D36: Nguyễn Thị Sơn Lan | F36: Chức vụ: | G36: CV_Thinghiem1 | H36: Thí nghiệm viên
B37: Nguoi_TN3 | C37: Ông: | D37: ……………………….. | F37: Chức vụ: | G37: CV_Thinghiem2 | H37: ………………………..
A38: Đơn vị thiết kế | B38: DVTK | C38: Công ty Cổ phần Tư vấn Thiết kế Xây dựng Nam Việt
B39: GSTG1 | C39: Ông: | D39: ……………………….. | F39: Chức vụ: | G39: CV_GSTG1 | H39: …………………
B40: GSTG2 | C40: Ông: | D40: ……………………….. | F40: Chức vụ: | G40: CV_GSTG2 | H40: …………………
B41: GSTG3 | C41: Ông: | D41: ……………………….. | F41: Chức vụ: | G41: CV_GSTG3 | H41: …………………

Sheet tb_Thoitiet
A1: THÔNG TIN THỜI TIẾT VÀ NHÂN LỰC THI CÔNG
C2: Từ ngày | D2: =Nhattrinh!C3 -> 2019-12-26 | E2: đến | F2: =Thongtin!H12 -> 2020-08-27
A3: (Dữ liệu lấy tại https://www.accuweather.com với trạm Ma Li Chai tỉnh Lai Châu)
A4: Ngày | B4: Nhiệt độ cao/ Nhiệt độ thấp | C4: Nghiệt độ Cao (Trung bình) | D4: Nghiệt độ thấp (Trung bình) | E4: Lượng mưa | F4: Nội dung nghỉ thi công | G4: Thời tiết thi công | H4: Nhân lực
A5: 2019-12-26 | B5: 31° / 24° | C5: 31° | D5: 22° | E5: 0 | G5: Trời nắng | H5: 10 người
A6: 2019-12-27 | B6: 33° / 24° | C6: 31° | D6: 22° | E6: 0 | G6: Trời nắng | H6: =H5 -> 10 người
A7: 2019-12-28 | B7: 31° / 23° | C7: 31° | D7: 21° | E7: 0 | G7: Trời nắng | H7: =H6 -> 10 người
A8: 2019-12-29 | B8: 32° / 22° | C8: 31° | D8: 21° | E8: 0 | G8: Trời nắng | H8: 10 người
A9: 2019-12-30 | B9: 33° / 24° | C9: 31° | D9: 21° | E9: 0 | G9: Trời nắng | H9: 10 người
A10: 2019-12-31 | B10: 34° / 24° | C10: 31° | D10: 21° | E10: 0 | G10: Trời nắng | H10: 20 người
A11: 2020-01-01 | B11: 35° / 22° | C11: 31° | D11: 21° | E11: 0 | F11: Công trình nghỉ Tết dương lịch | G11: Trời nắng | H11: =H10 -> 20 người
A12: 2020-01-02 | B12: 35° / 23° | C12: 31° | D12: 21° | E12: 0 | G12: Trời nắng | H12: =H11 -> 20 người
A13: 2020-01-03 | B13: 34° / 24° | C13: 31° | D13: 21° | E13: 0 | G13: Trời nắng | H13: 20 người
A14: 2020-01-04 | B14: 33° / 24° | C14: 31° | D14: 21° | E14: 0 | G14: Trời nắng | H14: 20 người
A15: 2020-01-05 | B15: 33° / 23° | C15: 31° | D15: 21° | E15: 0 | G15: Trời nắng | H15: 20 người
A16: 2020-01-06 | B16: 34° / 23° | C16: 31° | D16: 21° | E16: 0 | G16: Trời nắng | H16: 20 người
A17: 2020-01-07 | B17: 35° / 24° | C17: 31° | D17: 21° | E17: 0 | G17: Trời nắng | H17: 20 người
A18: 2020-01-08 | B18: 35° / 25° | C18: 31° | D18: 21° | E18: 0.5 | G18: Trời nắng | H18: 20 người
A19: 2020-01-09 | B19: 35° / 24° | C19: 31° | D19: 21° | E19: 0 | G19: Trời nắng | H19: 20 người
A20: 2020-01-10 | B20: 34° / 24° | C20: 32° | D20: 21° | E20: 0 | G20: Trời nắng | H20: 20 người
A21: 2020-01-11 | B21: 32° / 24° | C21: 32° | D21: 21° | E21: 0 | G21: Trời nắng | H21: 20 người
A22: 2020-01-12 | B22: 32° / 24° | C22: 32° | D22: 21° | E22: 0.3 | G22: Trời nắng | H22: 20 người
A23: 2020-01-13 | B23: 34° / 23° | C23: 32° | D23: 21° | E23: 0 | G23: Trời nắng | H23: 20 người
A24: 2020-01-14 | B24: 34° / 23° | C24: 32° | D24: 21° | E24: 0 | G24: Trời nắng | H24: 20 người
A25: 2020-01-15 | B25: 34° / 22° | C25: 32° | D25: 21° | E25: 0 | G25: Trời nắng | H25: 20 người
A26: 2020-01-16 | B26: 34° / 23° | C26: 32° | D26: 21° | E26: 0 | G26: Trời nắng | H26: 20 người
A27: 2020-01-17 | B27: 34° / 24° | C27: 32° | D27: 21° | E27: 0 | G27: Trời nắng | H27: 20 người
A28: 2020-01-18 | B28: 32° / 24° | C28: 32° | D28: 21° | E28: 0 | G28: Trời nắng | H28: 20 người
A29: 2020-01-19 | B29: 34° / 23° | C29: 32° | D29: 21° | E29: 0 | G29: Trời nắng | H29: 20 người
A30: 2020-01-20 | B30: 34° / 23° | C30: 32° | D30: 21° | E30: 0 | G30: Trời nắng | H30: 20 người
A31: 2020-01-21 | B31: 35° / 25° | C31: 32° | D31: 21° | E31: 0 | G31: Trời nắng | H31: 20 người
A32: 2020-01-22 | B32: 34° / 24° | C32: 32° | D32: 21° | E32: 0 | F32: Công trình nghỉ Tết nguyên đán | G32: Trời nắng | H32: 20 người
A33: 2020-01-23 | B33: 34° / 25° | C33: 32° | D33: 21° | E33: 0 | F33: Công trình nghỉ Tết nguyên đán | G33: Trời nắng | H33: 20 người
A34: 2020-01-24 | B34: 35° / 23° | C34: 32° | D34: 21° | E34: 0 | F34: Công trình nghỉ Tết nguyên đán | G34: Trời nắng | H34: 20 người
A35: 2020-01-25 | B35: 33° / 25° | C35: 32° | D35: 21° | E35: 0 | F35: Công trình nghỉ Tết nguyên đán | G35: Trời nắng | H35: 20 người
A36: 2020-01-26 | B36: 33° / 24° | C36: 32° | D36: 21° | E36: 0 | F36: Công trình nghỉ Tết nguyên đán | G36: Trời nắng | H36: 20 người
A37: 2020-01-27 | B37: 32° / 25° | C37: 32° | D37: 21° | E37: 0 | F37: Công trình nghỉ Tết nguyên đán | G37: Trời nắng | H37: 20 người
A38: 2020-01-28 | B38: 32° / 24° | C38: 32° | D38: 21° | E38: 0 | F38: Công trình nghỉ Tết nguyên đán | G38: Trời nắng | H38: 20 người
A39: 2020-01-29 | B39: 33° / 24° | C39: 32° | D39: 21° | E39: 0 | F39: Công trình nghỉ Tết nguyên đán | G39: Trời nắng | H39: 20 người
A40: 2020-01-30 | B40: 33° / 24° | C40: 32° | D40: 21° | E40: 0 | F40: Công trình nghỉ Tết nguyên đán | G40: Trời nắng | H40: 20 người
A41: 2020-01-31 | B41: 31° / 23° | C41: 32° | D41: 21° | E41: 0 | F41: Công trình nghỉ Tết nguyên đán | G41: Trời nắng | H41: 20 người
A42: 2020-02-01 | B42: 32° / 24° | C42: 32° | D42: 21° | E42: 0 | F42: Công trình nghỉ Tết nguyên đán | G42: Trời nắng | H42: 20 người
A43: 2020-02-02 | B43: 32° / 22° | C43: 32° | D43: 21° | E43: 0 | F43: Công trình nghỉ Tết nguyên đán | G43: Trời nắng | H43: 20 người
A44: 2020-02-03 | B44: 33° / 21° | C44: 32° | D44: 22° | E44: 0 | G44: Trời nắng | H44: 20 người
A45: 2020-02-04 | B45: 35° / 22° | C45: 32° | D45: 22° | E45: 0 | G45: Trời nắng | H45: 20 người
A46: 2020-02-05 | B46: 34° / 22° | C46: 32° | D46: 22° | E46: 0 | G46: Trời nắng | H46: 20 người
A47: 2020-02-06 | B47: 32° / 22° | C47: 32° | D47: 22° | E47: 0 | G47: Trời nắng | H47: 20 người
A48: 2020-02-07 | B48: 35° / 23° | C48: 32° | D48: 22° | E48: 0 | G48: Trời nắng | H48: 20 người
A49: 2020-02-08 | B49: 35° / 22° | C49: 32° | D49: 22° | E49: 0 | G49: Trời nắng | H49: 20 người
A50: 2020-02-09 | B50: 32° / 25° | C50: 33° | D50: 22° | E50: 0 | G50: Trời nắng | H50: 20 người
A51: 2020-02-10 | B51: 33° / 23° | C51: 33° | D51: 22° | E51: 0 | G51: Trời nắng | H51: 20 người
A52: 2020-02-11 | B52: 35° / 23° | C52: 33° | D52: 22° | E52: 0 | G52: Trời nắng | H52: 20 người
A53: 2020-02-12 | B53: 35° / 26° | C53: 33° | D53: 22° | E53: 0 | G53: Trời nắng | H53: 20 người
A54: 2020-02-13 | B54: 35° / 26° | C54: 33° | D54: 22° | E54: 0 | G54: Trời nắng | H54: 20 người
A55: 2020-02-14 | B55: 32° / 25° | C55: 33° | D55: 22° | E55: 0 | G55: Trời nắng | H55: 20 người
A56: 2020-02-15 | B56: 32° / 25° | C56: 33° | D56: 22° | E56: 0 | G56: Trời nắng | H56: 20 người
A57: 2020-02-16 | B57: 35° / 24° | C57: 33° | D57: 22° | E57: 0 | G57: Trời nắng | H57: 20 người
A58: 2020-02-17 | B58: 36° / 24° | C58: 33° | D58: 22° | E58: 0 | G58: Trời nắng | H58: 20 người
A59: 2020-02-18 | B59: 33° / 25° | C59: 33° | D59: 22° | E59: 0 | G59: Trời nắng | H59: 20 người
A60: 2020-02-19 | B60: 35° / 22° | C60: 33° | D60: 22° | E60: 0 | G60: Trời nắng | H60: 20 người
A61: 2020-02-20 | B61: 34° / 23° | C61: 33° | D61: 22° | E61: 0 | G61: Trời nắng | H61: 20 người
A62: 2020-02-21 | B62: 35° / 23° | C62: 33° | D62: 22° | E62: 0 | G62: Trời nắng | H62: 20 người
A63: 2020-02-22 | B63: 35° / 22° | C63: 33° | D63: 22° | E63: 0 | G63: Trời nắng | H63: 20 người
A64: 2020-02-23 | B64: 35° / 23° | C64: 33° | D64: 22° | E64: 0 | G64: Trời nắng | H64: 20 người
A65: 2020-02-24 | B65: 35° / 22° | C65: 33° | D65: 22° | E65: 0 | G65: Trời nắng | H65: 20 người
A66: 2020-02-25 | B66: 34° / 23° | C66: 33° | D66: 22° | E66: 0 | G66: Trời nắng | H66: 20 người
A67: 2020-02-26 | B67: 36° / 24° | C67: 33° | D67: 22° | E67: 0 | G67: Trời nắng | H67: 20 người
A68: 2020-02-27 | B68: 35° / 24° | C68: 33° | D68: 22° | E68: 0 | G68: Trời nắng | H68: 20 người
A69: 2020-02-28 | B69: 35° / 23° | C69: 33° | D69: 22° | E69: 0 | G69: Trời nắng | H69: 20 người
A70: 2020-02-29 | B70: 34° / 25° | C70: 33° | D70: 22° | E70: 0 | G70: Trời nắng | H70: 20 người
A71: 2020-03-01 | B71: 35° / 26° | C71: 33° | D71: 22° | E71: 0 | G71: Trời nắng | H71: 20 người
A72: 2020-03-02 | B72: 36° / 26° | C72: 33° | D72: 23° | E72: 0 | G72: Trời nắng | H72: 20 người
A73: 2020-03-03 | B73: 35° / 26° | C73: 33° | D73: 23° | E73: 0 | G73: Trời nắng | H73: 20 người
A74: 2020-03-04 | B74: 34° / 26° | C74: 33° | D74: 23° | E74: 0 | G74: Trời nắng | H74: 20 người
A75: 2020-03-05 | B75: 34° / 26° | C75: 34° | D75: 23° | E75: 0 | G75: Trời nắng | H75: 20 người
A76: 2020-03-06 | B76: 34° / 26° | C76: 34° | D76: 23° | E76: 0 | G76: Trời nắng | H76: =H75 -> 20 người
A77: 2020-03-07 | B77: 35° / 26° | C77: 34° | D77: 23° | E77: 0 | G77: Trời nắng | H77: 20 người
A78: 2020-03-08 | B78: 35° / 26° | C78: 34° | D78: 23° | E78: 0 | G78: Trời nắng | H78: 20 người
A79: 2020-03-09 | B79: 35° / 27° | C79: 34° | D79: 23° | E79: 0 | G79: Trời nắng | H79: 20 người
A80: 2020-03-10 | B80: 35° / 27° | C80: 34° | D80: 23° | E80: 0 | G80: Trời nắng | H80: 20 người
A81: 2020-03-11 | B81: 33° / 27° | C81: 34° | D81: 23° | E81: 0 | G81: Trời nắng | H81: 20 người
A82: 2020-03-12 | B82: 36° / 26° | C82: 34° | D82: 23° | E82: 0 | G82: Trời nắng | H82: 20 người
A83: 2020-03-13 | B83: 35° / 26° | C83: 34° | D83: 23° | E83: 0 | G83: Trời nắng | H83: 20 người
A84: 2020-03-14 | B84: 34° / 27° | C84: 34° | D84: 23° | E84: 0 | G84: Trời nắng | H84: 20 người
A85: 2020-03-15 | B85: 36° / 26° | C85: 34° | D85: 23° | E85: 0 | G85: Trời nắng | H85: 20 người
A86: 2020-03-16 | B86: 37° / 26° | C86: 34° | D86: 23° | E86: 0 | G86: Trời nắng | H86: 20 người
A87: 2020-03-17 | B87: 36° / 26° | C87: 34° | D87: 23° | E87: 0 | G87: Trời nắng | H87: 20 người
A88: 2020-03-18 | B88: 35° / 26° | C88: 34° | D88: 23° | E88: 0 | G88: Trời nắng | H88: 20 người
A89: 2020-03-19 | B89: 35° / 27° | C89: 34° | D89: 23° | E89: 0 | G89: Trời nắng | H89: 20 người
A90: 2020-03-20 | B90: 34° / 26° | C90: 34° | D90: 24° | E90: 0 | G90: Trời nắng | H90: 20 người
A91: 2020-03-21 | B91: 35° / 26° | C91: 34° | D91: 24° | E91: 0 | G91: Trời nắng | H91: 20 người
A92: 2020-03-22 | B92: 34° / 26° | C92: 34° | D92: 24° | E92: 0 | G92: Trời nắng | H92: 20 người
A93: 2020-03-23 | B93: 34° / 27° | C93: 34° | D93: 24° | E93: 0 | G93: Trời nắng | H93: 20 người
A94: 2020-03-24 | B94: 34° / 26° | C94: 34° | D94: 24° | E94: 0 | G94: Trời nắng | H94: 20 người
A95: 2020-03-25 | B95: 35° / 27° | C95: 34° | D95: 24° | E95: 0 | G95: Trời nắng | H95: 20 người
A96: 2020-03-26 | B96: 34° / 27° | C96: 34° | D96: 24° | E96: 0 | G96: Trời nắng | H96: 20 người
A97: 2020-03-27 | B97: 35° / 26° | C97: 34° | D97: 24° | E97: 0 | G97: Trời nắng | H97: 20 người
A98: 2020-03-28 | B98: 33° / 27° | C98: 34° | D98: 24° | E98: 0 | G98: Trời nắng | H98: 20 người
A99: 2020-03-29 | B99: 35° / 27° | C99: 34° | D99: 24° | E99: 0 | G99: Trời nắng | H99: 20 người
A100: 2020-03-30 | B100: 35° / 27° | C100: 34° | D100: 24° | E100: 0 | G100: Trời nắng | H100: 20 người
A101: 2020-03-31 | B101: 35° / 27° | C101: 34° | D101: 24° | E101: 0 | G101: Trời nắng | H101: 20 người
A102: 2020-04-01 | B102: 35° / 27° | C102: 34° | D102: 24° | E102: 0 | G102: Trời nắng | H102: 20 người
A103: 2020-04-02 | B103: 36° / 27° | C103: 34° | D103: 24° | E103: 0 | G103: Trời nắng | H103: 20 người
A104: 2020-04-03 | B104: 37° / 28° | C104: 35° | D104: 24° | E104: 0 | G104: Trời nắng | H104: 20 người
A105: 2020-04-04 | B105: 36° / 27° | C105: 35° | D105: 24° | E105: 0 | G105: Trời nắng | H105: 20 người
A106: 2020-04-05 | B106: 38° / 27° | C106: 35° | D106: 24° | E106: 0 | G106: Trời nắng | H106: 20 người
A107: 2020-04-06 | B107: 35° / 27° | C107: 35° | D107: 24° | E107: 0 | G107: Trời nắng | H107: 20 người
A108: 2020-04-07 | B108: 34° / 28° | C108: 35° | D108: 24° | E108: 0 | G108: Trời nắng | H108: 20 người
A109: 2020-04-08 | B109: 34° / 27° | C109: 35° | D109: 24° | E109: 0 | G109: Trời nắng | H109: 20 người
A110: 2020-04-09 | B110: 35° / 26° | C110: 35° | D110: 24° | E110: 0 | G110: Trời nắng | H110: 20 người
A111: 2020-04-10 | B111: 35° / 26° | C111: 35° | D111: 24° | E111: 0 | G111: Trời nắng | H111: 20 người
A112: 2020-04-11 | B112: 33° / 27° | C112: 35° | D112: 24° | E112: 0 | G112: Trời nắng | H112: 20 người
A113: 2020-04-12 | B113: 34° / 28° | C113: 35° | D113: 24° | E113: 0 | G113: Trời nắng | H113: 20 người
A114: 2020-04-13 | B114: 31° / 26° | C114: 35° | D114: 24° | E114: 0 | G114: Trời nắng | H114: 20 người
A115: 2020-04-14 | B115: 34° / 26° | C115: 35° | D115: 24° | E115: 0 | G115: Trời nắng | H115: 20 người
A116: 2020-04-15 | B116: 35° / 25° | C116: 35° | D116: 24° | E116: 0 | G116: Trời nắng | H116: 20 người
A117: 2020-04-16 | B117: 35° / 26° | C117: 35° | D117: 24° | E117: 0 | G117: Trời nắng | H117: 20 người
A118: 2020-04-17 | B118: 35° / 27° | C118: 35° | D118: 24° | E118: 0 | G118: Trời nắng | H118: 20 người
A119: 2020-04-18 | B119: 35° / 26° | C119: 35° | D119: 24° | E119: 0 | G119: Trời nắng | H119: 20 người
A120: 2020-04-19 | B120: 35° / 27° | C120: 35° | D120: 24° | E120: 0 | G120: Trời nắng | H120: 20 người
A121: 2020-04-20 | B121: 36° / 28° | C121: 35° | D121: 24° | E121: 0 | G121: Trời nắng | H121: 20 người
A122: 2020-04-21 | B122: 37° / 27° | C122: 35° | D122: 24° | E122: 0 | G122: Trời nắng | H122: 20 người
A123: 2020-04-22 | B123: 35° / 27° | C123: 35° | D123: 24° | E123: 0 | G123: Trời nắng | H123: 20 người
A124: 2020-04-23 | B124: 37° / 29° | C124: 35° | D124: 24° | E124: 0 | G124: Trời nắng | H124: 20 người
A125: 2020-04-24 | B125: 37° / 27° | C125: 34° | D125: 24° | E125: 0 | G125: Trời nắng | H125: 20 người
A126: 2020-04-25 | B126: 37° / 25° | C126: 34° | D126: 24° | E126: 0 | G126: Trời nắng | H126: 20 người
A127: 2020-04-26 | B127: 35° / 25° | C127: 34° | D127: 24° | E127: 0 | G127: Trời nắng | H127: 20 người
A128: 2020-04-27 | B128: 35° / 25° | C128: 34° | D128: 24° | E128: 0 | G128: Trời nắng | H128: 20 người
A129: 2020-04-28 | B129: 36° / 26° | C129: 34° | D129: 24° | E129: 0 | G129: Trời nắng | H129: 20 người
A130: 2020-04-29 | B130: 36° / 26° | C130: 34° | D130: 24° | E130: 0 | G130: Trời nắng | H130: 20 người
A131: 2020-04-30 | B131: 36° / 27° | C131: 34° | D131: 24° | E131: 0 | F131: Công trình nghỉ Giải phóng Miền Nam | G131: Trời nắng | H131: 20 người
A132: 2020-05-01 | B132: 36° / 27° | C132: 34° | D132: 24° | E132: 0 | F132: Công trình nghỉ Quốc tế lao động | G132: Trời nắng | H132: 20 người
A133: 2020-05-02 | B133: 34° / 28° | C133: 34° | D133: 24° | E133: 0 | G133: Trời nắng | H133: 20 người
A134: 2020-05-03 | B134: 36° / 28° | C134: 34° | D134: 24° | E134: 0 | G134: Trời nắng | H134: 20 người
A135: 2020-05-04 | B135: 35° / 28° | C135: 34° | D135: 24° | E135: 0 | G135: Trời nắng | H135: 20 người
A136: 2020-05-05 | B136: 36° / 29° | C136: 34° | D136: 24° | E136: 0 | G136: Trời nắng | H136: 20 người
A137: 2020-05-06 | B137: 36° / 29° | C137: 34° | D137: 24° | E137: 0 | G137: Trời nắng | H137: 20 người
A138: 2020-05-07 | B138: 35° / 28° | C138: 34° | D138: 24° | E138: 0 | G138: Trời nắng | H138: 20 người
A139: 2020-05-08 | B139: 36° / 29° | C139: 34° | D139: 24° | E139: 0 | G139: Trời nắng | H139: 20 người
A140: 2020-05-09 | B140: 37° / 29° | C140: 34° | D140: 24° | E140: 0 | G140: Trời nắng | H140: =H139 -> 20 người
A141: 2020-05-10 | B141: 36° / 29° | C141: 34° | D141: 24° | E141: 0 | G141: Trời nắng | H141: 20 người
A142: 2020-05-11 | B142: 36° / 30° | C142: 34° | D142: 24° | E142: 0 | G142: Trời nắng | H142: 20 người
A143: 2020-05-12 | B143: 37° / 29° | C143: 34° | D143: 24° | E143: 0 | G143: Trời nắng | H143: 20 người
A144: 2020-05-13 | B144: 37° / 29° | C144: 34° | D144: 24° | E144: 0 | G144: Trời nắng | H144: 20 người
A145: 2020-05-14 | B145: 37° / 29° | C145: 33° | D145: 24° | E145: 0 | G145: Trời nắng | H145: 20 người
A146: 2020-05-15 | B146: 36° / 29° | C146: 33° | D146: 24° | E146: 0 | G146: Trời nắng | H146: 20 người
A147: 2020-05-16 | B147: 36° / 25° | C147: 33° | D147: 24° | E147: 0 | G147: Trời nắng | H147: 20 người
A148: 2020-05-17 | B148: 36° / 29° | C148: 33° | D148: 24° | E148: 0 | G148: Trời nắng | H148: 20 người
A149: 2020-05-18 | B149: 37° / 28° | C149: 33° | D149: 24° | E149: 0 | G149: Trời nắng | H149: 20 người
A150: 2020-05-19 | B150: 38° / 25° | C150: 33° | D150: 24° | E150: 0 | G150: Trời nắng | H150: 20 người
A151: 2020-05-20 | B151: 33° / 27° | C151: 33° | D151: 24° | E151: 0 | G151: Trời nắng | H151: 20 người
A152: 2020-05-21 | B152: 36° / 26° | C152: 33° | D152: 24° | E152: 0 | G152: Trời nắng | H152: 20 người
A153: 2020-05-22 | B153: 36° / 28° | C153: 33° | D153: 24° | E153: 0 | G153: Trời nắng | H153: 20 người
A154: 2020-05-23 | B154: 33° / 27° | C154: 33° | D154: 24° | E154: 0 | G154: Trời nắng | H154: 20 người
A155: 2020-05-24 | B155: 35° / 27° | C155: 33° | D155: 24° | E155: 0 | G155: Trời nắng | H155: 20 người
A156: 2020-05-25 | B156: 35° / 26° | C156: 33° | D156: 24° | E156: 0 | G156: Trời nắng | H156: 20 người
A157: 2020-05-26 | B157: 36° / 26° | C157: 33° | D157: 24° | E157: 0 | G157: Trời nắng | H157: 20 người
A158: 2020-05-27 | B158: 35° / 23° | C158: 33° | D158: 24° | E158: 0 | G158: Trời nắng | H158: 20 người
A159: 2020-05-28 | B159: 34° / 27° | C159: 33° | D159: 24° | E159: 0 | G159: Trời nắng | H159: 20 người
A160: 2020-05-29 | B160: 34° / 26° | C160: 33° | D160: 24° | E160: 0 | G160: Trời nắng | H160: 20 người
A161: 2020-05-30 | B161: 34° / 25° | C161: 33° | D161: 24° | E161: 0 | G161: Trời nắng | H161: 20 người
A162: 2020-05-31 | B162: 33° / 26° | C162: 32° | D162: 24° | E162: 0 | G162: Trời nắng | H162: 20 người
A163: 2020-06-01 | B163: 36° / 24° | C163: 32° | D163: 24° | E163: 0 | G163: Trời nắng | H163: 20 người
A164: 2020-06-02 | B164: 33° / 24° | C164: 32° | D164: 24° | E164: 0 | G164: Trời nắng | H164: 20 người
A165: 2020-06-03 | B165: 35° / 25° | C165: 32° | D165: 24° | E165: 0 | G165: Trời nắng | H165: 20 người
A166: 2020-06-04 | B166: 33° / 25° | C166: 32° | D166: 24° | E166: 0 | G166: Trời nắng | H166: 20 người
A167: 2020-06-05 | B167: 33° / 25° | C167: 32° | D167: 24° | E167: 0 | G167: Trời nắng | H167: 20 người
A168: 2020-06-06 | B168: 32° / 26° | C168: 32° | D168: 24° | E168: 0 | G168: Trời nắng | H168: 20 người
A169: 2020-06-07 | B169: 35° / 27° | C169: 32° | D169: 24° | E169: 0 | G169: Trời nắng | H169: 20 người
A170: 2020-06-08 | B170: 35° / 26° | C170: 32° | D170: 24° | E170: 0 | G170: Trời nắng | H170: 20 người
A171: 2020-06-09 | B171: 34° / 24° | C171: 32° | D171: 24° | E171: 0 | G171: Trời nắng | H171: 20 người
A172: 2020-06-10 | B172: 32° / 25° | C172: 32° | D172: 24° | E172: 0 | G172: Trời nắng | H172: 20 người
A173: 2020-06-11 | B173: 32° / 25° | C173: 32° | D173: 24° | E173: 0 | G173: Trời nắng | H173: 20 người
A174: 2020-06-12 | B174: 34° / 25° | C174: 32° | D174: 24° | E174: 0 | G174: Trời nắng | H174: 20 người
A175: 2020-06-13 | B175: 35° / 25° | C175: 32° | D175: 24° | E175: 0 | G175: Trời nắng | H175: 20 người
A176: 2020-06-14 | B176: 32° / 25° | C176: 32° | D176: 24° | E176: 0 | G176: Trời nắng | H176: 20 người
A177: 2020-06-15 | B177: 33° / 25° | C177: 32° | D177: 24° | E177: 0 | G177: Trời nắng | H177: 20 người
A178: 2020-06-16 | B178: 33° / 24° | C178: 32° | D178: 24° | E178: 0 | G178: Trời nắng | H178: 20 người
A179: 2020-06-17 | B179: 34° / 25° | C179: 32° | D179: 24° | E179: 0 | G179: Trời nắng | H179: 20 người
A180: 2020-06-18 | B180: 35° / 26° | C180: 32° | D180: 24° | E180: 0 | G180: Trời nắng | H180: 20 người
A181: 2020-06-19 | B181: 34° / 27° | C181: 32° | D181: 24° | E181: 0 | G181: Trời nắng | H181: 20 người
A182: 2020-06-20 | B182: 35° / 26° | C182: 32° | D182: 24° | E182: 0 | G182: Trời nắng | H182: 20 người
A183: 2020-06-21 | B183: 33° / 25° | C183: 32° | D183: 24° | E183: 0 | G183: Trời nắng | H183: 20 người
A184: 2020-06-22 | B184: 34° / 25° | C184: 32° | D184: 24° | E184: 0 | G184: Trời nắng | H184: 20 người
A185: 2020-06-23 | B185: 35° / 26° | C185: 32° | D185: 24° | E185: 0 | G185: Trời nắng | H185: 20 người
A186: 2020-06-24 | B186: 35° / 25° | C186: 32° | D186: 24° | E186: 0 | G186: Trời nắng | H186: 20 người
A187: 2020-06-25 | B187: 32° / 25° | C187: 32° | D187: 24° | E187: 0 | G187: Trời nắng | H187: 20 người
A188: 2020-06-26 | B188: 34° / 25° | C188: 32° | D188: 24° | E188: 0 | G188: Trời nắng | H188: 20 người
A189: 2020-06-27 | B189: 33° / 25° | C189: 32° | D189: 24° | E189: 0 | G189: Trời nắng | H189: 20 người
A190: 2020-06-28 | B190: 32° / 25° | C190: 31° | D190: 24° | E190: 0 | G190: Trời nắng | H190: 20 người
A191: 2020-06-29 | B191: 30° / 24° | C191: 31° | D191: 24° | E191: 0 | G191: Trời nắng | H191: 20 người
A192: 2020-06-30 | B192: 31° / 25° | C192: 31° | D192: 24° | E192: 0 | G192: Trời nắng | H192: 20 người
A193: 2020-07-01 | B193: 32° / 25° | C193: 31° | D193: 24° | E193: 0 | G193: Trời nắng | H193: 20 người
A194: 2020-07-02 | B194: 32° / 24° | C194: 31° | D194: 24° | E194: 0 | G194: Trời nắng | H194: 20 người
A195: 2020-07-03 | B195: 29° / 25° | C195: 31° | D195: 24° | E195: 0 | G195: Trời nắng | H195: 20 người
A196: 2020-07-04 | B196: 33° / 26° | C196: 31° | D196: 24° | E196: 0 | G196: Trời nắng | H196: 20 người
A197: 2020-07-05 | B197: 33° / 24° | C197: 31° | D197: 24° | E197: 0 | G197: Trời nắng | H197: 20 người
A198: 2020-07-06 | B198: 30° / 26° | C198: 31° | D198: 24° | E198: 0 | G198: Trời nắng | H198: 20 người
A199: 2020-07-07 | B199: 33° / 27° | C199: 31° | D199: 24° | E199: 0 | G199: Trời nắng | H199: 20 người
A200: 2020-07-08 | B200: 31° / 24° | C200: 31° | D200: 24° | E200: 0 | G200: Trời nắng | H200: 20 người
... 41 more rows

Sheet DataWeather
A1: Tỉnh | B1: Trạm | C1: LinK
A2: Lai Châu | B2: Bản Chêng Nươ | C2: https://www.accuweather.com/vi/vn/ban-cheng-nuo/354276 | R2: Bản Chêng Nươ
B3: Bản Ko La | C3: https://www.accuweather.com/vi/vn/ban-ko-la/354278 | R3: Bản Ko La
B4: Bản Nam Che | C4: https://www.accuweather.com/vi/vn/ban-nam-che/354279 | R4: Bản Nam Che
B5: Bản Năm Mương | C5: https://www.accuweather.com/vi/vn/ban-nam-muong/354280 | R5: Bản Năm Mương
B6: Bản Pa Thắng | C6: https://www.accuweather.com/vi/vn/ban-pa-thang/354281 | R6: Bản Pa Thắng
B7: Lai Châu | C7: https://www.accuweather.com/vi/vn/lai-chau/353000 | R7: Lai Châu
B8: Ma Li Chai | C8: https://www.accuweather.com/vi/vn/ma-li-chai/354282 | R8: Ma Li Chai
B9: Mường Boum | C9: https://www.accuweather.com/vi/vn/muong-boum/354283 | R9: Mường Boum
B10: Mường Tè | C10: https://www.accuweather.com/vi/vn/muong-te/354284 | R10: Mường Tè
B11: Nam Bôn | C11: https://www.accuweather.com/vi/vn/nam-bon/354285 | R11: Nam Bôn
B12: Phong Thổ | C12: https://www.accuweather.com/vi/vn/phong-tho/354286 | R12: Phong Thổ
A13: Lào Cai | B13: Bắc Hà | C13: https://www.accuweather.com/vi/vn/bac-ha/354306 | R13: Bắc Hà
B14: Bản Kung | C14: https://www.accuweather.com/vi/vn/ban-kung/354313 | R14: Bản Kung
B15: Bản La | C15: https://www.accuweather.com/vi/vn/ban-la/354314 | R15: Bản La
B16: Bản Xèo | C16: https://www.accuweather.com/vi/vn/ban-xeo/354315 | R16: Bản Xèo
B17: Bảo Yên | C17: https://www.accuweather.com/vi/vn/bao-yen/354307 | R17: Bảo Yên
B18: Cam Đường | C18: https://www.accuweather.com/vi/vn/cam-duong/354308 | R18: Cam Đường
B19: Cha Pai | C19: https://www.accuweather.com/vi/vn/cha-pai/354309 | R19: Cha Pai
B20: Cốc Lếu | C20: https://www.accuweather.com/vi/vn/coc-leu/428001 | R20: Cốc Lếu
B21: Hà Nam | C21: https://www.accuweather.com/vi/vn/ha-nam/354310 | R21: Hà Nam
B22: Lào Cai | C22: https://www.accuweather.com/vi/vn/lao-cai/354305 | R22: Lào Cai
B23: Mường Bo | C23: https://www.accuweather.com/vi/vn/muong-bo/354317 | R23: Mường Bo
B24: Nam Bai | C24: https://www.accuweather.com/vi/vn/nam-bai/354318 | R24: Nam Bai
B25: Nam Khap Ban Tang | C25: https://www.accuweather.com/vi/vn/nam-khap-ban-tang/354319 | R25: Nam Khap Ban Tang
B26: Pắc Tà | C26: https://www.accuweather.com/vi/vn/pac-ta/354311 | R26: Pắc Tà
B27: Pắc Tà | C27: https://www.accuweather.com/vi/vn/pac-ta/354312 | R27: Pắc Tà
B28: Phố Lu | C28: https://www.accuweather.com/vi/vn/pho-lu/354322 | R28: Phố Lu
B29: Văn Bàn | C29: https://www.accuweather.com/vi/vn/van-ban/354323 | R29: Văn Bàn
A30: Hà Giang | B30: Bắc Ba | C30: https://www.accuweather.com/vi/vn/bac-ba/353390 | R30: Bắc Ba
B31: Bắc Mé | C31: https://www.accuweather.com/vi/vn/bac-me/353391 | R31: Bắc Mé
B32: Bắc Quang | C32: https://www.accuweather.com/vi/vn/bac-quang/353392 | R32: Bắc Quang
B33: Bản Thuy | C33: https://www.accuweather.com/vi/vn/ban-thuy/353393 | R33: Bản Thuy
B34: Bản Vai | C34: https://www.accuweather.com/vi/vn/ban-vai/353394 | R34: Bản Vai
B35: Ch` Kem | C35: https://www.accuweather.com/vi/vn/cho-kem/353395 | R35: Ch` Kem
B36: Hà Giang | C36: https://www.accuweather.com/vi/vn/ha-giang/353389 | R36: Hà Giang
B37: Làng Cay | C37: https://www.accuweather.com/vi/vn/lang-cay/353396 | R37: Làng Cay
B38: Loung Hoa | C38: https://www.accuweather.com/vi/vn/loung-hoa/353397 | R38: Loung Hoa
B39: Mèo Vạc | C39: https://www.accuweather.com/vi/vn/meo-vac/353403 | R39: Mèo Vạc
B40: Nam Ric | C40: https://www.accuweather.com/vi/vn/nam-ric/353398 | R40: Nam Ric
B41: Tchoung Sao | C41: https://www.accuweather.com/vi/vn/tchoung-sao/353399 | R41: Tchoung Sao
B42: Thanh Thủy | C42: https://www.accuweather.com/vi/vn/thanh-thuy/353400 | R42: Thanh Thủy
B43: Vĩnh Tuy | C43: https://www.accuweather.com/vi/vn/vinh-tuy/353401 | R43: Vĩnh Tuy
B44: Yên Bình Xã | C44: https://www.accuweather.com/vi/vn/yen-binh-xa/353402 | R44: Yên Bình Xã
A45: Cao Bằng | B45: Bản Cao | C45: https://www.accuweather.com/vi/vn/ban-cao/352514 | R45: Bản Cao
B46: Bản Đuông | C46: https://www.accuweather.com/vi/vn/ban-duong/352513 | R46: Bản Đuông
B47: Bản Giam | C47: https://www.accuweather.com/vi/vn/ban-giam/352515 | R47: Bản Giam
B48: Cao Bằng | C48: https://www.accuweather.com/vi/vn/cao-bang/352511 | R48: Cao Bằng
B49: Hạ Lang | C49: https://www.accuweather.com/vi/vn/ha-lang/352525 | R49: Hạ Lang
B50: Khau Khang | C50: https://www.accuweather.com/vi/vn/khau-khang/352516 | R50: Khau Khang
B51: Làng Đến | C51: https://www.accuweather.com/vi/vn/lang-den/352517 | R51: Làng Đến
B52: Na Giao | C52: https://www.accuweather.com/vi/vn/na-giao/352518 | R52: Na Giao
B53: Na Loung | C53: https://www.accuweather.com/vi/vn/na-loung/352519 | R53: Na Loung
B54: Na Young | C54: https://www.accuweather.com/vi/vn/na-young/352520 | R54: Na Young
B55: Nam Lang | C55: https://www.accuweather.com/vi/vn/nam-lang/352521 | R55: Nam Lang
B56: Nam Nhung | C56: https://www.accuweather.com/vi/vn/nam-nhung/352522 | R56: Nam Nhung
B57: Pac Boc | C57: https://www.accuweather.com/vi/vn/pac-boc/352512 | R57: Pac Boc
B58: Quang Dau | C58: https://www.accuweather.com/vi/vn/quang-dau/352524 | R58: Quang Dau
A59: Sơn La | B59: Bản Lót | C59: https://www.accuweather.com/vi/vn/ban-lot/355948 | R59: Bản Lót
B60: Bản Na Tong | C60: https://www.accuweather.com/vi/vn/ban-na-tong/355950 | R60: Bản Na Tong
B61: Bản Pho | C61: https://www.accuweather.com/vi/vn/ban-pho/355951 | R61: Bản Pho
B62: Bản Vay | C62: https://www.accuweather.com/vi/vn/ban-vay/355946 | R62: Bản Vay
B63: Bang Beng | C63: https://www.accuweather.com/vi/vn/bang-beng/355952 | R63: Bang Beng
B64: Chiêng Pan | C64: https://www.accuweather.com/vi/vn/chieng-pan/355953 | R64: Chiêng Pan
B65: Lao Phou Van | C65: https://www.accuweather.com/vi/vn/lao-phou-van/355954 | R65: Lao Phou Van
B66: Mường Lèo | C66: https://www.accuweather.com/vi/vn/muong-leo/355955 | R66: Mường Lèo
B67: Quỳnh Nhai | C67: https://www.accuweather.com/vi/vn/quynh-nhai/355956 | R67: Quỳnh Nhai
B68: Sơn La | C68: https://www.accuweather.com/vi/vn/son-la/355945 | R68: Sơn La
B69: Sông Mã | C69: https://www.accuweather.com/vi/vn/song-ma/355947 | R69: Sông Mã
A70: Yên Bái | B70: Ba Khè | C70: https://www.accuweather.com/vi/vn/ba-khe/356427 | R70: Ba Khè
B71: Làng Than | C71: https://www.accuweather.com/vi/vn/lang-than/356428 | R71: Làng Than
B72: Nghĩa Lộ | C72: https://www.accuweather.com/vi/vn/nghia-lo/356429 | R72: Nghĩa Lộ
B73: Phù Hiên | C73: https://www.accuweather.com/vi/vn/phu-hien/356430 | R73: Phù Hiên
B74: Poun Loung | C74: https://www.accuweather.com/vi/vn/poun-loung/356431 | R74: Poun Loung
B75: Trại Hút | C75: https://www.accuweather.com/vi/vn/trai-hut/356432 | R75: Trại Hút
B76: Tú Lệ | C76: https://www.accuweather.com/vi/vn/tu-le/356426 | R76: Tú Lệ
B77: Văn An | C77: https://www.accuweather.com/vi/vn/van-an/356433 | R77: Văn An
B78: Yên Bái | C78: https://www.accuweather.com/vi/vn/yen-bai/356425 | R78: Yên Bái
A79: Tuyên Quang | B79: Bản Cốc | C79: https://www.accuweather.com/vi/vn/ban-coc/356321 | R79: Bản Cốc
B80: Chiêm Hóa | C80: https://www.accuweather.com/vi/vn/chiem-hoa/356323 | R80: Chiêm Hóa
B81: Ðài Th | C81: https://www.accuweather.com/vi/vn/dai-th/356320 | R81: Ðài Th
B82: Dong Tong Băng | C82: https://www.accuweather.com/vi/vn/dong-tong-bang/356324 | R82: Dong Tong Băng
B83: Hàm Yên | C83: https://www.accuweather.com/vi/vn/ham-yen/356325 | R83: Hàm Yên
B84: Hau Chung | C84: https://www.accuweather.com/vi/vn/hau-chung/356326 | R84: Hau Chung
B85: Na Hang | C85: https://www.accuweather.com/vi/vn/na-hang/356327 | R85: Na Hang
B86: Na Koc | C86: https://www.accuweather.com/vi/vn/na-koc/356328 | R86: Na Koc
B87: Tung Muong | C87: https://www.accuweather.com/vi/vn/tung-muong/356329 | R87: Tung Muong
B88: Tuyên Quang | C88: https://www.accuweather.com/vi/vn/tuyen-quang/356319 | R88: Tuyên Quang
A89: Lạng Sơn | B89: Bản Rẽ | C89: https://www.accuweather.com/vi/vn/ban-re/354296 | R89: Bản Rẽ
B90: Con Chon | C90: https://www.accuweather.com/vi/vn/con-chon/354297 | R90: Con Chon
B91: Đồng Đăng | C91: https://www.accuweather.com/vi/vn/dong-dang/354298 | R91: Đồng Đăng
B92: Fac Ta | C92: https://www.accuweather.com/vi/vn/fac-ta/354299 | R92: Fac Ta
B93: Lang Ro | C93: https://www.accuweather.com/vi/vn/lang-ro/354300 | R93: Lang Ro
B94: Lạng Sơn | C94: https://www.accuweather.com/vi/vn/lang-son/354293 | R94: Lạng Sơn
B95: Lộc Bình | C95: https://www.accuweather.com/vi/vn/loc-binh/354301 | R95: Lộc Bình
B96: Na Anh | C96: https://www.accuweather.com/vi/vn/na-anh/354302 | R96: Na Anh
B97: Na Nhiên | C97: https://www.accuweather.com/vi/vn/na-nhien/354295 | R97: Na Nhiên
B98: Na Sầm | C98: https://www.accuweather.com/vi/vn/na-sam/354303 | R98: Na Sầm
B99: Quỳnh Sơn | C99: https://www.accuweather.com/vi/vn/quinh-son/354304 | R99: Quỳnh Sơn
B100: Thất Khê | C100: https://www.accuweather.com/vi/vn/that-khe/354294 | R100: Thất Khê
A101: Quảng Ninh | B101: Cẩm Phả | C101: https://www.accuweather.com/vi/vn/cam-pha/355737 | R101: Cẩm Phả
B102: Ðầm Hà | C102: https://www.accuweather.com/vi/vn/dam-ha/355740 | R102: Ðầm Hà
B103: Ðông Triều | C103: https://www.accuweather.com/vi/vn/dong-trieu/355741 | R103: Ðông Triều
B104: Đồng Vang | C104: https://www.accuweather.com/vi/vn/dong-vang/355742 | R104: Đồng Vang
B105: Hà Đông | C105: https://www.accuweather.com/vi/vn/ha-dong/355743 | R105: Hà Đông
B106: Hạ Long | C106: https://www.accuweather.com/vi/vn/ha-long/355736 | R106: Hạ Long
B107: Kê Phong | C107: https://www.accuweather.com/vi/vn/ke-phong/355744 | R107: Kê Phong
B108: Móng Cái | C108: https://www.accuweather.com/vi/vn/mong-cai/355739 | R108: Móng Cái
B109: Mông Dương | C109: https://www.accuweather.com/vi/vn/mong-duong/355745 | R109: Mông Dương
B110: Na Thiêm | C110: https://www.accuweather.com/vi/vn/na-thiem/355746 | R110: Na Thiêm
B111: Quảng Hà | C111: https://www.accuweather.com/vi/vn/quang-hoai/355747 | R111: Quảng Hà
B112: Quảng Yên | C112: https://www.accuweather.com/vi/vn/quang-yen/355748 | R112: Quảng Yên
B113: Than Poun | C113: https://www.accuweather.com/vi/vn/than-poun/106544 | R113: Than Poun
B114: Uông Bí | C114: https://www.accuweather.com/vi/vn/uong-bi/355738 | R114: Uông Bí
B115: Vàng Danh | C115: https://www.accuweather.com/vi/vn/vang-danh/355749 | R115: Vàng Danh
A116: Hòa Bình | B116: Chi Nê | C116: https://www.accuweather.com/vi/vn/chi-ne/353985 | R116: Chi Nê
B117: Giều Cả | C117: https://www.accuweather.com/vi/vn/gieu-ca/353986 | R117: Giều Cả
B118: Hòa Bình | C118: https://www.accuweather.com/vi/vn/hoa-binh/353983 | R118: Hòa Bình
B119: Suối Rút | C119: https://www.accuweather.com/vi/vn/suoi-rut/353984 | R119: Suối Rút
B120: Vi Ban | C120: https://www.accuweather.com/vi/vn/vi-ban/353988 | R120: Vi Ban
B121: Vĩnh Đông | C121: https://www.accuweather.com/vi/vn/vinh-dong/353989 | R121: Vĩnh Đông
B122: Xóm Lón | C122: https://www.accuweather.com/vi/vn/xom-lon/353990 | R122: Xóm Lón
A123: Ninh Bình | B123: Nho Quan | C123: https://www.accuweather.com/vi/vn/nho-quan/355450 | R123: Nho Quan
B124: Ninh Bình | C124: https://www.accuweather.com/vi/vn/ninh-binh/355447 | R124: Ninh Bình
B125: Phát Diệm | C125: https://www.accuweather.com/vi/vn/phat-diem/355448 | R125: Phát Diệm
B126: Tây Phú | C126: https://www.accuweather.com/vi/vn/tay-phu/355449 | R126: Tây Phú
A127: Thái Bình | B127: Da Coc | C127: https://www.accuweather.com/vi/vn/da-coc/356181 | R127: Da Coc
B128: Lục Linh | C128: https://www.accuweather.com/vi/vn/luc-linh/356178 | R128: Lục Linh
B129: Phú Vật | C129: https://www.accuweather.com/vi/vn/phu-vat/356179 | R129: Phú Vật
B130: Quân Bác | C130: https://www.accuweather.com/vi/vn/quan-bac/356180 | R130: Quân Bác
B131: Thái Bình | C131: https://www.accuweather.com/vi/vn/thai-binh/356177 | R131: Thái Bình
A132: Thanh Hóa | B132: Ba Làng | C132: https://www.accuweather.com/vi/vn/ba-lang/356190 | R132: Ba Làng
B133: Bái Thượng | C133: https://www.accuweather.com/vi/vn/bai-thuong/356191 | R133: Bái Thượng
B134: Biện Sơn | C134: https://www.accuweather.com/vi/vn/bien-son/356186 | R134: Biện Sơn
B135: Bình An | C135: https://www.accuweather.com/vi/vn/binh-an/356192 | R135: Bình An
B136: Diem Phe | C136: https://www.accuweather.com/vi/vn/diem-phe/356193 | R136: Diem Phe
B137: Ðông Tau | C137: https://www.accuweather.com/vi/vn/dong-tau/356194 | R137: Ðông Tau
B138: Hoàng Xá | C138: https://www.accuweather.com/vi/vn/hoang-xa/356195 | R138: Hoàng Xá
B139: Ke Gi | C139: https://www.accuweather.com/vi/vn/ke-gi/356196 | R139: Ke Gi
B140: Kiên Trung | C140: https://www.accuweather.com/vi/vn/kien-trung/356197 | R140: Kiên Trung
B141: Lang Ke Man | C141: https://www.accuweather.com/vi/vn/lang-ke-man/356198 | R141: Lang Ke Man
B142: Làng Men | C142: https://www.accuweather.com/vi/vn/lang-men/356199 | R142: Làng Men
B143: Mường Lát | C143: https://www.accuweather.com/vi/vn/muong-lat/356200 | R143: Mường Lát
B144: Nghi Sơn | C144: https://www.accuweather.com/vi/vn/nghi-son/356187 | R144: Nghi Sơn
B145: Như Xuân | C145: https://www.accuweather.com/vi/vn/nhu-xuan/356189 | R145: Như Xuân
B146: Sầm Sơn | C146: https://www.accuweather.com/vi/vn/sam-son/356185 | R146: Sầm Sơn
B147: Thanh Hóa | C147: https://www.accuweather.com/vi/vn/thanh-hoa/356184 | R147: Thanh Hóa
B148: Thiết Trà | C148: https://www.accuweather.com/vi/vn/thiet-tra/356201 | R148: Thiết Trà
B149: Truong Quang Tien | C149: https://www.accuweather.com/vi/vn/truong-quang-tien/356188 | R149: Truong Quang Tien
B150: Vĩnh Lộc | C150: https://www.accuweather.com/vi/vn/vinh-loc/356202 | R150: Vĩnh Lộc
B151: Xuân Hòa | C151: https://www.accuweather.com/vi/vn/xuan-hoa/356203 | R151: Xuân Hòa
A152: Nghệ An | B152: Bản Cha Hang | C152: https://www.accuweather.com/vi/vn/ban-cha-hang/355423 | R152: Bản Cha Hang
B153: Bản Chiềng | C153: https://www.accuweather.com/vi/vn/ban-chieng/355424 | R153: Bản Chiềng
B154: Bản Kỏ Ôi | C154: https://www.accuweather.com/vi/vn/ban-ko-oi/355425 | R154: Bản Kỏ Ôi
B155: Bản Mông | C155: https://www.accuweather.com/vi/vn/ban-mong/355426 | R155: Bản Mông
B156: Bản Na Ca | C156: https://www.accuweather.com/vi/vn/ban-na-ca/355427 | R156: Bản Na Ca
B157: Bích Thị | C157: https://www.accuweather.com/vi/vn/bich-thi/355429 | R157: Bích Thị
B158: Canh Tráp | C158: https://www.accuweather.com/vi/vn/canh-trap/355430 | R158: Canh Tráp
B159: Dương Long | C159: https://www.accuweather.com/vi/vn/duong-long/355431 | R159: Dương Long
B160: Kỳ Sơn | C160: https://www.accuweather.com/vi/vn/ky-son/355418 | R160: Kỳ Sơn
B161: Làng La | C161: https://www.accuweather.com/vi/vn/lang-la/355419 | R161: Làng La
B162: Làng Rao | C162: https://www.accuweather.com/vi/vn/lang-rao/355432 | R162: Làng Rao
B163: Làng Se | C163: https://www.accuweather.com/vi/vn/lang-se/355433 | R163: Làng Se
B164: Lương Khê | C164: https://www.accuweather.com/vi/vn/luong-khe/355434 | R164: Lương Khê
B165: Mường Hin | C165: https://www.accuweather.com/vi/vn/muong-hin/355435 | R165: Mường Hin
B166: Mường Hinh | C166: https://www.accuweather.com/vi/vn/muong-hinh/355436 | R166: Mường Hinh
B167: Na Ac | C167: https://www.accuweather.com/vi/vn/na-ac/355437 | R167: Na Ac
B168: Nghĩa Đàn | C168: https://www.accuweather.com/vi/vn/nghia-dan/355438 | R168: Nghĩa Đàn
B169: Phlen Loung | C169: https://www.accuweather.com/vi/vn/phlen-loung/355439 | R169: Phlen Loung
B170: Phúc Thành | C170: https://www.accuweather.com/vi/vn/phuc-thanh/355440 | R170: Phúc Thành
B171: Quí Châu | C171: https://www.accuweather.com/vi/vn/qui-chau/355441 | R171: Quí Châu
B172: Tam Lê | C172: https://www.accuweather.com/vi/vn/tam-le/355442 | R172: Tam Lê
B173: Tập Phúc | C173: https://www.accuweather.com/vi/vn/tap-phuc/355443 | R173: Tập Phúc
B174: Tiên Yên | C174: https://www.accuweather.com/vi/vn/tien-yen/355420 | R174: Tiên Yên
B175: Tri Lê | C175: https://www.accuweather.com/vi/vn/tri-le/355444 | R175: Tri Lê
B176: Tương Dương | C176: https://www.accuweather.com/vi/vn/tuong-duong/355421 | R176: Tương Dương
B177: Vinh | C177: https://www.accuweather.com/vi/vn/vinh/355417 | R177: Vinh
B178: Vĩnh Lai | C178: https://www.accuweather.com/vi/vn/vinh-lai/355445 | R178: Vĩnh Lai
B179: Xa Truc | C179: https://www.accuweather.com/vi/vn/xa-truc/355446 | R179: Xa Truc
B180: Xen Con | C180: https://www.accuweather.com/vi/vn/xen-con/355422 | R180: Xen Con
A181: Hà Tĩnh | B181: Bau Môn | C181: https://www.accuweather.com/vi/vn/bau-mon/353423 | R181: Bau Môn
B182: Cau Thuong | C182: https://www.accuweather.com/vi/vn/cau-thuong/353424 | R182: Cau Thuong
B183: Ðiền Xá | C183: https://www.accuweather.com/vi/vn/dien-xa/353425 | R183: Ðiền Xá
B184: Hà Tĩnh | C184: https://www.accuweather.com/vi/vn/ha-tinh/353418 | R184: Hà Tĩnh
B185: Hộ Thông | C185: https://www.accuweather.com/vi/vn/ho-thong/353419 | R185: Hộ Thông
B186: Hương Sơn | C186: https://www.accuweather.com/vi/vn/huong-son/353420 | R186: Hương Sơn
B187: Kim Cương | C187: https://www.accuweather.com/vi/vn/kim-cuong/353421 | R187: Kim Cương
B188: Kỳ Anh | C188: https://www.accuweather.com/vi/vn/ky-anh/353426 | R188: Kỳ Anh
B189: Trúc Lâm | C189: https://www.accuweather.com/vi/vn/truc-lam/353427 | R189: Trúc Lâm
B190: Tuan Thuong | C190: https://www.accuweather.com/vi/vn/tuan-thuong/353428 | R190: Tuan Thuong
B191: Vĩnh Sơn | C191: https://www.accuweather.com/vi/vn/vinh-son/353429 | R191: Vĩnh Sơn
B192: Xóm Côn Si | C192: https://www.accuweather.com/vi/vn/xom-con-si/353422 | R192: Xóm Côn Si
B193: Xuân Lung | C193: https://www.accuweather.com/vi/vn/xuan-lung/353430 | R193: Xuân Lung
A194: Quảng Bình | B194: Chà Nòi | C194: https://www.accuweather.com/vi/vn/cha-noi/355702 | R194: Chà Nòi
B195: Chấp Lê | C195: https://www.accuweather.com/vi/vn/chap-le/355703 | R195: Chấp Lê
B196: Đồng Hới | C196: https://www.accuweather.com/vi/vn/dong-hoi/355698 | R196: Đồng Hới
B197: Ho Xa | C197: https://www.accuweather.com/vi/vn/ho-xa/355699 | R197: Ho Xa
B198: Kiêm Long | C198: https://www.accuweather.com/vi/vn/kiem-long/355704 | R198: Kiêm Long
B199: Làng Mộ | C199: https://www.accuweather.com/vi/vn/lang-mo/355705 | R199: Làng Mộ
B200: Lý Nhơn Bắc | C200: https://www.accuweather.com/vi/vn/ly-nhon-bac/355700 | R200: Lý Nhơn Bắc
... 383 more rows

Sheet TPCPBT
A1: THÀNH PHẦN CẤP PHỐI BÊ TÔNG
A2: STT | B2: Mã TK | C2: Mác bê tông | D2: Loại cốt liệu lớn | E2: Số Phiếu TK | F2: Ngày | G2: XM | H2: C | I2: Đ | J2: N | K2: PG1 | L2: PG2 | M2: Dosut
A3: 1 | B3: =IF(C3<>"",C3&"/"&D3&"/"&M3,"") -> M75// | C3: M75 | E3: Số: 0001/TKCP/20-1/1 | F3: 2020-01-24 | G3: 281 | H3: 1 | J3: 270
A4: =IF(C4<>"",MAX($A$3:A3)+1,"") -> 2 | B4: =IF(C4<>"",C4&"/"&D4&"/"&M4,"") -> M100/đá 4x6cm/6-:-8 | C4: M100 | D4: đá 4x6cm | E4: Số: 0001/TKCP/20-1/1 | F4: 2020-01-24 | G4: 212 | H4: 0.529 | I4: 0.908 | J4: 185 | M4: 6-:-8
A5: =IF(C5<>"",MAX($A$3:A4)+1,"") -> 3 | B5: M200/đá 1x2cm/6-:-8 | C5: M200 | D5: đá 1x2cm | E5: Số: 0003/TKCP/20-1/1 | F5: 2020-01-24 | G5: 300 | H5: 0.483 | I5: 0.867 | J5: 202 | M5: 6-:-8
A6: =IF(C6<>"",MAX($A$3:A5)+1,"") -> 4 | B6: M250/đá 1x2cm/6-:-8 | C6: M250 | D6: đá 1x2cm | E6: Số: 0004/TKCP/20-1/1 | F6: 2020-01-24 | G6: 353 | H6: 0.457 | I6: 0.856 | J6: 204 | M6: 6-:-8
A7: =IF(C7<>"",MAX($A$3:A6)+1,"") -> 5 | B7: M300/đá 1x2cm/6-:-8 | C7: M300 | D7: đá 1x2cm | E7: Số: 0005/TKCP/20-1/1 | F7: 2020-01-24 | G7: 407 | H7: 0.432 | I7: 0.845 | J7: 207 | M7: 6-:-8
A8: =IF(C8<>"",MAX($A$3:A7)+1,"") -> 
A9: =IF(C9<>"",MAX($A$3:A8)+1,"") -> 
A10: =IF(C10<>"",MAX($A$3:A9)+1,"") -> 
A11: =IF(C11<>"",MAX($A$3:A10)+1,"") -> 
A12: =IF(C12<>"",MAX($A$3:A11)+1,"") -> 
A13: =IF(C13<>"",MAX($A$3:A12)+1,"") -> 
A14: =IF(C14<>"",MAX($A$3:A13)+1,"") -> 
A15: =IF(C15<>"",MAX($A$3:A14)+1,"") -> 
A16: =IF(C16<>"",MAX($A$3:A15)+1,"") -> 
A17: =IF(C17<>"",MAX($A$3:A16)+1,"") -> 
A18: =IF(C18<>"",MAX($A$3:A17)+1,"") -> 
A19: =IF(C19<>"",MAX($A$3:A18)+1,"") -> 
A20: =IF(C20<>"",MAX($A$3:A19)+1,"") -> 
A21: =IF(C21<>"",MAX($A$3:A20)+1,"") -> 
A22: =IF(C22<>"",MAX($A$3:A21)+1,"") -> 
A23: * | B23: * | C23: * | D23: * | E23: * | F23: * | G23: * | H23: * | I23: * | J23: * | K23: * | L23: * | M23: * | N23: *

Sheet Vatlieu
A1: DỮ LIỆU VẬT LIỆU
A2: =Tieude1&": "&NDtieude1 -> Công trình: Nâng cấp đường GTNN vàm Rạch Sung- Ngã ba Bào (Bên phải)
A3: ="Địa điểm XD: "&DDXD -> Địa điểm XD: Xã Nhơn Nghĩa, huyện Phong Điền, Thành phố Cần Thơ
A4: Stt | B4: Loại vật liệu | C4: Khối lượng mẫu | D4: Ghi chú | E4: Tiêu chuẩn áp dụng | F4: Tần suất lấy mẫu
A5: 1 | B5: Cát vàng | C5: 01 mẫu (100kg) | E5: TCVN 7570:2006 | F5: Cứ một lô 350 m3 hoặc 500 tấn lấy mẫu một lần. Mỗi lô nhỏ hơn 500 tấn xem như một một lô
A6: =A5+1 -> 2 | B6: Cát xây, tô | C6: 01 mẫu (100kg) | E6: TCXD 127:1985 | F6: Cứ một lô 100 m3 lấy mẫu một lần. Mỗi lô nhỏ hơn 100m3 xem như một lô
A7: =A6+1 -> 3 | B7: Đá 0,5x1cm | C7: 01 mẫu (100kg) | E7: TCVN 7572:2006 | F7: Cứ một lô 200 m3 lấy mẫu một lần. Mỗi lô nhỏ hơn 200m3 xem như một một lô
A8: 4 | B8: Đá 1x2cm | C8: 01 mẫu (100kg) | E8: TCVN 7572:2006 | F8: Cứ một lô 200 m3 lấy mẫu một lần. Mỗi lô nhỏ hơn 200m3 xem như một một lô
A9: 5 | B9: Đá 2x4cm | C9: 01 mẫu (100kg) | E9: TCVN 7572:2006 | F9: Cứ một lô 200 m3 lấy mẫu một lần. Mỗi lô nhỏ hơn 200m3 xem như một một lô
A10: 6 | B10: Đá 4x6cm | C10: 01 mẫu (200kg) | E10: TCVN 7572:2006 | F10: Cứ một lô 200 m3 lấy mẫu một lần. Mỗi lô nhỏ hơn 200m3 xem như một một lô
A11: 7 | B11: Đá hộc | C11: 01 mẫu (3 viên) | E11: TCVN 7572:2006 | F11: Cứ một lô 200 m3 lấy mẫu một lần. Mỗi lô nhỏ hơn 200m3 xem như một một lô
A12: 8 | B12: Đá chẻ 15x20x25cm | C12: 01 mẫu (3 viên) | E12: TCVN 7572:2006 | F12: Cứ một lô 200 m3 lấy mẫu một lần. Mỗi lô nhỏ hơn 200m3 xem như một một lô
A13: 9 | B13: Xi măng | C13: 01 mẫu (50kg) | E13: TCVN 6260:2009 | F13: Cứ một lô 50 tấn lấy mẫu một lần. Mỗi lô nhỏ hơn 50 tấn xem như một lô
A14: 10 | B14: Gach thẻ | C14: 01 mẫu (20 viên) | E14: TCVN 1450:1998; TCVN 1451:1998 | F14: Cứ một lô 50.000 viên lấy mẫu một lần. Mỗi lô nhỏ hơn 50.000 viên xem như một lô
A15: 11 | B15: Gạch Tuynel 4 lỗ | C15: 01 mẫu (20 viên) | E15: TCVN 1450:1998; TCVN 1451:1998 | F15: Cứ một lô 50.000 viên lấy mẫu một lần. Mỗi lô nhỏ hơn 50.000 viên xem như một lô
A16: 12 | B16: Gạch bê tông | C16: 01 mẫu (15 viên) | E16: TCVN 1450:1998; TCVN 1451:1998 | F16: Cứ một lô 50.000 viên lấy mẫu một lần. Mỗi lô nhỏ hơn 50.000 viên xem như một lô
A17: 13 | B17: Gạch ốp, lát | C17: 01 mẫu (10 viên) | E17: TCVN 1450:1998; TCVN 1451:1998 | F17: Cứ một lô 50.000 viên lấy mẫu một lần. Mỗi lô nhỏ hơn 50.000 viên xem như một lô
A18: 14 | B18: Nước dùng cho BT | C18: 01 mẫu (5 lít) | E18: TCVN 1450:1998; TCVN 1451:1998 | F18: Cứ một lô 50.000 viên lấy mẫu một lần. Mỗi lô nhỏ hơn 50.000 viên xem như một lô
A19: 15 | B19: Đất CPSĐ | C19: 01 mẫu (150kg) | E19: 5747:1993; TCVN 4447:2012 | F19: Cứ một lô 10.000 m3 lấy mẫu một lần. Mỗi lô nhỏ hơn 10.000 m3 vẫn xem như một lô
A20: 16 | B20: Đất TNCL | C20: 01 mẫu (150kg) | E20: 22TCN02-71; 22TCN 03-79 | F20: - Mỗi lớp đắp dày 15-18cm có diện tích đắp ≤300 m2 kiểm tra 01 điểm.
A21: 17 | B21: Đất cấp 2 | C21: 01 mẫu (150kg) | E21: 22TCN02-71; 22TCN 03-79 | F21: - Mỗi lớp đắp dày 15-18cm có diện tích đắp ≤300 m2 kiểm tra 01 điểm.
A22: 18 | B22: Cát đắp | C22: 01 mẫu (100kg) | E22: 22TCN02-71; 22TCN 03-79 | F22: - Mỗi lớp đắp dày 15-18cm có diện tích đắp ≤300 m2 kiểm tra 01 điểm.
A23: 19 | B23: Cấp phối đá dăm loại 1 | C23: 01 mẫu (300kg) | E23: 22TCN 252-98 | F23: Cứ 150m3 lấy 01 mẫu
A24: 20 | B24: Cấp phối đá dăm loại 2 | C24: 01 mẫu (300kg) | E24: 22TCN 252-98 | F24: Cứ 150m3 lấy 01 mẫu
A25: 21 | B25: Thép tròn D6 | C25: 01 mẫu (3 thanh L=80cm) | E25: TCVN 1651:2008; TCVN 6285:1997 | F25: Cứ một lô 50 tấn lấy mẫu một lần. Mỗi lô nhỏ hơn 50 tấn xem như một lô
A26: 22 | B26: Thép tròn D8 | C26: 01 mẫu (3 thanh L=80cm) | E26: TCVN 1651:2008; TCVN 6285:1997 | F26: Cứ một lô 50 tấn lấy mẫu một lần. Mỗi lô nhỏ hơn 50 tấn xem như một lô
A27: 23 | B27: Thép vằn D10 | C27: 01 mẫu (3 thanh L=80cm) | E27: TCVN 1651:2008; TCVN 6285:1997 | F27: Cứ một lô 50 tấn lấy mẫu một lần. Mỗi lô nhỏ hơn 50 tấn xem như một lô
A28: 24 | B28: Thép vằn D12 | C28: 01 mẫu (3 thanh L=80cm) | E28: TCVN 1651:2008; TCVN 6285:1997 | F28: Cứ một lô 50 tấn lấy mẫu một lần. Mỗi lô nhỏ hơn 50 tấn xem như một lô
A29: 25 | B29: Thép vằn D14 | C29: 01 mẫu (3 thanh L=80cm) | E29: TCVN 1651:2008; TCVN 6285:1997 | F29: Cứ một lô 50 tấn lấy mẫu một lần. Mỗi lô nhỏ hơn 50 tấn xem như một lô
A30: 26 | B30: Thép vằn D16 | C30: 01 mẫu (3 thanh L=80cm) | E30: TCVN 1651:2008; TCVN 6285:1997 | F30: Cứ một lô 50 tấn lấy mẫu một lần. Mỗi lô nhỏ hơn 50 tấn xem như một lô
A31: 27 | B31: Thép vằn D20 | C31: 01 mẫu (3 thanh L=80cm) | E31: TCVN 1651:2008; TCVN 6285:1997 | F31: Cứ một lô 50 tấn lấy mẫu một lần. Mỗi lô nhỏ hơn 50 tấn xem như một lô
A32: 28 | B32: Thép vằn D22 | C32: 01 mẫu (3 thanh L=80cm) | E32: TCVN 1651:2008; TCVN 6285:1997 | F32: Cứ một lô 50 tấn lấy mẫu một lần. Mỗi lô nhỏ hơn 50 tấn xem như một lô
A33: 29 | B33: Thép vằn D25 | C33: 01 mẫu (3 thanh L=80cm) | E33: TCVN 1651:2008; TCVN 6285:1997 | F33: Cứ một lô 50 tấn lấy mẫu một lần. Mỗi lô nhỏ hơn 50 tấn xem như một lô
A34: 30 | B34: Thép vằn D28 | C34: 01 mẫu (3 thanh L=80cm) | E34: TCVN 1651:2008; TCVN 6285:1997 | F34: Cứ một lô 50 tấn lấy mẫu một lần. Mỗi lô nhỏ hơn 50 tấn xem như một lô
A35: 31 | B35: Thép vằn D30 | C35: 01 mẫu (3 thanh L=80cm) | E35: TCVN 1651:2008; TCVN 6285:1997 | F35: Cứ một lô 50 tấn lấy mẫu một lần. Mỗi lô nhỏ hơn 50 tấn xem như một lô
A36: 32 | B36: Thép vằn D23 | C36: 01 mẫu (3 thanh L=80cm) | E36: TCVN 1651:2008; TCVN 6285:1997 | F36: Cứ một lô 50 tấn lấy mẫu một lần. Mỗi lô nhỏ hơn 50 tấn xem như một lô
A37: 33 | B37: Thép vằn D36 | C37: 01 mẫu (3 thanh L=80cm) | E37: TCVN 1651:2008; TCVN 6285:1997 | F37: Cứ một lô 50 tấn lấy mẫu một lần. Mỗi lô nhỏ hơn 50 tấn xem như một lô

Sheet TbVatlieu
A1: DỮ LIỆU NGHIỆM THU VẬT LIỆU | H1: End
A3: =Tieude1&": "&NDtieude1 -> Công trình: Nâng cấp đường GTNN vàm Rạch Sung- Ngã ba Bào (Bên phải)
A4: ="Địa điểm XD: "&DDXD -> Địa điểm XD: Xã Nhơn Nghĩa, huyện Phong Điền, Thành phố Cần Thơ
A10: Tên bảng | B10: Số TT | C10: Nội dung công việc | D10: Đơn vị | E10: Khối lượng | F10: Nguồn cung cấp | G10: Ghi chú
A11: VL.00001-1 | B11: 1 | C11: Cừ tràm đường kính gốc 8-10cm chiều dài 4,5m/cây | D11: cây | E11: 3500 | F11: Địa phương | G11: thi công đường từ km0+89,01 đến km0+691,85
B12: =B11+1 -> 2 | C12: Cao su sọc | D12: m2 | E12: 500 | F12: Địa phương
B13: 3 | C13: thép buộc pi 6 | D13: tấn | E13: 0.3 | F13: Miền Nam
A14: VL.00001-2 | B14: 1 | C14: Cừ tràm đường kính gốc 8-10cm chiều dài 4,5m/cây | D14: cây | E14: 2500 | F14: Địa phương | G14: thi công đường từ km0+769,43 đến km1+740,66
B15: 2 | C15: Cao su sọc | D15: m2 | E15: 300 | F15: Địa phương
B16: 3 | C16: thép buộc pi 6 | D16: tấn | E16: 0.33 | F16: Miền Nam
A17: VL.00001-3 | B17: 1 | C17: Cừ tràm đường kính gốc 8-10cm chiều dài 4,5m/cây | D17: cây | E17: 3000 | F17: Địa phương | G17: thi công đường từ km1+740,66 đến km3+186,96
B18: 2 | C18: Cao su sọc | D18: m2 | E18: 400 | F18: Địa phương
A19: VL.00001-4 | B19: 1 | C19: Cừ tràm đường kính gốc 8-10cm chiều dài 4,5m/cây | D19: cây | E19: 9700 | F19: Địa phương | G19: thi công từ cống số 1 đến cống số 12
B20: 2 | C20: Cừ tràm đường kính gốc 8-10cm chiều dài 3m/cây | D20: cây | E20: 2200 | F20: Địa phương
B21: 3 | C21: Cao su sọc | D21: m2 | E21: 900 | F21: Địa phương
B22: 4 | C22: thép pi 10 | D22: cây | E22: 169 | F22: Miền Nam
B23: 5 | C23: thép pi 12 | D23: cây | E23: 225 | F23: Miền Nam
B24: 6 | C24: thép pi 14 | D24: cây | E24: 384 | F24: Miền Nam
B25: 7 | C25: xi măng | D25: bao | E25: 826 | F25: Hà Tiên
B26: 8 | C26: cát | D26: m3 | E26: 17.77 | F26: Tân Châu
B27: 9 | C27: đá | D27: m3 | E27: 30.59 | F27: Tân Châu
A28: VL.00001-5 | B28: 1 | C28: Cừ tràm đường kính gốc 8-10cm chiều dài 4,5m/cây | D28: cây | E28: 5000 | F28: Địa phương | G28: thi công từ cống số 13 đến cống số 23
B29: 2 | C29: Cừ tràm đường kính gốc 8-10cm chiều dài 3m/cây | D29: cây | E29: 1200 | F29: Địa phương
B30: 3 | C30: Cao su sọc | D30: m2 | E30: 500 | F30: Địa phương
B31: 4 | C31: thép pi 10 | D31: cây | E31: 57 | F31: Miền Nam
B32: 5 | C32: thép pi 12 | D32: cây | E32: 207 | F32: Miền Nam
B33: 6 | C33: xi măng | D33: bao | E33: 232 | F33: Hà Tiên
B34: 7 | C34: cát | D34: m3 | E34: 0.43 | F34: Tân Châu
B35: 8 | C35: đá | D35: m3 | E35: 0.76 | F35: Tân Châu
A36: VL.00001-6 | B36: 1 | C36: Cừ tràm đường kính gốc 8-10cm chiều dài 4,5m/cây | D36: cây | E36: 4000 | F36: Địa phương | G36: thi công từ cống số 23 đến cống số 33
B37: 2 | C37: Cừ tràm đường kính gốc 8-10cm chiều dài 3m/cây | D37: cây | E37: 1200 | F37: Địa phương
B38: 3 | C38: Cao su sọc | D38: m2 | E38: 400 | F38: Địa phương
B39: 4 | C39: thép pi 10 | D39: cây | E39: 52 | F39: Miền Nam
B40: 5 | C40: thép pi 12 | D40: cây | E40: 188 | F40: Miền Nam
B41: 6 | C41: xi măng | D41: bao | E41: 211 | F41: Hà Tiên
B42: 7 | C42: cát | D42: m3 | E42: 0.39 | F42: Tân Châu
B43: 8 | C43: đá | D43: m3 | E43: 0.7 | F43: Tân Châu
A44: VL.00001-7 | B44: 1 | C44: Thép pi 8 | D44: tấn | E44: 8.8 | F44: Miền Nam | G44: thi công mặt đường bê tông từ km0+89,01 đến km0+715,92
B45: 2 | C45: nilong | D45: m2 | E45: =ROUND((715.92-89.01)*3.5,-2) -> 2200 | F45: Địa phương
B46: 3 | C46: xi măng | D46: bao | E46: 1804 | F46: Hà Tiên
B47: 4 | C47: cát | D47: m3 | E47: 146 | F47: Tân Châu
B48: 5 | C48: đá | D48: m3 | E48: 270 | F48: Tân Châu
A49: VL.00001-8 | B49: 1 | C49: Thép pi 8 | D49: tấn | E49: 13.44 | F49: Miền Nam | G49: thi công mặt đường bê tông từ km0+715,92 đến km1+772,08
B50: 2 | C50: nilong | D50: m2 | E50: =ROUND((1772.08-715.92)*3.5,-2) -> 3700 | F50: Địa phương
B51: 3 | C51: xi măng | D51: bao | E51: 2414 | F51: Hà Tiên
B52: 4 | C52: cát | D52: m3 | E52: 194.33 | F52: Tân Châu
B53: 5 | C53: đá | D53: m3 | E53: 348.83 | F53: Tân Châu
A54: VL.00001-9 | B54: 1 | C54: Thép pi 8 | D54: tấn | E54: 12 | F54: Miền Nam | G54: thi công mặt đường bê tông từ km1+772,08 đến km2+715,75
B55: 2 | C55: nilong | D55: m2 | E55: =ROUND((2715.75-1772.08)*3.5,-2) -> 3300 | F55: Địa phương
B56: 3 | C56: xi măng | D56: bao | E56: 2145 | F56: Hà Tiên
B57: 4 | C57: cát | D57: m3 | E57: 175 | F57: Tân Châu
B58: 5 | C58: đá | D58: m3 | E58: 315 | F58: Tân Châu
A59: VL.00001-10 | B59: 1 | C59: Thép pi 8 | D59: tấn | E59: 5.69 | F59: Miền Nam | G59: thi công mặt đường bê tông từ km2+715,75 đến km3+ 319,03
B60: 2 | C60: nilong | D60: m2 | E60: =ROUND((3319.03-2715.75)*3.5,-2) -> 2100 | F60: Địa phương
B61: 3 | C61: xi măng | D61: bao | E61: 1130 | F61: Hà Tiên
B62: 4 | C62: cát | D62: m3 | E62: 95 | F62: Tân Châu
B63: 5 | C63: đá | D63: m3 | E63: 165 | F63: Tân Châu

Sheet TbKTHH_HM
A1: DỮ LIỆU HỐ MÓNG CÔNG TRÌNH | I1: End
A3: =Tieude1&": "&NDtieude1 -> Công trình: Nâng cấp đường GTNN vàm Rạch Sung- Ngã ba Bào (Bên phải)
A4: ="Địa điểm XD: "&DDXD -> Địa điểm XD: Xã Nhơn Nghĩa, huyện Phong Điền, Thành phố Cần Thơ
A5: Thư mục hình ành | C5: C:\Users\Admin\Desktop\HTQLCL\HinhAnh
A10: Tên bảng | B10: Số TT | C10: Nội dung công việc | D10: Đơn vị | E10: Thiết kế | F10: Thi công | G10: Chênh lệch | H10: Ghi chú
A11: AuHM.001 | B11: 1 | C11: =IF(VALUE(OFFSET(Data_DAO_DAP!$AH$2,MATCH($L$11,Data_DAO_DAP!$AH$3:$AH$150,0)+J11-1,0))>$L$12,"",OFFSET(Data_DAO_DAP!$AG$2,MATCH($L$11,Data_DAO_DAP!$AH$3:$AH$150,0)+J11-1,0)) -> TC6 km0+191,40 | H11: Đào đất nền đường | J11: 1 | K11: =TRIM(MID(R11,5,SEARCH("đến",R11,1)-5)) -> km0+191,40 | L11: =VALUE(SUBSTITUTE(MID(K11,SEARCH("km",K11,1)+2,99),"+",IF(VALUE(MID(K11,SEARCH("+",K11,1)+1,99))<100,0,""))) -> 191.4 | M11: =+OFFSET(Data_DAO_DAP!$C$2,MATCH($C11,Data_DAO_DAP!$C$3:$C$452,0)+0,0) -> TC6 km0+191,40 | R11: =+VLOOKUP($S$11,LIST_BBKT_HM!$A$1:$H$51,5,0) -> Đoạn km0+191,40 đến km0+299,46 | S11: =+BBKT_Homong!$A$1 -> 2
C12: =+IFERROR(M12,"") -> + Cao độ: | D12: =+IFERROR(N12,"") -> m | E12: =+IFERROR(O12,"") -> 0.83 | F12: 0.83 | G12: 0 | K12: =TRIM(MID(R11,SEARCH("đến",R11,1)+4,999)) -> km0+299,46 | L12: =VALUE(SUBSTITUTE(MID(K12,SEARCH("km",K12,1)+2,99),"+",IF(VALUE(MID(K12,SEARCH("+",K12,1)+1,99))<100,0,""))) -> 299.46 | M12: =+OFFSET(Data_DAO_DAP!$C$2,MATCH($C11,Data_DAO_DAP!$C$3:$C$452,0)+1,0) -> + Cao độ: | N12: =+OFFSET(Data_DAO_DAP!$C$2,MATCH($C11,Data_DAO_DAP!$C$3:$C$452,0)+1,1) -> m | O12: =+OFFSET(Data_DAO_DAP!$C$2,MATCH($C11,Data_DAO_DAP!$C$3:$C$452,0)+1,2) -> 0.83 | P12: =+OFFSET(Data_DAO_DAP!$C$2,MATCH($C11,Data_DAO_DAP!$C$3:$C$452,0)+1,3) -> 0.83 | Q12: =+OFFSET(Data_DAO_DAP!$C$2,MATCH($C11,Data_DAO_DAP!$C$3:$C$452,0)+1,4) -> 0
C13: =+IFERROR(M13,"") -> + Chiều rộng: | D13: =+IFERROR(N13,"") -> m | E13: =+IFERROR(O13,"") -> 3.5 | F13: =+IFERROR(P13,"") -> 3.51 | G13: =+IFERROR(Q13,"") -> 0.01 | M13: =+OFFSET(Data_DAO_DAP!$C$2,MATCH($C11,Data_DAO_DAP!$C$3:$C$452,0)+2,0) -> + Chiều rộng: | N13: =+OFFSET(Data_DAO_DAP!$C$2,MATCH($C11,Data_DAO_DAP!$C$3:$C$452,0)+2,1) -> m | O13: =+OFFSET(Data_DAO_DAP!$C$2,MATCH($C11,Data_DAO_DAP!$C$3:$C$452,0)+2,2) -> 3.5 | P13: =+OFFSET(Data_DAO_DAP!$C$2,MATCH($C11,Data_DAO_DAP!$C$3:$C$452,0)+2,3) -> 3.51 | Q13: =+OFFSET(Data_DAO_DAP!$C$2,MATCH($C11,Data_DAO_DAP!$C$3:$C$452,0)+2,4) -> 0.01
B14: =+IF(C14<>"",B11+1,"") -> 2 | C14: =IF(VALUE(OFFSET(Data_DAO_DAP!$AH$2,MATCH($L$11,Data_DAO_DAP!$AH$3:$AH$150,0)+J14-1,0))>$L$12,"",OFFSET(Data_DAO_DAP!$AG$2,MATCH($L$11,Data_DAO_DAP!$AH$3:$AH$150,0)+J14-1,0)) -> Đ7 km0+206,60 | J14: 2 | M14: =+OFFSET(Data_DAO_DAP!$C$2,MATCH($C14,Data_DAO_DAP!$C$3:$C$452,0)+0,0) -> Đ7 km0+206,60
C15: =+IFERROR(M15,"") -> + Cao độ: | D15: =+IFERROR(N15,"") -> m | E15: =+IFERROR(O15,"") -> 0.83 | F15: =+IFERROR(P15,"") -> 0.82 | G15: =+IFERROR(Q15,"") -> -0.01 | M15: =+OFFSET(Data_DAO_DAP!$C$2,MATCH($C14,Data_DAO_DAP!$C$3:$C$452,0)+1,0) -> + Cao độ: | N15: =+OFFSET(Data_DAO_DAP!$C$2,MATCH($C14,Data_DAO_DAP!$C$3:$C$452,0)+1,1) -> m | O15: =+OFFSET(Data_DAO_DAP!$C$2,MATCH($C14,Data_DAO_DAP!$C$3:$C$452,0)+1,2) -> 0.83 | P15: =+OFFSET(Data_DAO_DAP!$C$2,MATCH($C14,Data_DAO_DAP!$C$3:$C$452,0)+1,3) -> 0.82 | Q15: =+OFFSET(Data_DAO_DAP!$C$2,MATCH($C14,Data_DAO_DAP!$C$3:$C$452,0)+1,4) -> -0.01
C16: =+IFERROR(M16,"") -> + Chiều rộng: | D16: =+IFERROR(N16,"") -> m | E16: 3.5 | F16: 3.5 | G16: 0 | M16: =+OFFSET(Data_DAO_DAP!$C$2,MATCH($C14,Data_DAO_DAP!$C$3:$C$452,0)+2,0) -> + Chiều rộng: | N16: =+OFFSET(Data_DAO_DAP!$C$2,MATCH($C14,Data_DAO_DAP!$C$3:$C$452,0)+2,1) -> m | O16: =+OFFSET(Data_DAO_DAP!$C$2,MATCH($C14,Data_DAO_DAP!$C$3:$C$452,0)+2,2) -> 3.5 | P16: =+OFFSET(Data_DAO_DAP!$C$2,MATCH($C14,Data_DAO_DAP!$C$3:$C$452,0)+2,3) -> 3.5 | Q16: =+OFFSET(Data_DAO_DAP!$C$2,MATCH($C14,Data_DAO_DAP!$C$3:$C$452,0)+2,4) -> 0
B17: =+IF(C17<>"",B14+1,"") -> 3 | C17: =IF(VALUE(OFFSET(Data_DAO_DAP!$AH$2,MATCH($L$11,Data_DAO_DAP!$AH$3:$AH$150,0)+J17-1,0))>$L$12,"",OFFSET(Data_DAO_DAP!$AG$2,MATCH($L$11,Data_DAO_DAP!$AH$3:$AH$150,0)+J17-1,0)) -> C3' km0+224,00 | J17: 3 | M17: =+OFFSET(Data_DAO_DAP!$C$2,MATCH($C17,Data_DAO_DAP!$C$3:$C$452,0)+0,0) -> C3' km0+224,00
C18: =+IFERROR(M18,"") -> + Cao độ: | D18: =+IFERROR(N18,"") -> m | E18: =+IFERROR(O18,"") -> 0.83 | F18: =+IFERROR(P18,"") -> 0.83 | G18: =+IFERROR(Q18,"") -> 0 | M18: =+OFFSET(Data_DAO_DAP!$C$2,MATCH($C17,Data_DAO_DAP!$C$3:$C$452,0)+1,0) -> + Cao độ: | N18: =+OFFSET(Data_DAO_DAP!$C$2,MATCH($C17,Data_DAO_DAP!$C$3:$C$452,0)+1,1) -> m | O18: =+OFFSET(Data_DAO_DAP!$C$2,MATCH($C17,Data_DAO_DAP!$C$3:$C$452,0)+1,2) -> 0.83 | P18: =+OFFSET(Data_DAO_DAP!$C$2,MATCH($C17,Data_DAO_DAP!$C$3:$C$452,0)+1,3) -> 0.83 | Q18: =+OFFSET(Data_DAO_DAP!$C$2,MATCH($C17,Data_DAO_DAP!$C$3:$C$452,0)+1,4) -> 0
C19: =+IFERROR(M19,"") -> + Chiều rộng: | D19: =+IFERROR(N19,"") -> m | E19: 3.5 | F19: 3.51 | G19: 0.01 | M19: =+OFFSET(Data_DAO_DAP!$C$2,MATCH($C17,Data_DAO_DAP!$C$3:$C$452,0)+2,0) -> + Chiều rộng: | N19: =+OFFSET(Data_DAO_DAP!$C$2,MATCH($C17,Data_DAO_DAP!$C$3:$C$452,0)+2,1) -> m | O19: =+OFFSET(Data_DAO_DAP!$C$2,MATCH($C17,Data_DAO_DAP!$C$3:$C$452,0)+2,2) -> 3.5 | P19: =+OFFSET(Data_DAO_DAP!$C$2,MATCH($C17,Data_DAO_DAP!$C$3:$C$452,0)+2,3) -> 3.51 | Q19: =+OFFSET(Data_DAO_DAP!$C$2,MATCH($C17,Data_DAO_DAP!$C$3:$C$452,0)+2,4) -> 0.01
B20: =+IF(C20<>"",B17+1,"") -> 4 | C20: =IF(VALUE(OFFSET(Data_DAO_DAP!$AH$2,MATCH($L$11,Data_DAO_DAP!$AH$3:$AH$150,0)+J20-1,0))>$L$12,"",OFFSET(Data_DAO_DAP!$AG$2,MATCH($L$11,Data_DAO_DAP!$AH$3:$AH$150,0)+J20-1,0)) -> Đ8 km0+240,78 | J20: 4 | M20: =+OFFSET(Data_DAO_DAP!$C$2,MATCH($C20,Data_DAO_DAP!$C$3:$C$452,0)+0,0) -> Đ8 km0+240,78
C21: =+IFERROR(M21,"") -> + Cao độ: | D21: =+IFERROR(N21,"") -> m | E21: =+IFERROR(O21,"") -> 0.83 | F21: =+IFERROR(P21,"") -> 0.82 | G21: =+IFERROR(Q21,"") -> -0.01 | M21: =+OFFSET(Data_DAO_DAP!$C$2,MATCH($C20,Data_DAO_DAP!$C$3:$C$452,0)+1,0) -> + Cao độ: | N21: =+OFFSET(Data_DAO_DAP!$C$2,MATCH($C20,Data_DAO_DAP!$C$3:$C$452,0)+1,1) -> m | O21: =+OFFSET(Data_DAO_DAP!$C$2,MATCH($C20,Data_DAO_DAP!$C$3:$C$452,0)+1,2) -> 0.83 | P21: =+OFFSET(Data_DAO_DAP!$C$2,MATCH($C20,Data_DAO_DAP!$C$3:$C$452,0)+1,3) -> 0.82 | Q21: =+OFFSET(Data_DAO_DAP!$C$2,MATCH($C20,Data_DAO_DAP!$C$3:$C$452,0)+1,4) -> -0.01
C22: =+IFERROR(M22,"") -> + Chiều rộng: | D22: =+IFERROR(N22,"") -> m | E22: 3.5 | F22: 3.61 | G22: 0.11 | M22: =+OFFSET(Data_DAO_DAP!$C$2,MATCH($C20,Data_DAO_DAP!$C$3:$C$452,0)+2,0) -> + Chiều rộng: | N22: =+OFFSET(Data_DAO_DAP!$C$2,MATCH($C20,Data_DAO_DAP!$C$3:$C$452,0)+2,1) -> m | O22: =+OFFSET(Data_DAO_DAP!$C$2,MATCH($C20,Data_DAO_DAP!$C$3:$C$452,0)+2,2) -> 3.5 | P22: =+OFFSET(Data_DAO_DAP!$C$2,MATCH($C20,Data_DAO_DAP!$C$3:$C$452,0)+2,3) -> 3.61 | Q22: =+OFFSET(Data_DAO_DAP!$C$2,MATCH($C20,Data_DAO_DAP!$C$3:$C$452,0)+2,4) -> 0.11
B23: =+IF(C23<>"",B20+1,"") -> 5 | C23: =IF(VALUE(OFFSET(Data_DAO_DAP!$AH$2,MATCH($L$11,Data_DAO_DAP!$AH$3:$AH$150,0)+J23-1,0))>$L$12,"",OFFSET(Data_DAO_DAP!$AG$2,MATCH($L$11,Data_DAO_DAP!$AH$3:$AH$150,0)+J23-1,0)) -> Đ9 km0+267,95 | J23: 5 | M23: =+OFFSET(Data_DAO_DAP!$C$2,MATCH($C23,Data_DAO_DAP!$C$3:$C$452,0)+0,0) -> Đ9 km0+267,95
C24: =+IFERROR(M24,"") -> + Cao độ: | D24: =+IFERROR(N24,"") -> m | E24: =+IFERROR(O24,"") -> 0.83 | F24: =+IFERROR(P24,"") -> 0.82 | G24: =+IFERROR(Q24,"") -> -0.01 | M24: =+OFFSET(Data_DAO_DAP!$C$2,MATCH($C23,Data_DAO_DAP!$C$3:$C$452,0)+1,0) -> + Cao độ: | N24: =+OFFSET(Data_DAO_DAP!$C$2,MATCH($C23,Data_DAO_DAP!$C$3:$C$452,0)+1,1) -> m | O24: =+OFFSET(Data_DAO_DAP!$C$2,MATCH($C23,Data_DAO_DAP!$C$3:$C$452,0)+1,2) -> 0.83 | P24: =+OFFSET(Data_DAO_DAP!$C$2,MATCH($C23,Data_DAO_DAP!$C$3:$C$452,0)+1,3) -> 0.82 | Q24: =+OFFSET(Data_DAO_DAP!$C$2,MATCH($C23,Data_DAO_DAP!$C$3:$C$452,0)+1,4) -> -0.01
C25: =+IFERROR(M25,"") -> + Chiều rộng: | D25: =+IFERROR(N25,"") -> m | E25: 3.5 | F25: 3.59 | G25: 0.09 | M25: =+OFFSET(Data_DAO_DAP!$C$2,MATCH($C23,Data_DAO_DAP!$C$3:$C$452,0)+2,0) -> + Chiều rộng: | N25: =+OFFSET(Data_DAO_DAP!$C$2,MATCH($C23,Data_DAO_DAP!$C$3:$C$452,0)+2,1) -> m | O25: =+OFFSET(Data_DAO_DAP!$C$2,MATCH($C23,Data_DAO_DAP!$C$3:$C$452,0)+2,2) -> 3.5 | P25: =+OFFSET(Data_DAO_DAP!$C$2,MATCH($C23,Data_DAO_DAP!$C$3:$C$452,0)+2,3) -> 3.59 | Q25: =+OFFSET(Data_DAO_DAP!$C$2,MATCH($C23,Data_DAO_DAP!$C$3:$C$452,0)+2,4) -> 0.09
B26: =+IF(C26<>"",B23+1,"") -> 6 | C26: =IF(VALUE(OFFSET(Data_DAO_DAP!$AH$2,MATCH($L$11,Data_DAO_DAP!$AH$3:$AH$150,0)+J26-1,0))>$L$12,"",OFFSET(Data_DAO_DAP!$AG$2,MATCH($L$11,Data_DAO_DAP!$AH$3:$AH$150,0)+J26-1,0)) -> TĐ10=TC9 km0+280,43 | J26: 6 | M26: =+OFFSET(Data_DAO_DAP!$C$2,MATCH($C26,Data_DAO_DAP!$C$3:$C$452,0)+0,0) -> TĐ10=TC9 km0+280,43
C27: =+IFERROR(M27,"") -> + Cao độ: | D27: =+IFERROR(N27,"") -> m | E27: =+IFERROR(O27,"") -> 0.83 | F27: =+IFERROR(P27,"") -> 0.82 | G27: =+IFERROR(Q27,"") -> -0.01 | M27: =+OFFSET(Data_DAO_DAP!$C$2,MATCH($C26,Data_DAO_DAP!$C$3:$C$452,0)+1,0) -> + Cao độ: | N27: =+OFFSET(Data_DAO_DAP!$C$2,MATCH($C26,Data_DAO_DAP!$C$3:$C$452,0)+1,1) -> m | O27: =+OFFSET(Data_DAO_DAP!$C$2,MATCH($C26,Data_DAO_DAP!$C$3:$C$452,0)+1,2) -> 0.83 | P27: =+OFFSET(Data_DAO_DAP!$C$2,MATCH($C26,Data_DAO_DAP!$C$3:$C$452,0)+1,3) -> 0.82 | Q27: =+OFFSET(Data_DAO_DAP!$C$2,MATCH($C26,Data_DAO_DAP!$C$3:$C$452,0)+1,4) -> -0.01
C28: =+IFERROR(M28,"") -> + Chiều rộng: | D28: =+IFERROR(N28,"") -> m | E28: 3.5 | F28: 3.61 | G28: 0.11 | M28: =+OFFSET(Data_DAO_DAP!$C$2,MATCH($C26,Data_DAO_DAP!$C$3:$C$452,0)+2,0) -> + Chiều rộng: | N28: =+OFFSET(Data_DAO_DAP!$C$2,MATCH($C26,Data_DAO_DAP!$C$3:$C$452,0)+2,1) -> m | O28: =+OFFSET(Data_DAO_DAP!$C$2,MATCH($C26,Data_DAO_DAP!$C$3:$C$452,0)+2,2) -> 3.5 | P28: =+OFFSET(Data_DAO_DAP!$C$2,MATCH($C26,Data_DAO_DAP!$C$3:$C$452,0)+2,3) -> 3.61 | Q28: =+OFFSET(Data_DAO_DAP!$C$2,MATCH($C26,Data_DAO_DAP!$C$3:$C$452,0)+2,4) -> 0.11
B29: =+IF(C29<>"",B26+1,"") -> 7 | C29: =IF(VALUE(OFFSET(Data_DAO_DAP!$AH$2,MATCH($L$11,Data_DAO_DAP!$AH$3:$AH$150,0)+J29-1,0))>$L$12,"",OFFSET(Data_DAO_DAP!$AG$2,MATCH($L$11,Data_DAO_DAP!$AH$3:$AH$150,0)+J29-1,0)) -> Đ10 km0+299,46 | J29: 7 | M29: =+OFFSET(Data_DAO_DAP!$C$2,MATCH($C29,Data_DAO_DAP!$C$3:$C$452,0)+0,0) -> Đ10 km0+299,46
C30: =+IFERROR(M30,"") -> + Cao độ: | D30: =+IFERROR(N30,"") -> m | E30: =+IFERROR(O30,"") -> 0.83 | F30: =+IFERROR(P30,"") -> 0.82 | G30: =+IFERROR(Q30,"") -> -0.01 | M30: =+OFFSET(Data_DAO_DAP!$C$2,MATCH($C29,Data_DAO_DAP!$C$3:$C$452,0)+1,0) -> + Cao độ: | N30: =+OFFSET(Data_DAO_DAP!$C$2,MATCH($C29,Data_DAO_DAP!$C$3:$C$452,0)+1,1) -> m | O30: =+OFFSET(Data_DAO_DAP!$C$2,MATCH($C29,Data_DAO_DAP!$C$3:$C$452,0)+1,2) -> 0.83 | P30: =+OFFSET(Data_DAO_DAP!$C$2,MATCH($C29,Data_DAO_DAP!$C$3:$C$452,0)+1,3) -> 0.82 | Q30: =+OFFSET(Data_DAO_DAP!$C$2,MATCH($C29,Data_DAO_DAP!$C$3:$C$452,0)+1,4) -> -0.01
C31: =+IFERROR(M31,"") -> + Chiều rộng: | D31: =+IFERROR(N31,"") -> m | E31: 3.5 | F31: 3.6 | G31: 0.1 | M31: =+OFFSET(Data_DAO_DAP!$C$2,MATCH($C29,Data_DAO_DAP!$C$3:$C$452,0)+2,0) -> + Chiều rộng: | N31: =+OFFSET(Data_DAO_DAP!$C$2,MATCH($C29,Data_DAO_DAP!$C$3:$C$452,0)+2,1) -> m | O31: =+OFFSET(Data_DAO_DAP!$C$2,MATCH($C29,Data_DAO_DAP!$C$3:$C$452,0)+2,2) -> 3.5 | P31: =+OFFSET(Data_DAO_DAP!$C$2,MATCH($C29,Data_DAO_DAP!$C$3:$C$452,0)+2,3) -> 3.6 | Q31: =+OFFSET(Data_DAO_DAP!$C$2,MATCH($C29,Data_DAO_DAP!$C$3:$C$452,0)+2,4) -> 0.1
B32: =+IF(C32<>"",B29+1,"") ->  | C32: =IF(VALUE(OFFSET(Data_DAO_DAP!$AH$2,MATCH($L$11,Data_DAO_DAP!$AH$3:$AH$150,0)+J32-1,0))>$L$12,"",OFFSET(Data_DAO_DAP!$AG$2,MATCH($L$11,Data_DAO_DAP!$AH$3:$AH$150,0)+J32-1,0)) ->  | J32: 8 | M32: =+OFFSET(Data_DAO_DAP!$C$2,MATCH($C32,Data_DAO_DAP!$C$3:$C$452,0)+0,0) -> 
C33: =+IFERROR(M33,"") ->  | D33: =+IFERROR(N33,"") ->  | E33: =+IFERROR(O33,"") ->  | F33: =+IFERROR(P33,"") ->  | G33: =+IFERROR(Q33,"") ->  | M33: =+OFFSET(Data_DAO_DAP!$C$2,MATCH($C32,Data_DAO_DAP!$C$3:$C$452,0)+1,0) ->  | N33: =+OFFSET(Data_DAO_DAP!$C$2,MATCH($C32,Data_DAO_DAP!$C$3:$C$452,0)+1,1) ->  | O33: =+OFFSET(Data_DAO_DAP!$C$2,MATCH($C32,Data_DAO_DAP!$C$3:$C$452,0)+1,2) ->  | P33: =+OFFSET(Data_DAO_DAP!$C$2,MATCH($C32,Data_DAO_DAP!$C$3:$C$452,0)+1,3) ->  | Q33: =+OFFSET(Data_DAO_DAP!$C$2,MATCH($C32,Data_DAO_DAP!$C$3:$C$452,0)+1,4) -> 
C34: =+IFERROR(M34,"") ->  | D34: =+IFERROR(N34,"") ->  | M34: =+OFFSET(Data_DAO_DAP!$C$2,MATCH($C32,Data_DAO_DAP!$C$3:$C$452,0)+2,0) ->  | N34: =+OFFSET(Data_DAO_DAP!$C$2,MATCH($C32,Data_DAO_DAP!$C$3:$C$452,0)+2,1) ->  | O34: =+OFFSET(Data_DAO_DAP!$C$2,MATCH($C32,Data_DAO_DAP!$C$3:$C$452,0)+2,2) ->  | P34: =+OFFSET(Data_DAO_DAP!$C$2,MATCH($C32,Data_DAO_DAP!$C$3:$C$452,0)+2,3) ->  | Q34: =+OFFSET(Data_DAO_DAP!$C$2,MATCH($C32,Data_DAO_DAP!$C$3:$C$452,0)+2,4) -> 
B35: =+IF(C35<>"",B32+1,"") ->  | C35: =IF(VALUE(OFFSET(Data_DAO_DAP!$AH$2,MATCH($L$11,Data_DAO_DAP!$AH$3:$AH$150,0)+J35-1,0))>$L$12,"",OFFSET(Data_DAO_DAP!$AG$2,MATCH($L$11,Data_DAO_DAP!$AH$3:$AH$150,0)+J35-1,0)) ->  | J35: 9 | M35: =+OFFSET(Data_DAO_DAP!$C$2,MATCH($C35,Data_DAO_DAP!$C$3:$C$452,0)+0,0) -> 
C36: =+IFERROR(M36,"") ->  | D36: =+IFERROR(N36,"") ->  | E36: =+IFERROR(O36,"") ->  | F36: =+IFERROR(P36,"") ->  | G36: =+IFERROR(Q36,"") ->  | M36: =+OFFSET(Data_DAO_DAP!$C$2,MATCH($C35,Data_DAO_DAP!$C$3:$C$452,0)+1,0) ->  | N36: =+OFFSET(Data_DAO_DAP!$C$2,MATCH($C35,Data_DAO_DAP!$C$3:$C$452,0)+1,1) ->  | O36: =+OFFSET(Data_DAO_DAP!$C$2,MATCH($C35,Data_DAO_DAP!$C$3:$C$452,0)+1,2) ->  | P36: =+OFFSET(Data_DAO_DAP!$C$2,MATCH($C35,Data_DAO_DAP!$C$3:$C$452,0)+1,3) ->  | Q36: =+OFFSET(Data_DAO_DAP!$C$2,MATCH($C35,Data_DAO_DAP!$C$3:$C$452,0)+1,4) -> 
C37: =+IFERROR(M37,"") ->  | D37: =+IFERROR(N37,"") ->  | M37: =+OFFSET(Data_DAO_DAP!$C$2,MATCH($C35,Data_DAO_DAP!$C$3:$C$452,0)+2,0) ->  | N37: =+OFFSET(Data_DAO_DAP!$C$2,MATCH($C35,Data_DAO_DAP!$C$3:$C$452,0)+2,1) ->  | O37: =+OFFSET(Data_DAO_DAP!$C$2,MATCH($C35,Data_DAO_DAP!$C$3:$C$452,0)+2,2) ->  | P37: =+OFFSET(Data_DAO_DAP!$C$2,MATCH($C35,Data_DAO_DAP!$C$3:$C$452,0)+2,3) ->  | Q37: =+OFFSET(Data_DAO_DAP!$C$2,MATCH($C35,Data_DAO_DAP!$C$3:$C$452,0)+2,4) -> 
B38: =+IF(C38<>"",B35+1,"") ->  | C38: =IF(VALUE(OFFSET(Data_DAO_DAP!$AH$2,MATCH($L$11,Data_DAO_DAP!$AH$3:$AH$150,0)+J38-1,0))>$L$12,"",OFFSET(Data_DAO_DAP!$AG$2,MATCH($L$11,Data_DAO_DAP!$AH$3:$AH$150,0)+J38-1,0)) ->  | J38: 10 | M38: =+OFFSET(Data_DAO_DAP!$C$2,MATCH($C38,Data_DAO_DAP!$C$3:$C$452,0)+0,0) -> 
C39: =+IFERROR(M39,"") ->  | D39: =+IFERROR(N39,"") ->  | E39: =+IFERROR(O39,"") ->  | F39: =+IFERROR(P39,"") ->  | G39: =+IFERROR(Q39,"") ->  | M39: =+OFFSET(Data_DAO_DAP!$C$2,MATCH($C38,Data_DAO_DAP!$C$3:$C$452,0)+1,0) ->  | N39: =+OFFSET(Data_DAO_DAP!$C$2,MATCH($C38,Data_DAO_DAP!$C$3:$C$452,0)+1,1) ->  | O39: =+OFFSET(Data_DAO_DAP!$C$2,MATCH($C38,Data_DAO_DAP!$C$3:$C$452,0)+1,2) ->  | P39: =+OFFSET(Data_DAO_DAP!$C$2,MATCH($C38,Data_DAO_DAP!$C$3:$C$452,0)+1,3) ->  | Q39: =+OFFSET(Data_DAO_DAP!$C$2,MATCH($C38,Data_DAO_DAP!$C$3:$C$452,0)+1,4) -> 
C40: =+IFERROR(M40,"") ->  | D40: =+IFERROR(N40,"") ->  | M40: =+OFFSET(Data_DAO_DAP!$C$2,MATCH($C38,Data_DAO_DAP!$C$3:$C$452,0)+2,0) ->  | N40: =+OFFSET(Data_DAO_DAP!$C$2,MATCH($C38,Data_DAO_DAP!$C$3:$C$452,0)+2,1) ->  | O40: =+OFFSET(Data_DAO_DAP!$C$2,MATCH($C38,Data_DAO_DAP!$C$3:$C$452,0)+2,2) ->  | P40: =+OFFSET(Data_DAO_DAP!$C$2,MATCH($C38,Data_DAO_DAP!$C$3:$C$452,0)+2,3) ->  | Q40: =+OFFSET(Data_DAO_DAP!$C$2,MATCH($C38,Data_DAO_DAP!$C$3:$C$452,0)+2,4) -> 

Sheet TbKTHH_Dap
A1: DỮ LIỆU KÍCH THƯỚC HÌNH HỌC ĐẮP ĐẤT | N1: End
A3: =Tieude1&": "&NDtieude1 -> Công trình: Nâng cấp đường GTNN vàm Rạch Sung- Ngã ba Bào (Bên phải)
A4: ="Địa điểm XD: "&DDXD -> Địa điểm XD: Xã Nhơn Nghĩa, huyện Phong Điền, Thành phố Cần Thơ
A5: Thư mục hình ành | C5: C:\Users\Admin\Desktop\HTQLCL\HinhAnh
A8: Tên bảng | B8: STT | C8: Lý trình | D8: Khoảng cách | E8: Thiết kế | I8: Thi công | M8: Ghi chú
E9: Cao độ | H9: Chiều rộng | I9: Cao độ | L9: Chiều rộng
E10: Trái | F10: Tim | G10: Phải | I10: Trái | J10: Tim | K10: Phải
A11: AuCK90.01 | B11: 1 | C11: =IF(VALUE(OFFSET(Data_DAO_DAP!$AH$2,MATCH($Q$11,Data_DAO_DAP!$AH$3:$AH$150,0)+O11-1,0))>$Q$12,"",OFFSET(Data_DAO_DAP!$AG$2,MATCH($Q$11,Data_DAO_DAP!$AH$3:$AH$150,0)+O11-1,0)) -> C3' km0+89,01 | E11: =IFERROR($R11+0.45,"") -> 1.28 | F11: =IFERROR($R11+0.45,"") -> 1.28 | G11: =IFERROR($R11+0.45,"") -> 1.28 | H11: =IFERROR(T11,"") -> 3.5 | I11: =IFERROR($S11+0.45,"") -> 1.29 | J11: =IFERROR($S11+0.45,"") -> 1.29 | K11: =IFERROR($S11+0.45,"") -> 1.29 | L11: =IFERROR(U11,"") -> 3.5 | M11: Đắp cát hố móng k=0,90 lớp 1 h=45cm | O11: 1 | P11: =TRIM(MID(V11,5,SEARCH("đến",V11,1)-5)) -> km0+89,01 | Q11: =VALUE(SUBSTITUTE(MID(P11,SEARCH("km",P11,1)+2,99),"+",IF(VALUE(MID(P11,SEARCH("+",P11,1)+1,99))<100,0,""))) -> 89.01 | R11: =+OFFSET(Data_DAO_DAP!$C$2,MATCH(TbKTHH_Dap!$C11,Data_DAO_DAP!$C$3:$C$452,0)+1,2) -> 0.83 | S11: =+OFFSET(Data_DAO_DAP!$C$2,MATCH(TbKTHH_Dap!$C11,Data_DAO_DAP!$C$3:$C$452,0)+1,3) -> 0.84 | T11: =+OFFSET(Data_DAO_DAP!$C$2,MATCH(TbKTHH_Dap!$C11,Data_DAO_DAP!$C$3:$C$452,0)+2,2) -> 3.5 | U11: =+OFFSET(Data_DAO_DAP!$C$2,MATCH(TbKTHH_Dap!$C11,Data_DAO_DAP!$C$3:$C$452,0)+2,3) -> 3.5 | V11: =TRIM(VLOOKUP(W11,LIST_BBKT_DAP!$A$1:$H$206,5,0)) -> Đoạn km0+89,01 đến km0+191,40 | W11: =+BBKT_Dap!$A$1 -> 1
A12: =+IF(C13="","NOT","") ->  | D12: =IFERROR(VALUE(SUBSTITUTE(MID(C13,SEARCH("km",C13,1)+2,99),"+",IF(VALUE(MID(C13,SEARCH("+",C13,1)+1,99))<100,0,"")))-VALUE(SUBSTITUTE(MID(C11,SEARCH("km",C11,1)+2,99),"+",IF(VALUE(MID(C11,SEARCH("+",C11,1)+1,99))<100,0,""))),"") -> 14.58 | P12: =TRIM(MID(V11,SEARCH("đến",V11,1)+4,999)) -> km0+191,40 | Q12: =VALUE(SUBSTITUTE(MID(P12,SEARCH("km",P12,1)+2,99),"+",IF(VALUE(MID(P12,SEARCH("+",P12,1)+1,99))<100,0,""))) -> 191.4
B13: =+IF(C13<>"",B11+1,"") -> 2 | C13: =IF(VALUE(OFFSET(Data_DAO_DAP!$AH$2,MATCH($Q$11,Data_DAO_DAP!$AH$3:$AH$150,0)+O13-1,0))>$Q$12,"",OFFSET(Data_DAO_DAP!$AG$2,MATCH($Q$11,Data_DAO_DAP!$AH$3:$AH$150,0)+O13-1,0)) -> Đ4 km0+103,59 | E13: =IFERROR($R13+0.45,"") -> 1.28 | F13: =IFERROR($R13+0.45,"") -> 1.28 | G13: =IFERROR($R13+0.45,"") -> 1.28 | H13: =IFERROR(T13,"") -> 3.5 | I13: =IFERROR($S13+0.45,"") -> 1.27 | J13: =IFERROR($S13+0.45,"") -> 1.27 | K13: =IFERROR($S13+0.45,"") -> 1.27 | L13: =IFERROR(U13,"") -> 3.59 | O13: 2 | R13: =+OFFSET(Data_DAO_DAP!$C$2,MATCH(TbKTHH_Dap!$C13,Data_DAO_DAP!$C$3:$C$452,0)+1,2) -> 0.83 | S13: =+OFFSET(Data_DAO_DAP!$C$2,MATCH(TbKTHH_Dap!$C13,Data_DAO_DAP!$C$3:$C$452,0)+1,3) -> 0.82 | T13: =+OFFSET(Data_DAO_DAP!$C$2,MATCH(TbKTHH_Dap!$C13,Data_DAO_DAP!$C$3:$C$452,0)+2,2) -> 3.5 | U13: =+OFFSET(Data_DAO_DAP!$C$2,MATCH(TbKTHH_Dap!$C13,Data_DAO_DAP!$C$3:$C$452,0)+2,3) -> 3.59
D14: =IFERROR(VALUE(SUBSTITUTE(MID(C15,SEARCH("km",C15,1)+2,99),"+",IF(VALUE(MID(C15,SEARCH("+",C15,1)+1,99))<100,0,"")))-VALUE(SUBSTITUTE(MID(C13,SEARCH("km",C13,1)+2,99),"+",IF(VALUE(MID(C13,SEARCH("+",C13,1)+1,99))<100,0,""))),"") -> 12.42
B15: =+IF(C15<>"",B13+1,"") -> 3 | C15: =IF(VALUE(OFFSET(Data_DAO_DAP!$AH$2,MATCH($Q$11,Data_DAO_DAP!$AH$3:$AH$150,0)+O15-1,0))>$Q$12,"",OFFSET(Data_DAO_DAP!$AG$2,MATCH($Q$11,Data_DAO_DAP!$AH$3:$AH$150,0)+O15-1,0)) -> C3 km0+116,01 | E15: =IFERROR($R15+0.45,"") -> 1.28 | F15: =IFERROR($R15+0.45,"") -> 1.28 | G15: =IFERROR($R15+0.45,"") -> 1.28 | H15: =IFERROR(T15,"") -> 3.5 | I15: =IFERROR($S15+0.45,"") -> 1.29 | J15: =IFERROR($S15+0.45,"") -> 1.29 | K15: =IFERROR($S15+0.45,"") -> 1.29 | L15: =IFERROR(U15,"") -> 3.51 | O15: 3 | R15: =+OFFSET(Data_DAO_DAP!$C$2,MATCH(TbKTHH_Dap!$C15,Data_DAO_DAP!$C$3:$C$452,0)+1,2) -> 0.83 | S15: =+OFFSET(Data_DAO_DAP!$C$2,MATCH(TbKTHH_Dap!$C15,Data_DAO_DAP!$C$3:$C$452,0)+1,3) -> 0.84 | T15: =+OFFSET(Data_DAO_DAP!$C$2,MATCH(TbKTHH_Dap!$C15,Data_DAO_DAP!$C$3:$C$452,0)+2,2) -> 3.5 | U15: =+OFFSET(Data_DAO_DAP!$C$2,MATCH(TbKTHH_Dap!$C15,Data_DAO_DAP!$C$3:$C$452,0)+2,3) -> 3.51
D16: =IFERROR(VALUE(SUBSTITUTE(MID(C17,SEARCH("km",C17,1)+2,99),"+",IF(VALUE(MID(C17,SEARCH("+",C17,1)+1,99))<100,0,"")))-VALUE(SUBSTITUTE(MID(C15,SEARCH("km",C15,1)+2,99),"+",IF(VALUE(MID(C15,SEARCH("+",C15,1)+1,99))<100,0,""))),"") -> 24.97
B17: =+IF(C17<>"",B15+1,"") -> 4 | C17: =IF(VALUE(OFFSET(Data_DAO_DAP!$AH$2,MATCH($Q$11,Data_DAO_DAP!$AH$3:$AH$150,0)+O17-1,0))>$Q$12,"",OFFSET(Data_DAO_DAP!$AG$2,MATCH($Q$11,Data_DAO_DAP!$AH$3:$AH$150,0)+O17-1,0)) -> Đ5 km0+140,98 | E17: =IFERROR($R17+0.45,"") -> 1.28 | F17: =IFERROR($R17+0.45,"") -> 1.28 | G17: =IFERROR($R17+0.45,"") -> 1.28 | H17: =IFERROR(T17,"") -> 3.5 | I17: =IFERROR($S17+0.45,"") -> 1.29 | J17: =IFERROR($S17+0.45,"") -> 1.29 | K17: =IFERROR($S17+0.45,"") -> 1.29 | L17: =IFERROR(U17,"") -> 3.49 | O17: 4 | R17: =+OFFSET(Data_DAO_DAP!$C$2,MATCH(TbKTHH_Dap!$C17,Data_DAO_DAP!$C$3:$C$452,0)+1,2) -> 0.83 | S17: =+OFFSET(Data_DAO_DAP!$C$2,MATCH(TbKTHH_Dap!$C17,Data_DAO_DAP!$C$3:$C$452,0)+1,3) -> 0.84 | T17: =+OFFSET(Data_DAO_DAP!$C$2,MATCH(TbKTHH_Dap!$C17,Data_DAO_DAP!$C$3:$C$452,0)+2,2) -> 3.5 | U17: =+OFFSET(Data_DAO_DAP!$C$2,MATCH(TbKTHH_Dap!$C17,Data_DAO_DAP!$C$3:$C$452,0)+2,3) -> 3.49
D18: =IFERROR(VALUE(SUBSTITUTE(MID(C19,SEARCH("km",C19,1)+2,99),"+",IF(VALUE(MID(C19,SEARCH("+",C19,1)+1,99))<100,0,"")))-VALUE(SUBSTITUTE(MID(C17,SEARCH("km",C17,1)+2,99),"+",IF(VALUE(MID(C17,SEARCH("+",C17,1)+1,99))<100,0,""))),"") -> 16.56
B19: =+IF(C19<>"",B17+1,"") -> 5 | C19: =IF(VALUE(OFFSET(Data_DAO_DAP!$AH$2,MATCH($Q$11,Data_DAO_DAP!$AH$3:$AH$150,0)+O19-1,0))>$Q$12,"",OFFSET(Data_DAO_DAP!$AG$2,MATCH($Q$11,Data_DAO_DAP!$AH$3:$AH$150,0)+O19-1,0)) -> TĐ6 km0+157,54 | E19: =IFERROR($R19+0.45,"") -> 1.28 | F19: =IFERROR($R19+0.45,"") -> 1.28 | G19: =IFERROR($R19+0.45,"") -> 1.28 | H19: =IFERROR(T19,"") -> 3.5 | I19: =IFERROR($S19+0.45,"") -> 1.29 | J19: =IFERROR($S19+0.45,"") -> 1.29 | K19: =IFERROR($S19+0.45,"") -> 1.29 | L19: =IFERROR(U19,"") -> 3.5 | O19: 5 | R19: =+OFFSET(Data_DAO_DAP!$C$2,MATCH(TbKTHH_Dap!$C19,Data_DAO_DAP!$C$3:$C$452,0)+1,2) -> 0.83 | S19: =+OFFSET(Data_DAO_DAP!$C$2,MATCH(TbKTHH_Dap!$C19,Data_DAO_DAP!$C$3:$C$452,0)+1,3) -> 0.84 | T19: =+OFFSET(Data_DAO_DAP!$C$2,MATCH(TbKTHH_Dap!$C19,Data_DAO_DAP!$C$3:$C$452,0)+2,2) -> 3.5 | U19: =+OFFSET(Data_DAO_DAP!$C$2,MATCH(TbKTHH_Dap!$C19,Data_DAO_DAP!$C$3:$C$452,0)+2,3) -> 3.5
D20: =IFERROR(VALUE(SUBSTITUTE(MID(C21,SEARCH("km",C21,1)+2,99),"+",IF(VALUE(MID(C21,SEARCH("+",C21,1)+1,99))<100,0,"")))-VALUE(SUBSTITUTE(MID(C19,SEARCH("km",C19,1)+2,99),"+",IF(VALUE(MID(C19,SEARCH("+",C19,1)+1,99))<100,0,""))),"") -> 16.93
B21: =+IF(C21<>"",B19+1,"") -> 6 | C21: =IF(VALUE(OFFSET(Data_DAO_DAP!$AH$2,MATCH($Q$11,Data_DAO_DAP!$AH$3:$AH$150,0)+O21-1,0))>$Q$12,"",OFFSET(Data_DAO_DAP!$AG$2,MATCH($Q$11,Data_DAO_DAP!$AH$3:$AH$150,0)+O21-1,0)) -> Đ6 km0+174,47 | E21: =IFERROR($R21+0.45,"") -> 1.28 | F21: =IFERROR($R21+0.45,"") -> 1.28 | G21: =IFERROR($R21+0.45,"") -> 1.28 | H21: =IFERROR(T21,"") -> 3.5 | I21: =IFERROR($S21+0.45,"") -> 1.27 | J21: =IFERROR($S21+0.45,"") -> 1.27 | K21: =IFERROR($S21+0.45,"") -> 1.27 | L21: =IFERROR(U21,"") -> 3.5 | O21: 6 | R21: =+OFFSET(Data_DAO_DAP!$C$2,MATCH(TbKTHH_Dap!$C21,Data_DAO_DAP!$C$3:$C$452,0)+1,2) -> 0.83 | S21: =+OFFSET(Data_DAO_DAP!$C$2,MATCH(TbKTHH_Dap!$C21,Data_DAO_DAP!$C$3:$C$452,0)+1,3) -> 0.82 | T21: =+OFFSET(Data_DAO_DAP!$C$2,MATCH(TbKTHH_Dap!$C21,Data_DAO_DAP!$C$3:$C$452,0)+2,2) -> 3.5 | U21: =+OFFSET(Data_DAO_DAP!$C$2,MATCH(TbKTHH_Dap!$C21,Data_DAO_DAP!$C$3:$C$452,0)+2,3) -> 3.5
D22: =IFERROR(VALUE(SUBSTITUTE(MID(C23,SEARCH("km",C23,1)+2,99),"+",IF(VALUE(MID(C23,SEARCH("+",C23,1)+1,99))<100,0,"")))-VALUE(SUBSTITUTE(MID(C21,SEARCH("km",C21,1)+2,99),"+",IF(VALUE(MID(C21,SEARCH("+",C21,1)+1,99))<100,0,""))),"") -> 16.93
B23: =+IF(C23<>"",B21+1,"") -> 7 | C23: =IF(VALUE(OFFSET(Data_DAO_DAP!$AH$2,MATCH($Q$11,Data_DAO_DAP!$AH$3:$AH$150,0)+O23-1,0))>$Q$12,"",OFFSET(Data_DAO_DAP!$AG$2,MATCH($Q$11,Data_DAO_DAP!$AH$3:$AH$150,0)+O23-1,0)) -> TC6 km0+191,40 | E23: =IFERROR($R23+0.45,"") -> 1.28 | F23: =IFERROR($R23+0.45,"") -> 1.28 | G23: =IFERROR($R23+0.45,"") -> 1.28 | H23: =IFERROR(T23,"") -> 3.5 | I23: =IFERROR($S23+0.45,"") -> 1.28 | J23: =IFERROR($S23+0.45,"") -> 1.28 | K23: =IFERROR($S23+0.45,"") -> 1.28 | L23: =IFERROR(U23,"") -> 3.51 | O23: 7 | R23: =+OFFSET(Data_DAO_DAP!$C$2,MATCH(TbKTHH_Dap!$C23,Data_DAO_DAP!$C$3:$C$452,0)+1,2) -> 0.83 | S23: =+OFFSET(Data_DAO_DAP!$C$2,MATCH(TbKTHH_Dap!$C23,Data_DAO_DAP!$C$3:$C$452,0)+1,3) -> 0.83 | T23: =+OFFSET(Data_DAO_DAP!$C$2,MATCH(TbKTHH_Dap!$C23,Data_DAO_DAP!$C$3:$C$452,0)+2,2) -> 3.5 | U23: =+OFFSET(Data_DAO_DAP!$C$2,MATCH(TbKTHH_Dap!$C23,Data_DAO_DAP!$C$3:$C$452,0)+2,3) -> 3.51
D24: =IFERROR(VALUE(SUBSTITUTE(MID(C25,SEARCH("km",C25,1)+2,99),"+",IF(VALUE(MID(C25,SEARCH("+",C25,1)+1,99))<100,0,"")))-VALUE(SUBSTITUTE(MID(C23,SEARCH("km",C23,1)+2,99),"+",IF(VALUE(MID(C23,SEARCH("+",C23,1)+1,99))<100,0,""))),"") -> 
B25: =+IF(C25<>"",B23+1,"") ->  | C25: =IF(VALUE(OFFSET(Data_DAO_DAP!$AH$2,MATCH($Q$11,Data_DAO_DAP!$AH$3:$AH$150,0)+O25-1,0))>$Q$12,"",OFFSET(Data_DAO_DAP!$AG$2,MATCH($Q$11,Data_DAO_DAP!$AH$3:$AH$150,0)+O25-1,0)) ->  | E25: =IFERROR($R25+0.3,"") ->  | F25: =IFERROR($R25+0.3,"") ->  | H25: =IFERROR(T25,"") ->  | I25: =IFERROR($S25+0.3,"") ->  | J25: =IFERROR($S25+0.3,"") ->  | L25: =IFERROR(U25,"") ->  | O25: 8 | R25: =+OFFSET(Data_DAO_DAP!$C$2,MATCH(TbKTHH_Dap!$C25,Data_DAO_DAP!$C$3:$C$452,0)+1,2) ->  | S25: =+OFFSET(Data_DAO_DAP!$C$2,MATCH(TbKTHH_Dap!$C25,Data_DAO_DAP!$C$3:$C$452,0)+1,3) ->  | T25: =+OFFSET(Data_DAO_DAP!$C$2,MATCH(TbKTHH_Dap!$C25,Data_DAO_DAP!$C$3:$C$452,0)+2,2) ->  | U25: =+OFFSET(Data_DAO_DAP!$C$2,MATCH(TbKTHH_Dap!$C25,Data_DAO_DAP!$C$3:$C$452,0)+2,3) -> 
D26: =IFERROR(VALUE(SUBSTITUTE(MID(C27,SEARCH("km",C27,1)+2,99),"+",IF(VALUE(MID(C27,SEARCH("+",C27,1)+1,99))<100,0,"")))-VALUE(SUBSTITUTE(MID(C25,SEARCH("km",C25,1)+2,99),"+",IF(VALUE(MID(C25,SEARCH("+",C25,1)+1,99))<100,0,""))),"") -> 
B27: =+IF(C27<>"",B25+1,"") ->  | C27: =IF(VALUE(OFFSET(Data_DAO_DAP!$AH$2,MATCH($Q$11,Data_DAO_DAP!$AH$3:$AH$150,0)+O27-1,0))>$Q$12,"",OFFSET(Data_DAO_DAP!$AG$2,MATCH($Q$11,Data_DAO_DAP!$AH$3:$AH$150,0)+O27-1,0)) ->  | E27: =IFERROR($R27+0.3,"") ->  | H27: =IFERROR(T27,"") ->  | I27: =IFERROR($S27+0.3,"") ->  | L27: =IFERROR(U27,"") ->  | O27: 9 | R27: =+OFFSET(Data_DAO_DAP!$C$2,MATCH(TbKTHH_Dap!$C27,Data_DAO_DAP!$C$3:$C$452,0)+1,2) ->  | S27: =+OFFSET(Data_DAO_DAP!$C$2,MATCH(TbKTHH_Dap!$C27,Data_DAO_DAP!$C$3:$C$452,0)+1,3) ->  | T27: =+OFFSET(Data_DAO_DAP!$C$2,MATCH(TbKTHH_Dap!$C27,Data_DAO_DAP!$C$3:$C$452,0)+2,2) ->  | U27: =+OFFSET(Data_DAO_DAP!$C$2,MATCH(TbKTHH_Dap!$C27,Data_DAO_DAP!$C$3:$C$452,0)+2,3) -> 
D28: =IFERROR(VALUE(SUBSTITUTE(MID(C29,SEARCH("km",C29,1)+2,99),"+",IF(VALUE(MID(C29,SEARCH("+",C29,1)+1,99))<100,0,"")))-VALUE(SUBSTITUTE(MID(C27,SEARCH("km",C27,1)+2,99),"+",IF(VALUE(MID(C27,SEARCH("+",C27,1)+1,99))<100,0,""))),"") -> 
B29: =+IF(C29<>"",B27+1,"") ->  | C29: =IF(VALUE(OFFSET(Data_DAO_DAP!$AH$2,MATCH($Q$11,Data_DAO_DAP!$AH$3:$AH$150,0)+O29-1,0))>$Q$12,"",OFFSET(Data_DAO_DAP!$AG$2,MATCH($Q$11,Data_DAO_DAP!$AH$3:$AH$150,0)+O29-1,0)) ->  | E29: =IFERROR($R29+0.3,"") ->  | H29: =IFERROR(T29,"") ->  | I29: =IFERROR($S29+0.3,"") ->  | L29: =IFERROR(U29,"") ->  | O29: 10 | R29: =+OFFSET(Data_DAO_DAP!$C$2,MATCH(TbKTHH_Dap!$C29,Data_DAO_DAP!$C$3:$C$452,0)+1,2) ->  | S29: =+OFFSET(Data_DAO_DAP!$C$2,MATCH(TbKTHH_Dap!$C29,Data_DAO_DAP!$C$3:$C$452,0)+1,3) ->  | T29: =+OFFSET(Data_DAO_DAP!$C$2,MATCH(TbKTHH_Dap!$C29,Data_DAO_DAP!$C$3:$C$452,0)+2,2) ->  | U29: =+OFFSET(Data_DAO_DAP!$C$2,MATCH(TbKTHH_Dap!$C29,Data_DAO_DAP!$C$3:$C$452,0)+2,3) -> 
A30: AuCK90.02 | B30: =+IF(B11="","",B11) -> 1 | C30: =+IF(C11="","",C11) -> C3' km0+89,01 | E30: =+IF(E11="","",E11+0.45) -> 1.73 | F30: =+IF(F11="","",F11+0.45) -> 1.73 | G30: =+IF(G11="","",G11+0.45) -> 1.73 | H30: =+IF(H11="","",H11) -> 3.5 | I30: =+IF(I11="","",I11+0.45) -> 1.74 | J30: =+IF(J11="","",J11+0.45) -> 1.74 | K30: =+IF(K11="","",K11+0.45) -> 1.74 | L30: =+IF(L11="","",L11) -> 3.5 | M30: Đắp cát hố móng k=0,90 lớp 2 h=45cm
A31: =+IF(C32="","NOT","") ->  | B31: =+IF(B12="","",B12) ->  | D31: 14.58
B32: =+IF(B13="","",B13) -> 2 | C32: Đ4 km0+103,59 | E32: =+IF(E13="","",E13+0.45) -> 1.73 | F32: =+IF(F13="","",F13+0.45) -> 1.73 | G32: =+IF(G13="","",G13+0.45) -> 1.73 | H32: 3.5 | I32: =+IF(I13="","",I13+0.45) -> 1.72 | J32: =+IF(J13="","",J13+0.45) -> 1.72 | K32: =+IF(K13="","",K13+0.45) -> 1.72 | L32: 3.59
B33: =+IF(B14="","",B14) ->  | D33: 12.42
B34: =+IF(B15="","",B15) -> 3 | C34: C3 km0+116,01 | E34: =+IF(E15="","",E15+0.45) -> 1.73 | F34: =+IF(F15="","",F15+0.45) -> 1.73 | G34: =+IF(G15="","",G15+0.45) -> 1.73 | H34: 3.5 | I34: =+IF(I15="","",I15+0.45) -> 1.74 | J34: =+IF(J15="","",J15+0.45) -> 1.74 | K34: =+IF(K15="","",K15+0.45) -> 1.74 | L34: 3.51
B35: =+IF(B16="","",B16) ->  | D35: 24.97
B36: =+IF(B17="","",B17) -> 4 | C36: Đ5 km0+140,98 | E36: =+IF(E17="","",E17+0.45) -> 1.73 | F36: =+IF(F17="","",F17+0.45) -> 1.73 | G36: =+IF(G17="","",G17+0.45) -> 1.73 | H36: 3.5 | I36: =+IF(I17="","",I17+0.45) -> 1.74 | J36: =+IF(J17="","",J17+0.45) -> 1.74 | K36: =+IF(K17="","",K17+0.45) -> 1.74 | L36: 3.49
B37: =+IF(B18="","",B18) ->  | D37: 16.56
B38: =+IF(B19="","",B19) -> 5 | C38: TĐ6 km0+157,54 | E38: =+IF(E19="","",E19+0.45) -> 1.73 | F38: =+IF(F19="","",F19+0.45) -> 1.73 | G38: =+IF(G19="","",G19+0.45) -> 1.73 | H38: 3.5 | I38: =+IF(I19="","",I19+0.45) -> 1.74 | J38: =+IF(J19="","",J19+0.45) -> 1.74 | K38: =+IF(K19="","",K19+0.45) -> 1.74 | L38: 3.5
B39: =+IF(B20="","",B20) ->  | D39: 16.93
B40: =+IF(B21="","",B21) -> 6 | C40: Đ6 km0+174,47 | E40: =+IF(E21="","",E21+0.45) -> 1.73 | F40: =+IF(F21="","",F21+0.45) -> 1.73 | G40: =+IF(G21="","",G21+0.45) -> 1.73 | H40: 3.5 | I40: =+IF(I21="","",I21+0.45) -> 1.72 | J40: =+IF(J21="","",J21+0.45) -> 1.72 | K40: =+IF(K21="","",K21+0.45) -> 1.72 | L40: 3.5
B41: =+IF(B22="","",B22) ->  | D41: 16.93
B42: =+IF(B23="","",B23) -> 7 | C42: TC6 km0+191,40 | E42: =+IF(E23="","",E23+0.45) -> 1.73 | F42: =+IF(F23="","",F23+0.45) -> 1.73 | G42: =+IF(G23="","",G23+0.45) -> 1.73 | H42: 3.5 | I42: =+IF(I23="","",I23+0.45) -> 1.73 | J42: =+IF(J23="","",J23+0.45) -> 1.73 | K42: =+IF(K23="","",K23+0.45) -> 1.73 | L42: 3.51
B43: =+IF(B24="","",B24) -> 
B44: =+IF(B25="","",B25) ->  | E44: =+IF(E25="","",E25+0.45) ->  | F44: =+IF(F25="","",F25+0.45) ->  | G44: =+IF(G25="","",G25+0.45) ->  | I44: =+IF(I25="","",I25+0.45) ->  | J44: =+IF(J25="","",J25+0.45) ->  | K44: =+IF(K25="","",K25+0.45) -> 
B45: =+IF(B26="","",B26) -> 
B46: =+IF(B27="","",B27) ->  | E46: =+IF(E27="","",E27+0.45) ->  | F46: =+IF(F27="","",F27+0.45) ->  | G46: =+IF(G27="","",G27+0.45) ->  | I46: =+IF(I27="","",I27+0.45) ->  | J46: =+IF(J27="","",J27+0.45) ->  | K46: =+IF(K27="","",K27+0.45) -> 
B47: =+IF(B28="","",B28) -> 
B48: =+IF(B29="","",B29) ->  | E48: =+IF(E29="","",E29+0.45) ->  | F48: =+IF(F29="","",F29+0.45) ->  | G48: =+IF(G29="","",G29+0.45) ->  | I48: =+IF(I29="","",I29+0.45) ->  | J48: =+IF(J29="","",J29+0.45) ->  | K48: =+IF(K29="","",K29+0.45) -> 
A49: AuCK95.01 | B49: =+IF(B30="","",B30) -> 1 | C49: =+IF(C30="","",C30) -> C3' km0+89,01 | E49: =+IF(E30="","",E30+0.3) -> 2.03 | F49: =+IF(F30="","",F30+0.3) -> 2.03 | G49: =+IF(G30="","",G30+0.3) -> 2.03 | H49: 3.5 | I49: =+IF(I30="","",I30+0.3) -> 2.04 | J49: =+IF(J30="","",J30+0.3) -> 2.04 | K49: =+IF(K30="","",K30+0.3) -> 2.04 | L49: 3.5 | M49: Đắp cát hố móng k=0,95 lớp h=30cm
A50: =+IF(C51="","NOT","") ->  | B50: =+IF(B31="","",B31) ->  | D50: 14.58
B51: =+IF(B32="","",B32) -> 2 | C51: Đ4 km0+103,59 | E51: =+IF(E32="","",E32+0.3) -> 2.03 | F51: =+IF(F32="","",F32+0.3) -> 2.03 | G51: =+IF(G32="","",G32+0.3) -> 2.03 | H51: 3.5 | I51: =+IF(I32="","",I32+0.3) -> 2.02 | J51: =+IF(J32="","",J32+0.3) -> 2.02 | K51: =+IF(K32="","",K32+0.3) -> 2.02 | L51: 3.59
B52: =+IF(B33="","",B33) ->  | D52: 12.42
B53: =+IF(B34="","",B34) -> 3 | C53: C3 km0+116,01 | E53: =+IF(E34="","",E34+0.3) -> 2.03 | F53: =+IF(F34="","",F34+0.3) -> 2.03 | G53: =+IF(G34="","",G34+0.3) -> 2.03 | H53: 3.5 | I53: =+IF(I34="","",I34+0.3) -> 2.04 | J53: =+IF(J34="","",J34+0.3) -> 2.04 | K53: =+IF(K34="","",K34+0.3) -> 2.04 | L53: 3.51
B54: =+IF(B35="","",B35) ->  | D54: 24.97
B55: =+IF(B36="","",B36) -> 4 | C55: Đ5 km0+140,98 | E55: =+IF(E36="","",E36+0.3) -> 2.03 | F55: =+IF(F36="","",F36+0.3) -> 2.03 | G55: =+IF(G36="","",G36+0.3) -> 2.03 | H55: 3.5 | I55: =+IF(I36="","",I36+0.3) -> 2.04 | J55: =+IF(J36="","",J36+0.3) -> 2.04 | K55: =+IF(K36="","",K36+0.3) -> 2.04 | L55: 3.49
B56: =+IF(B37="","",B37) ->  | D56: 16.56
B57: =+IF(B38="","",B38) -> 5 | C57: TĐ6 km0+157,54 | E57: =+IF(E38="","",E38+0.3) -> 2.03 | F57: =+IF(F38="","",F38+0.3) -> 2.03 | G57: =+IF(G38="","",G38+0.3) -> 2.03 | H57: 3.5 | I57: =+IF(I38="","",I38+0.3) -> 2.04 | J57: =+IF(J38="","",J38+0.3) -> 2.04 | K57: =+IF(K38="","",K38+0.3) -> 2.04 | L57: 3.5
B58: =+IF(B39="","",B39) ->  | D58: 16.93
B59: =+IF(B40="","",B40) -> 6 | C59: Đ6 km0+174,47 | E59: =+IF(E40="","",E40+0.3) -> 2.03 | F59: =+IF(F40="","",F40+0.3) -> 2.03 | G59: =+IF(G40="","",G40+0.3) -> 2.03 | H59: 3.5 | I59: =+IF(I40="","",I40+0.3) -> 2.02 | J59: =+IF(J40="","",J40+0.3) -> 2.02 | K59: =+IF(K40="","",K40+0.3) -> 2.02 | L59: 3.5
B60: =+IF(B41="","",B41) ->  | D60: 16.93
B61: =+IF(B42="","",B42) -> 7 | C61: TC6 km0+191,40 | E61: =+IF(E42="","",E42+0.3) -> 2.03 | F61: =+IF(F42="","",F42+0.3) -> 2.03 | G61: =+IF(G42="","",G42+0.3) -> 2.03 | H61: 3.5 | I61: =+IF(I42="","",I42+0.3) -> 2.03 | J61: =+IF(J42="","",J42+0.3) -> 2.03 | K61: =+IF(K42="","",K42+0.3) -> 2.03 | L61: 3.51
B62: =+IF(B43="","",B43) -> 
B63: =+IF(B44="","",B44) ->  | E63: =+IF(E44="","",E44+0.3) ->  | F63: =+IF(F44="","",F44+0.3) ->  | G63: =+IF(G44="","",G44+0.3) ->  | I63: =+IF(I44="","",I44+0.3) ->  | J63: =+IF(J44="","",J44+0.3) ->  | K63: =+IF(K44="","",K44+0.3) -> 
B64: =+IF(B45="","",B45) -> 
B65: =+IF(B46="","",B46) ->  | E65: =+IF(E46="","",E46+0.3) ->  | F65: =+IF(F46="","",F46+0.3) ->  | G65: =+IF(G46="","",G46+0.3) ->  | I65: =+IF(I46="","",I46+0.3) ->  | J65: =+IF(J46="","",J46+0.3) ->  | K65: =+IF(K46="","",K46+0.3) -> 
B66: =+IF(B47="","",B47) -> 
B67: =+IF(B48="","",B48) ->  | E67: =+IF(E48="","",E48+0.3) ->  | F67: =+IF(F48="","",F48+0.3) ->  | G67: =+IF(G48="","",G48+0.3) ->  | I67: =+IF(I48="","",I48+0.3) ->  | J67: =+IF(J48="","",J48+0.3) ->  | K67: =+IF(K48="","",K48+0.3) -> 
A68: AuDD.01 | B68: =+IF(B49="","",B49) -> 1 | C68: =+IF(C49="","",C49) -> C3' km0+89,01 | E68: =+IF(E49="","",E49+0.12) -> 2.15 | F68: =+IF(F49="","",F49+0.12) -> 2.15 | G68: =+IF(G49="","",G49+0.12) -> 2.15 | H68: 3.5 | I68: =+IF(I49="","",I49+0.12) -> 2.16 | J68: =+IF(J49="","",J49+0.12) -> 2.16 | K68: =+IF(K49="","",K49+0.12) -> 2.16 | L68: =+IF(L49="","",3.5) -> 3.5 | M68: Trải đá dăm h=12cm
A69: =+IF(C70="","NOT","") ->  | B69: =+IF(B50="","",B50) ->  | D69: 14.58
B70: =+IF(B51="","",B51) -> 2 | C70: Đ4 km0+103,59 | E70: =+IF(E51="","",E51+0.12) -> 2.15 | F70: =+IF(F51="","",F51+0.12) -> 2.15 | G70: =+IF(G51="","",G51+0.12) -> 2.15 | H70: 3.5 | I70: =+IF(I51="","",I51+0.12) -> 2.14 | J70: =+IF(J51="","",J51+0.12) -> 2.14 | K70: =+IF(K51="","",K51+0.12) -> 2.14 | L70: =+IF(L51="","",3.5) -> 3.5
B71: =+IF(B52="","",B52) ->  | D71: 12.42
B72: =+IF(B53="","",B53) -> 3 | C72: C3 km0+116,01 | E72: =+IF(E53="","",E53+0.12) -> 2.15 | F72: =+IF(F53="","",F53+0.12) -> 2.15 | G72: =+IF(G53="","",G53+0.12) -> 2.15 | H72: 3.5 | I72: =+IF(I53="","",I53+0.12) -> 2.16 | J72: =+IF(J53="","",J53+0.12) -> 2.16 | K72: =+IF(K53="","",K53+0.12) -> 2.16 | L72: =+IF(L53="","",3.5) -> 3.5
B73: =+IF(B54="","",B54) ->  | D73: 24.97
B74: =+IF(B55="","",B55) -> 4 | C74: Đ5 km0+140,98 | E74: =+IF(E55="","",E55+0.12) -> 2.15 | F74: =+IF(F55="","",F55+0.12) -> 2.15 | G74: =+IF(G55="","",G55+0.12) -> 2.15 | H74: 3.5 | I74: =+IF(I55="","",I55+0.12) -> 2.16 | J74: =+IF(J55="","",J55+0.12) -> 2.16 | K74: =+IF(K55="","",K55+0.12) -> 2.16 | L74: =+IF(L55="","",3.5) -> 3.5
B75: =+IF(B56="","",B56) ->  | D75: 16.56
B76: =+IF(B57="","",B57) -> 5 | C76: TĐ6 km0+157,54 | E76: =+IF(E57="","",E57+0.12) -> 2.15 | F76: =+IF(F57="","",F57+0.12) -> 2.15 | G76: =+IF(G57="","",G57+0.12) -> 2.15 | H76: 3.5 | I76: =+IF(I57="","",I57+0.12) -> 2.16 | J76: =+IF(J57="","",J57+0.12) -> 2.16 | K76: =+IF(K57="","",K57+0.12) -> 2.16 | L76: =+IF(L57="","",3.5) -> 3.5
B77: =+IF(B58="","",B58) ->  | D77: 16.93
B78: =+IF(B59="","",B59) -> 6 | C78: Đ6 km0+174,47 | E78: =+IF(E59="","",E59+0.12) -> 2.15 | F78: =+IF(F59="","",F59+0.12) -> 2.15 | G78: =+IF(G59="","",G59+0.12) -> 2.15 | H78: 3.5 | I78: =+IF(I59="","",I59+0.12) -> 2.14 | J78: =+IF(J59="","",J59+0.12) -> 2.14 | K78: =+IF(K59="","",K59+0.12) -> 2.14 | L78: =+IF(L59="","",3.5) -> 3.5
B79: =+IF(B60="","",B60) ->  | D79: 16.93
B80: =+IF(B61="","",B61) -> 7 | C80: TC6 km0+191,40 | E80: =+IF(E61="","",E61+0.12) -> 2.15 | F80: =+IF(F61="","",F61+0.12) -> 2.15 | G80: =+IF(G61="","",G61+0.12) -> 2.15 | H80: 3.5 | I80: =+IF(I61="","",I61+0.12) -> 2.15 | J80: =+IF(J61="","",J61+0.12) -> 2.15 | K80: =+IF(K61="","",K61+0.12) -> 2.15 | L80: =+IF(L61="","",3.5) -> 3.5
B81: =+IF(B62="","",B62) -> 
B82: =+IF(B63="","",B63) ->  | E82: =+IF(E63="","",E63+0.12) ->  | F82: =+IF(F63="","",F63+0.12) ->  | G82: =+IF(G63="","",G63+0.12) ->  | I82: =+IF(I63="","",I63+0.12) ->  | J82: =+IF(J63="","",J63+0.12) ->  | K82: =+IF(K63="","",K63+0.12) -> 
B83: =+IF(B64="","",B64) -> 
B84: =+IF(B65="","",B65) ->  | E84: =+IF(E65="","",E65+0.12) ->  | F84: =+IF(F65="","",F65+0.12) ->  | G84: =+IF(G65="","",G65+0.12) ->  | I84: =+IF(I65="","",I65+0.12) ->  | J84: =+IF(J65="","",J65+0.12) ->  | K84: =+IF(K65="","",K65+0.12) -> 
B85: =+IF(B66="","",B66) -> 
B86: =+IF(B67="","",B67) ->  | E86: =+IF(E67="","",E67+0.12) ->  | F86: =+IF(F67="","",F67+0.12) ->  | G86: =+IF(G67="","",G67+0.12) ->  | I86: =+IF(I67="","",I67+0.12) ->  | J86: =+IF(J67="","",J67+0.12) ->  | K86: =+IF(K67="","",K67+0.12) -> 
A87: AuBTMD | B87: =+IF(B68="","",B68) -> 1 | C87: =+IF(C68="","",C68) -> C3' km0+89,01 | E87: =+IF(E68="","",E68+0.12) -> 2.27 | F87: =+IF(F68="","",2.3) -> 2.3 | G87: =+IF(G68="","",G68+0.12) -> 2.27 | H87: 3.5 | I87: =+IF(I68="","",2.27) -> 2.27 | J87: =+IF(J68="","",2.3) -> 2.3 | K87: =+IF(K68="","",2.27) -> 2.27 | L87: =+IF(L68="","",3.5) -> 3.5 | M87: Bê tông mặt đường h=12cm
A88: =+IF(C89="","NOT","") ->  | B88: =+IF(B69="","",B69) ->  | D88: 14.58
B89: =+IF(B70="","",B70) -> 2 | C89: Đ4 km0+103,59 | E89: =+IF(E70="","",E70+0.12) -> 2.27 | F89: =+IF(F70="","",2.3) -> 2.3 | G89: =+IF(G70="","",G70+0.12) -> 2.27 | H89: 3.5 | I89: =+IF(I70="","",2.27) -> 2.27 | J89: =+IF(J70="","",2.3) -> 2.3 | K89: =+IF(K70="","",2.27) -> 2.27 | L89: =+IF(L70="","",3.5) -> 3.5
B90: =+IF(B71="","",B71) ->  | D90: 12.42
B91: =+IF(B72="","",B72) -> 3 | C91: C3 km0+116,01 | E91: =+IF(E72="","",E72+0.12) -> 2.27 | F91: =+IF(F72="","",2.3) -> 2.3 | G91: =+IF(G72="","",G72+0.12) -> 2.27 | H91: 3.5 | I91: =+IF(I72="","",2.27) -> 2.27 | J91: =+IF(J72="","",2.3) -> 2.3 | K91: =+IF(K72="","",2.27) -> 2.27 | L91: =+IF(L72="","",3.5) -> 3.5
B92: =+IF(B73="","",B73) ->  | D92: 24.97
B93: =+IF(B74="","",B74) -> 4 | C93: Đ5 km0+140,98 | E93: =+IF(E74="","",E74+0.12) -> 2.27 | F93: =+IF(F74="","",2.3) -> 2.3 | G93: =+IF(G74="","",G74+0.12) -> 2.27 | H93: 3.5 | I93: =+IF(I74="","",2.27) -> 2.27 | J93: =+IF(J74="","",2.3) -> 2.3 | K93: =+IF(K74="","",2.27) -> 2.27 | L93: =+IF(L74="","",3.5) -> 3.5
B94: =+IF(B75="","",B75) ->  | D94: 16.56
B95: =+IF(B76="","",B76) -> 5 | C95: TĐ6 km0+157,54 | E95: =+IF(E76="","",E76+0.12) -> 2.27 | F95: =+IF(F76="","",2.3) -> 2.3 | G95: =+IF(G76="","",G76+0.12) -> 2.27 | H95: =+IF(H76="","",H76) -> 3.5 | I95: =+IF(I76="","",2.27) -> 2.27 | J95: =+IF(J76="","",2.3) -> 2.3 | K95: =+IF(K76="","",2.27) -> 2.27 | L95: =+IF(L76="","",3.5) -> 3.5
B96: =+IF(B77="","",B77) ->  | D96: 16.93
B97: =+IF(B78="","",B78) -> 6 | C97: Đ6 km0+174,47 | E97: =+IF(E78="","",E78+0.12) -> 2.27 | F97: =+IF(F78="","",2.3) -> 2.3 | G97: =+IF(G78="","",G78+0.12) -> 2.27 | H97: 3.5 | I97: =+IF(I78="","",2.27) -> 2.27 | J97: =+IF(J78="","",2.3) -> 2.3 | K97: =+IF(K78="","",2.27) -> 2.27 | L97: =+IF(L78="","",3.5) -> 3.5
B98: =+IF(B79="","",B79) ->  | D98: 16.93
B99: =+IF(B80="","",B80) -> 7 | C99: TC6 km0+191,40 | E99: =+IF(E80="","",E80+0.12) -> 2.27 | F99: =+IF(F80="","",2.3) -> 2.3 | G99: =+IF(G80="","",G80+0.12) -> 2.27 | H99: 3.5 | I99: =+IF(I80="","",2.27) -> 2.27 | J99: =+IF(J80="","",2.3) -> 2.3 | K99: =+IF(K80="","",2.27) -> 2.27 | L99: =+IF(L80="","",3.5) -> 3.5
B100: =+IF(B81="","",B81) -> 
B101: =+IF(B82="","",B82) ->  | E101: =+IF(E82="","",E82+0.12) ->  | F101: =+IF(F82="","",2.3) ->  | G101: =+IF(G82="","",G82+0.12) ->  | I101: =+IF(I82="","",I82+0.12) ->  | J101: =+IF(J82="","",J82+0.12) ->  | K101: =+IF(K82="","",K82+0.12) ->  | L101: =+IF(L82="","",L82) -> 
B102: =+IF(B83="","",B83) -> 
B103: =+IF(B84="","",B84) ->  | E103: =+IF(E84="","",E84+0.12) ->  | F103: =+IF(F84="","",2.3) ->  | G103: =+IF(G84="","",G84+0.12) ->  | I103: =+IF(I84="","",I84+0.12) ->  | J103: =+IF(J84="","",J84+0.12) ->  | K103: =+IF(K84="","",K84+0.12) -> 
B104: =+IF(B85="","",B85) -> 
B105: =+IF(B86="","",B86) ->  | E105: =+IF(E86="","",E86+0.12) ->  | F105: =+IF(F86="","",2.3) ->  | G105: =+IF(G86="","",G86+0.12) ->  | I105: =+IF(I86="","",I86+0.12) ->  | J105: =+IF(J86="","",J86+0.12) ->  | K105: =+IF(K86="","",K86+0.12) -> 
A106: AuDATLE02 | B106: =+IF(B87="","",B87) -> 1 | C106: =+IF(C87="","",C87) -> C3' km0+89,01 | E106: =IFERROR(OFFSET(Data_DAO_DAP!$M$2,MATCH(TbKTHH_Dap!$C106,Data_DAO_DAP!$M$3:$M$452,0)+1,2),"") -> 2.27 | F106: =IFERROR(OFFSET(Data_DAO_DAP!$M$2,MATCH(TbKTHH_Dap!$C106,Data_DAO_DAP!$M$3:$M$452,0)+1,3),"") ->  | G106: =IFERROR(OFFSET(Data_DAO_DAP!$M$2,MATCH(TbKTHH_Dap!$C106,Data_DAO_DAP!$M$3:$M$452,0)+1,4),"") -> 2.27 | H106: =IFERROR(OFFSET(Data_DAO_DAP!$M$2,MATCH(TbKTHH_Dap!$C106,Data_DAO_DAP!$M$3:$M$452,0)+1,5),"") ->  | I106: =IFERROR(OFFSET(Data_DAO_DAP!$M$2,MATCH(TbKTHH_Dap!$C106,Data_DAO_DAP!$M$3:$M$452,0)+1,6),"") -> 2.28 | J106: =IFERROR(OFFSET(Data_DAO_DAP!$M$2,MATCH(TbKTHH_Dap!$C106,Data_DAO_DAP!$M$3:$M$452,0)+1,7),"") ->  | K106: =IFERROR(OFFSET(Data_DAO_DAP!$M$2,MATCH(TbKTHH_Dap!$C106,Data_DAO_DAP!$M$3:$M$452,0)+1,8),"") -> 2.27 | L106: =IFERROR(OFFSET(Data_DAO_DAP!$M$2,MATCH(TbKTHH_Dap!$C106,Data_DAO_DAP!$M$3:$M$452,0)+1,9),"") ->  | M106: Đắp đất lề đường lớp 2
A107: =+IF(C108="","NOT","") ->  | B107: =+IF(B88="","",B88) ->  | D107: 14.58
B108: =+IF(B89="","",B89) -> 2 | C108: Đ4 km0+103,59 | E108: =IFERROR(OFFSET(Data_DAO_DAP!$M$2,MATCH(TbKTHH_Dap!$C108,Data_DAO_DAP!$M$3:$M$452,0)+1,2),"") -> 2.27 | F108: =IFERROR(OFFSET(Data_DAO_DAP!$M$2,MATCH(TbKTHH_Dap!$C108,Data_DAO_DAP!$M$3:$M$452,0)+1,3),"") ->  | G108: =IFERROR(OFFSET(Data_DAO_DAP!$M$2,MATCH(TbKTHH_Dap!$C108,Data_DAO_DAP!$M$3:$M$452,0)+1,4),"") -> 2.27 | H108: =IFERROR(OFFSET(Data_DAO_DAP!$M$2,MATCH(TbKTHH_Dap!$C108,Data_DAO_DAP!$M$3:$M$452,0)+1,5),"") ->  | I108: =IFERROR(OFFSET(Data_DAO_DAP!$M$2,MATCH(TbKTHH_Dap!$C108,Data_DAO_DAP!$M$3:$M$452,0)+1,6),"") -> 2.28 | J108: =IFERROR(OFFSET(Data_DAO_DAP!$M$2,MATCH(TbKTHH_Dap!$C108,Data_DAO_DAP!$M$3:$M$452,0)+1,7),"") ->  | K108: =IFERROR(OFFSET(Data_DAO_DAP!$M$2,MATCH(TbKTHH_Dap!$C108,Data_DAO_DAP!$M$3:$M$452,0)+1,8),"") -> 2.28 | L108: =IFERROR(OFFSET(Data_DAO_DAP!$M$2,MATCH(TbKTHH_Dap!$C108,Data_DAO_DAP!$M$3:$M$452,0)+1,9),"") -> 
B109: =+IF(B90="","",B90) ->  | D109: 12.42
B110: =+IF(B91="","",B91) -> 3 | C110: C3 km0+116,01 | E110: =IFERROR(OFFSET(Data_DAO_DAP!$M$2,MATCH(TbKTHH_Dap!$C110,Data_DAO_DAP!$M$3:$M$452,0)+1,2),"") -> 2.27 | F110: =IFERROR(OFFSET(Data_DAO_DAP!$M$2,MATCH(TbKTHH_Dap!$C110,Data_DAO_DAP!$M$3:$M$452,0)+1,3),"") ->  | G110: =IFERROR(OFFSET(Data_DAO_DAP!$M$2,MATCH(TbKTHH_Dap!$C110,Data_DAO_DAP!$M$3:$M$452,0)+1,4),"") -> 2.27 | H110: =IFERROR(OFFSET(Data_DAO_DAP!$M$2,MATCH(TbKTHH_Dap!$C110,Data_DAO_DAP!$M$3:$M$452,0)+1,5),"") ->  | I110: =IFERROR(OFFSET(Data_DAO_DAP!$M$2,MATCH(TbKTHH_Dap!$C110,Data_DAO_DAP!$M$3:$M$452,0)+1,6),"") -> 2.26 | J110: =IFERROR(OFFSET(Data_DAO_DAP!$M$2,MATCH(TbKTHH_Dap!$C110,Data_DAO_DAP!$M$3:$M$452,0)+1,7),"") ->  | K110: =IFERROR(OFFSET(Data_DAO_DAP!$M$2,MATCH(TbKTHH_Dap!$C110,Data_DAO_DAP!$M$3:$M$452,0)+1,8),"") -> 2.28 | L110: =IFERROR(OFFSET(Data_DAO_DAP!$M$2,MATCH(TbKTHH_Dap!$C110,Data_DAO_DAP!$M$3:$M$452,0)+1,9),"") -> 
B111: =+IF(B92="","",B92) ->  | D111: 24.97
B112: =+IF(B93="","",B93) -> 4 | C112: Đ5 km0+140,98 | E112: =IFERROR(OFFSET(Data_DAO_DAP!$M$2,MATCH(TbKTHH_Dap!$C112,Data_DAO_DAP!$M$3:$M$452,0)+1,2),"") -> 2.27 | F112: =IFERROR(OFFSET(Data_DAO_DAP!$M$2,MATCH(TbKTHH_Dap!$C112,Data_DAO_DAP!$M$3:$M$452,0)+1,3),"") ->  | G112: =IFERROR(OFFSET(Data_DAO_DAP!$M$2,MATCH(TbKTHH_Dap!$C112,Data_DAO_DAP!$M$3:$M$452,0)+1,4),"") -> 2.27 | H112: =IFERROR(OFFSET(Data_DAO_DAP!$M$2,MATCH(TbKTHH_Dap!$C112,Data_DAO_DAP!$M$3:$M$452,0)+1,5),"") ->  | I112: =IFERROR(OFFSET(Data_DAO_DAP!$M$2,MATCH(TbKTHH_Dap!$C112,Data_DAO_DAP!$M$3:$M$452,0)+1,6),"") -> 2.26 | J112: =IFERROR(OFFSET(Data_DAO_DAP!$M$2,MATCH(TbKTHH_Dap!$C112,Data_DAO_DAP!$M$3:$M$452,0)+1,7),"") ->  | K112: =IFERROR(OFFSET(Data_DAO_DAP!$M$2,MATCH(TbKTHH_Dap!$C112,Data_DAO_DAP!$M$3:$M$452,0)+1,8),"") -> 2.27 | L112: =IFERROR(OFFSET(Data_DAO_DAP!$M$2,MATCH(TbKTHH_Dap!$C112,Data_DAO_DAP!$M$3:$M$452,0)+1,9),"") -> 
B113: =+IF(B94="","",B94) ->  | D113: 16.56
B114: =+IF(B95="","",B95) -> 5 | C114: TĐ6 km0+157,54 | E114: =IFERROR(OFFSET(Data_DAO_DAP!$M$2,MATCH(TbKTHH_Dap!$C114,Data_DAO_DAP!$M$3:$M$452,0)+1,2),"") -> 2.27 | F114: =IFERROR(OFFSET(Data_DAO_DAP!$M$2,MATCH(TbKTHH_Dap!$C114,Data_DAO_DAP!$M$3:$M$452,0)+1,3),"") ->  | G114: =IFERROR(OFFSET(Data_DAO_DAP!$M$2,MATCH(TbKTHH_Dap!$C114,Data_DAO_DAP!$M$3:$M$452,0)+1,4),"") -> 2.27 | H114: =IFERROR(OFFSET(Data_DAO_DAP!$M$2,MATCH(TbKTHH_Dap!$C114,Data_DAO_DAP!$M$3:$M$452,0)+1,5),"") ->  | I114: =IFERROR(OFFSET(Data_DAO_DAP!$M$2,MATCH(TbKTHH_Dap!$C114,Data_DAO_DAP!$M$3:$M$452,0)+1,6),"") -> 2.26 | J114: =IFERROR(OFFSET(Data_DAO_DAP!$M$2,MATCH(TbKTHH_Dap!$C114,Data_DAO_DAP!$M$3:$M$452,0)+1,7),"") ->  | K114: =IFERROR(OFFSET(Data_DAO_DAP!$M$2,MATCH(TbKTHH_Dap!$C114,Data_DAO_DAP!$M$3:$M$452,0)+1,8),"") -> 2.26 | L114: =IFERROR(OFFSET(Data_DAO_DAP!$M$2,MATCH(TbKTHH_Dap!$C114,Data_DAO_DAP!$M$3:$M$452,0)+1,9),"") -> 
B115: =+IF(B96="","",B96) ->  | D115: 16.93
B116: =+IF(B97="","",B97) -> 6 | C116: Đ6 km0+174,47 | E116: =IFERROR(OFFSET(Data_DAO_DAP!$M$2,MATCH(TbKTHH_Dap!$C116,Data_DAO_DAP!$M$3:$M$452,0)+1,2),"") -> 2.27 | F116: =IFERROR(OFFSET(Data_DAO_DAP!$M$2,MATCH(TbKTHH_Dap!$C116,Data_DAO_DAP!$M$3:$M$452,0)+1,3),"") ->  | G116: =IFERROR(OFFSET(Data_DAO_DAP!$M$2,MATCH(TbKTHH_Dap!$C116,Data_DAO_DAP!$M$3:$M$452,0)+1,4),"") -> 2.27 | H116: =IFERROR(OFFSET(Data_DAO_DAP!$M$2,MATCH(TbKTHH_Dap!$C116,Data_DAO_DAP!$M$3:$M$452,0)+1,5),"") ->  | I116: =IFERROR(OFFSET(Data_DAO_DAP!$M$2,MATCH(TbKTHH_Dap!$C116,Data_DAO_DAP!$M$3:$M$452,0)+1,6),"") -> 2.28 | J116: =IFERROR(OFFSET(Data_DAO_DAP!$M$2,MATCH(TbKTHH_Dap!$C116,Data_DAO_DAP!$M$3:$M$452,0)+1,7),"") ->  | K116: =IFERROR(OFFSET(Data_DAO_DAP!$M$2,MATCH(TbKTHH_Dap!$C116,Data_DAO_DAP!$M$3:$M$452,0)+1,8),"") -> 2.26 | L116: =IFERROR(OFFSET(Data_DAO_DAP!$M$2,MATCH(TbKTHH_Dap!$C116,Data_DAO_DAP!$M$3:$M$452,0)+1,9),"") -> 
B117: =+IF(B98="","",B98) ->  | D117: 16.93
B118: =+IF(B99="","",B99) -> 7 | C118: TC6 km0+191,40 | E118: =IFERROR(OFFSET(Data_DAO_DAP!$M$2,MATCH(TbKTHH_Dap!$C118,Data_DAO_DAP!$M$3:$M$452,0)+1,2),"") -> 2.27 | F118: =IFERROR(OFFSET(Data_DAO_DAP!$M$2,MATCH(TbKTHH_Dap!$C118,Data_DAO_DAP!$M$3:$M$452,0)+1,3),"") ->  | G118: =IFERROR(OFFSET(Data_DAO_DAP!$M$2,MATCH(TbKTHH_Dap!$C118,Data_DAO_DAP!$M$3:$M$452,0)+1,4),"") -> 2.27 | H118: =IFERROR(OFFSET(Data_DAO_DAP!$M$2,MATCH(TbKTHH_Dap!$C118,Data_DAO_DAP!$M$3:$M$452,0)+1,5),"") ->  | I118: =IFERROR(OFFSET(Data_DAO_DAP!$M$2,MATCH(TbKTHH_Dap!$C118,Data_DAO_DAP!$M$3:$M$452,0)+1,6),"") -> 2.26 | J118: =IFERROR(OFFSET(Data_DAO_DAP!$M$2,MATCH(TbKTHH_Dap!$C118,Data_DAO_DAP!$M$3:$M$452,0)+1,7),"") ->  | K118: =IFERROR(OFFSET(Data_DAO_DAP!$M$2,MATCH(TbKTHH_Dap!$C118,Data_DAO_DAP!$M$3:$M$452,0)+1,8),"") -> 2.27 | L118: =IFERROR(OFFSET(Data_DAO_DAP!$M$2,MATCH(TbKTHH_Dap!$C118,Data_DAO_DAP!$M$3:$M$452,0)+1,9),"") -> 
B119: =+IF(B100="","",B100) -> 
B120: =+IF(B101="","",B101) ->  | E120: =IFERROR(OFFSET(Data_DAO_DAP!$M$2,MATCH(TbKTHH_Dap!$C120,Data_DAO_DAP!$M$3:$M$452,0)+1,2),"") ->  | F120: =IFERROR(OFFSET(Data_DAO_DAP!$M$2,MATCH(TbKTHH_Dap!$C120,Data_DAO_DAP!$M$3:$M$452,0)+1,3),"") ->  | G120: =IFERROR(OFFSET(Data_DAO_DAP!$M$2,MATCH(TbKTHH_Dap!$C120,Data_DAO_DAP!$M$3:$M$452,0)+1,4),"") ->  | H120: =IFERROR(OFFSET(Data_DAO_DAP!$M$2,MATCH(TbKTHH_Dap!$C120,Data_DAO_DAP!$M$3:$M$452,0)+1,5),"") ->  | I120: =IFERROR(OFFSET(Data_DAO_DAP!$M$2,MATCH(TbKTHH_Dap!$C120,Data_DAO_DAP!$M$3:$M$452,0)+1,6),"") ->  | J120: =IFERROR(OFFSET(Data_DAO_DAP!$M$2,MATCH(TbKTHH_Dap!$C120,Data_DAO_DAP!$M$3:$M$452,0)+1,7),"") ->  | K120: =IFERROR(OFFSET(Data_DAO_DAP!$M$2,MATCH(TbKTHH_Dap!$C120,Data_DAO_DAP!$M$3:$M$452,0)+1,8),"") ->  | L120: =IFERROR(OFFSET(Data_DAO_DAP!$M$2,MATCH(TbKTHH_Dap!$C120,Data_DAO_DAP!$M$3:$M$452,0)+1,9),"") -> 
B121: =+IF(B102="","",B102) -> 
B122: =+IF(B103="","",B103) ->  | E122: =IFERROR(OFFSET(Data_DAO_DAP!$M$2,MATCH(TbKTHH_Dap!$C122,Data_DAO_DAP!$M$3:$M$452,0)+1,2),"") ->  | F122: =IFERROR(OFFSET(Data_DAO_DAP!$M$2,MATCH(TbKTHH_Dap!$C122,Data_DAO_DAP!$M$3:$M$452,0)+1,3),"") ->  | G122: =IFERROR(OFFSET(Data_DAO_DAP!$M$2,MATCH(TbKTHH_Dap!$C122,Data_DAO_DAP!$M$3:$M$452,0)+1,4),"") ->  | H122: =IFERROR(OFFSET(Data_DAO_DAP!$M$2,MATCH(TbKTHH_Dap!$C122,Data_DAO_DAP!$M$3:$M$452,0)+1,5),"") ->  | I122: =IFERROR(OFFSET(Data_DAO_DAP!$M$2,MATCH(TbKTHH_Dap!$C122,Data_DAO_DAP!$M$3:$M$452,0)+1,6),"") ->  | J122: =IFERROR(OFFSET(Data_DAO_DAP!$M$2,MATCH(TbKTHH_Dap!$C122,Data_DAO_DAP!$M$3:$M$452,0)+1,7),"") ->  | K122: =IFERROR(OFFSET(Data_DAO_DAP!$M$2,MATCH(TbKTHH_Dap!$C122,Data_DAO_DAP!$M$3:$M$452,0)+1,8),"") ->  | L122: =IFERROR(OFFSET(Data_DAO_DAP!$M$2,MATCH(TbKTHH_Dap!$C122,Data_DAO_DAP!$M$3:$M$452,0)+1,9),"") -> 
B123: =+IF(B104="","",B104) -> 
B124: =+IF(B105="","",B105) ->  | E124: =IFERROR(OFFSET(Data_DAO_DAP!$M$2,MATCH(TbKTHH_Dap!$C124,Data_DAO_DAP!$M$3:$M$452,0)+1,2),"") ->  | F124: =IFERROR(OFFSET(Data_DAO_DAP!$M$2,MATCH(TbKTHH_Dap!$C124,Data_DAO_DAP!$M$3:$M$452,0)+1,3),"") ->  | G124: =IFERROR(OFFSET(Data_DAO_DAP!$M$2,MATCH(TbKTHH_Dap!$C124,Data_DAO_DAP!$M$3:$M$452,0)+1,4),"") ->  | H124: =IFERROR(OFFSET(Data_DAO_DAP!$M$2,MATCH(TbKTHH_Dap!$C124,Data_DAO_DAP!$M$3:$M$452,0)+1,5),"") ->  | I124: =IFERROR(OFFSET(Data_DAO_DAP!$M$2,MATCH(TbKTHH_Dap!$C124,Data_DAO_DAP!$M$3:$M$452,0)+1,6),"") ->  | J124: =IFERROR(OFFSET(Data_DAO_DAP!$M$2,MATCH(TbKTHH_Dap!$C124,Data_DAO_DAP!$M$3:$M$452,0)+1,7),"") ->  | K124: =IFERROR(OFFSET(Data_DAO_DAP!$M$2,MATCH(TbKTHH_Dap!$C124,Data_DAO_DAP!$M$3:$M$452,0)+1,8),"") ->  | L124: =IFERROR(OFFSET(Data_DAO_DAP!$M$2,MATCH(TbKTHH_Dap!$C124,Data_DAO_DAP!$M$3:$M$452,0)+1,9),"") -> 
A125: AuDATLE01 | B125: =+IF(B106="","",B106) -> 1 | C125: =+IF(C106="","",C106) -> C3' km0+89,01 | E125: =+IF(E106="","",E106-0.3) -> 1.97 | G125: =+IF(G106="","",G106-0.3) -> 1.97 | I125: =+IF(I106="","",I106-0.3) -> 1.98 | K125: =+IF(K106="","",K106-0.3) -> 1.97 | M125: Đắp đất lề đường lớp 1
A126: =+IF(C127="","NOT","") ->  | B126: =+IF(B107="","",B107) ->  | D126: 14.58
B127: =+IF(B108="","",B108) -> 2 | C127: Đ4 km0+103,59 | E127: =+IF(E108="","",E108-0.3) -> 1.97 | G127: =+IF(G108="","",G108-0.3) -> 1.97 | I127: =+IF(I108="","",I108-0.3) -> 1.98 | K127: =+IF(K108="","",K108-0.3) -> 1.98
B128: =+IF(B109="","",B109) ->  | D128: 12.42
B129: =+IF(B110="","",B110) -> 3 | C129: C3 km0+116,01 | E129: =+IF(E110="","",E110-0.3) -> 1.97 | G129: =+IF(G110="","",G110-0.3) -> 1.97 | I129: =+IF(I110="","",I110-0.3) -> 1.96 | K129: =+IF(K110="","",K110-0.3) -> 1.98
B130: =+IF(B111="","",B111) ->  | D130: 24.97
B131: =+IF(B112="","",B112) -> 4 | C131: Đ5 km0+140,98 | E131: =+IF(E112="","",E112-0.3) -> 1.97 | G131: =+IF(G112="","",G112-0.3) -> 1.97 | I131: =+IF(I112="","",I112-0.3) -> 1.96 | K131: =+IF(K112="","",K112-0.3) -> 1.97
B132: =+IF(B113="","",B113) ->  | D132: 16.56
B133: =+IF(B114="","",B114) -> 5 | C133: TĐ6 km0+157,54 | E133: =+IF(E114="","",E114-0.3) -> 1.97 | G133: =+IF(G114="","",G114-0.3) -> 1.97 | I133: =+IF(I114="","",I114-0.3) -> 1.96 | K133: =+IF(K114="","",K114-0.3) -> 1.96
B134: =+IF(B115="","",B115) ->  | D134: 16.93
B135: =+IF(B116="","",B116) -> 6 | C135: Đ6 km0+174,47 | E135: =+IF(E116="","",E116-0.3) -> 1.97 | G135: =+IF(G116="","",G116-0.3) -> 1.97 | I135: =+IF(I116="","",I116-0.3) -> 1.98 | K135: =+IF(K116="","",K116-0.3) -> 1.96
B136: =+IF(B117="","",B117) ->  | D136: 16.93
B137: =+IF(B118="","",B118) -> 7 | C137: TC6 km0+191,40 | E137: =+IF(E118="","",E118-0.3) -> 1.97 | G137: =+IF(G118="","",G118-0.3) -> 1.97 | I137: =+IF(I118="","",I118-0.3) -> 1.96 | K137: =+IF(K118="","",K118-0.3) -> 1.97
B138: =+IF(B119="","",B119) -> 
B139: =+IF(B120="","",B120) ->  | E139: =+IF(E120="","",E120-0.3) ->  | G139: =+IF(G120="","",G120-0.3) ->  | I139: =+IF(I120="","",I120-0.3) ->  | K139: =+IF(K120="","",K120-0.3) -> 
B140: =+IF(B121="","",B121) -> 
B141: =+IF(B122="","",B122) ->  | E141: =+IF(E122="","",E122-0.3) ->  | G141: =+IF(G122="","",G122-0.3) ->  | I141: =+IF(I122="","",I122-0.3) ->  | K141: =+IF(K122="","",K122-0.3) -> 
B142: =+IF(B123="","",B123) -> 
B143: =+IF(B124="","",B124) ->  | E143: =+IF(E124="","",E124-0.3) ->  | G143: =+IF(G124="","",G124-0.3) ->  | I143: =+IF(I124="","",I124-0.3) ->  | K143: =+IF(K124="","",K124-0.3) -> 

Sheet Data_DAO_DAP (hidden)
A1: ĐÀO | K1: ĐẮP
A2: Tên bảng | B2: Số TT | C2: Nội dung công việc | D2: Đơn vị | E2: Thiết kế | F2: Thi công | G2: Chênh lệch | H2: Ghi chú | K2: Tên bảng | L2: STT | M2: Lý trình | N2: Khoảng cách | O2: Trái | P2: Tim | Q2: Phải | S2: Trái | T2: Tim | U2: Phải | W2: Ghi chú | AB2: km | AC2: lý trình | AD2: lý trình | AE2: khoảng cách | AG2: Cọc | AH2: lý trình | AI2: khoảng cách
A3: ="HM"&TEXT(COUNT($I$3:I3),"000") -> HM001 | B3: 1 | C3: Cọc: S3A (K0+300) | H3: Mẫu | I3: 1 | M3: C1 km0+0,00 | W3: =IFERROR(VLOOKUP(X3,Data_DAO_DAP!$AB$3:$AC$34,2,0),"") -> Đoạn km0+0,00 đến km0+89,01 | X3: =TRIM(MID(M3,SEARCH("km",M3,1),999)) -> km0+0,00 | AA3: 1 | AB3: =TRIM(MID(AC3,6,SEARCH("đến",AC3,1)-6)) -> km0+0,00 | AC3: Đoạn km0+0,00 đến km0+89,01 | AD3: =VALUE(SUBSTITUTE(MID(AB3,SEARCH("km",AB3,1)+2,99),"+",IF(VALUE(MID(AB3,SEARCH("+",AB3,1)+1,99))<100,0,""))) -> 0 | AF3: 1 | AG3: C1 km0+0,00 | AH3: =VALUE(SUBSTITUTE(MID(AG3,SEARCH("km",AG3,1)+2,99),"+",IF(VALUE(MID(AG3,SEARCH("+",AG3,1)+1,99))<100,0,""))) -> 0 | AI3: =VALUE(SUBSTITUTE(MID(AG3,SEARCH("km",AG3,1)+2,99),"+",IF(VALUE(MID(AG3,SEARCH("+",AG3,1)+1,99))<100,0,""))) -> 0 | AJ3: m1 | AK3: C1 | AL3: C1 km0 + 0,00 | AN3: TRÁNH XE km+0,00
C4: + Cao độ: | D4: m | E4: 8.42 | F4: 8.408 | G4: -0.01 | N4: =IFERROR(VALUE(SUBSTITUTE(MID(M5,SEARCH("km",M5,1)+2,99),"+",IF(VALUE(MID(M5,SEARCH("+",M5,1)+1,99))<100,0,"")))-VALUE(SUBSTITUTE(MID(M3,SEARCH("km",M3,1)+2,99),"+",IF(VALUE(MID(M3,SEARCH("+",M3,1)+1,99))<100,0,""))),"") -> 17.26 | O4: 2.27 | Q4: 2.27 | S4: 2.27 | U4: 2.28 | AA4: 2 | AB4: km0+89,01 | AC4: Đoạn km0+89,01 đến km0+191,40 | AD4: =VALUE(SUBSTITUTE(MID(AB4,SEARCH("km",AB4,1)+2,99),"+",IF(VALUE(MID(AB4,SEARCH("+",AB4,1)+1,99))<100,0,""))) -> 89.01 | AE4: =+AD4-AD3 -> 89.01 | AF4: 2 | AG4: C2 km0+17,26 | AH4: =VALUE(SUBSTITUTE(MID(AG4,SEARCH("km",AG4,1)+2,99),"+",IF(VALUE(MID(AG4,SEARCH("+",AG4,1)+1,99))<100,0,""))) -> 17.26 | AI4: =+AH4-AH3 -> 17.26 | AJ4: m2 | AK4: C2' | AL4: C2' km0 + 57,57 | AM4: 1 | AN4: C3' km0+224,00
C5: + Chiều rộng: | D5: m | E5: 1.34 | F5: 1.45 | G5: 0.11 | M5: C2 km0+17,26 | AA5: 3 | AB5: km0+191,40 | AC5: Đoạn km0+191,40 đến km0+299,46 | AD5: =VALUE(SUBSTITUTE(MID(AB5,SEARCH("km",AB5,1)+2,99),"+",IF(VALUE(MID(AB5,SEARCH("+",AB5,1)+1,99))<100,0,""))) -> 191.4 | AE5: =+AD5-AD4 -> 102.39 | AF5: 3 | AG5: Đ1 km0+37,44 | AH5: 37.44 | AI5: =+AH5-AH4 -> 20.18 | AJ5: m7 | AK5: C3' | AL5: C3' km0 + 89,01 | AM5: 2 | AN5: Đ24 km0+839,83
A6: ="HM"&TEXT(COUNT($I$3:I6),"000") -> HM002 | B6: 1 | C6: C1 km0+0,00 | H6: =IFERROR(VLOOKUP(J6,Data_DAO_DAP!$AB$3:$AC$34,2,0),"") -> Đoạn km0+0,00 đến km0+89,01 | I6: 1 | J6: =TRIM(MID(C6,SEARCH("km",C6,1),999)) -> km0+0,00 | N6: =IFERROR(VALUE(SUBSTITUTE(MID(M7,SEARCH("km",M7,1)+2,99),"+",IF(VALUE(MID(M7,SEARCH("+",M7,1)+1,99))<100,0,"")))-VALUE(SUBSTITUTE(MID(M5,SEARCH("km",M5,1)+2,99),"+",IF(VALUE(MID(M5,SEARCH("+",M5,1)+1,99))<100,0,""))),"") -> 20.18 | O6: 2.27 | Q6: 2.27 | S6: 2.26 | U6: 2.26 | AA6: 4 | AB6: km0+299,46 | AC6: Đoạn km0+299,46 đến km0+397,16 | AD6: 299.46 | AE6: 108.06 | AF6: 4 | AG6: C2' km0+57,57 | AH6: 57.57 | AI6: 20.13 | AJ6: m12 | AK6: Đ12 | AL6: Đ12 km0 + 378,88 | AM6: 3 | AN6: C22' km1+765,66
C7: + Cao độ: | D7: m | E7: 0.83 | F7: 0.82 | G7: -0.01 | M7: Đ1 km0+37,44 | AA7: 5 | AB7: km0+397,16 | AC7: Đoạn km0+397,16 đến km0+507,36 | AD7: 397.16 | AE7: 97.7 | AF7: 5 | AG7: Đ3 km0+70,64 | AH7: 70.64 | AI7: 13.07 | AJ7: m13 | AK7: C5 | AL7: C5 km0 + 397,16 | AM7: 4 | AN7: C31' km2+471,46
C8: + Chiều rộng: | D8: m | E8: 3.5 | F8: 3.5 | G8: 0 | N8: =IFERROR(VALUE(SUBSTITUTE(MID(M9,SEARCH("km",M9,1)+2,99),"+",IF(VALUE(MID(M9,SEARCH("+",M9,1)+1,99))<100,0,"")))-VALUE(SUBSTITUTE(MID(M7,SEARCH("km",M7,1)+2,99),"+",IF(VALUE(MID(M7,SEARCH("+",M7,1)+1,99))<100,0,""))),"") -> 20.13 | O8: 2.27 | Q8: 2.27 | S8: 2.28 | U8: 2.26 | AA8: 6 | AB8: km0+507,36 | AC8: Đoạn km0+507,36 đến km0+601,89 | AD8: 507.36 | AE8: 110.2 | AF8: 6 | AG8: C3' km0+89,01 | AH8: 89.01 | AI8: 18.37 | AJ8: m15 | AK8: C6 | AL8: C6 km0 + 459,97
C9: C2 km0+17,26 | H9: =IFERROR(VLOOKUP(J9,Data_DAO_DAP!$AB$3:$AC$34,2,0),"") ->  | J9: =TRIM(MID(C9,SEARCH("km",C9,1),999)) -> km0+17,26 | M9: C2' km0+57,57 | AA9: 7 | AB9: km0+601,89 | AC9: Đoạn km0+601,89 đến km0+715,92 | AD9: 601.89 | AE9: 94.53 | AF9: 7 | AG9: Đ4 km0+103,59 | AH9: 103.59 | AI9: 14.58 | AJ9: m17 | AK9: C6' | AL9: C6' km0 + 484,74
C10: + Cao độ: | D10: m | E10: 0.83 | F10: 0.82 | G10: -0.01 | N10: =IFERROR(VALUE(SUBSTITUTE(MID(M11,SEARCH("km",M11,1)+2,99),"+",IF(VALUE(MID(M11,SEARCH("+",M11,1)+1,99))<100,0,"")))-VALUE(SUBSTITUTE(MID(M9,SEARCH("km",M9,1)+2,99),"+",IF(VALUE(MID(M9,SEARCH("+",M9,1)+1,99))<100,0,""))),"") -> 13.07 | O10: 2.27 | Q10: 2.27 | S10: 2.27 | U10: 2.27 | AA10: 8 | AB10: km0+715,92 | AC10: Đoạn km0+715,92 đến km0+815,49 | AD10: 715.92 | AE10: 114.03 | AF10: 8 | AG10: C3 km0+116,01 | AH10: 116.01 | AI10: 12.42 | AJ10: m18 | AK10: C7 | AL10: C7 km0 + 530,75
C11: + Chiều rộng: | D11: m | E11: 3.5 | F11: 3.5 | G11: 0 | M11: Đ3 km0+70,64 | AA11: 9 | AB11: km0+815,49 | AC11: Đoạn km0+815,49 đến km0+924,77 | AD11: 815.49 | AE11: 99.57 | AF11: 9 | AG11: Đ5 km0+140,98 | AH11: 140.98 | AI11: 24.97 | AJ11: m19 | AK11: C7' | AL11: C7' km0 + 555,75
C12: Đ1 km0+37,44 | H12: =IFERROR(VLOOKUP(J12,Data_DAO_DAP!$AB$3:$AC$34,2,0),"") ->  | J12: =TRIM(MID(C12,SEARCH("km",C12,1),999)) -> km0+37,44 | N12: =IFERROR(VALUE(SUBSTITUTE(MID(M13,SEARCH("km",M13,1)+2,99),"+",IF(VALUE(MID(M13,SEARCH("+",M13,1)+1,99))<100,0,"")))-VALUE(SUBSTITUTE(MID(M11,SEARCH("km",M11,1)+2,99),"+",IF(VALUE(MID(M11,SEARCH("+",M11,1)+1,99))<100,0,""))),"") -> 18.37 | O12: 2.27 | Q12: 2.27 | S12: 2.27 | U12: 2.28 | AA12: 10 | AB12: km0+924,77 | AC12: Đoạn km0+924,77 đến km1+16,37 | AD12: 924.77 | AE12: 109.28 | AF12: 10 | AG12: TĐ6 km0+157,54 | AH12: 157.54 | AI12: 16.56 | AJ12: m22 | AK12: C8' | AL12: C8' km0 + 621,89
C13: + Cao độ: | D13: m | E13: 0.83 | F13: 0.83 | G13: 0 | M13: C3' km0+89,01 | W13: =IFERROR(VLOOKUP(X13,Data_DAO_DAP!$AB$3:$AC$34,2,0),"") -> Đoạn km0+89,01 đến km0+191,40 | X13: =TRIM(MID(M13,SEARCH("km",M13,1),999)) -> km0+89,01 | AA13: 11 | AB13: km1+16,37 | AC13: Đoạn km1+16,37 đến km1+114,83 | AD13: 1016.37 | AE13: 91.6 | AF13: 11 | AG13: Đ6 km0+174,47 | AH13: 174.47 | AI13: 16.93 | AJ13: m23 | AK13: C8' | AL13: C8' km0 + 621,89
C14: + Chiều rộng: | D14: m | E14: 3.5 | F14: 3.5 | G14: 0 | N14: =IFERROR(VALUE(SUBSTITUTE(MID(M15,SEARCH("km",M15,1)+2,99),"+",IF(VALUE(MID(M15,SEARCH("+",M15,1)+1,99))<100,0,"")))-VALUE(SUBSTITUTE(MID(M13,SEARCH("km",M13,1)+2,99),"+",IF(VALUE(MID(M13,SEARCH("+",M13,1)+1,99))<100,0,""))),"") -> 14.58 | O14: 2.27 | Q14: 2.27 | S14: 2.28 | U14: 2.27 | AA14: 12 | AB14: km1+114,83 | AC14: Đoạn km1+114,83 đến km1+216,60 | AD14: 1114.83 | AE14: 98.46 | AF14: 12 | AG14: TC6 km0+191,40 | AH14: 191.4 | AI14: 16.93 | AJ14: m24 | AK14: C9 | AL14: C9 km0 + 691,85
C15: C2' km0+57,57 | H15: =IFERROR(VLOOKUP(J15,Data_DAO_DAP!$AB$3:$AC$34,2,0),"") ->  | J15: =TRIM(MID(C15,SEARCH("km",C15,1),999)) -> km0+57,57 | M15: Đ4 km0+103,59 | AA15: 13 | AB15: km1+216,60 | AC15: Đoạn km1+216,60 đến km1+314,24 | AD15: 1216.6 | AE15: 101.77 | AF15: 13 | AG15: Đ7 km0+206,60 | AH15: 206.6 | AI15: 15.2 | AJ15: m26 | AK15: C9 | AL15: C9 km0 + 691,85
C16: + Cao độ: | D16: m | E16: 0.83 | F16: 0.84 | G16: 0.01 | N16: =IFERROR(VALUE(SUBSTITUTE(MID(M17,SEARCH("km",M17,1)+2,99),"+",IF(VALUE(MID(M17,SEARCH("+",M17,1)+1,99))<100,0,"")))-VALUE(SUBSTITUTE(MID(M15,SEARCH("km",M15,1)+2,99),"+",IF(VALUE(MID(M15,SEARCH("+",M15,1)+1,99))<100,0,""))),"") -> 12.42 | O16: 2.27 | Q16: 2.27 | S16: 2.28 | U16: 2.28 | AA16: 14 | AB16: km1+314,24 | AC16: Đoạn km1+314,24 đến km1+382,33 | AD16: 1314.24 | AE16: 97.64 | AF16: 14 | AG16: C3' km0+224,00 | AH16: 224 | AI16: 17.4 | AJ16: m27 | AK16: C9' | AL16: C9' km0 + 769,43
C17: + Chiều rộng: | D17: m | E17: 3.5 | F17: 3.61 | G17: 0.11 | M17: C3 km0+116,01 | AA17: 15 | AB17: km1+382,33 | AC17: Đoạn km1+382,33 đến km1+480,52 | AD17: 1382.33 | AE17: 68.09 | AF17: 15 | AG17: Đ8 km0+240,78 | AH17: 240.78 | AI17: 16.78 | AJ17: m28 | AK17: C10 | AL17: C10 km0 + 815,49
C18: Đ3 km0+70,64 | H18: =IFERROR(VLOOKUP(J18,Data_DAO_DAP!$AB$3:$AC$34,2,0),"") ->  | J18: =TRIM(MID(C18,SEARCH("km",C18,1),999)) -> km0+70,64 | N18: =IFERROR(VALUE(SUBSTITUTE(MID(M19,SEARCH("km",M19,1)+2,99),"+",IF(VALUE(MID(M19,SEARCH("+",M19,1)+1,99))<100,0,"")))-VALUE(SUBSTITUTE(MID(M17,SEARCH("km",M17,1)+2,99),"+",IF(VALUE(MID(M17,SEARCH("+",M17,1)+1,99))<100,0,""))),"") -> 24.97 | O18: 2.27 | Q18: 2.27 | S18: 2.26 | U18: 2.28 | AA18: 16 | AB18: km1+480,52 | AC18: Đoạn km1+480,52 đến km1+592,92 | AD18: 1480.52 | AE18: 98.19 | AF18: 16 | AG18: Đ9 km0+267,95 | AH18: 267.95 | AI18: 27.17 | AJ18: m32 | AK18: C10' | AL18: C10' km0 + 864,80
C19: + Cao độ: | D19: m | E19: 0.83 | F19: 0.82 | G19: -0.01 | M19: Đ5 km0+140,98 | AA19: 17 | AB19: km1+592,92 | AC19: Đoạn km1+592,92 đến km1+686,12 | AD19: 1592.92 | AE19: 112.4 | AF19: 17 | AG19: TĐ10=TC9 km0+280,43 | AH19: 280.43 | AI19: 12.48 | AJ19: m33 | AK19: C10a | AL19: C10a km0 + 884,80
C20: + Chiều rộng: | D20: m | E20: 3.5 | F20: 3.5 | G20: 0 | N20: =IFERROR(VALUE(SUBSTITUTE(MID(M21,SEARCH("km",M21,1)+2,99),"+",IF(VALUE(MID(M21,SEARCH("+",M21,1)+1,99))<100,0,"")))-VALUE(SUBSTITUTE(MID(M19,SEARCH("km",M19,1)+2,99),"+",IF(VALUE(MID(M19,SEARCH("+",M19,1)+1,99))<100,0,""))),"") -> 16.56 | O20: 2.27 | Q20: 2.27 | S20: 2.26 | U20: 2.27 | AA20: 18 | AB20: km1+686,12 | AC20: Đoạn km1+686,12 đến đến km1+772,08 | AD20: 1686.12 | AE20: 93.2 | AF20: 18 | AG20: Đ10 km0+299,46 | AH20: 299.46 | AI20: 19.03 | AJ20: m40 | AK20: C12 | AL20: C12 km1 + 69,83
A21: ="HM"&TEXT(COUNT($I$3:I21),"000") -> HM003 | C21: C3' km0+89,01 | H21: =IFERROR(VLOOKUP(J21,Data_DAO_DAP!$AB$3:$AC$34,2,0),"") -> Đoạn km0+89,01 đến km0+191,40 | I21: 1 | J21: =TRIM(MID(C21,SEARCH("km",C21,1),999)) -> km0+89,01 | M21: TĐ6 km0+157,54 | AA21: 19 | AB21: km1+866,46 | AC21: Đoạn km1+866,46 đến đến km1+961,21 | AD21: 1866.46 | AE21: 180.34 | AF21: 19 | AG21: TC10 km0+318,49 | AH21: 318.49 | AI21: 19.03 | AJ21: m43 | AK21: C14 | AL21: C14 km1 + 191,60
C22: + Cao độ: | D22: m | E22: 0.83 | F22: 0.84 | G22: 0.01 | N22: =IFERROR(VALUE(SUBSTITUTE(MID(M23,SEARCH("km",M23,1)+2,99),"+",IF(VALUE(MID(M23,SEARCH("+",M23,1)+1,99))<100,0,"")))-VALUE(SUBSTITUTE(MID(M21,SEARCH("km",M21,1)+2,99),"+",IF(VALUE(MID(M21,SEARCH("+",M21,1)+1,99))<100,0,""))),"") -> 16.93 | O22: 2.27 | Q22: 2.27 | S22: 2.26 | U22: 2.26 | AA22: 20 | AB22: km1+961,21 | AC22: Đoạn km1+961,21 đến đến km2+67,01 | AD22: 1961.21 | AE22: 94.75 | AF22: 20 | AG22: C4 km0+331,88 | AH22: 331.88 | AI22: 13.39 | AJ22: m44 | AK22: C15 | AL22: C15 km1 + 216,60
C23: + Chiều rộng: | D23: m | E23: 3.5 | F23: 3.5 | G23: 0 | M23: Đ6 km0+174,47 | AA23: 21 | AB23: km2+67,01 | AC23: Đoạn km2+67,01 đến đến km2+161,02 | AD23: 2067.01 | AE23: 105.8 | AF23: 21 | AG23: Đ11 km0+345,93 | AH23: 345.93 | AI23: 14.05 | AJ23: m55 | AK23: Đ38 | AL23: Đ38 km1 + 519,88
C24: Đ4 km0+103,59 | H24: =IFERROR(VLOOKUP(J24,Data_DAO_DAP!$AB$3:$AC$34,2,0),"") ->  | J24: =TRIM(MID(C24,SEARCH("km",C24,1),999)) -> km0+103,59 | N24: =IFERROR(VALUE(SUBSTITUTE(MID(M25,SEARCH("km",M25,1)+2,99),"+",IF(VALUE(MID(M25,SEARCH("+",M25,1)+1,99))<100,0,"")))-VALUE(SUBSTITUTE(MID(M23,SEARCH("km",M23,1)+2,99),"+",IF(VALUE(MID(M23,SEARCH("+",M23,1)+1,99))<100,0,""))),"") -> 16.93 | O24: 2.27 | Q24: 2.27 | S24: 2.28 | U24: 2.26 | AA24: 22 | AB24: km2+161,02 | AC24: Đoạn km2+161,02 đến đến km2+265,34 | AD24: 2161.02 | AE24: 94.01 | AF24: 22 | AG24: Đ12 km0+378,88 | AH24: 378.88 | AI24: 32.95 | AJ24: m62 | AK24: TC42 | AL24: TC42 km1 + 740,66
C25: + Cao độ: | D25: m | E25: 0.83 | F25: 0.82 | G25: -0.01 | M25: TC6 km0+191,40 | W25: =IFERROR(VLOOKUP(X25,Data_DAO_DAP!$AB$3:$AC$34,2,0),"") -> Đoạn km0+191,40 đến km0+299,46 | X25: =TRIM(MID(M25,SEARCH("km",M25,1),999)) -> km0+191,40 | AA25: 23 | AB25: km2+265,34 | AC25: Đoạn km2+265,34 đến đến km2+362,47 | AD25: 2265.34 | AE25: 104.32 | AF25: 23 | AG25: C5 km0+397,16 | AH25: 397.16 | AI25: 18.28 | AJ25: m65 | AK25: Đ48 | AL25: Đ48 km1 + 961,21
C26: + Chiều rộng: | D26: m | E26: 3.5 | F26: 3.59 | G26: 0.09 | N26: =IFERROR(VALUE(SUBSTITUTE(MID(M27,SEARCH("km",M27,1)+2,99),"+",IF(VALUE(MID(M27,SEARCH("+",M27,1)+1,99))<100,0,"")))-VALUE(SUBSTITUTE(MID(M25,SEARCH("km",M25,1)+2,99),"+",IF(VALUE(MID(M25,SEARCH("+",M25,1)+1,99))<100,0,""))),"") -> 15.2 | O26: 2.27 | Q26: 2.27 | S26: 2.26 | U26: 2.27 | AA26: 24 | AB26: km2+362,47 | AC26: Đoạn km2+362,47 đến đến km2+453,00 | AD26: 2362.47 | AE26: 97.13 | AF26: 24 | AG26: Đ13 km0+406,87 | AH26: 406.87 | AI26: 9.71 | AJ26: m68 | AK26: Đ50 | AL26: Đ50 km2 + 20,89
C27: C3 km0+116,01 | H27: =IFERROR(VLOOKUP(J27,Data_DAO_DAP!$AB$3:$AC$34,2,0),"") ->  | J27: =TRIM(MID(C27,SEARCH("km",C27,1),999)) -> km0+116,01 | M27: Đ7 km0+206,60 | AA27: 25 | AB27: km2+453,00 | AC27: Đoạn km2+453,00 đến đến km2+541,98 | AD27: 2453 | AE27: 90.53 | AF27: 25 | AG27: Đ14 km0+436,36 | AH27: 436.36 | AI27: 29.49 | AJ27: m75 | AK27: C25 | AL27: C25 km2 + 92,01
C28: + Cao độ: | D28: m | E28: 0.83 | F28: 0.84 | G28: 0.01 | N28: =IFERROR(VALUE(SUBSTITUTE(MID(M29,SEARCH("km",M29,1)+2,99),"+",IF(VALUE(MID(M29,SEARCH("+",M29,1)+1,99))<100,0,"")))-VALUE(SUBSTITUTE(MID(M27,SEARCH("km",M27,1)+2,99),"+",IF(VALUE(MID(M27,SEARCH("+",M27,1)+1,99))<100,0,""))),"") -> 17.4 | O28: 2.27 | Q28: 2.27 | S28: 2.27 | U28: 2.28 | AA28: 26 | AB28: km2+541,98 | AC28: Đoạn km2+541,98 đến đến km2+641,68 | AD28: 2541.98 | AE28: 88.98 | AF28: 26 | AG28: C6 km0+459,97 | AH28: 459.97 | AI28: 23.61 | AJ28: m76 | AK28: C25 | AL28: C25 km2 + 92,01
C29: + Chiều rộng: | D29: m | E29: 3.5 | F29: 3.51 | G29: 0.01 | M29: C3' km0+224,00 | AA29: 27 | AB29: km2+641,68 | AC29: Đoạn km2+641,68 đến đến km2+717,75 | AD29: 2641.68 | AE29: 99.7 | AF29: 27 | AG29: C6' km0+484,74 | AH29: 484.74 | AI29: 24.77 | AJ29: m78 | AK29: TĐ53 | AL29: TĐ53 km2 + 139,48
C30: Đ5 km0+140,98 | H30: =IFERROR(VLOOKUP(J30,Data_DAO_DAP!$AB$3:$AC$34,2,0),"") ->  | J30: =TRIM(MID(C30,SEARCH("km",C30,1),999)) -> km0+140,98 | N30: =IFERROR(VALUE(SUBSTITUTE(MID(M31,SEARCH("km",M31,1)+2,99),"+",IF(VALUE(MID(M31,SEARCH("+",M31,1)+1,99))<100,0,"")))-VALUE(SUBSTITUTE(MID(M29,SEARCH("km",M29,1)+2,99),"+",IF(VALUE(MID(M29,SEARCH("+",M29,1)+1,99))<100,0,""))),"") -> 16.78 | O30: 2.27 | Q30: 2.27 | S30: 2.26 | U30: 2.27 | AA30: 28 | AB30: km2+821,70 | AC30: Đoạn km2+821,70 đến đến km2+916,97 | AD30: 2821.7 | AE30: 180.02 | AF30: 28 | AG30: Đ16 km0+507,36 | AH30: 507.36 | AI30: 22.62 | AJ30: m83 | AK30: Đ55 | AL30: Đ55 km2 + 265,34
C31: + Cao độ: | D31: m | E31: 0.83 | F31: 0.84 | G31: 0.01 | M31: Đ8 km0+240,78 | AA31: 29 | AB31: km2+916,97 | AC31: Đoạn km2+916,97 đến km3+16,71 | AD31: 2916.97 | AE31: 95.27 | AF31: 29 | AG31: C7 km0+530,75 | AH31: 530.75 | AI31: 23.39 | AJ31: m84 | AK31: Đ56 | AL31: Đ56 km2 + 290,27
C32: + Chiều rộng: | D32: m | E32: 3.5 | F32: 3.49 | G32: -0.01 | N32: =IFERROR(VALUE(SUBSTITUTE(MID(M33,SEARCH("km",M33,1)+2,99),"+",IF(VALUE(MID(M33,SEARCH("+",M33,1)+1,99))<100,0,"")))-VALUE(SUBSTITUTE(MID(M31,SEARCH("km",M31,1)+2,99),"+",IF(VALUE(MID(M31,SEARCH("+",M31,1)+1,99))<100,0,""))),"") -> 27.17 | O32: 2.27 | Q32: 2.27 | S32: 2.26 | U32: 2.27 | AA32: 30 | AB32: km3+16,71 | AC32: Đoạn km3+16,71 đến km3+37,84 | AD32: 3016.71 | AE32: 99.74 | AF32: 30 | AG32: C7' km0+555,75 | AH32: 555.75 | AI32: 25 | AJ32: m93 | AK32: C29 | AL32: C29 km2 + 362,47
C33: TĐ6 km0+157,54 | H33: =IFERROR(VLOOKUP(J33,Data_DAO_DAP!$AB$3:$AC$34,2,0),"") ->  | J33: =TRIM(MID(C33,SEARCH("km",C33,1),999)) -> km0+157,54 | M33: Đ9 km0+267,95 | AA33: 31 | AB33: km3+129,59 | AC33: Đoạn km3+129,59 đến km3+224,98 | AD33: 3129.59 | AE33: 112.88 | AF33: 31 | AG33: Đ17 km0+582,83 | AH33: 582.83 | AI33: 27.08 | AJ33: m99 | AK33: Đ62 | AL33: Đ62 km2 + 541,98
C34: + Cao độ: | D34: m | E34: 0.83 | F34: 0.84 | G34: 0.01 | N34: =IFERROR(VALUE(SUBSTITUTE(MID(M35,SEARCH("km",M35,1)+2,99),"+",IF(VALUE(MID(M35,SEARCH("+",M35,1)+1,99))<100,0,"")))-VALUE(SUBSTITUTE(MID(M33,SEARCH("km",M33,1)+2,99),"+",IF(VALUE(MID(M33,SEARCH("+",M33,1)+1,99))<100,0,""))),"") -> 12.48 | O34: 2.27 | Q34: 2.27 | S34: 2.26 | U34: 2.27 | AA34: 32 | AB34: km3+224,98 | AC34: Đoạn km3+224,98 đến km3+319,03 | AD34: 3224.98 | AE34: 95.39 | AF34: 32 | AG34: C8 km0+601,89 | AH34: 601.89 | AI34: 19.06 | AJ34: m101 | AK34: C34 | AL34: C34 km2 + 616,68
C35: + Chiều rộng: | D35: m | E35: 3.5 | F35: 3.5 | G35: 0 | M35: TĐ10=TC9 km0+280,43 | AF35: 33 | AG35: C8' km0+621,89 | AH35: 621.89 | AI35: 20 | AJ35: m102 | AK35: Đ64 | AL35: Đ64 km2 + 667,75
C36: Đ6 km0+174,47 | H36: =IFERROR(VLOOKUP(J36,Data_DAO_DAP!$AB$3:$AC$34,2,0),"") ->  | J36: =TRIM(MID(C36,SEARCH("km",C36,1),999)) -> km0+174,47 | N36: =IFERROR(VALUE(SUBSTITUTE(MID(M37,SEARCH("km",M37,1)+2,99),"+",IF(VALUE(MID(M37,SEARCH("+",M37,1)+1,99))<100,0,"")))-VALUE(SUBSTITUTE(MID(M35,SEARCH("km",M35,1)+2,99),"+",IF(VALUE(MID(M35,SEARCH("+",M35,1)+1,99))<100,0,""))),"") -> 19.03 | O36: 2.27 | Q36: 2.27 | S36: 2.27 | U36: 2.26 | AF36: 34 | AG36: Đ18 km0+637,71 | AH36: 637.71 | AI36: 15.82 | AJ36: m103 | AK36: C39 | AL36: C39 km2 + 828,60
C37: + Cao độ: | D37: m | E37: 0.83 | F37: 0.82 | G37: -0.01 | M37: Đ10 km0+299,46 | W37: =IFERROR(VLOOKUP(X37,Data_DAO_DAP!$AB$3:$AC$34,2,0),"") -> Đoạn km0+299,46 đến km0+397,16 | X37: =TRIM(MID(M37,SEARCH("km",M37,1),999)) -> km0+299,46 | AF37: 35 | AG37: Đ19 km0+666,13 | AH37: 666.13 | AI37: 28.42 | AJ37: m115 | AK37: C44 | AL37: C44 km2 + 966,71
C38: + Chiều rộng: | D38: m | E38: 3.5 | F38: 3.5 | G38: 0 | N38: =IFERROR(VALUE(SUBSTITUTE(MID(M39,SEARCH("km",M39,1)+2,99),"+",IF(VALUE(MID(M39,SEARCH("+",M39,1)+1,99))<100,0,"")))-VALUE(SUBSTITUTE(MID(M37,SEARCH("km",M37,1)+2,99),"+",IF(VALUE(MID(M37,SEARCH("+",M37,1)+1,99))<100,0,""))),"") -> 19.03 | O38: 2.27 | Q38: 2.27 | S38: 2.28 | U38: 2.28 | AF38: 36 | AG38: C9 km0+691,85 | AH38: 691.85 | AI38: 25.72 | AJ38: m118 | AK38: C46 | AL38: C46 km3 + 37,84
A39: ="HM"&TEXT(COUNT($I$3:I39),"000") -> HM004 | C39: TC6 km0+191,40 | H39: =IFERROR(VLOOKUP(J39,Data_DAO_DAP!$AB$3:$AC$34,2,0),"") -> Đoạn km0+191,40 đến km0+299,46 | I39: 1 | J39: =TRIM(MID(C39,SEARCH("km",C39,1),999)) -> km0+191,40 | M39: TC10 km0+318,49 | AF39: 37 | AG39: Đ20 km0+715,92 | AH39: 715.92 | AI39: 24.07 | AJ39: m121 | AK39: C48 | AL39: C48 km3 + 186,96
C40: + Cao độ: | D40: m | E40: 0.83 | F40: 0.83 | G40: 0 | N40: =IFERROR(VALUE(SUBSTITUTE(MID(M41,SEARCH("km",M41,1)+2,99),"+",IF(VALUE(MID(M41,SEARCH("+",M41,1)+1,99))<100,0,"")))-VALUE(SUBSTITUTE(MID(M39,SEARCH("km",M39,1)+2,99),"+",IF(VALUE(MID(M39,SEARCH("+",M39,1)+1,99))<100,0,""))),"") -> 13.39 | O40: 2.27 | Q40: 2.27 | S40: 2.28 | U40: 2.28 | AF40: 38 | AG40: Đ21 km0+729,89 | AH40: 729.89 | AI40: 13.97
C41: + Chiều rộng: | D41: m | E41: 3.5 | F41: 3.51 | G41: 0.01 | M41: C4 km0+331,88 | AF41: 39 | AG41: Đ22 km0+748,92 | AH41: 748.92 | AI41: 19.03
C42: Đ7 km0+206,60 | H42: =IFERROR(VLOOKUP(J42,Data_DAO_DAP!$AB$3:$AC$34,2,0),"") ->  | J42: =TRIM(MID(C42,SEARCH("km",C42,1),999)) -> km0+206,60 | N42: =IFERROR(VALUE(SUBSTITUTE(MID(M43,SEARCH("km",M43,1)+2,99),"+",IF(VALUE(MID(M43,SEARCH("+",M43,1)+1,99))<100,0,"")))-VALUE(SUBSTITUTE(MID(M41,SEARCH("km",M41,1)+2,99),"+",IF(VALUE(MID(M41,SEARCH("+",M41,1)+1,99))<100,0,""))),"") -> 14.05 | O42: 2.27 | Q42: 2.27 | S42: 2.27 | U42: 2.27 | AF42: 40 | AG42: C9' km0+769,43 | AH42: 769.43 | AI42: 20.51
C43: + Cao độ: | D43: m | E43: 0.83 | F43: 0.82 | G43: -0.01 | M43: Đ11 km0+345,93 | AF43: 41 | AG43: Đ23 km0+791,38 | AH43: 791.38 | AI43: 21.95
C44: + Chiều rộng: | D44: m | E44: 3.5 | F44: 3.5 | G44: 0 | N44: =IFERROR(VALUE(SUBSTITUTE(MID(M45,SEARCH("km",M45,1)+2,99),"+",IF(VALUE(MID(M45,SEARCH("+",M45,1)+1,99))<100,0,"")))-VALUE(SUBSTITUTE(MID(M43,SEARCH("km",M43,1)+2,99),"+",IF(VALUE(MID(M43,SEARCH("+",M43,1)+1,99))<100,0,""))),"") -> 32.95 | O44: 2.27 | Q44: 2.27 | S44: 2.28 | U44: 2.26 | AF44: 42 | AG44: C10 km0+815,49 | AH44: 815.49 | AI44: 24.11
C45: C3' km0+224,00 | H45: =IFERROR(VLOOKUP(J45,Data_DAO_DAP!$AB$3:$AC$34,2,0),"") ->  | J45: =TRIM(MID(C45,SEARCH("km",C45,1),999)) -> km0+224,00 | M45: Đ12 km0+378,88 | AF45: 43 | AG45: Đ24 km0+839,83 | AH45: 839.83 | AI45: 24.34
C46: + Cao độ: | D46: m | E46: 0.83 | F46: 0.83 | G46: 0 | N46: =IFERROR(VALUE(SUBSTITUTE(MID(M47,SEARCH("km",M47,1)+2,99),"+",IF(VALUE(MID(M47,SEARCH("+",M47,1)+1,99))<100,0,"")))-VALUE(SUBSTITUTE(MID(M45,SEARCH("km",M45,1)+2,99),"+",IF(VALUE(MID(M45,SEARCH("+",M45,1)+1,99))<100,0,""))),"") -> 18.28 | O46: 2.27 | Q46: 2.27 | S46: 2.28 | U46: 2.27 | AF46: 44 | AG46: C10' km0+864,80 | AH46: 864.8 | AI46: 24.97
C47: + Chiều rộng: | D47: m | E47: 3.5 | F47: 3.51 | G47: 0.01 | M47: C5 km0+397,16 | W47: =IFERROR(VLOOKUP(X47,Data_DAO_DAP!$AB$3:$AC$34,2,0),"") -> Đoạn km0+397,16 đến km0+507,36 | X47: =TRIM(MID(M47,SEARCH("km",M47,1),999)) -> km0+397,16 | AF47: 45 | AG47: C10a km0+884,80 | AH47: 884.8 | AI47: 20
C48: Đ8 km0+240,78 | H48: =IFERROR(VLOOKUP(J48,Data_DAO_DAP!$AB$3:$AC$34,2,0),"") ->  | J48: =TRIM(MID(C48,SEARCH("km",C48,1),999)) -> km0+240,78 | N48: =IFERROR(VALUE(SUBSTITUTE(MID(M49,SEARCH("km",M49,1)+2,99),"+",IF(VALUE(MID(M49,SEARCH("+",M49,1)+1,99))<100,0,"")))-VALUE(SUBSTITUTE(MID(M47,SEARCH("km",M47,1)+2,99),"+",IF(VALUE(MID(M47,SEARCH("+",M47,1)+1,99))<100,0,""))),"") -> 9.71 | O48: 2.27 | Q48: 2.27 | S48: 2.26 | U48: 2.26 | AF48: 46 | AG48: Đ25 km0+905,79 | AH48: 905.79 | AI48: 20.99
C49: + Cao độ: | D49: m | E49: 0.83 | F49: 0.82 | G49: -0.01 | M49: Đ13 km0+406,87 | AF49: 47 | AG49: C10b km0+924,77 | AH49: 924.77 | AI49: 18.98
C50: + Chiều rộng: | D50: m | E50: 3.5 | F50: 3.61 | G50: 0.11 | N50: =IFERROR(VALUE(SUBSTITUTE(MID(M51,SEARCH("km",M51,1)+2,99),"+",IF(VALUE(MID(M51,SEARCH("+",M51,1)+1,99))<100,0,"")))-VALUE(SUBSTITUTE(MID(M49,SEARCH("km",M49,1)+2,99),"+",IF(VALUE(MID(M49,SEARCH("+",M49,1)+1,99))<100,0,""))),"") -> 29.49 | O50: 2.27 | Q50: 2.27 | S50: 2.26 | U50: 2.28 | AF50: 48 | AG50: Đ27 km0+944,50 | AH50: 944.5 | AI50: 19.73
C51: Đ9 km0+267,95 | H51: =IFERROR(VLOOKUP(J51,Data_DAO_DAP!$AB$3:$AC$34,2,0),"") ->  | J51: =TRIM(MID(C51,SEARCH("km",C51,1),999)) -> km0+267,95 | M51: Đ14 km0+436,36 | AF51: 49 | AG51: C10'' km0+958,96 | AH51: 958.96 | AI51: 14.46
C52: + Cao độ: | D52: m | E52: 0.83 | F52: 0.82 | G52: -0.01 | N52: =IFERROR(VALUE(SUBSTITUTE(MID(M53,SEARCH("km",M53,1)+2,99),"+",IF(VALUE(MID(M53,SEARCH("+",M53,1)+1,99))<100,0,"")))-VALUE(SUBSTITUTE(MID(M51,SEARCH("km",M51,1)+2,99),"+",IF(VALUE(MID(M51,SEARCH("+",M51,1)+1,99))<100,0,""))),"") -> 23.61 | O52: 2.27 | Q52: 2.27 | S52: 2.28 | U52: 2.28 | AF52: 50 | AG52: Đ28 km0+978,88 | AH52: 978.88 | AI52: 19.92
C53: + Chiều rộng: | D53: m | E53: 3.5 | F53: 3.59 | G53: 0.09 | M53: C6 km0+459,97 | AF53: 51 | AG53: C11 km0+998,37 | AH53: 998.37 | AI53: 19.49
C54: TĐ10=TC9 km0+280,43 | H54: =IFERROR(VLOOKUP(J54,Data_DAO_DAP!$AB$3:$AC$34,2,0),"") ->  | J54: =TRIM(MID(C54,SEARCH("km",C54,1),999)) -> km0+280,43 | N54: =IFERROR(VALUE(SUBSTITUTE(MID(M55,SEARCH("km",M55,1)+2,99),"+",IF(VALUE(MID(M55,SEARCH("+",M55,1)+1,99))<100,0,"")))-VALUE(SUBSTITUTE(MID(M53,SEARCH("km",M53,1)+2,99),"+",IF(VALUE(MID(M53,SEARCH("+",M53,1)+1,99))<100,0,""))),"") -> 24.77 | O54: 2.27 | Q54: 2.27 | S54: 2.26 | U54: 2.28 | AF54: 52 | AG54: C11' km1+16,37 | AH54: 1016.37 | AI54: 18
C55: + Cao độ: | D55: m | E55: 0.83 | F55: 0.82 | G55: -0.01 | M55: C6' km0+484,74 | AF55: 53 | AG55: Đ29 km1+41,91 | AH55: 1041.91 | AI55: 25.54
C56: + Chiều rộng: | D56: m | E56: 3.5 | F56: 3.61 | G56: 0.11 | N56: =IFERROR(VALUE(SUBSTITUTE(MID(M57,SEARCH("km",M57,1)+2,99),"+",IF(VALUE(MID(M57,SEARCH("+",M57,1)+1,99))<100,0,"")))-VALUE(SUBSTITUTE(MID(M55,SEARCH("km",M55,1)+2,99),"+",IF(VALUE(MID(M55,SEARCH("+",M55,1)+1,99))<100,0,""))),"") -> 22.62 | O56: 2.27 | Q56: 2.27 | S56: 2.27 | U56: 2.27 | AF56: 54 | AG56: C12 km1+69,83 | AH56: 1069.83 | AI56: 27.92
A57: ="HM"&TEXT(COUNT($I$3:I57),"000") -> HM005 | C57: Đ10 km0+299,46 | H57: =IFERROR(VLOOKUP(J57,Data_DAO_DAP!$AB$3:$AC$34,2,0),"") -> Đoạn km0+299,46 đến km0+397,16 | I57: 1 | J57: =TRIM(MID(C57,SEARCH("km",C57,1),999)) -> km0+299,46 | M57: Đ16 km0+507,36 | W57: =IFERROR(VLOOKUP(X57,Data_DAO_DAP!$AB$3:$AC$34,2,0),"") -> Đoạn km0+507,36 đến km0+601,89 | X57: =TRIM(MID(M57,SEARCH("km",M57,1),999)) -> km0+507,36 | AF57: 55 | AG57: C12' km1+89,83 | AH57: 1089.83 | AI57: 20
C58: + Cao độ: | D58: m | E58: 0.83 | F58: 0.82 | G58: -0.01 | N58: =IFERROR(VALUE(SUBSTITUTE(MID(M59,SEARCH("km",M59,1)+2,99),"+",IF(VALUE(MID(M59,SEARCH("+",M59,1)+1,99))<100,0,"")))-VALUE(SUBSTITUTE(MID(M57,SEARCH("km",M57,1)+2,99),"+",IF(VALUE(MID(M57,SEARCH("+",M57,1)+1,99))<100,0,""))),"") -> 23.39 | O58: 2.27 | Q58: 2.27 | S58: 2.27 | U58: 2.26 | AF58: 56 | AG58: C13 km1+114,83 | AH58: 1114.83 | AI58: 25
C59: + Chiều rộng: | D59: m | E59: 3.5 | F59: 3.6 | G59: 0.1 | M59: C7 km0+530,75 | AF59: 57 | AG59: Đ30 km1+136,99 | AH59: 1136.99 | AI59: 22.16
C60: TC10 km0+318,49 | H60: =IFERROR(VLOOKUP(J60,Data_DAO_DAP!$AB$3:$AC$34,2,0),"") ->  | J60: =TRIM(MID(C60,SEARCH("km",C60,1),999)) -> km0+318,49 | N60: =IFERROR(VALUE(SUBSTITUTE(MID(M61,SEARCH("km",M61,1)+2,99),"+",IF(VALUE(MID(M61,SEARCH("+",M61,1)+1,99))<100,0,"")))-VALUE(SUBSTITUTE(MID(M59,SEARCH("km",M59,1)+2,99),"+",IF(VALUE(MID(M59,SEARCH("+",M59,1)+1,99))<100,0,""))),"") -> 25 | O60: 2.27 | Q60: 2.27 | S60: 2.28 | U60: 2.28 | AF60: 58 | AG60: C13' km1+152,59 | AH60: 1152.59 | AI60: 15.6
C61: + Cao độ: | D61: m | E61: 0.83 | F61: 0.84 | G61: 0.01 | M61: C7' km0+555,75 | AF61: 59 | AG61: Đ31 km1+174,04 | AH61: 1174.04 | AI61: 21.45
C62: + Chiều rộng: | D62: m | E62: 3.5 | F62: 3.51 | G62: 0.01 | N62: =IFERROR(VALUE(SUBSTITUTE(MID(M63,SEARCH("km",M63,1)+2,99),"+",IF(VALUE(MID(M63,SEARCH("+",M63,1)+1,99))<100,0,"")))-VALUE(SUBSTITUTE(MID(M61,SEARCH("km",M61,1)+2,99),"+",IF(VALUE(MID(M61,SEARCH("+",M61,1)+1,99))<100,0,""))),"") -> 27.08 | O62: 2.27 | Q62: 2.27 | S62: 2.28 | U62: 2.27 | AF62: 60 | AG62: C14 km1+191,60 | AH62: 1191.6 | AI62: 17.56
C63: C4 km0+331,88 | H63: =IFERROR(VLOOKUP(J63,Data_DAO_DAP!$AB$3:$AC$34,2,0),"") ->  | J63: =TRIM(MID(C63,SEARCH("km",C63,1),999)) -> km0+331,88 | M63: Đ17 km0+582,83 | AF63: 61 | AG63: C15 km1+216,60 | AH63: 1216.6 | AI63: 25
C64: + Cao độ: | D64: m | E64: 0.83 | F64: 0.82 | G64: -0.01 | N64: =IFERROR(VALUE(SUBSTITUTE(MID(M65,SEARCH("km",M65,1)+2,99),"+",IF(VALUE(MID(M65,SEARCH("+",M65,1)+1,99))<100,0,"")))-VALUE(SUBSTITUTE(MID(M63,SEARCH("km",M63,1)+2,99),"+",IF(VALUE(MID(M63,SEARCH("+",M63,1)+1,99))<100,0,""))),"") -> 19.06 | O64: 2.27 | Q64: 2.27 | S64: 2.27 | U64: 2.27 | AF64: 62 | AG64: C16 km1+241,60 | AH64: 1241.6 | AI64: 25
C65: + Chiều rộng: | D65: m | E65: 3.5 | F65: 3.49 | G65: -0.01 | M65: C8 km0+601,89 | W65: =IFERROR(VLOOKUP(X65,Data_DAO_DAP!$AB$3:$AC$34,2,0),"") -> Đoạn km0+601,89 đến km0+715,92 | X65: =TRIM(MID(M65,SEARCH("km",M65,1),999)) -> km0+601,89 | AF65: 63 | AG65: Đ32 km1+265,32 | AH65: 1265.32 | AI65: 23.72
C66: Đ11 km0+345,93 | H66: =IFERROR(VLOOKUP(J66,Data_DAO_DAP!$AB$3:$AC$34,2,0),"") ->  | J66: =TRIM(MID(C66,SEARCH("km",C66,1),999)) -> km0+345,93 | N66: =IFERROR(VALUE(SUBSTITUTE(MID(M67,SEARCH("km",M67,1)+2,99),"+",IF(VALUE(MID(M67,SEARCH("+",M67,1)+1,99))<100,0,"")))-VALUE(SUBSTITUTE(MID(M65,SEARCH("km",M65,1)+2,99),"+",IF(VALUE(MID(M65,SEARCH("+",M65,1)+1,99))<100,0,""))),"") -> 20 | O66: 2.27 | Q66: 2.27 | S66: 2.27 | U66: 2.28 | AF66: 64 | AG66: Đ33 km1+295,93 | AH66: 1295.93 | AI66: 30.61
C67: + Cao độ: | D67: m | E67: 0.83 | F67: 0.82 | G67: -0.01 | M67: C8' km0+621,89 | AF67: 65 | AG67: C17 km1+314,24 | AH67: 1314.24 | AI67: 18.31
C68: + Chiều rộng: | D68: m | E68: 3.5 | F68: 3.51 | G68: 0.01 | N68: =IFERROR(VALUE(SUBSTITUTE(MID(M69,SEARCH("km",M69,1)+2,99),"+",IF(VALUE(MID(M69,SEARCH("+",M69,1)+1,99))<100,0,"")))-VALUE(SUBSTITUTE(MID(M67,SEARCH("km",M67,1)+2,99),"+",IF(VALUE(MID(M67,SEARCH("+",M67,1)+1,99))<100,0,""))),"") -> 15.82 | O68: 2.27 | Q68: 2.27 | S68: 2.28 | U68: 2.27 | AF68: 66 | AG68: C18 km1+339,24 | AH68: =VALUE(SUBSTITUTE(MID(AG68,SEARCH("km",AG68,1)+2,99),"+",IF(VALUE(MID(AG68,SEARCH("+",AG68,1)+1,99))<100,0,""))) -> 1339.24 | AI68: 25
C69: Đ12 km0+378,88 | H69: =IFERROR(VLOOKUP(J69,Data_DAO_DAP!$AB$3:$AC$34,2,0),"") ->  | J69: =TRIM(MID(C69,SEARCH("km",C69,1),999)) -> km0+378,88 | M69: Đ18 km0+637,71 | AF69: 67 | AG69: Đ35 km1+376,48 | AH69: 1376.48 | AI69: =+AH69-AH68 -> 37.24
C70: + Cao độ: | D70: m | E70: 0.83 | F70: 0.83 | G70: 0 | N70: =IFERROR(VALUE(SUBSTITUTE(MID(M71,SEARCH("km",M71,1)+2,99),"+",IF(VALUE(MID(M71,SEARCH("+",M71,1)+1,99))<100,0,"")))-VALUE(SUBSTITUTE(MID(M69,SEARCH("km",M69,1)+2,99),"+",IF(VALUE(MID(M69,SEARCH("+",M69,1)+1,99))<100,0,""))),"") -> 28.42 | O70: 2.27 | Q70: 2.27 | S70: 2.26 | U70: 2.27 | AF70: 68 | AG70: TĐ36 km1+382,33 | AH70: 1382.33 | AI70: 5.85
C71: + Chiều rộng: | D71: m | E71: 3.5 | F71: 3.51 | G71: 0.01 | M71: Đ19 km0+666,13 | AF71: 69 | AG71: C19 km1+480,52 | AH71: 1480.52 | AI71: 98.19
A72: ="HM"&TEXT(COUNT($I$3:I72),"000") -> HM006 | C72: C5 km0+397,16 | H72: =IFERROR(VLOOKUP(J72,Data_DAO_DAP!$AB$3:$AC$34,2,0),"") -> Đoạn km0+397,16 đến km0+507,36 | I72: 1 | J72: =TRIM(MID(C72,SEARCH("km",C72,1),999)) -> km0+397,16 | N72: =IFERROR(VALUE(SUBSTITUTE(MID(M73,SEARCH("km",M73,1)+2,99),"+",IF(VALUE(MID(M73,SEARCH("+",M73,1)+1,99))<100,0,"")))-VALUE(SUBSTITUTE(MID(M71,SEARCH("km",M71,1)+2,99),"+",IF(VALUE(MID(M71,SEARCH("+",M71,1)+1,99))<100,0,""))),"") -> 25.72 | O72: 2.27 | Q72: 2.27 | S72: 2.28 | U72: 2.26 | AF72: 70 | AG72: C16' km1+505,52 | AH72: 1505.52 | AI72: 25
C73: + Cao độ: | D73: m | E73: 0.83 | F73: 0.84 | G73: 0.01 | M73: C9 km0+691,85 | AF73: 71 | AG73: Đ38 km1+519,88 | AH73: 1519.88 | AI73: 14.36
C74: + Chiều rộng: | D74: m | E74: 3.5 | F74: 3.49 | G74: -0.01 | N74: =IFERROR(VALUE(SUBSTITUTE(MID(M75,SEARCH("km",M75,1)+2,99),"+",IF(VALUE(MID(M75,SEARCH("+",M75,1)+1,99))<100,0,"")))-VALUE(SUBSTITUTE(MID(M73,SEARCH("km",M73,1)+2,99),"+",IF(VALUE(MID(M73,SEARCH("+",M73,1)+1,99))<100,0,""))),"") -> 24.07 | O74: 2.27 | Q74: 2.27 | S74: 2.26 | U74: 2.27 | AF74: 72 | AG74: C19'' km1+541,11 | AH74: 1541.11 | AI74: 21.23
C75: Đ13 km0+406,87 | H75: =IFERROR(VLOOKUP(J75,Data_DAO_DAP!$AB$3:$AC$34,2,0),"") ->  | J75: =TRIM(MID(C75,SEARCH("km",C75,1),999)) -> km0+406,87 | M75: Đ20 km0+715,92 | W75: =IFERROR(VLOOKUP(X75,Data_DAO_DAP!$AB$3:$AC$34,2,0),"") -> Đoạn km0+715,92 đến km0+815,49 | X75: =TRIM(MID(M75,SEARCH("km",M75,1),999)) -> km0+715,92 | AF75: 73 | AG75: Đ39 km1+565,87 | AH75: 1565.87 | AI75: 24.76
C76: + Cao độ: | D76: m | E76: 0.83 | F76: 0.83 | G76: 0 | N76: =IFERROR(VALUE(SUBSTITUTE(MID(M77,SEARCH("km",M77,1)+2,99),"+",IF(VALUE(MID(M77,SEARCH("+",M77,1)+1,99))<100,0,"")))-VALUE(SUBSTITUTE(MID(M75,SEARCH("km",M75,1)+2,99),"+",IF(VALUE(MID(M75,SEARCH("+",M75,1)+1,99))<100,0,""))),"") -> 13.97 | O76: 2.27 | Q76: 2.27 | S76: 2.27 | U76: 2.28 | AF76: 74 | AG76: Đ40 km1+592,92 | AH76: 1592.92 | AI76: 27.05
C77: + Chiều rộng: | D77: m | E77: 3.5 | F77: 3.49 | G77: -0.01 | M77: Đ21 km0+729,89 | AF77: 75 | AG77: C20 km1+608,56 | AH77: 1608.56 | AI77: 15.64
C78: Đ14 km0+436,36 | H78: =IFERROR(VLOOKUP(J78,Data_DAO_DAP!$AB$3:$AC$34,2,0),"") ->  | J78: =TRIM(MID(C78,SEARCH("km",C78,1),999)) -> km0+436,36 | N78: =IFERROR(VALUE(SUBSTITUTE(MID(M79,SEARCH("km",M79,1)+2,99),"+",IF(VALUE(MID(M79,SEARCH("+",M79,1)+1,99))<100,0,"")))-VALUE(SUBSTITUTE(MID(M77,SEARCH("km",M77,1)+2,99),"+",IF(VALUE(MID(M77,SEARCH("+",M77,1)+1,99))<100,0,""))),"") -> 19.03 | O78: 2.27 | Q78: 2.27 | S78: 2.26 | U78: 2.27 | AF78: 76 | AG78: C20' km1+626,56 | AH78: 1626.56 | AI78: 18
C79: + Cao độ: | D79: m | E79: 0.83 | F79: 0.82 | G79: -0.01 | M79: Đ22 km0+748,92 | AF79: 77 | AG79: C21 km1+644,56 | AH79: 1644.56 | AI79: 18
C80: + Chiều rộng: | D80: m | E80: 3.5 | F80: 3.6 | G80: 0.1 | N80: =IFERROR(VALUE(SUBSTITUTE(MID(M81,SEARCH("km",M81,1)+2,99),"+",IF(VALUE(MID(M81,SEARCH("+",M81,1)+1,99))<100,0,"")))-VALUE(SUBSTITUTE(MID(M79,SEARCH("km",M79,1)+2,99),"+",IF(VALUE(MID(M79,SEARCH("+",M79,1)+1,99))<100,0,""))),"") -> 20.51 | O80: 2.27 | Q80: 2.27 | S80: 2.27 | U80: 2.27 | AF80: 78 | AG80: Đ41 km1+665,01 | AH80: 1665.01 | AI80: 20.45
C81: C6 km0+459,97 | H81: =IFERROR(VLOOKUP(J81,Data_DAO_DAP!$AB$3:$AC$34,2,0),"") ->  | J81: =TRIM(MID(C81,SEARCH("km",C81,1),999)) -> km0+459,97 | M81: C9' km0+769,43 | AF81: 79 | AG81: C22 km1+686,12 | AH81: 1686.12 | AI81: 21.11
C82: + Cao độ: | D82: m | E82: 0.83 | F82: 0.84 | G82: 0.01 | N82: =IFERROR(VALUE(SUBSTITUTE(MID(M83,SEARCH("km",M83,1)+2,99),"+",IF(VALUE(MID(M83,SEARCH("+",M83,1)+1,99))<100,0,"")))-VALUE(SUBSTITUTE(MID(M81,SEARCH("km",M81,1)+2,99),"+",IF(VALUE(MID(M81,SEARCH("+",M81,1)+1,99))<100,0,""))),"") -> 21.95 | O82: 2.27 | Q82: 2.27 | S82: 2.26 | U82: 2.27 | AF82: 80 | AG82: TĐ42 km1+703,38 | AH82: 1703.38 | AI82: 17.26
C83: + Chiều rộng: | D83: m | E83: 3.5 | F83: 3.5 | G83: 0 | M83: Đ23 km0+791,38 | AF83: 81 | AG83: Đ42 km1+722,02 | AH83: 1722.02 | AI83: 18.64
C84: C6' km0+484,74 | H84: =IFERROR(VLOOKUP(J84,Data_DAO_DAP!$AB$3:$AC$34,2,0),"") ->  | J84: =TRIM(MID(C84,SEARCH("km",C84,1),999)) -> km0+484,74 | N84: =IFERROR(VALUE(SUBSTITUTE(MID(M85,SEARCH("km",M85,1)+2,99),"+",IF(VALUE(MID(M85,SEARCH("+",M85,1)+1,99))<100,0,"")))-VALUE(SUBSTITUTE(MID(M83,SEARCH("km",M83,1)+2,99),"+",IF(VALUE(MID(M83,SEARCH("+",M83,1)+1,99))<100,0,""))),"") -> 24.11 | O84: 2.27 | Q84: 2.27 | S84: 2.26 | U84: 2.28 | AF84: 82 | AG84: TC42 km1+740,66 | AH84: 1740.66 | AI84: 18.64
C85: + Cao độ: | D85: m | E85: 0.83 | F85: 0.82 | G85: -0.01 | M85: C10 km0+815,49 | W85: =IFERROR(VLOOKUP(X85,Data_DAO_DAP!$AB$3:$AC$34,2,0),"") -> Đoạn km0+815,49 đến km0+924,77 | X85: =TRIM(MID(M85,SEARCH("km",M85,1),999)) -> km0+815,49 | AF85: 83 | AG85: C22' km1+765,66 | AH85: 1765.66 | AI85: 25
C86: + Chiều rộng: | D86: m | E86: 3.5 | F86: 3.6 | G86: 0.1 | N86: =IFERROR(VALUE(SUBSTITUTE(MID(M87,SEARCH("km",M87,1)+2,99),"+",IF(VALUE(MID(M87,SEARCH("+",M87,1)+1,99))<100,0,"")))-VALUE(SUBSTITUTE(MID(M85,SEARCH("km",M85,1)+2,99),"+",IF(VALUE(MID(M85,SEARCH("+",M85,1)+1,99))<100,0,""))),"") -> 24.34 | O86: 2.27 | Q86: 2.27 | S86: 2.26 | U86: 2.26 | AF86: 84 | AG86: C22a km1+772,08 | AH86: 1772.08 | AI86: 6.42
A87: ="HM"&TEXT(COUNT($I$3:I87),"000") -> HM007 | C87: Đ16 km0+507,36 | H87: =IFERROR(VLOOKUP(J87,Data_DAO_DAP!$AB$3:$AC$34,2,0),"") -> Đoạn km0+507,36 đến km0+601,89 | I87: 1 | J87: =TRIM(MID(C87,SEARCH("km",C87,1),999)) -> km0+507,36 | M87: Đ24 km0+839,83 | AF87: 85 | AG87: C22'' km1+866,46 | AH87: 1866.46 | AI87: 94.38
C88: + Cao độ: | D88: m | E88: 0.83 | F88: 0.84 | G88: 0.01 | N88: =IFERROR(VALUE(SUBSTITUTE(MID(M89,SEARCH("km",M89,1)+2,99),"+",IF(VALUE(MID(M89,SEARCH("+",M89,1)+1,99))<100,0,"")))-VALUE(SUBSTITUTE(MID(M87,SEARCH("km",M87,1)+2,99),"+",IF(VALUE(MID(M87,SEARCH("+",M87,1)+1,99))<100,0,""))),"") -> 24.97 | O88: 2.27 | Q88: 2.27 | S88: 2.26 | U88: 2.28 | AF88: 86 | AG88: Đ46 km1+881,58 | AH88: 1881.58 | AI88: 15.12
C89: + Chiều rộng: | D89: m | E89: 3.5 | F89: 3.5 | G89: 0 | M89: C10' km0+864,80 | AF89: 87 | AG89: C23 km1+908,05 | AH89: 1908.05 | AI89: 26.47
C90: C7 km0+530,75 | H90: =IFERROR(VLOOKUP(J90,Data_DAO_DAP!$AB$3:$AC$34,2,0),"") ->  | J90: =TRIM(MID(C90,SEARCH("km",C90,1),999)) -> km0+530,75 | N90: =IFERROR(VALUE(SUBSTITUTE(MID(M91,SEARCH("km",M91,1)+2,99),"+",IF(VALUE(MID(M91,SEARCH("+",M91,1)+1,99))<100,0,"")))-VALUE(SUBSTITUTE(MID(M89,SEARCH("km",M89,1)+2,99),"+",IF(VALUE(MID(M89,SEARCH("+",M89,1)+1,99))<100,0,""))),"") -> 20 | O90: 2.27 | Q90: 2.27 | S90: 2.27 | U90: 2.28 | AF90: 88 | AG90: Đ47 km1+935,21 | AH90: 1935.21 | AI90: 27.16
C91: + Cao độ: | D91: m | E91: 0.83 | F91: 0.84 | G91: 0.01 | M91: C10a km0+884,80 | AF91: 89 | AG91: TC47=TĐ48 km1+944,82 | AH91: 1944.82 | AI91: 9.61
C92: + Chiều rộng: | D92: m | E92: 3.5 | F92: 3.6 | G92: 0.1 | N92: =IFERROR(VALUE(SUBSTITUTE(MID(M93,SEARCH("km",M93,1)+2,99),"+",IF(VALUE(MID(M93,SEARCH("+",M93,1)+1,99))<100,0,"")))-VALUE(SUBSTITUTE(MID(M91,SEARCH("km",M91,1)+2,99),"+",IF(VALUE(MID(M91,SEARCH("+",M91,1)+1,99))<100,0,""))),"") -> 20.99 | O92: 2.27 | Q92: 2.27 | S92: 2.26 | U92: 2.26 | AF92: 90 | AG92: Đ48 km1+961,21 | AH92: 1961.21 | AI92: 16.39
C93: C7' km0+555,75 | H93: =IFERROR(VLOOKUP(J93,Data_DAO_DAP!$AB$3:$AC$34,2,0),"") ->  | J93: =TRIM(MID(C93,SEARCH("km",C93,1),999)) -> km0+555,75 | M93: Đ25 km0+905,79 | AF93: 91 | AG93: TC48 km1+977,60 | AH93: 1977.6 | AI93: 16.39
C94: + Cao độ: | D94: m | E94: 0.83 | F94: 0.84 | G94: 0.01 | N94: =IFERROR(VALUE(SUBSTITUTE(MID(M95,SEARCH("km",M95,1)+2,99),"+",IF(VALUE(MID(M95,SEARCH("+",M95,1)+1,99))<100,0,"")))-VALUE(SUBSTITUTE(MID(M93,SEARCH("km",M93,1)+2,99),"+",IF(VALUE(MID(M93,SEARCH("+",M93,1)+1,99))<100,0,""))),"") -> 18.98 | O94: 2.27 | Q94: 2.27 | S94: 2.28 | U94: 2.26 | AF94: 92 | AG94: Đ49 km1+998,48 | AH94: 1998.48 | AI94: 20.88
C95: + Chiều rộng: | D95: m | E95: 3.5 | F95: 3.59 | G95: 0.09 | M95: C10b km0+924,77 | W95: =IFERROR(VLOOKUP(X95,Data_DAO_DAP!$AB$3:$AC$34,2,0),"") -> Đoạn km0+924,77 đến km1+16,37 | X95: =TRIM(MID(M95,SEARCH("km",M95,1),999)) -> km0+924,77 | AF95: 93 | AG95: Đ50 km2+20,89 | AH95: 2020.89 | AI95: 22.41
C96: Đ17 km0+582,83 | H96: =IFERROR(VLOOKUP(J96,Data_DAO_DAP!$AB$3:$AC$34,2,0),"") ->  | J96: =TRIM(MID(C96,SEARCH("km",C96,1),999)) -> km0+582,83 | N96: =IFERROR(VALUE(SUBSTITUTE(MID(M97,SEARCH("km",M97,1)+2,99),"+",IF(VALUE(MID(M97,SEARCH("+",M97,1)+1,99))<100,0,"")))-VALUE(SUBSTITUTE(MID(M95,SEARCH("km",M95,1)+2,99),"+",IF(VALUE(MID(M95,SEARCH("+",M95,1)+1,99))<100,0,""))),"") -> 19.73 | O96: 2.27 | Q96: 2.27 | S96: 2.27 | U96: 2.26 | AF96: 94 | AG96: Đ51 km2+48,37 | AH96: 2048.37 | AI96: 27.48
C97: + Cao độ: | D97: m | E97: 0.83 | F97: 0.84 | G97: 0.01 | M97: Đ27 km0+944,50 | AF97: 95 | AG97: C24 km2+67,01 | AH97: 2067.01 | AI97: 18.64
C98: + Chiều rộng: | D98: m | E98: 3.5 | F98: 3.5 | G98: 0 | N98: =IFERROR(VALUE(SUBSTITUTE(MID(M99,SEARCH("km",M99,1)+2,99),"+",IF(VALUE(MID(M99,SEARCH("+",M99,1)+1,99))<100,0,"")))-VALUE(SUBSTITUTE(MID(M97,SEARCH("km",M97,1)+2,99),"+",IF(VALUE(MID(M97,SEARCH("+",M97,1)+1,99))<100,0,""))),"") -> 14.46 | O98: 2.27 | Q98: 2.27 | S98: 2.27 | U98: 2.28 | AF98: 96 | AG98: C25 km2+92,01 | AH98: 2092.01 | AI98: 25
A99: ="HM"&TEXT(COUNT($I$3:I99),"000") -> HM008 | C99: C8 km0+601,89 | H99: =IFERROR(VLOOKUP(J99,Data_DAO_DAP!$AB$3:$AC$34,2,0),"") -> Đoạn km0+601,89 đến km0+715,92 | I99: 1 | J99: =TRIM(MID(C99,SEARCH("km",C99,1),999)) -> km0+601,89 | M99: C10'' km0+958,96 | AF99: 97 | AG99: Đ25 km2+116,92 | AH99: 2116.92 | AI99: 24.91
C100: + Cao độ: | D100: m | E100: 0.83 | F100: 0.82 | G100: -0.01 | N100: =IFERROR(VALUE(SUBSTITUTE(MID(M101,SEARCH("km",M101,1)+2,99),"+",IF(VALUE(MID(M101,SEARCH("+",M101,1)+1,99))<100,0,"")))-VALUE(SUBSTITUTE(MID(M99,SEARCH("km",M99,1)+2,99),"+",IF(VALUE(MID(M99,SEARCH("+",M99,1)+1,99))<100,0,""))),"") -> 19.92 | O100: 2.27 | Q100: 2.27 | S100: 2.26 | U100: 2.28 | AF100: 98 | AG100: TĐ53 km2+139,48 | AH100: 2139.48 | AI100: 22.56
C101: + Chiều rộng: | D101: m | E101: 3.5 | F101: 3.49 | G101: -0.01 | M101: Đ28 km0+978,88 | AF101: 99 | AG101: Đ53 km2+161,02 | AH101: 2161.02 | AI101: 21.54
C102: C8' km0+621,89 | H102: =IFERROR(VLOOKUP(J102,Data_DAO_DAP!$AB$3:$AC$34,2,0),"") ->  | J102: =TRIM(MID(C102,SEARCH("km",C102,1),999)) -> km0+621,89 | N102: =IFERROR(VALUE(SUBSTITUTE(MID(M103,SEARCH("km",M103,1)+2,99),"+",IF(VALUE(MID(M103,SEARCH("+",M103,1)+1,99))<100,0,"")))-VALUE(SUBSTITUTE(MID(M101,SEARCH("km",M101,1)+2,99),"+",IF(VALUE(MID(M101,SEARCH("+",M101,1)+1,99))<100,0,""))),"") -> 19.49 | O102: 2.27 | Q102: 2.27 | S102: 2.26 | U102: 2.26 | AF102: 100 | AG102: TC53 km2+182,56 | AH102: 2182.56 | AI102: 21.54
C103: + Cao độ: | D103: m | E103: 0.83 | F103: 0.84 | G103: 0.01 | M103: C11 km0+998,37 | AF103: 101 | AG103: C26 km2+192,56 | AH103: 2192.56 | AI103: 10
C104: + Chiều rộng: | D104: m | E104: 3.5 | F104: 3.51 | G104: 0.01 | N104: =IFERROR(VALUE(SUBSTITUTE(MID(M105,SEARCH("km",M105,1)+2,99),"+",IF(VALUE(MID(M105,SEARCH("+",M105,1)+1,99))<100,0,"")))-VALUE(SUBSTITUTE(MID(M103,SEARCH("km",M103,1)+2,99),"+",IF(VALUE(MID(M103,SEARCH("+",M103,1)+1,99))<100,0,""))),"") -> 18 | O104: 2.27 | Q104: 2.27 | S104: 2.27 | U104: 2.28 | AF104: 102 | AG104: Đ54 km2+214,76 | AH104: 2214.76 | AI104: 22.2
C105: Đ18 km0+637,71 | H105: =IFERROR(VLOOKUP(J105,Data_DAO_DAP!$AB$3:$AC$34,2,0),"") ->  | J105: =TRIM(MID(C105,SEARCH("km",C105,1),999)) -> km0+637,71 | M105: C11' km1+16,37 | W105: =IFERROR(VLOOKUP(X105,Data_DAO_DAP!$AB$3:$AC$34,2,0),"") -> Đoạn km1+16,37 đến km1+114,83 | X105: =TRIM(MID(M105,SEARCH("km",M105,1),999)) -> km1+16,37 | AF105: 103 | AG105: C27 km2+240,42 | AH105: 2240.42 | AI105: 25.66
